{"text_format":"2","workbook":"xlsx","n_sheets":2,"sheets":["Matadata","WP list"],"not_rendered":{"charts":0,"images":0,"macros":0,"external_links":0,"defined_names":1,"comments":0,"pivot_tables":0},"unopened":[],"bounds":{"document_bytes":16777216,"sheet_cells":100000,"run_cost":"one","rows_first":2000,"rows_last":500,"rows_between":2000,"halvings":0,"cell_chars":16384,"cell_head_chars":4096},"cells_cut":0,"cells_raw":0,"read":"whole","date_system":"1900"}

{"sheet":"Matadata","index":0,"n_rows":23,"n_cols":4,"rows_kept":23,"cut":false,"hidden":false,"merged":[]}
["Metadata"]
["Source:","Inter Aide Sierra Leone"]
["Date:","2019-2020 (consolidation in 2021)"]
["GIS Reference system:","WGS 84"]
["Data collection:","in the field with GPS Garmin e10 "]
[]
["WSNb","Number of the pump in the village. Physically appearing on the pump (red paint)"]
["dryMonth","Number of months in the year when the well / borehole is dry"]
["WC","Presence or not of a Water Committee "]
["OutOfUse","Community does not use the water point"]
["Solar","Presence of a solar system on the same well / borehole"]
["WSS","Type of water system"]
["PT","Pump Technician (certified by the Water Directorate)"]
[]
["Grading system:"]
["Water","Grade","Status","Action to be undertaken"]
["Delivering","A+","WP is functionnal ","Preventive maintenance has been done"]
["Delivering","A","WP is functionnal ","Yearly preventive maintenance by a Pump Technician"]
["Delivering","B","The pump functions poorly - some parts need to be changed","Pump Technician intervention to diagnose the pump and replace the defective parts"]
["Not delivering","C","Problem linked with the pump that needs to be repaired or fully replaced","Pump Technician intervention to evaluate if the pump has to be fully replaced or if it can be repaired"]
["Not delivering","D","Problem linked with the well that needs to be rehabilitated","Intervention of a qualified operator to rehabilitate the well"]
["Not delivering","E","Problem linked with the well but the rehabilitation is not feasible","Need to build a new well or to find alternative solution (household water treatment)"]
["Unknown","X","Unknown","Pump Technician intervention to perform a diagnosis"]

{"sheet":"WP list","index":1,"n_rows":1652,"n_cols":24,"rows_kept":1652,"cut":false,"hidden":false,"merged":[]}
["district","chiefdom","section","village","population","WSNb","location","dryMonth","#seasonality","WC","latitude","longitude","outOfUse","solar","pumpType","#water_tech","ownership","WSS","#water_source","grade","#status_id","uniqueID","#notes","#converted"]
["Bombali","Biriwa","Balandugu","Bonoya",225,1,"out of the village",3,{"$f":"IF(H2>0,\"Yes\",\"No\")","v":"Yes"},"Non","9.17024","-11.97943",true,false,"Just pedestal - incomplete","Just pedestal - incomplete","Community","HDW","Hand Dug Well","Grade D",{"$f":"IF(OR(T2=\"Grade A\",T2=\"Grade B\"),\"Yes\",\"No\")","v":"No"},"BO1054",{"$f":"_xlfn.CONCAT(\"Seasonality =\",I2,\", \",\"Village =\", D2,\", \",\"Section =\", C2)","v":"Seasonality =Yes, Village =Bonoya, Section =Balandugu"}," #status_id, #notes, #water_tech, #water_source"]
["Bombali","Biriwa","Balandugu","Bonoya",225,2,"Entrance of the village",3,{"$f":"IF(H3>0,\"Yes\",\"No\")","v":"Yes"},"Non","9.17075","-11.90019",true,false,"IM2","India Mark II","Community","HDW","Hand Dug Well","Grade D",{"$f":"IF(OR(T3=\"Grade A\",T3=\"Grade B\"),\"Yes\",\"No\")","v":"No"},"BO1055","Seasonality =Yes, Village =Bonoya, Section =Balandugu","#water_tech, #status_id, #notes"]
["Bombali","Biriwa","Balandugu","Bonoya",225,3,"Centre of the village",3,"Yes","Non","9.17049","-11.98169",false,false,"IM2","India Mark II","Community","HDW","Hand Dug Well","Grade B","Yes","BO1056","Seasonality =Yes, Village =Bonoya, Section =Balandugu","#water_tech, #status_id, #notes"]
["Bombali","Biriwa","Balandugu","Bonoya",225,4,"Centre of the village",2,"Yes","Non","9.17066","-11.98169",false,false,"Just pedestal - incomplete","Just pedestal - incomplete","Community","HDW","Hand Dug Well","Grade D","No","BO1284","Seasonality =Yes, Village =Bonoya, Section =Balandugu","#water_tech, #status_id, #notes"]
["Bombali","Biriwa","Balandugu","Bonoya",225,5,"At the school compound",5,"Yes","Non","9.17129","-11.98275",true,false,"Just pedestal - incomplete","Just pedestal - incomplete","School","HDW","Hand Dug Well","Grade C","No","BO2654","Seasonality =Yes, Village =Bonoya, Section =Balandugu","#water_tech, #status_id, #notes"]
["Bombali","Biriwa","Balandugu","Kamasigie Darsalam",750,1,"Close to the highway",0,"No","Oui","9.31723","-11.91365",false,false,"IM2","India Mark II","Community","BH","Borehole","Grade A","Yes","BO1048","Seasonality =No, Village =Kamasigie Darsalam, Section =Balandugu","#water_tech, #status_id, #notes"]
["Bombali","Biriwa","Balandugu","Kamasigie Darsalam",750,2,"Primary school compound",2,"Yes","Non","9.31893","-11.91428",true,false,"IM2","India Mark II","School","HDW","Hand Dug Well","Grade D","No","BO1052","Seasonality =Yes, Village =Kamasigie Darsalam, Section =Balandugu","#water_tech, #status_id, #notes"]
["Bombali","Biriwa","Balandugu","Kamasigie Darsalam",750,3,"Side of the village",0,"No","Non","9.31653","-11.91438",false,false,"Kardia","Kardia","Community","HDW","Hand Dug Well","Grade C","No","BO1050","Seasonality =No, Village =Kamasigie Darsalam, Section =Balandugu","#water_tech, #status_id, #notes"]
["Bombali","Biriwa","Balandugu","Kathumpu Madingo",850,1,"At the school compound",3,"Yes","Oui","9.48","-11.90193",false,false,"IM2","India Mark II","School","HDW","Hand Dug Well","Grade B","Yes","BO2655","Seasonality =Yes, Village =Kathumpu Madingo, Section =Balandugu","#water_tech, #status_id, #notes"]
["Bombali","Biriwa","Balandugu","Madina Fullah II",420,1,"At the school compound",3,"Yes","Non","9.31520","-11.87532",false,false,"IM2","India Mark II","School","HDW","Hand Dug Well","Grade A","Yes","BO1327","Seasonality =Yes, Village =Madina Fullah II, Section =Balandugu","#water_tech, #status_id, #notes"]
["Bombali","Biriwa","Balandugu","Madina Fullah II",420,2,"close to the mosque",0,"No","Oui","9.31914","-11.87012",false,false,"IM2","India Mark II","Community","HDW","Hand Dug Well","Grade B","Yes","BO2656","Seasonality =No, Village =Madina Fullah II, Section =Balandugu","#water_tech, #status_id, #notes"]
["Bombali","Biriwa","Balandugu","Sainkunia I",450,1,"Entrance of the village",3,"Yes","Oui","9.20752","-11.93717",false,false,"IM2","India Mark II","Community","HDW","Hand Dug Well","Grade B","Yes","BO1379","Seasonality =Yes, Village =Sainkunia I, Section =Balandugu","#water_tech, #status_id, #notes"]
["Bombali","Biriwa","Balandugu","Sainkunia I",450,2,"School Compound",12,"Yes","Non","9.20734","-11.93708",false,false,"IM2","India Mark II","School","HDW","Hand Dug Well","Grade D","No","BO1058","Seasonality =Yes, Village =Sainkunia I, Section =Balandugu","#water_tech, #status_id, #notes"]
["Bombali","Biriwa","Balandugu","Sainkunia I",450,3,"Entrance of the village",3,"Yes","Non","9.20745","-11.93726",true,false,"IM2","India Mark II","Community","HDW","Hand Dug Well","Grade E","No","BO1057","Seasonality =Yes, Village =Sainkunia I, Section =Balandugu","#water_tech, #status_id, #notes"]
["Bombali","Biriwa","Balandugu","Sainkunia I",450,4,"Entrance of the village",2,"Yes","Oui","9.20690","-11.93751",true,false,"Just pedestal - incomplete","Just pedestal - incomplete","Community","HDW","Hand Dug Well","Grade C","No","BO4696","Seasonality =Yes, Village =Sainkunia I, Section =Balandugu","#water_tech, #status_id, #notes"]
["Bombali","Biriwa","Balandugu","Sainkunia I",450,5,"Side of the village-Mosque",0,"No","Oui","9.21032","-11.93594",false,false,"IM2","India Mark II","Community","HDW","Hand Dug Well","Grade C","No","BO4697","Seasonality =No, Village =Sainkunia I, Section =Balandugu","#water_tech, #status_id, #notes"]
["Bombali","Biriwa","Bumban","Bumban",800,null,null,null,"No","Non","9.12005","-11.90543",false,false,null,0,"Community","Spring","Spring","Grade A","Yes","BO4056","Seasonality =No, Village =Bumban, Section =Bumban","#water_tech, #status_id, #notes"]
["Bombali","Biriwa","Bumban","Bumban",800,1,"At the health centre",12,"Yes","Non","9.12329","-11.91043",false,false,"Just pedestal - incomplete","Just pedestal - incomplete","Health Facility","HDW","Hand Dug Well","Grade C","No","BO4054","Seasonality =Yes, Village =Bumban, Section =Bumban","#water_tech, #status_id, #notes"]
["Bombali","Biriwa","Bumban","Bumban",800,2,"At the school",2,"Yes","Non","9.12101","-11.91225",false,false,"IM2","India Mark II","School","HDW","Hand Dug Well","Grade B","Yes","BO4055","Seasonality =Yes, Village =Bumban, Section =Bumban","#water_tech, #status_id, #notes"]
["Bombali","Biriwa","Bumban","Kabaray I",200,1,"Entrance of the village",0,"No","Oui","9.24965","-12.15477",false,false,"IM2","India Mark II","Community","HDW","Hand Dug Well","Grade B","Yes","BO827","Seasonality =No, Village =Kabaray I, Section =Bumban","#water_tech, #status_id, #notes"]
["Bombali","Biriwa","Bumban","Kadala I",350,1,"End of the village",3,"Yes","Oui","9.467333","-11.89365",false,false,"IM2","India Mark II","Community","HDW","Hand Dug Well","Grade C","No","BO1382","Seasonality =Yes, Village =Kadala I, Section =Bumban","#water_tech, #status_id, #notes"]
["Bombali","Biriwa","Bumban","Kadala II",155,1,"Middle of the town",3,"Yes","Non","9.24965","-12.15477",false,false,"IM2","India Mark II","Community","HDW","Hand Dug Well","Grade A","Yes","BO4057","Seasonality =Yes, Village =Kadala II, Section =Bumban","#water_tech, #status_id, #notes"]
["Bombali","Biriwa","Bumban","Kakekor",200,1,"out of the village",3,"Yes","Non","9.24965","-12.15477",false,false,"IM2","India Mark II","Community","HDW","Hand Dug Well","Grade A","Yes","BO4058","Seasonality =Yes, Village =Kakekor, Section =Bumban","#water_tech, #status_id, #notes"]
["Bombali","Biriwa","Bumban","Kalainkay",450,1,"Close to the swamp",0,"No","Oui","9.18015","-11.94376",false,false,"IM2","India Mark II","Community","HDW","Hand Dug Well","Grade A","Yes","BO4059","Seasonality =No, Village =Kalainkay, Section =Bumban","#water_tech, #status_id, #notes"]
["Bombali","Biriwa","Bumban","Kamagbegbe",265,1,"RC primary school",4,"Yes","Oui","9.16652","-11.93202",false,false,"IM2","India Mark II","School","HDW","Hand Dug Well","Grade A","Yes","BO2693","Seasonality =Yes, Village =Kamagbegbe, Section =Bumban","#water_tech, #status_id, #notes"]
["Bombali","Biriwa","Bumban","Kamagbegbe",265,2,"RC primary school",4,"Yes","Oui","9.16650","-11.93206",false,false,"IM2","India Mark II","School","HDW","Hand Dug Well","Grade B","Yes","BO4060","Seasonality =Yes, Village =Kamagbegbe, Section =Bumban","#water_tech, #status_id, #notes"]
["Bombali","Biriwa","Bumban","Kamathellie",250,1,"Close to the swamp",0,"No","Oui","9.180983","-11.93731",false,false,"IM2","India Mark II","Community","HDW","Hand Dug Well","Grade A","Yes","BO4061","Seasonality =No, Village =Kamathellie, Section =Bumban","#water_tech, #status_id, #notes"]
["Bombali","Biriwa","Bumban","Kamathidi",400,1,"close to the church",3,"Yes","Oui","9.0745","-11.90138",false,false,"IM2","India Mark II","Community","HDW","Hand Dug Well","Grade A","Yes","BO1350","Seasonality =Yes, Village =Kamathidi, Section =Bumban","#water_tech, #status_id, #notes"]
["Bombali","Biriwa","Bumban","Kamathidi",400,2,"RC primary school",5,"Yes","Non","9.0761","-11.90385",false,false,"IM2","India Mark II","School","HDW","Hand Dug Well","Grade C","No","BO828","Seasonality =Yes, Village =Kamathidi, Section =Bumban","#water_tech, #status_id, #notes"]
["Bombali","Biriwa","Bumban","Kamthirie",250,1,"centre of the village",2,"Yes","Oui","9.167366","-11.92825",false,false,"IM2","India Mark II","Community","HDW","Hand Dug Well","Grade A","Yes","BO4064","Seasonality =Yes, Village =Kamthirie, Section =Bumban","#water_tech, #status_id, #notes"]
["Bombali","Biriwa","Bumban","Karonko",250,1,"close to the highway",0,"No","Oui","9.180466","-11.96016",false,false,"IM2","India Mark II","Community","HDW","Hand Dug Well","Grade A","Yes","BO4065","Seasonality =No, Village =Karonko, Section =Bumban","#water_tech, #status_id, #notes"]
["Bombali","Biriwa","Bumban","Karonko",250,2,"Close to the swamp",0,"No","Non","9.180716","-11.96285",false,false,"Pully","Pully","Community","HDW","Hand Dug Well","Grade D","No","BO4066","Seasonality =No, Village =Karonko, Section =Bumban","#water_tech, #status_id, #notes"]
["Bombali","Biriwa","Bumban","Magboso",250,1,"side of the village",4,"Yes","Oui","9.173233","-11.95878",false,false,"IM2","India Mark II","Community","HDW","Hand Dug Well","Grade A","Yes","BO826","Seasonality =Yes, Village =Magboso, Section =Bumban","#water_tech, #status_id, #notes"]
["Bombali","Biriwa","Kagbankona","Kagbankuna",250,1,"At the CHP",0,"No","Non","9.4204","-11.91038",false,true,"IM2","India Mark II plus solar pump","Health Facility","HDW","Hand Dug Well","Grade A","Yes","BO1061","Seasonality =No, Village =Kagbankuna, Section =Kagbankona","#water_tech, #status_id, #notes"]
["Bombali","Biriwa","Kagbankona","Kagbankuna",250,2,"At the school compound",2,"Yes","Oui","9.42094","-11.91163",false,false,"IM2","India Mark II","School","HDW","Hand Dug Well","Grade A","Yes","BO1060","Seasonality =Yes, Village =Kagbankuna, Section =Kagbankona","#water_tech, #status_id, #notes"]
["Bombali","Biriwa","Kagbankona","Kagbankuna",250,3,"centre of the village",null,"No","Non","9.42235","-11.91001",true,false,"Just pedestal - incomplete","Just pedestal - incomplete","Community","HDW","Hand Dug Well","Grade E","No","BO1059","Seasonality =No, Village =Kagbankuna, Section =Kagbankona","#water_tech, #status_id, #notes"]
["Bombali","Biriwa","Kagbankona","Kakayor",380,1,"RC Primary School",0,"No","Non","9.43269","-11.85690",false,false,"IM2","India Mark II","School","HDW","Hand Dug Well","Grade B","Yes","BO1330","Seasonality =No, Village =Kakayor, Section =Kagbankona","#water_tech, #status_id, #notes"]
["Bombali","Biriwa","Kagbankona","Kakolifa 2",150,1,"Entreance of the village",0,"No","Non","9.41155","-11.9329",false,false,"Just pedestal - incomplete","Just pedestal - incomplete","Community","HDW","Hand Dug Well","Grade C","No","BO1429","Seasonality =No, Village =Kakolifa 2, Section =Kagbankona","#water_tech, #status_id, #notes"]
["Bombali","Biriwa","Kagbankona","Kamakohe",60,1,"Close to the swamp",0,"No","Non","9.357666","-11.91355",false,false,"IM2","India Mark II","Community","HDW","Hand Dug Well","Grade A","Yes","BO2614","Seasonality =No, Village =Kamakohe, Section =Kagbankona","#water_tech, #status_id, #notes"]
["Bombali","Biriwa","Kagbankona","Kamathudugu",500,1,"centre of the village",2,"Yes","Oui","9.41669","-11.85621",false,false,"Kardia","Kardia","Community","HDW","Hand Dug Well","Grade A","Yes","BO1331","Seasonality =Yes, Village =Kamathudugu, Section =Kagbankona","#water_tech, #status_id, #notes"]
["Bombali","Biriwa","Kagbankona","Kamathudugu",500,2,"End of the village",3,"Yes","Oui","9.41762","-11.85594",false,false,"Kardia","Kardia","Community","HDW","Hand Dug Well","Grade A","Yes","BO1332","Seasonality =Yes, Village =Kamathudugu, Section =Kagbankona","#water_tech, #status_id, #notes"]
["Bombali","Biriwa","Kagbankona","Kamathudugu",500,3,"At the school cpmpound",4,"Yes","Oui","9.41445","-11.85624",false,false,"IM2","India Mark II","School","HDW","Hand Dug Well","Grade B","Yes","BO2613","Seasonality =Yes, Village =Kamathudugu, Section =Kagbankona","#water_tech, #status_id, #notes"]
["Bombali","Biriwa","Kagbankona","Kamayanso",190,1,"close to the church",0,"No","Oui","9.412983","-11.97458",false,false,"IM2","India Mark II","Community","HDW","Hand Dug Well","Grade A","Yes","BO2172","Seasonality =No, Village =Kamayanso, Section =Kagbankona","#water_tech, #status_id, #notes"]
["Bombali","Biriwa","Kagbankona","Karakana",252,1,"Back of the village",8,"Yes","Oui","9.378116","-11.9153",false,false,"IM2","India Mark II","Community","HDW","Hand Dug Well","Grade A","Yes","BO1329","Seasonality =Yes, Village =Karakana, Section =Kagbankona","#water_tech, #status_id, #notes"]
["Bombali","Biriwa","Kagbankona","Kathumpu Limba",250,1,"Back of the village",9,"Yes","Oui","9.500183","-11.89356",false,false,"IM2","India Mark II","Community","HDW","Hand Dug Well","Grade A","Yes","BO1430","Seasonality =Yes, Village =Kathumpu Limba, Section =Kagbankona","#water_tech, #status_id, #notes"]
["Bombali","Biriwa","Kagbankona","Kayankasa",150,1,"At the PHU centre",3,"Yes","Oui","9.442466","-11.96423",false,true,"IM2","India Mark II plus solar pump","Health Facility","HDW","Hand Dug Well","Grade B","Yes","BO1451","Seasonality =Yes, Village =Kayankasa, Section =Kagbankona","#water_tech, #status_id, #notes"]
["Bombali","Biriwa","Kamabai","Kadgbana",256,1,"Close to the dry floor",3,"Yes","Non","9.11050","-11.93451",false,false,"IM2","India Mark II","Community","HDW","Hand Dug Well","Grade A","Yes","BO2626","Seasonality =Yes, Village =Kadgbana, Section =Kamabai","#water_tech, #status_id, #notes"]
["Bombali","Biriwa","Kamabai","Kadubayan",160,1,"Centre of the village",0,"No","Oui","9.04135","-11.93510",false,false,"IM2","India Mark II","Community","BH","Borehole","Grade A","Yes","BO2628","Seasonality =No, Village =Kadubayan, Section =Kamabai","#water_tech, #status_id, #notes"]
["Bombali","Biriwa","Kamabai","Kagbaneh",740,1,"At the school compound",2,"Yes","Non","9.06676","-11.95467",false,false,"IM2","India Mark II","School","HDW","Hand Dug Well","Grade B","Yes","BO2627","Seasonality =Yes, Village =Kagbaneh, Section =Kamabai","#water_tech, #status_id, #notes"]
["Bombali","Biriwa","Kamabai","Kagbaneh",740,2,"Health Centre",1,"Yes","Non","9.06737","-11.95319",false,false,"PB2","PB Mark II","Health Facility","HDW","Hand Dug Well","Grade B","Yes","BO1338","Seasonality =Yes, Village =Kagbaneh, Section =Kamabai","#water_tech, #status_id, #notes"]
["Bombali","Biriwa","Kamabai","Kagbaneh",740,3,"Centre of the village",0,"No","Oui","9.06450","-11.95412",false,false,"IM2","India Mark II","Community","HDW","Hand Dug Well","Grade A","Yes","BO819","Seasonality =No, Village =Kagbaneh, Section =Kamabai","#water_tech, #status_id, #notes"]
["Bombali","Biriwa","Kamabai","Kagbaneh",740,4,"At old town",3,"Yes","Non","9.06316","-11.95179",false,false,"Just pedestal - incomplete","Just pedestal - incomplete","Community","HDW","Hand Dug Well","Grade C","No","BO1339","Seasonality =Yes, Village =Kagbaneh, Section =Kamabai","#water_tech, #status_id, #notes"]
["Bombali","Biriwa","Kamabai","Kakendema",300,1,"Centre of the village",2,"Yes","Oui","9.05905","-11.93691",false,false,"PB2","PB Mark II","Community","HDW","Hand Dug Well","Grade A","Yes","BO2389","Seasonality =Yes, Village =Kakendema, Section =Kamabai","#water_tech, #status_id, #notes"]
["Bombali","Biriwa","Kamabai","Kakendema",300,2,"Upper part of the village",2,"Yes","Oui","9.05987","-11.93652",false,false,"IM2","India Mark II","Community","HDW","Hand Dug Well","Grade A","Yes","BO820","Seasonality =Yes, Village =Kakendema, Section =Kamabai","#water_tech, #status_id, #notes"]
["Bombali","Biriwa","Kamabai","Kakendema",300,3,"School Compound",4,"Yes","Oui","9.05848","-11.93617",false,false,"IM2","India Mark II","School","HDW","Hand Dug Well","Grade C","No","BO821","Seasonality =Yes, Village =Kakendema, Section =Kamabai","#water_tech, #status_id, #notes"]
["Bombali","Biriwa","Kamabai","Kamabai",2500,2,"Multi Purpose Centre",2,"Yes","Non","9.14977","-11.95992",false,false,"IM2","India Mark II","Community","BH","Borehole","Grade A","Yes","BO812","Seasonality =Yes, Village =Kamabai, Section =Kamabai","#water_tech, #status_id, #notes"]
["Bombali","Biriwa","Kamabai","Kamabai",2500,3,"School Compound Alhadi",7,"Yes","Non","9.14437","-11.96092",false,false,"IM2","India Mark II","School","HDW","Hand Dug Well","Grade C","No","BO813","Seasonality =Yes, Village =Kamabai, Section =Kamabai","#water_tech, #status_id, #notes"]
["Bombali","Biriwa","Kamabai","Kamabai",2500,4,"Hospital Compound",5,"Yes","Non","9.15726","-11.96105",false,false,"IM2","India Mark II","Health Facility","BH","Borehole","Grade B","Yes","BO814","Seasonality =Yes, Village =Kamabai, Section =Kamabai","#water_tech, #status_id, #notes"]
["Bombali","Biriwa","Kamabai","Kamabai",2500,5,"W.C.S.L Sch. Secondary",2,"Yes","Non","9.14922","-11.96148",false,false,"Just pedestal - incomplete","Just pedestal - incomplete","School","BH","Borehole","Grade C","No","BO817","Seasonality =Yes, Village =Kamabai, Section =Kamabai","#water_tech, #status_id, #notes"]
["Bombali","Biriwa","Kamabai","Kamabai",2500,6,"St. Thomas Secondary School",3,"Yes","Non","9.14437","-11.96090",false,false,"IM2","India Mark II","School","HDW","Hand Dug Well","Grade C","No","BO1439","Seasonality =Yes, Village =Kamabai, Section =Kamabai","#water_tech, #status_id, #notes"]
["Bombali","Biriwa","Kamabai","Kamabai",2500,7,"WCSL Primary School",0,"No","Non","9.14999","-11.96425",false,false,"IM2","India Mark II","School","BH","Borehole","Grade A","Yes","BO818","Seasonality =No, Village =Kamabai, Section =Kamabai","#water_tech, #status_id, #notes"]
["Bombali","Biriwa","Kamabai","Kamabai",2500,8,"Close to the Swamp",2,"Yes","Non","9.15004","-11.96436",true,false,"Just pedestal - incomplete","Just pedestal - incomplete","Community","HDW","Hand Dug Well","Grade C","No","BO4699","Seasonality =Yes, Village =Kamabai, Section =Kamabai","#water_tech, #status_id, #notes"]
["Bombali","Biriwa","Kamabai","Kamadunia",151,1,"Out of the village",3,"Yes","Oui","9.07462","-11.94063",false,false,"IM2","India Mark II","Community","HDW","Hand Dug Well","Grade A","Yes","BO2624","Seasonality =Yes, Village =Kamadunia, Section =Kamabai","#water_tech, #status_id, #notes"]
["Bombali","Biriwa","Kamabai","Kamafondo",210,1,"Centre of the village",0,"No","Oui","9.06088","-11.97316",false,false,"IM2","India Mark II","Community","HDW","Hand Dug Well","Grade A","Yes","BO1373","Seasonality =No, Village =Kamafondo, Section =Kamabai","#water_tech, #status_id, #notes"]
["Bombali","Biriwa","Kamabai","Kamafondo",210,2,"School Compound",0,"No","Non","9.06250","-11.97287",false,false,"IM2","India Mark II","School","HDW","Hand Dug Well","Grade B","Yes","BO1374",{"$f":"_xlfn.CONCAT(\"Seasonality =\",I66,\", \",\"Village =\", D66,\", \",\"Section =\", C66)","v":"Seasonality =No, Village =Kamafondo, Section =Kamabai"},"#water_tech, #status_id, #notes"]
["Bombali","Biriwa","Kamabai","Kamagbaintha",265,1,"Out of the Village",0,{"$f":"IF(H67>0,\"Yes\",\"No\")","v":"No"},"Non","9.05132","-11.94254",false,false,"IM2","India Mark II","Community","HDW","Hand Dug Well","Grade A",{"$f":"IF(OR(T67=\"Grade A\",T67=\"Grade B\"),\"Yes\",\"No\")","v":"Yes"},"BO4673","Seasonality =No, Village =Kamagbaintha, Section =Kamabai","#water_tech, #status_id, #notes"]
["Bombali","Biriwa","Kamabai","Kamaluay",35,1,"Out of the village",5,"Yes","Non","9.10361","-11.96638",false,false,"IM2","India Mark II","Community","HDW","Hand Dug Well","Grade A","Yes","BO2622","Seasonality =Yes, Village =Kamaluay, Section =Kamabai","#water_tech, #status_id, #notes"]
["Bombali","Biriwa","Kamabai","Kamandia",89,1,"Centre of the village",5,"Yes","Oui","9.10829","-11.95537",false,false,"IM2","India Mark II","Community","HDW","Hand Dug Well","Grade A","Yes","BO2625","Seasonality =Yes, Village =Kamandia, Section =Kamabai","#water_tech, #status_id, #notes"]
["Bombali","Biriwa","Kamabai","Kamaworay",302,1,"Entrance of the village",0,"No","Oui","9.07885","-11.92353",false,false,"IM2","India Mark II","Community","HDW","Hand Dug Well","Grade A","Yes","BO2623","Seasonality =No, Village =Kamaworay, Section =Kamabai","#water_tech, #status_id, #notes"]
["Bombali","Biriwa","Kamabai","Kamaworay",302,2,"School Compound",2,"Yes","Oui","9.08023","-11.92818",false,false,"IM2","India Mark II","School","HDW","Hand Dug Well","Grade A","Yes","BO2385","Seasonality =Yes, Village =Kamaworay, Section =Kamabai","#water_tech, #status_id, #notes"]
["Bombali","Biriwa","Kamabai","Kapethe Kabubu",140,1,"Centre of the village",3,"Yes","Non","9.07596","-11.94807",false,false,"IM2","India Mark II","Community","HDW","Hand Dug Well","Grade A","Yes","BO822","Seasonality =Yes, Village =Kapethe Kabubu, Section =Kamabai","#water_tech, #status_id, #notes"]
["Bombali","Biriwa","Kamabai","Kappethe Kayaloba",220,1,"Starting of the Village",0,"No","Non","9.07382","-11.96877",false,false,"IM2","India Mark II","Community","HDW","Hand Dug Well","Grade A","Yes","BO4672","Seasonality =No, Village =Kappethe Kayaloba, Section =Kamabai","#water_tech, #status_id, #notes"]
["Bombali","Biriwa","Kamabai","Kasassie",350,1,"Upper part of the village",0,"No","Non","9.13260","-11.94077",false,false,"IM2","India Mark II","Community","HDW","Hand Dug Well","Grade A","Yes","BO1276","Seasonality =No, Village =Kasassie, Section =Kamabai","#water_tech, #status_id, #notes"]
["Bombali","Biriwa","Kamabai","Kasassie",350,2,"School Compound",0,"No","Oui","9.13251","-11.94204",false,false,"IM2","India Mark II","School","HDW","Hand Dug Well","Grade A","Yes","BO1277","Seasonality =No, Village =Kasassie, Section =Kamabai","#water_tech, #status_id, #notes"]
["Bombali","Biriwa","Kamabai","Katatina",198,1,"Out of the Village",0,"No","Non","9.05595","-11.92022",false,false,"IM2","India Mark II","Community","HDW","Hand Dug Well","Grade A","Yes","BO4674","Seasonality =No, Village =Katatina, Section =Kamabai","#water_tech, #status_id, #notes"]
["Bombali","Biriwa","Kamabai","Kateneh/Kayasie",304,1,"Centre of the village",3,"Yes","Non","9.01771","-11.93284",false,false,"IM2","India Mark II","Community","HDW","Hand Dug Well","Grade A","Yes","BO2235","Seasonality =Yes, Village =Kateneh/Kayasie, Section =Kamabai","#water_tech, #status_id, #notes"]
["Bombali","Biriwa","Kamabai","Kathantha",330,1,"Entrance of the village",3,"Yes","Oui","9.10096","-11.94972",false,false,"IM2","India Mark II","Community","HDW","Hand Dug Well","Grade A","Yes","BO1376","Seasonality =Yes, Village =Kathantha, Section =Kamabai","#water_tech, #status_id, #notes"]
["Bombali","Biriwa","Kamabai","Kathekeyan",655,1,"School Compound",4,"Yes","Oui","9.03237","-11.92478",false,false,"IM2","India Mark II","School","HDW","Hand Dug Well","Grade B","Yes","BO2629","Seasonality =Yes, Village =Kathekeyan, Section =Kamabai","#water_tech, #status_id, #notes"]
["Bombali","Biriwa","Kamabai","Kathekeyan",655,2,"Centre of the village",3,"Yes","Oui","9.03157","-11.92309",false,false,"IM2","India Mark II","Community","HDW","Hand Dug Well","Grade A","Yes","BO2630","Seasonality =Yes, Village =Kathekeyan, Section =Kamabai","#water_tech, #status_id, #notes"]
["Bombali","Biriwa","Kamabai","Kathekeyan",655,3,"Side of the village",3,"Yes","Oui","9.03103","-11.92361",false,false,"IM2","India Mark II","Community","HDW","Hand Dug Well","Grade A","Yes","BO2631","Seasonality =Yes, Village =Kathekeyan, Section =Kamabai","#water_tech, #status_id, #notes"]
["Bombali","Biriwa","Kamabai","Masarmankay",450,1,"Side of the village",0,"No","Non","9.13408","-11.96410",false,false,"IM2","India Mark II","Community","HDW","Hand Dug Well","Grade A","Yes","BO1377","Seasonality =No, Village =Masarmankay, Section =Kamabai","#water_tech, #status_id, #notes"]
["Bombali","Biriwa","Kamabai","Masarmankay",450,2,"Back of the village",0,"No","Oui","9.13821","-11.95953",false,false,"IM2","India Mark II","Private","HDW","Hand Dug Well","Grade A","Yes","BO1378","Seasonality =No, Village =Masarmankay, Section =Kamabai","#water_tech, #status_id, #notes"]
["Bombali","Biriwa","Kamabai","Mile 14",150,1,"Close to the church",3,"Yes","Oui","9.05461","-11.96314",false,false,"IM2","India Mark II","Community","HDW","Hand Dug Well","Grade A","Yes","BO1375","Seasonality =Yes, Village =Mile 14, Section =Kamabai","#water_tech, #status_id, #notes"]
["Bombali","Biriwa","Kamankor","Bumbandae",250,1,"Back of the village",5,"Yes","Oui","9.08585","-12.00523",false,false,"PB2","PB Mark II","Community","HDW","Hand Dug Well","Grade B","Yes","BO1364","Seasonality =Yes, Village =Bumbandae, Section =Kamankor","#water_tech, #status_id, #notes"]
["Bombali","Biriwa","Kamankor","Bumbandae",250,2,"At the MCHP centre",3,"Yes","Oui","9.08904","-12.00506",false,false,"IM2","India Mark II","Health Facility","HDW","Hand Dug Well","Grade A","Yes","BO1365","Seasonality =Yes, Village =Bumbandae, Section =Kamankor","#water_tech, #status_id, #notes"]
["Bombali","Biriwa","Kamankor","Bumbankakendeka",267,1,"At the school compound",4,"Yes","Oui","9.15905","-11.98783",false,false,"IM2","India Mark II","School","HDW","Hand Dug Well","Grade A","Yes","BO1371","Seasonality =Yes, Village =Bumbankakendeka, Section =Kamankor","#water_tech, #status_id, #notes"]
["Bombali","Biriwa","Kamankor","Bumbankakendeka",267,2,"Back of the village",3,"Yes","Oui","9.15686","-11.98904",false,false,"IM2","India Mark II","Community","HDW","Hand Dug Well","Grade A","Yes","BO1363","Seasonality =Yes, Village =Bumbankakendeka, Section =Kamankor","#water_tech, #status_id, #notes"]
["Bombali","Biriwa","Kamankor","Kafalaba",66,1,"Side of the village",0,"No","Non","9.16903","-11.95946",false,false,"IM2","India Mark II","Community","HDW","Hand Dug Well","Grade A","Yes","BO4669","Seasonality =No, Village =Kafalaba, Section =Kamankor","#water_tech, #status_id, #notes"]
["Bombali","Biriwa","Kamankor","Kakorlar",601,1,"Entrance of the village",3,"Yes","Non","9.13249","-12.00611",false,false,"Just pedestal - incomplete","Just pedestal - incomplete","Community","HDW","Hand Dug Well","Grade C","No","BO1435","Seasonality =Yes, Village =Kakorlar, Section =Kamankor","#water_tech, #status_id, #notes"]
["Bombali","Biriwa","Kamankor","Kakorlar",601,2,"At the school compound",3,"Yes","Non","9.13264","-12.01024",false,false,"IM2","India Mark II","School","HDW","Hand Dug Well","Grade C","No","BO1436","Seasonality =Yes, Village =Kakorlar, Section =Kamankor","#water_tech, #status_id, #notes"]
["Bombali","Biriwa","Kamankor","Kamabolie",90,1,"Back of the village",3,"Yes","Non","9.16000","-11.9413",false,false,"IM2","India Mark II","Community","HDW","Hand Dug Well","Grade A","Yes","BO2616","Seasonality =Yes, Village =Kamabolie, Section =Kamankor","#water_tech, #status_id, #notes"]
["Bombali","Biriwa","Kamankor","Kamabolie",90,2,"out of the village",5,"Yes","Non","9.16069","-11.97211",true,false,"IM2","India Mark II","Community","HDW","Hand Dug Well","Grade E","No","BO1372","Seasonality =Yes, Village =Kamabolie, Section =Kamankor","#water_tech, #status_id, #notes"]
["Bombali","Biriwa","Kamankor","Kamaforay",205,1,"out of the town",3,"Yes","Oui","9.14236","-11.97236",false,false,"IM2","India Mark II","Community","HDW","Hand Dug Well","Grade D","No","BO1370","Seasonality =Yes, Village =Kamaforay, Section =Kamankor","#water_tech, #status_id, #notes"]
["Bombali","Biriwa","Kamankor","Kamakaeday",200,1,"Centre of the village",0,"No","Oui","9.08285","-12.01248",false,false,"IM2","India Mark II","Community","HDW","Hand Dug Well","Grade A","Yes","BO2621","Seasonality =No, Village =Kamakaeday, Section =Kamankor","#water_tech, #status_id, #notes"]
["Bombali","Biriwa","Kamankor","Kamakita",196,1,"Back of the village",3,"Yes","Non","9.03804","-12.03208",false,false,"IM2","India Mark II","Community","HDW","Hand Dug Well","Grade A","Yes","BO1368","Seasonality =Yes, Village =Kamakita, Section =Kamankor","#water_tech, #status_id, #notes"]
["Bombali","Biriwa","Kamankor","Kamakontaykay",180,1,"Back of the village",3,"Yes","Oui","9.06016","-12.00905",false,false,"IM2","India Mark II","Community","HDW","Hand Dug Well","Grade A","Yes","BO1380","Seasonality =Yes, Village =Kamakontaykay, Section =Kamankor","#water_tech, #status_id, #notes"]
["Bombali","Biriwa","Kamankor","Kamaron",310,1,"At the school compound",0,"No","Oui","9.10410","-11.99565",false,false,"IM2","India Mark II","School","HDW","Hand Dug Well","Grade B","Yes","BO2615","Seasonality =No, Village =Kamaron, Section =Kamankor","#water_tech, #status_id, #notes"]
["Bombali","Biriwa","Kamankor","Kamaron",310,2,"Entrance of the village",0,"No","Oui","9.10276","-11.99689",false,false,"Inkar","Inkar","Community","HDW","Hand Dug Well","Grade A","Yes","BO1369","Seasonality =No, Village =Kamaron, Section =Kamankor","#water_tech, #status_id, #notes"]
["Bombali","Biriwa","Kamankor","Kamaron",310,3,"Centre of the village",0,"No","Oui","9.10091","-11.99622",false,false,"IM2","India Mark II","Community","BH","Borehole","Grade A","Yes","BO1391","Seasonality =No, Village =Kamaron, Section =Kamankor","#water_tech, #status_id, #notes"]
["Bombali","Biriwa","Kamankor","Kamasongbo",150,1,"Back of the village",4,"Yes","Oui","9.11501","-12.01352",false,false,"IM2","India Mark II","Community","HDW","Hand Dug Well","Grade A","Yes","BO2619","Seasonality =Yes, Village =Kamasongbo, Section =Kamankor","#water_tech, #status_id, #notes"]
["Bombali","Biriwa","Kamankor","Kamayongbo",401,1,"Opposite the Mosque",2,"Yes","Oui","9.16917","-12.00757",false,false,"IM2","India Mark II","Community","HDW","Hand Dug Well","Grade A","Yes","BO1442","Seasonality =Yes, Village =Kamayongbo, Section =Kamankor","#water_tech, #status_id, #notes"]
["Bombali","Biriwa","Kamankor","Kamoi",492,1,"close to the dry floor",3,"Yes","Non","9.06878","-11.98771",false,false,"IM2","India Mark II","Community","HDW","Hand Dug Well","Grade A","Yes","BO1381","Seasonality =Yes, Village =Kamoi, Section =Kamankor","#water_tech, #status_id, #notes"]
["Bombali","Biriwa","Kamankor","Kamoi",492,2,"At the school compound",0,"No","Non","9.07013","-11.98923",false,false,"IM2","India Mark II","School","HDW","Hand Dug Well","Grade B","Yes","BO2777","Seasonality =No, Village =Kamoi, Section =Kamankor","#water_tech, #status_id, #notes"]
["Bombali","Biriwa","Kamankor","Kasasie",203,1,"End of the village",0,"No","Oui","9.06682","-12.03740",false,false,"IM2","India Mark II","Community","HDW","Hand Dug Well","Grade A","Yes","BO2620","Seasonality =No, Village =Kasasie, Section =Kamankor","#water_tech, #status_id, #notes"]
["Bombali","Biriwa","Kamankor","Kayelleh",200,1,"Entrance of the village",0,"No","Oui","9.05273","-12.03829",false,false,"IM2","India Mark II","Community","HDW","Hand Dug Well","Grade A","Yes","BO4067","Seasonality =No, Village =Kayelleh, Section =Kamankor","#water_tech, #status_id, #notes"]
["Bombali","Biriwa","Kamankor","Madanthilie",200,1,"out of the village",3,"Yes","Non","9.07010","-12.02568",true,false,"Just pedestal - incomplete","Just pedestal - incomplete","Community","HDW","Hand Dug Well","Grade D","No","BO1366","Seasonality =Yes, Village =Madanthilie, Section =Kamankor","#water_tech, #status_id, #notes"]
["Bombali","Biriwa","Kamankor","Mahera",150,1,"End of the village",3,"Yes","Non","9.11533","-11.98739",false,false,"IM2","India Mark II","Community","HDW","Hand Dug Well","Grade A","Yes","BO1367","Seasonality =Yes, Village =Mahera, Section =Kamankor","#water_tech, #status_id, #notes"]
["Bombali","Biriwa","Karassa","Kabuita",425,1,"centre of the village",3,"Yes","Oui","9.33077","-11.85743",false,false,"IM2","India Mark II","Community","HDW","Hand Dug Well","Grade B","Yes","BO2651","Seasonality =Yes, Village =Kabuita, Section =Karassa","#water_tech, #status_id, #notes"]
["Bombali","Biriwa","Karassa","Kabuita",425,2,"centre of the village",3,"Yes","Oui","9.33041","-11.85754",false,false,"IM2","India Mark II","Community","HDW","Hand Dug Well","Grade A","Yes","BO2652","Seasonality =Yes, Village =Kabuita, Section =Karassa","#water_tech, #status_id, #notes"]
["Bombali","Biriwa","Karassa","Kabuita",425,3,"At the school compound",0,"No","Oui","9.32936","-11.85551",false,false,"IM2","India Mark II","School","HDW","Hand Dug Well","Grade C","No","BO2653","Seasonality =No, Village =Kabuita, Section =Karassa","#water_tech, #status_id, #notes"]
["Bombali","Biriwa","Karassa","Kagbokosa",140,1,"Close to Komanomethie",null,"No","Non","9.28683","-11.86466",true,false,"Just pedestal - incomplete","Just pedestal - incomplete","Community","HDW","Hand Dug Well","Grade X","No","BO4698","Seasonality =No, Village =Kagbokosa, Section =Karassa","#water_tech, #status_id, #notes"]
["Bombali","Biriwa","Karassa","Kakumankoro",65,1,"At the school compound",2,"Yes","Non","9.38388","-11.84718",false,false,"IM2","India Mark II","School","HDW","Hand Dug Well","Grade A","Yes","BO1337","Seasonality =Yes, Village =Kakumankoro, Section =Karassa","#water_tech, #status_id, #notes"]
["Bombali","Biriwa","Karassa","Kambia",150,1,"End of the village",4,"Yes","Non","9.34537","-11.83046",false,false,"IM2","India Mark II","Community","HDW","Hand Dug Well","Grade A","Yes","BO2650","Seasonality =Yes, Village =Kambia, Section =Karassa","#water_tech, #status_id, #notes"]
["Bombali","Biriwa","Karassa","Kanikay II",400,1,"Close to the swamp",6,"Yes","Non","9.30747","-11.85998",false,false,"IM2","India Mark II","Community","HDW","Hand Dug Well","Grade B","Yes","BO1446","Seasonality =Yes, Village =Kanikay II, Section =Karassa","#water_tech, #status_id, #notes"]
["Bombali","Biriwa","Karassa","Kanikay II",400,2,"Close to the swamp",6,"Yes","Non","9.30749","-11.86008",false,false,"IM2","India Mark II","Community","HDW","Hand Dug Well","Grade B","Yes","BO1447","Seasonality =Yes, Village =Kanikay II, Section =Karassa","#water_tech, #status_id, #notes"]
["Bombali","Biriwa","Karassa","Kanikay II",400,3,"At the health centre",6,"Yes","Non","9.30766","-11.86118",true,false,"Just pedestal - incomplete","Just pedestal - incomplete","Health Facility","HDW","Hand Dug Well","Grade E","No","BO1448","Seasonality =Yes, Village =Kanikay II, Section =Karassa","#water_tech, #status_id, #notes"]
["Bombali","Biriwa","Karassa","Kanikay II",400,4,"At the pri.sch. Compound",5,"Yes","Oui","9.30868","-11.86152",false,false,"IM2","India Mark II","School","HDW","Hand Dug Well","Grade C","No","BO1449","Seasonality =Yes, Village =Kanikay II, Section =Karassa","#water_tech, #status_id, #notes"]
["Bombali","Biriwa","Karassa","Kanikay II",400,5,"At the pri.sch. Compound",5,"Yes","Oui","9.30839","-11.86206",false,false,"Just pedestal - incomplete","Just pedestal - incomplete","School","HDW","Hand Dug Well","Grade D","No","BO2648","Seasonality =Yes, Village =Kanikay II, Section =Karassa","#water_tech, #status_id, #notes"]
["Bombali","Biriwa","Karassa","Makamaya",320,1,"Village centre",2,"Yes","Non","9.26254","-11.86871",false,false,"IM2","India Mark II","Community","HDW","Hand Dug Well","Grade B","Yes","BO1441","Seasonality =Yes, Village =Makamaya, Section =Karassa","#water_tech, #status_id, #notes"]
["Bombali","Biriwa","Karassa","Sipoya",175,1,"Entrance of the village",3,"Yes","Oui","9.29744","-11.89513",false,false,"IM2","India Mark II","Community","HDW","Hand Dug Well","Grade C","No","BO2649","Seasonality =Yes, Village =Sipoya, Section =Karassa","#water_tech, #status_id, #notes"]
["Bombali","Biriwa","Karina",null,240,1,"side of the village",0,"No","Oui","9.19735","-11.98374",false,false,"IM2","India Mark II","Community","HDW","Hand Dug Well","Grade A","Yes","BO2634","Seasonality =No, Village =, Section =Karina","#water_tech, #status_id, #notes"]
["Bombali","Biriwa","Karina","Kamausifu",210,1,"side of the village",4,"Yes","Non","9.31275","-11.93649",false,false,"IM2","India Mark II","Community","HDW","Hand Dug Well","Grade C","No","BO2666","Seasonality =Yes, Village =Kamausifu, Section =Karina","#water_tech, #status_id, #notes"]
["Bombali","Biriwa","Karina","Kamausifu",210,2,"At the school",2,"Yes","Non","9.31476","-11.93497",false,false,"IM2","India Mark II","School","HDW","Hand Dug Well","Grade C","No","BO4062","Seasonality =Yes, Village =Kamausifu, Section =Karina","#water_tech, #status_id, #notes"]
["Bombali","Biriwa","Karina","Karina",1800,1,"Close to the Mosque",2,"Yes","Oui","9.17223","-12.01189",false,true,"IM2","India Mark II plus solar pump","Community","HDW","Hand Dug Well","Grade A","Yes","BO1062","Seasonality =Yes, Village =Karina, Section =Karina","#water_tech, #status_id, #notes"]
["Bombali","Biriwa","Karina","Karina",1800,2,"Centre of the village",3,"Yes","Non","9.17302","-12.01284",false,false,"IM2","India Mark II","Community","HDW","Hand Dug Well","Grade C","No","BO1063","Seasonality =Yes, Village =Karina, Section =Karina","#water_tech, #status_id, #notes"]
["Bombali","Biriwa","Karina","Karina",1800,3,"MCHP Centre",12,"Yes","Non","9.17016","-12.01590",false,true,"Solar Tap System","Solar Tap System ","Health Facility","HDW","Hand Dug Well","Grade B","Yes","BO1064","Seasonality =Yes, Village =Karina, Section =Karina","#water_tech, #status_id, #notes"]
["Bombali","Biriwa","Karina","Karina",1800,4,"Karina Sec. Sch. Compound",3,"Yes","Oui","9.16890","-12.01533",false,false,"IM2","India Mark II","School","HDW","Hand Dug Well","Grade B","Yes","BO1065","Seasonality =Yes, Village =Karina, Section =Karina","#water_tech, #status_id, #notes"]
["Bombali","Biriwa","Karina","Karina",1800,5,"SLMB Pri. Sch. Karina",10,"Yes","Non","9.16892","-12.01438",false,false,"IM2","India Mark II","School","HDW","Hand Dug Well","Grade B","Yes","BO1066","Seasonality =Yes, Village =Karina, Section =Karina","#water_tech, #status_id, #notes"]
["Bombali","Biriwa","Karina","Maboroba",480,1,"At the school compound",4,"Yes","Non","9.12603","-12.02329",false,false,"IM2","India Mark II","School","HDW","Hand Dug Well","Grade C","No","BO2617",{"$f":"_xlfn.CONCAT(\"Seasonality =\",I130,\", \",\"Village =\", D130,\", \",\"Section =\", C130)","v":"Seasonality =Yes, Village =Maboroba, Section =Karina"},"#water_tech, #status_id, #notes"]
["Bombali","Biriwa","Karina","Maboroba",480,2,"Entrance of the village",3,{"$f":"IF(H131>0,\"Yes\",\"No\")","v":"Yes"},"Oui","9.12507","-12.02399",false,false,"Just pedestal - incomplete","Just pedestal - incomplete","Community","HDW","Hand Dug Well","Grade C",{"$f":"IF(OR(T131=\"Grade A\",T131=\"Grade B\"),\"Yes\",\"No\")","v":"No"},"BO2618","Seasonality =Yes, Village =Maboroba, Section =Karina","#water_tech, #status_id, #notes"]
["Bombali","Biriwa","Karina","Manjobie",300,1,"centre of the village",12,"Yes","Non","9.252433","-11.99293",false,false,"Pully","Pully","Community","HDW","Hand Dug Well","Grade E","No","BO4063","Seasonality =Yes, Village =Manjobie, Section =Karina","#water_tech, #status_id, #notes"]
["Bombali","Biriwa","Karina","Manjoro I",768,1,"centre of the village",6,"Yes","Non","9.27187","-11.97675",false,false,"Just pedestal - incomplete","Just pedestal - incomplete","Community","HDW","Hand Dug Well","Grade C","No","BO1067","Seasonality =Yes, Village =Manjoro I, Section =Karina","#water_tech, #status_id, #notes"]
["Bombali","Biriwa","Karina","Manjoro I",768,2,"side of the village",2,"Yes","Non","9.27486","-11.97619",false,false,"PB2","PB Mark II","Community","HDW","Hand Dug Well","Grade B","Yes","BO1068","Seasonality =Yes, Village =Manjoro I, Section =Karina","#water_tech, #status_id, #notes"]
["Bombali","Biriwa","Karina","Manjoro I",768,3,"Center of the village",0,"No","Non","9.27126","-11.97596",false,true,"Solar Tap System","Solar Tap System ","Community","BH","Borehole","Grade X","No","BO4695","Seasonality =No, Village =Manjoro I, Section =Karina","#water_tech, #status_id, #notes"]
["Bombali","Biriwa","Karina","Manjoro II",436,1,"At the CHP centre",0,"No","Oui","9.26842","-11.97369",false,false,"IM2","India Mark II","Health Facility","HDW","Hand Dug Well","Grade A","Yes","BO2659","Seasonality =No, Village =Manjoro II, Section =Karina","#water_tech, #status_id, #notes"]
["Bombali","Biriwa","Karina","Manjoro II",436,2,"At the mosque",1,"Yes","Non","9.26857","-11.97334",false,false,"Just pedestal - incomplete","Just pedestal - incomplete","Community","HDW","Hand Dug Well","Grade C","No","BO2660","Seasonality =Yes, Village =Manjoro II, Section =Karina","#water_tech, #status_id, #notes"]
["Bombali","Biriwa","Karina","Manjoro II",436,3,"centre of the village",5,"Yes","Non","9.26880","-11.97098",false,false,"PB2","PB Mark II","Community","HDW","Hand Dug Well","Grade C","No","BO2661","Seasonality =Yes, Village =Manjoro II, Section =Karina","#water_tech, #status_id, #notes"]
["Bombali","Biriwa","Karina","Manjoro II",436,4,"close to the mosque",2,"Yes","Non","9.26798","-11.96935",false,false,"IM2","India Mark II","Community","HDW","Hand Dug Well","Grade C","No","BO2662","Seasonality =Yes, Village =Manjoro II, Section =Karina","#water_tech, #status_id, #notes"]
["Bombali","Biriwa","Karina","Manjoro II",436,5,"centre of the village",5,"Yes","Non","9.26771","-11.96925",false,true,"IM2","India Mark II plus solar pump","Private","HDW","Hand Dug Well","Grade C","No","BO2663","Seasonality =Yes, Village =Manjoro II, Section =Karina","#water_tech, #status_id, #notes"]
["Bombali","Biriwa","Karina","Manjoro II",436,6,"Opposite to the mosque",null,"No","Non","9.26776","-11.96932",false,false,"IM2","India Mark II","Private","HDW","Hand Dug Well","Grade X","No","BO4693","Seasonality =No, Village =Manjoro II, Section =Karina","#water_tech, #status_id, #notes"]
["Bombali","Biriwa","Karina","Manjoro II",436,7,"Center of the village",0,"No","Non","9.26737","-11.96857",false,true,"Solar Tap System","Solar Tap System ","Community","BH","Borehole","Grade X","No","BO4694","Seasonality =No, Village =Manjoro II, Section =Karina","#water_tech, #status_id, #notes"]
["Bombali","Biriwa","Karina","Masassa",301,1,"close to the mosque",3,"Yes","Non","9.15621","-12.00652",false,false,"IM2","India Mark II","Community","HDW","Hand Dug Well","Grade A","Yes","BO2633","Seasonality =Yes, Village =Masassa, Section =Karina","#water_tech, #status_id, #notes"]
["Bombali","Biriwa","Karina","Panibo",154,1,"close to the mosque",1,"Yes","Oui","9.37185","-11.91963",false,false,"IM2","India Mark II","Community","HDW","Hand Dug Well","Grade A","Yes","BO2632","Seasonality =Yes, Village =Panibo, Section =Karina","#water_tech, #status_id, #notes"]
["Bombali","Biriwa","Karina","Sarafula",273,1,"centre of the village",4,"Yes","Oui","9.09210","-12.03828",false,false,"Kardia","Kardia","Community","HDW","Hand Dug Well","Grade A","Yes","BO1431","Seasonality =Yes, Village =Sarafula, Section =Karina","#water_tech, #status_id, #notes"]
["Bombali","Biriwa","Karina","Sarafula",273,2,"At the sc compound",3,"Yes","Oui","9.09242","-12.03806",false,false,"IM2","India Mark II","School","HDW","Hand Dug Well","Grade A","Yes","BO1432","Seasonality =Yes, Village =Sarafula, Section =Karina","#water_tech, #status_id, #notes"]
["Bombali","Biriwa","Karina","Senegal",170,1,"Entrance of the village",0,"No","Non","9.368183","-11.92438",false,false,"IM2","India Mark II","Community","HDW","Hand Dug Well","Grade A","Yes","BO1450","Seasonality =No, Village =Senegal, Section =Karina","#water_tech, #status_id, #notes"]
["Bombali","Biriwa","Karina","Waridalla",650,1,"At the sec.sch.compound",9,"Yes","Non","9.21588","-12.01157",false,false,"IM2","India Mark II","School","HDW","Hand Dug Well","Grade A","Yes","BO1359","Seasonality =Yes, Village =Waridalla, Section =Karina","#water_tech, #status_id, #notes"]
["Bombali","Biriwa","Karina","Waridalla",650,2,"Close to the clock tower",1,"Yes","Oui","9.21412","-12.01502",false,false,"Inkar","Inkar","Community","HDW","Hand Dug Well","Grade A","Yes","BO1361","Seasonality =Yes, Village =Waridalla, Section =Karina","#water_tech, #status_id, #notes"]
["Bombali","Biriwa","Karina","Waridalla",650,3,"At the mosque",8,"Yes","Non","9.21529","-12.01546",false,false,"Kardia","Kardia","Community","HDW","Hand Dug Well","Grade C","No","BO1362","Seasonality =Yes, Village =Waridalla, Section =Karina","#water_tech, #status_id, #notes"]
["Bombali","Biriwa","Karina","Waridalla",650,4,"At the school",0,"No","Oui","9.21185","-12.01521",false,false,"IM2","India Mark II","School","HDW","Hand Dug Well","Grade A","Yes","BO1360","Seasonality =No, Village =Waridalla, Section =Karina","#water_tech, #status_id, #notes"]
["Bombali","Biriwa","Kasankorie","Badankoro I",400,1,"close to the chief house",3,"Yes","Oui","9.30511","-11.94609",false,false,"IM2","India Mark II","Community","HDW","Hand Dug Well","Grade B","Yes","BO824","Seasonality =Yes, Village =Badankoro I, Section =Kasankorie","#water_tech, #status_id, #notes"]
["Bombali","Biriwa","Kasankorie","Badankoro I",400,2,"Back of the village",4,"Yes","Oui","9.30582","-11.94587",false,false,"IM2","India Mark II","Community","HDW","Hand Dug Well","Grade C","No","BO2646","Seasonality =Yes, Village =Badankoro I, Section =Kasankorie","#water_tech, #status_id, #notes"]
["Bombali","Biriwa","Kasankorie","Fullah Town",300,1,"Kasankorie Road",0,"No","Non","9.23754","-11.96298",false,false,"IM2","India Mark II","Community","HDW","Hand Dug Well","Grade A","Yes","BO4671","Seasonality =No, Village =Fullah Town, Section =Kasankorie","#water_tech, #status_id, #notes"]
["Bombali","Biriwa","Kasankorie","Kabaka",270,1,"Mosque",3,"Yes","Non","9.27307","-11.9570",false,false,"IM2","India Mark II","Community","HDW","Hand Dug Well","Grade C","No","BO1335","Seasonality =Yes, Village =Kabaka, Section =Kasankorie","#water_tech, #status_id, #notes"]
["Bombali","Biriwa","Kasankorie","Kabakeh",185,1,"At the primary school ",4,"Yes","Non","9.21483","-11.96511",false,false,"IM2","India Mark II","School","HDW","Hand Dug Well","Grade C","No","BO823","Seasonality =Yes, Village =Kabakeh, Section =Kasankorie","#water_tech, #status_id, #notes"]
["Bombali","Biriwa","Kasankorie","Kabakeh",185,2,"centre of the village",3,"Yes","Non","9.21721","-11.96572",false,false,"IM2","India Mark II","Community","HDW","Hand Dug Well","Grade A","Yes","BO1342","Seasonality =Yes, Village =Kabakeh, Section =Kasankorie","#water_tech, #status_id, #notes"]
["Bombali","Biriwa","Kasankorie","Kaburuyan",201,1,"centre of the village",4,"Yes","Oui","9.35486","-11.92116",false,false,"PB2","PB Mark II","Community","HDW","Hand Dug Well","Grade A","Yes","BO2081","Seasonality =Yes, Village =Kaburuyan, Section =Kasankorie","#water_tech, #status_id, #notes"]
["Bombali","Biriwa","Kasankorie","Kaburuyan",201,2,"At the school compound",4,"Yes","Non","9.35255","-11.9206",false,false,"IM2","India Mark II","School","HDW","Hand Dug Well","Grade C","No","BO2637","Seasonality =Yes, Village =Kaburuyan, Section =Kasankorie","#water_tech, #status_id, #notes"]
["Bombali","Biriwa","Kasankorie","Kamakontekey",300,1,"out of the village",4,"Yes","Non","9.20481","-11.96807",true,false,"IM2","India Mark II","Community","HDW","Hand Dug Well","Grade E","No","BO2644","Seasonality =Yes, Village =Kamakontekey, Section =Kasankorie","#water_tech, #status_id, #notes"]
["Bombali","Biriwa","Kasankorie","Kamakrugbo",505,1,"centre of the village",3,"Yes","Non","9.23562","-11.96362",false,false,"IM2","India Mark II","Community","HDW","Hand Dug Well","Grade A","Yes","BO2635","Seasonality =Yes, Village =Kamakrugbo, Section =Kasankorie","#water_tech, #status_id, #notes"]
["Bombali","Biriwa","Kasankorie","Kamakrugbo",505,2,"At the primary school ",0,"No","Non","9.23478","-11.96527",false,false,"IM2","India Mark II","School","HDW","Hand Dug Well","Grade A","Yes","BO2636","Seasonality =No, Village =Kamakrugbo, Section =Kasankorie","#water_tech, #status_id, #notes"]
["Bombali","Biriwa","Kasankorie","Kamasikie Darsalam",850,1,"market area",3,"Yes","Oui","9.31814","-11.91241",false,false,"Inkar","Inkar","Community","HDW","Hand Dug Well","Grade B","Yes","BO2639","Seasonality =Yes, Village =Kamasikie Darsalam, Section =Kasankorie","#water_tech, #status_id, #notes"]
["Bombali","Biriwa","Kasankorie","Kamasikie Darsalam",850,2,"side of the village",4,"Yes","Oui","9.31860","-11.91155",false,false,"IM2","India Mark II","Community","HDW","Hand Dug Well","Grade A","Yes","BO2640","Seasonality =Yes, Village =Kamasikie Darsalam, Section =Kasankorie","#water_tech, #status_id, #notes"]
["Bombali","Biriwa","Kasankorie","Kamasikie Darsalam",850,3,"At the health centre",3,"Yes","Oui","9.31822","-11.90867",false,false,"IM2","India Mark II","Health Facility","HDW","Hand Dug Well","Grade B","Yes","BO2641","Seasonality =Yes, Village =Kamasikie Darsalam, Section =Kasankorie","#water_tech, #status_id, #notes"]
["Bombali","Biriwa","Kasankorie","Kamasikie Darsalam",850,4,"At the nursery school compound",4,"Yes","Oui","9.31773","-11.90667",false,false,"IM2","India Mark II","School","HDW","Hand Dug Well","Grade D","No","BO2642","Seasonality =Yes, Village =Kamasikie Darsalam, Section =Kasankorie","#water_tech, #status_id, #notes"]
["Bombali","Biriwa","Kasankorie","Kamayeh",75,1,"centre of the village",3,"Yes","Oui","9.25906","-11.98526",false,false,"IM2","India Mark II","Community","HDW","Hand Dug Well","Grade A","Yes","BO2645","Seasonality =Yes, Village =Kamayeh, Section =Kasankorie","#water_tech, #status_id, #notes"]
["Bombali","Biriwa","Kasankorie","Kasasie I",209,1,"side of the village",4,"Yes","Oui","9.25128","-11.96436",false,false,"IM2","India Mark II","Community","HDW","Hand Dug Well","Grade A","Yes","BO1353","Seasonality =Yes, Village =Kasasie I, Section =Kasankorie","#water_tech, #status_id, #notes"]
["Bombali","Biriwa","Kasankorie","Kathekeyan",246,1,"Near the Store",3,"Yes","Non","9.31475","-11.88048",false,false,"IM2","India Mark II","Community","HDW","Hand Dug Well","Grade A","Yes","BO1341","Seasonality =Yes, Village =Kathekeyan, Section =Kasankorie","#water_tech, #status_id, #notes"]
["Bombali","Biriwa","Kasankorie","Manjoro III",500,1,"Swamp",null,"No","Non","9.26602","-11.96616",true,false,"Just pedestal - incomplete","Just pedestal - incomplete","Community","HDW","Hand Dug Well","Grade D","No","BO1354","Seasonality =No, Village =Manjoro III, Section =Kasankorie","#water_tech, #status_id, #notes"]
["Bombali","Biriwa","Kasankorie","Manjoro III",500,2,"At the school compound",4,"Yes","Non","9.26617","-11.96436",false,false,"IM2","India Mark II","School","HDW","Hand Dug Well","Grade C","No","BO2657","Seasonality =Yes, Village =Manjoro III, Section =Kasankorie","#water_tech, #status_id, #notes"]
["Bombali","Biriwa","Kasankorie","Manjoro III",500,3,"At the next school Cpd",2,"Yes","Non","9.26611","-11.96432",false,false,"IM2","India Mark II","School","HDW","Hand Dug Well","Grade C","No","BO2658","Seasonality =Yes, Village =Manjoro III, Section =Kasankorie","#water_tech, #status_id, #notes"]
["Bombali","Biriwa","Kasankorie","Manjoro III",500,4,"Shengbeh Rd",0,"No","Non","9.21538","-11.96617",false,false,"IM2","India Mark II","Community","BH","Borehole","Grade A","Yes","BO1352","Seasonality =No, Village =Manjoro III, Section =Kasankorie","#water_tech, #status_id, #notes"]
["Bombali","Biriwa","Kasankorie","Manjoro III",500,5,"At the Mosque",3,"Yes","Non","9.26564","-11.96661",true,false,"Just pedestal - incomplete","Just pedestal - incomplete","Community","HDW","Hand Dug Well","Grade C","No","BO4691","Seasonality =Yes, Village =Manjoro III, Section =Kasankorie","#water_tech, #status_id, #notes"]
["Bombali","Biriwa","Kasankorie","Manjoro III",500,6,"side of the village",0,"No","Non","9.26498","-11.96757",true,false,"Just pedestal - incomplete","Just pedestal - incomplete","Community","HDW","Hand Dug Well","Grade C","No","BO2665","Seasonality =No, Village =Manjoro III, Section =Kasankorie","#water_tech, #status_id, #notes"]
["Bombali","Biriwa","Kayonkoro","Kadagbana",76,1,"centre of the village",0,"No","Non","9.21522","-11.86842",false,false,"IM2","India Mark II","Community","HDW","Hand Dug Well","Grade A","Yes","BO1438","Seasonality =No, Village =Kadagbana, Section =Kayonkoro","#water_tech, #status_id, #notes"]
["Bombali","Biriwa","Kayonkoro","Kamaballa",150,1,"End of the village",3,"Yes","Non","9.19872","-11.89813",false,false,"IM2","India Mark II","Community","HDW","Hand Dug Well","Grade A","Yes","BO1437","Seasonality =Yes, Village =Kamaballa, Section =Kayonkoro","#water_tech, #status_id, #notes"]
["Bombali","Biriwa","Kayonkoro","Kamagbangbaratha",118,1,"Kadagbana Road",4,"Yes","Non","9.22874","-11.91144",false,false,"IM2","India Mark II","Community","HDW","Hand Dug Well","Grade C","No","BO4068","Seasonality =Yes, Village =Kamagbangbaratha, Section =Kayonkoro","#water_tech, #status_id, #notes"]
["Bombali","Biriwa","Kayonkoro","Kamasahea",220,1,"At the school compound",2,"Yes","Non","9.23275","-11.93424",false,false,"IM2","India Mark II","School","HDW","Hand Dug Well","Grade A","Yes","BO4069","Seasonality =Yes, Village =Kamasahea, Section =Kayonkoro","#water_tech, #status_id, #notes"]
["Bombali","Biriwa","Kayonkoro","Kamathoro",290,1,"centre of the village",3,"Yes","Oui","9.21001","-11.92585",false,false,"IM2","India Mark II","Community","HDW","Hand Dug Well","Grade A","Yes","BO1340","Seasonality =Yes, Village =Kamathoro, Section =Kayonkoro","#water_tech, #status_id, #notes"]
["Bombali","Biriwa","Kayonkoro","Kamathoro",290,2,"At the school compound",2,"Yes","Non","9.21049","-11.92461",false,false,"IM2","India Mark II","School","HDW","Hand Dug Well","Grade C","No","BO4070","Seasonality =Yes, Village =Kamathoro, Section =Kayonkoro","#water_tech, #status_id, #notes"]
["Bombali","Biriwa","Kayonkoro","Kamathoro",290,3,"At the school compound",3,"Yes","Non","9.21091","-11.92429",false,false,"IM2","India Mark II","School","HDW","Hand Dug Well","Grade C","No","BO4071","Seasonality =Yes, Village =Kamathoro, Section =Kayonkoro","#water_tech, #status_id, #notes"]
["Bombali","Biriwa","Kayonkoro","Kayonkoro",280,1,"Near health centre",0,"No","Non","9.21201","-11.92210",false,false,"IM2","India Mark II","Health Facility","HDW","Hand Dug Well","Grade A","Yes","BO825","Seasonality =No, Village =Kayonkoro, Section =Kayonkoro","#water_tech, #status_id, #notes"]
["Bombali","Biriwa","Kayonkoro","Kayonkoro",280,2,"centre of the village",0,"No","Oui","9.21267","-11.92190",false,false,"IM2","India Mark II","Community","BH","Borehole","Grade A","Yes","BO4073","Seasonality =No, Village =Kayonkoro, Section =Kayonkoro","#water_tech, #status_id, #notes"]
["Bombali","Biriwa","Kayonkoro","Kayonkoro",280,3,"Out of the CHP",0,"No","Oui","9.21197","-11.92203",false,false,"IM2","India Mark II","Health Facility","HDW","Hand Dug Well","Grade A","Yes","BO4072","Seasonality =No, Village =Kayonkoro, Section =Kayonkoro","#water_tech, #status_id, #notes"]
["Bombali","Bombali Sharray","Konta","Konta",2500,1,"Close to the Old Hospital",3,"Yes","Oui","8.7451","-12.04801",false,false,"IM2","India Mark II","Community","HDW","Hand Dug Well","Grade A","Yes","BO1221","Seasonality =Yes, Village =Konta, Section =Konta","#water_tech, #status_id, #notes"]
["Bombali","Bombali Sharray","Konta","Konta",2500,2,"Close to the Mosque",3,"Yes","Oui","8.744483","-12.04886",false,false,"IM2","India Mark II","Community","HDW","Hand Dug Well","Grade B","Yes","BO1220","Seasonality =Yes, Village =Konta, Section =Konta","#water_tech, #status_id, #notes"]
["Bombali","Bombali Sharray","Konta","Konta",2500,3,"Close to the Court Barry",0,"No","Oui","8.744033","-12.04956",false,false,"IM2","India Mark II","Community","HDW","Hand Dug Well","Grade A","Yes","BO1217","Seasonality =No, Village =Konta, Section =Konta","#water_tech, #status_id, #notes"]
["Bombali","Bombali Sharray","Konta","Konta",2500,4,"CHC Hospital",2,"Yes","Oui","8.7463","-12.04918",false,false,"IM2","India Mark II","Health Facility","HDW","Hand Dug Well","Grade A","Yes","BO1219","Seasonality =Yes, Village =Konta, Section =Konta","#water_tech, #status_id, #notes"]
["Bombali","Bombali Sharray","Konta","Konta",2500,5,"Close to the Agric Store",2,"Yes","Oui","8.746766","-12.04818",false,false,"PB2","PB Mark II","Community","HDW","Hand Dug Well","Grade A","Yes","BO1216","Seasonality =Yes, Village =Konta, Section =Konta","#water_tech, #status_id, #notes"]
["Bombali","Bombali Sharray","Konta","Konta",2500,6,"WCSL Pri. Sch.",2,"Yes","Oui","8.748316","-12.04855",true,false,"IM2","India Mark II","School","HDW","Hand Dug Well","Grade D","No","BO1218","Seasonality =Yes, Village =Konta, Section =Konta","#water_tech, #status_id, #notes"]
["Bombali","Bombali Sharray","Konta","Konta",2500,7,"WCSL  Pri. Sch.",0,"No","Non","8.748333","-12.04858",false,false,"IM2","India Mark II","School","BH","Borehole","Grade A","Yes","BO1215","Seasonality =No, Village =Konta, Section =Konta","#water_tech, #status_id, #notes"]
["Bombali","Bombali Sharray","Konta","Konta",2500,8,"Close to the rice mill",3,"Yes","Non","8.7503","-12.04685",false,false,"Just pedestal - incomplete","Just pedestal - incomplete","Private","HDW","Hand Dug Well","Grade C","No","BO4074","Seasonality =Yes, Village =Konta, Section =Konta","#water_tech, #status_id, #notes"]
["Bombali","Bombali Sharray","Konta","Konta",2500,9,"B.D.C Junior Sec. School",7,"Yes","Non","8.75115","-12.04521",false,false,"IM2","India Mark II","School","HDW","Hand Dug Well","Grade B","Yes","BO4075",{"$f":"_xlfn.CONCAT(\"Seasonality =\",I194,\", \",\"Village =\", D194,\", \",\"Section =\", C194)","v":"Seasonality =Yes, Village =Konta, Section =Konta"},"#water_tech, #status_id, #notes"]
["Bombali","Bombali Sharray","Konta","Konta",2500,10,"Former Resident Minister Cpd",3,{"$f":"IF(H195>0,\"Yes\",\"No\")","v":"Yes"},"Non","8.751133","-12.04701",false,false,"Just pedestal - incomplete","Just pedestal - incomplete","Private","HDW","Hand Dug Well","Grade C",{"$f":"IF(OR(T195=\"Grade A\",T195=\"Grade B\"),\"Yes\",\"No\")","v":"No"},"BO4076","Seasonality =Yes, Village =Konta, Section =Konta","#water_tech, #status_id, #notes"]
["Bombali","Bombali Sharray","Konta","madina",200,1,"Close to the Highway",null,"No","Non","8.77173","-11.98864",false,false,"Just pedestal - incomplete","Just pedestal - incomplete","Community","HDW","Hand Dug Well","Grade X","No","BO4719","Seasonality =No, Village =madina, Section =Konta","#water_tech, #status_id, #notes"]
["Bombali","Bombali Sharray","Konta","Mahathine",null,1,"By the Mosque",0,"No","Non","8.76685","-12.01213",false,false,"IM2","India Mark II","Community","BH","Borehole","Grade C","No","BO2724","Seasonality =No, Village =Mahathine, Section =Konta","#water_tech, #status_id, #notes"]
["Bombali","Bombali Sharray","Konta","makaiba",205,1,"Entrance of the village",0,"No","Non","8.75365","-12.0031",false,false,"IM2","India Mark II","Community","HDW","Hand Dug Well","Grade A","Yes","BO1235","Seasonality =No, Village =makaiba, Section =Konta","#water_tech, #status_id, #notes"]
["Bombali","Bombali Sharray","Konta","makaiba",205,2,"Centre of the village",3,"Yes","Oui","8.7531","-12.00286",true,false,"Just pedestal - incomplete","Just pedestal - incomplete","Community","HDW","Hand Dug Well","Grade C","No","BO4077","Seasonality =Yes, Village =makaiba, Section =Konta","#water_tech, #status_id, #notes"]
["Bombali","Bombali Sharray","Konta","makaiba",205,3,"Safinatu Naja  Pri. Sch.",0,"No","Oui","8.7506","-12.00565",false,false,"IM2","India Mark II","School","HDW","Hand Dug Well","Grade A","Yes","BO4078","Seasonality =No, Village =makaiba, Section =Konta","#water_tech, #status_id, #notes"]
["Bombali","Bombali Sharray","Konta","malafthane",120,1,"Centre of the village",3,"Yes","Oui","8.766633","-12.01211",false,false,"IM2","India Mark II","Community","HDW","Hand Dug Well","Grade C","No","BO4079","Seasonality =Yes, Village =malafthane, Section =Konta","#water_tech, #status_id, #notes"]
["Bombali","Bombali Sharray","Konta","mamanso",250,1,"Centre of the village",3,"Yes","Oui","8.7467","-12.00875",false,false,"IM2","India Mark II","Community","HDW","Hand Dug Well","Grade A","Yes","BO1236","Seasonality =Yes, Village =mamanso, Section =Konta","#water_tech, #status_id, #notes"]
["Bombali","Bombali Sharray","Konta","mamanso",250,2,"End of the village",3,"Yes","Oui","8.74615","-12.0096",false,false,"PB2","PB Mark II","Community","HDW","Hand Dug Well","Grade A","Yes","BO1238","Seasonality =Yes, Village =mamanso, Section =Konta","#water_tech, #status_id, #notes"]
["Bombali","Bombali Sharray","Konta","Mankeneh 3",550,1,"Close to the dry floor",2,"Yes","Non","8.75618","-12.05254",false,false,"IM2","India Mark II","Community","HDW","Hand Dug Well","Grade A","Yes","BO1286","Seasonality =Yes, Village =Mankeneh 3, Section =Konta","#water_tech, #status_id, #notes"]
["Bombali","Bombali Sharray","Konta","Mankeneh 3",550,2,"Revive Church",0,"No","Non","8.75562","-12.05134",false,false,"IM2","India Mark II","School","BH","Borehole","Grade X","No","BO4720","Seasonality =No, Village =Mankeneh 3, Section =Konta","#water_tech, #status_id, #notes"]
["Bombali","Bombali Sharray","Konta","Manonko",1300,null,"Market Opposite",null,"No","Non",null,null,false,false,"IM2","India Mark II","Community","HDW","Hand Dug Well","Grade X","No","BO2834","Seasonality =No, Village =Manonko, Section =Konta","#water_tech, #status_id, #notes"]
["Bombali","Bombali Sharray","Konta","Manonko",1300,1,"End of the village",0,"No","Non","8.7748","-12.0462",false,false,"IM2","India Mark II","Community","HDW","Hand Dug Well","Grade B","Yes","BO1226","Seasonality =No, Village =Manonko, Section =Konta","#water_tech, #status_id, #notes"]
["Bombali","Bombali Sharray","Konta","Manonko",1300,2,"Close to the Church",3,"Yes","Oui","8.775866","-12.04518",false,false,"IM2","India Mark II","Community","HDW","Hand Dug Well","Grade B","Yes","BO1227","Seasonality =Yes, Village =Manonko, Section =Konta","#water_tech, #status_id, #notes"]
["Bombali","Bombali Sharray","Konta","Manonko",1300,3,"Close to the School",6,"Yes","Oui","8.777433","-12.04486",false,false,"IM2","India Mark II","Community","HDW","Hand Dug Well","Grade B","Yes","BO1228","Seasonality =Yes, Village =Manonko, Section =Konta","#water_tech, #status_id, #notes"]
["Bombali","Bombali Sharray","Konta","Manonko",1300,4,"UMC  Pri. Sch.",2,"Yes","Oui","8.777633","-12.04513",false,false,"IM2","India Mark II","School","HDW","Hand Dug Well","Grade A","Yes","BO1229","Seasonality =Yes, Village =Manonko, Section =Konta","#water_tech, #status_id, #notes"]
["Bombali","Bombali Sharray","Konta","Manonko",1300,5,"UMC quarters",0,"No","Oui","8.779516","-12.04495",false,false,"IM2","India Mark II","Private","HDW","Hand Dug Well","Grade B","Yes","BO1230","Seasonality =No, Village =Manonko, Section =Konta","#water_tech, #status_id, #notes"]
["Bombali","Bombali Sharray","Konta","Manonko",1300,6,"At the CHP",3,"Yes","Oui","8.779183","-12.04405",false,false,"IM2","India Mark II","Health Facility","HDW","Hand Dug Well","Grade B","Yes","BO4080","Seasonality =Yes, Village =Manonko, Section =Konta","#water_tech, #status_id, #notes"]
["Bombali","Bombali Sharray","Konta","Manonko",1300,7,"At the CHP",0,"No","Oui","8.779416","-12.04393",false,true,"Solar Tap System","Solar Tap System ","Health Facility","BH","Borehole","Grade A","Yes","BO4081","Seasonality =No, Village =Manonko, Section =Konta","#water_tech, #status_id, #notes"]
["Bombali","Bombali Sharray","Konta","maseray",180,1,"Centre of the village",3,"Yes","Oui","8.7608","-12.02903",false,false,"IM2","India Mark II","Community","HDW","Hand Dug Well","Grade A","Yes","BO1224","Seasonality =Yes, Village =maseray, Section =Konta","#water_tech, #status_id, #notes"]
["Bombali","Bombali Sharray","Konta","Masuba",350,1,"End of the village",0,"No","Oui","8.7399","-12.04658",false,false,"IM2","India Mark II","Community","HDW","Hand Dug Well","Grade B","Yes","BO4082","Seasonality =No, Village =Masuba, Section =Konta","#water_tech, #status_id, #notes"]
["Bombali","Bombali Sharray","Konta","Masuba",350,2,"Centre of the village",0,"No","Oui","8.722916","-12.03141",false,false,"IM2","India Mark II","Community","HDW","Hand Dug Well","Grade B","Yes","BO4083","Seasonality =No, Village =Masuba, Section =Konta","#water_tech, #status_id, #notes"]
["Bombali","Bombali Sharray","Konta","mattoh",500,1,"Village Entrance",2,"Yes","Non","8.76333","-11.99525",false,false,"IM2","India Mark II","Community","HDW","Hand Dug Well","Grade A","Yes","BO2754","Seasonality =Yes, Village =mattoh, Section =Konta","#water_tech, #status_id, #notes"]
["Bombali","Bombali Sharray","Konta","patfumamaso",120,1,"Close to the Mosque",1,"Yes","Non","8.749316","-12.00531",false,false,"IM2","India Mark II","Private","HDW","Hand Dug Well","Grade A","Yes","BO1237","Seasonality =Yes, Village =patfumamaso, Section =Konta","#water_tech, #status_id, #notes"]
["Bombali","Bombali Sharray","Konta","Rofothaneh",190,1,"Centre of the village",0,"No","Oui","8.7179","-12.03136",false,false,"PB2","PB Mark II","Community","HDW","Hand Dug Well","Grade A","Yes","BO4085","Seasonality =No, Village =Rofothaneh, Section =Konta","#water_tech, #status_id, #notes"]
["Bombali","Bombali Sharray","Konta","Rofothaneh",190,2,"W.C.S.L  Pri. Sch.",0,"No","Non","8.717516","-12.03305",false,false,"IM2","India Mark II","School","HDW","Hand Dug Well","Grade B","Yes","BO4086","Seasonality =No, Village =Rofothaneh, Section =Konta","#water_tech, #status_id, #notes"]
["Bombali","Bombali Sharray","Konta","Rogbonkoh",480,null,"By The Mosque",null,"No","Non",null,null,false,false,"IM2","India Mark II","Community","HDW","Hand Dug Well","Grade A","Yes","BO2757","Seasonality =No, Village =Rogbonkoh, Section =Konta","#water_tech, #status_id, #notes"]
["Bombali","Bombali Sharray","Konta","Rogbonkoh",480,1,"Close to the Highway",3,"Yes","Oui","8.7863","-12.00585",false,false,"IM2","India Mark II","Community","HDW","Hand Dug Well","Grade B","Yes","BO1233","Seasonality =Yes, Village =Rogbonkoh, Section =Konta","#water_tech, #status_id, #notes"]
["Bombali","Bombali Sharray","Konta","Rogbonkoh",480,2,"Rogbonkoh Comm. Primary school",0,"No","Oui","8.7849","-12.00593",false,false,"IM2","India Mark II","School","HDW","Hand Dug Well","Grade B","Yes","BO1234","Seasonality =No, Village =Rogbonkoh, Section =Konta","#water_tech, #status_id, #notes"]
["Bombali","Bombali Sharray","Konta","Ro-Kanteh",null,null,"Community Centre",null,"No","Non",null,null,false,false,"IM2","India Mark II","Community","HDW","Hand Dug Well","Grade X","No","BO2761","Seasonality =No, Village =Ro-Kanteh, Section =Konta","#water_tech, #status_id, #notes"]
["Bombali","Bombali Sharray","Konta","Ro-Kanteh",null,null,"By the Holding Centre",null,"No","Non",null,null,false,false,"IM2","India Mark II","Community","HDW","Hand Dug Well","Grade X","No","BO2760","Seasonality =No, Village =Ro-Kanteh, Section =Konta","#water_tech, #status_id, #notes"]
["Bombali","Bombali Sharray","Konta","Ro-Kanteh",null,null,"By The Store",null,"No","Non",null,null,false,false,"IM2","India Mark II","Community","HDW","Hand Dug Well","Grade X","No","BO2756","Seasonality =No, Village =Ro-Kanteh, Section =Konta","#water_tech, #status_id, #notes"]
["Bombali","Bombali Sharray","Konta","Rokon",165,1,"Centre of the village",0,"No","Oui","8.765083","-12.02916",false,false,"IM2","India Mark II","Community","HDW","Hand Dug Well","Grade A","Yes","BO1225","Seasonality =No, Village =Rokon, Section =Konta","#water_tech, #status_id, #notes"]
["Bombali","Bombali Sharray","Konta","Romakeneh",450,1,"Close to the dry floor",2,"Yes","Oui","8.756166","-12.05255",false,false,"PB2","PB Mark II","Community","HDW","Hand Dug Well","Grade A","Yes","BO4087","Seasonality =Yes, Village =Romakeneh, Section =Konta","#water_tech, #status_id, #notes"]
["Bombali","Bombali Sharray","Konta","Romakeneh",450,2,"Revive African  Pri. Sch.",0,"No","Non","8.755616","-12.05135",false,false,"IM2","India Mark II","School","BH","Borehole","Grade A","Yes","BO4088","Seasonality =No, Village =Romakeneh, Section =Konta","#water_tech, #status_id, #notes"]
["Bombali","Bombali Sharray","Konta","Rosent",1250,1,"W.C.S.L  Pri. Sch.",2,"Yes","Non","8.770783","-11.9978",false,false,"IM2","India Mark II","School","HDW","Hand Dug Well","Grade B","Yes","BO1232","Seasonality =Yes, Village =Rosent, Section =Konta","#water_tech, #status_id, #notes"]
["Bombali","Bombali Sharray","Konta","Rosent",1250,2,"Centre of the village",3,"Yes","Non","8.769016","-11.9987",false,false,"IM2","India Mark II","Community","HDW","Hand Dug Well","Grade B","Yes","BO1231","Seasonality =Yes, Village =Rosent, Section =Konta","#water_tech, #status_id, #notes"]
["Bombali","Bombali Sharray","Konta","Rosent",1250,3,"Close to the Church",0,"No","Non","8.772816","-11.99686",false,false,"IM2","India Mark II","Private","HDW","Hand Dug Well","Grade B","Yes","BO4089","Seasonality =No, Village =Rosent, Section =Konta","#water_tech, #status_id, #notes"]
["Bombali","Bombali Sharray","Konta","Rosent",1250,4,"WCSL Junior Sec. Sch.",0,"No","Non","8.775116","-11.99335",false,false,"IM2","India Mark II","School","HDW","Hand Dug Well","Grade B","Yes","BO4090","Seasonality =No, Village =Rosent, Section =Konta","#water_tech, #status_id, #notes"]
["Bombali","Bombali Sharray","Konta","Rosent Junction",1500,1,"Close to the Mosque",2,"Yes","Oui","8.778183","-11.99388",false,false,"Just pedestal - incomplete","Just pedestal - incomplete","Community","HDW","Hand Dug Well","Grade C","No","BO4091","Seasonality =Yes, Village =Rosent Junction, Section =Konta","#water_tech, #status_id, #notes"]
["Bombali","Bombali Sharray","Konta","Rosent Junction",1500,2,"Road to Rosent",0,"No","Non","8.77735","-11.99436",false,false,"IM2","India Mark II","Community","HDW","Hand Dug Well","Grade C","No","BO4092","Seasonality =No, Village =Rosent Junction, Section =Konta","#water_tech, #status_id, #notes"]
["Bombali","Bombali Sharray","Konta","Rosent Junction",1500,3,"Close to the Highway",0,"No","Non","8.77825","-11.99443",false,false,"Just pedestal - incomplete","Just pedestal - incomplete","Community","HDW","Hand Dug Well","Grade D","No","BO4093","Seasonality =No, Village =Rosent Junction, Section =Konta","#water_tech, #status_id, #notes"]
["Bombali","Bombali Sharray","Konta","Rosent Junction",1500,4,"Close to the Highway",3,"Yes","Non","8.77785","-11.9948",false,false,"Just pedestal - incomplete","Just pedestal - incomplete","Private","HDW","Hand Dug Well","Grade D","No","BO4094","Seasonality =Yes, Village =Rosent Junction, Section =Konta","#water_tech, #status_id, #notes"]
["Bombali","Bombali Sharray","Konta","Rosent Junction",1500,5,"Close to the Highway",0,"No","Non","8.777816","-11.99395",false,false,"Just pedestal - incomplete","Just pedestal - incomplete","Private","HDW","Hand Dug Well","Grade D","No","BO4095","Seasonality =No, Village =Rosent Junction, Section =Konta","#water_tech, #status_id, #notes"]
["Bombali","Bombali Sharray","Konta","Rosint Junction",1100,1,"Old Road",2,"Yes","Non",null,null,false,false,"PB2","PB Mark II","Community","HDW","Hand Dug Well","Grade B","Yes","BO2838","Seasonality =Yes, Village =Rosint Junction, Section =Konta","#water_tech, #status_id, #notes"]
["Bombali","Bombali Sharray","Konta","Wesleyan Jr.Sec. School",null,null,"School Compound",0,"No","Non","8.77509","-11.99470",false,false,"IM2","India Mark II","School","HDW","Hand Dug Well","Grade A","Yes","BO2690","Seasonality =No, Village =Wesleyan Jr.Sec. School, Section =Konta","#water_tech, #status_id, #notes"]
["Bombali","Bombali Shebora","Kafala","Gbomanda",75,1,"Entrance of the village",3,"Yes","Oui","8.822583","-12.09683",false,false,"IM2","India Mark II","Community","HDW","Hand Dug Well","Grade C","No","BO4096","Seasonality =Yes, Village =Gbomanda, Section =Kafala","#water_tech, #status_id, #notes"]
["Bombali","Bombali Shebora","Kafala","mabarie",520,1,"Entrance of the village",5,"Yes","Non","8.797766","-12.09263",false,false,"IM2","India Mark II","Community","HDW","Hand Dug Well","Grade C","No","BO1268","Seasonality =Yes, Village =mabarie, Section =Kafala","#water_tech, #status_id, #notes"]
["Bombali","Bombali Shebora","Kafala","mabarie",520,2,"Centre of the village",0,"No","Oui","8.79835","-12.09236",false,false,"PB2","PB Mark II","Community","BH","Borehole","Grade A","Yes","BO1269","Seasonality =No, Village =mabarie, Section =Kafala","#water_tech, #status_id, #notes"]
["Bombali","Bombali Shebora","Kafala","mabarie",520,3,"Close to the barry",3,"Yes","Oui","8.798383","-12.0919",false,false,"IM2","India Mark II","Community","HDW","Hand Dug Well","Grade C","No","BO1285","Seasonality =Yes, Village =mabarie, Section =Kafala","#water_tech, #status_id, #notes"]
["Bombali","Bombali Shebora","Kafala","maforay",150,1,"Centre of the village",4,"Yes","Oui","8.80655","-12.082",false,false,"IM2","India Mark II","Community","HDW","Hand Dug Well","Grade A","Yes","BO4097","Seasonality =Yes, Village =maforay, Section =Kafala","#water_tech, #status_id, #notes"]
["Bombali","Bombali Shebora","Kafala","maforay",150,2,"CHP centre",4,"Yes","Oui","8.806983","-12.082",false,false,"IM2","India Mark II","Health Facility","HDW","Hand Dug Well","Grade B","Yes","BO1267","Seasonality =Yes, Village =maforay, Section =Kafala","#water_tech, #status_id, #notes"]
["Bombali","Bombali Shebora","Kafala","magbithnor",350,1,"Village Centre",1,"Yes","Non","8.81391","-12.09014",false,false,"IM2","India Mark II","Community","HDW","Hand Dug Well","Grade B","Yes","BO1164","Seasonality =Yes, Village =magbithnor, Section =Kafala","#water_tech, #status_id, #notes"]
["Bombali","Bombali Shebora","Kafala","makumpbana",1500,1,"MCHP Centre",2,"Yes","Oui","8.805883","-12.03915",false,false,"IM2","India Mark II","Health Facility","HDW","Hand Dug Well","Grade A","Yes","BO1261","Seasonality =Yes, Village =makumpbana, Section =Kafala","#water_tech, #status_id, #notes"]
["Bombali","Bombali Shebora","Kafala","makumpbana",1500,2,"Off the highway",0,"No","Non","8.8061","-12.03691",false,false,"Just pedestal - incomplete","Just pedestal - incomplete","Private","HDW","Hand Dug Well","Grade C","No","BO1265","Seasonality =No, Village =makumpbana, Section =Kafala","#water_tech, #status_id, #notes"]
["Bombali","Bombali Shebora","Kafala","makumpbana",1500,3,"UMC Junior Sec. Sch.",6,"Yes","Non","8.806916","-12.03841",false,false,"IM2","India Mark II","School","HDW","Hand Dug Well","Grade C","No","BO4100","Seasonality =Yes, Village =makumpbana, Section =Kafala","#water_tech, #status_id, #notes"]
["Bombali","Bombali Shebora","Kafala","makumpbana",1500,4,"ABC Centre",6,"Yes","Oui","8.807","-12.0394",false,true,"IM2","India Mark II plus solar pump","Private","HDW","Hand Dug Well","Grade C","No","BO4101","Seasonality =Yes, Village =makumpbana, Section =Kafala","#water_tech, #status_id, #notes"]
["Bombali","Bombali Shebora","Kafala","makumpbana",1500,5,"U.M.C Pri. Sch",2,"Yes","Oui","8.808783","-12.03948",false,false,"India Mark III","India Mark III","School","HDW","Hand Dug Well","Grade A","Yes","BO4102","Seasonality =Yes, Village =makumpbana, Section =Kafala","#water_tech, #status_id, #notes"]
["Bombali","Bombali Shebora","Kafala","makumpbana",1500,6,"Road to the Pri. Sch",2,"Yes","Oui","8.8082","-12.03836",false,false,"India Mark III","India Mark III","Community","HDW","Hand Dug Well","Grade A","Yes","BO4103","Seasonality =Yes, Village =makumpbana, Section =Kafala","#water_tech, #status_id, #notes"]
["Bombali","Bombali Shebora","Kafala","makumpbana",1500,7,"Close to the mosque",3,"Yes","Non","8.807283","-12.04028",false,false,"IM2","India Mark II","Private","HDW","Hand Dug Well","Grade C","No","BO4104","Seasonality =Yes, Village =makumpbana, Section =Kafala","#water_tech, #status_id, #notes"]
["Bombali","Bombali Shebora","Kafala","makumpbana",1500,8,"Close to the highway",0,"No","Oui","8.8102","-12.04293",false,false,"PB2","PB Mark II","Community","HDW","Hand Dug Well","Grade C","No","BO4105","Seasonality =No, Village =makumpbana, Section =Kafala","#water_tech, #status_id, #notes"]
["Bombali","Bombali Shebora","Kafala","makumpbana",1500,9,"MCHP Centre",0,"No","Oui","8.805783","-12.03926",false,true,"Solar Tap System","Solar Tap System ","Health Facility","BH","Borehole","Grade A","Yes","BO4099","Seasonality =No, Village =makumpbana, Section =Kafala","#water_tech, #status_id, #notes"]
["Bombali","Bombali Shebora","Kafala","makumpbana",1500,10,"Road to Patifu",0,"No","Non","8.809483","-12.04036",false,false,"India Mark III","India Mark III","Community","BH","Borehole","Grade A","Yes","BO4107","Seasonality =No, Village =makumpbana, Section =Kafala","#water_tech, #status_id, #notes"]
["Bombali","Bombali Shebora","Kafala","makumpbana",1500,11,"Close to the Mosque",0,"No","Oui","8.811166","-12.04383",false,false,"IM2","India Mark II","Private","HDW","Hand Dug Well","Grade A","Yes","BO4106",{"$f":"_xlfn.CONCAT(\"Seasonality =\",I258,\", \",\"Village =\", D258,\", \",\"Section =\", C258)","v":"Seasonality =No, Village =makumpbana, Section =Kafala"},"#water_tech, #status_id, #notes"]
["Bombali","Bombali Shebora","Kafala","makumpdoron",420,1,"R.C Pri. Sch",3,{"$f":"IF(H259>0,\"Yes\",\"No\")","v":"Yes"},"Non","8.820316","-12.07101",false,false,"IM2","India Mark II","School","HDW","Hand Dug Well","Grade C",{"$f":"IF(OR(T259=\"Grade A\",T259=\"Grade B\"),\"Yes\",\"No\")","v":"No"},"BO4108","Seasonality =Yes, Village =makumpdoron, Section =Kafala","#water_tech, #status_id, #notes"]
["Bombali","Bombali Shebora","Kafala","makumpdoron",420,2,"R.C Nursing School",2,"Yes","Non","8.82045","-12.0704",false,false,"IM2","India Mark II","School","HDW","Hand Dug Well","Grade A","Yes","BO4109","Seasonality =Yes, Village =makumpdoron, Section =Kafala","#water_tech, #status_id, #notes"]
["Bombali","Bombali Shebora","Kafala","makumpdoron",420,3,"Close to the Mosque",2,"Yes","Oui","8.8177","-12.07091",false,false,"Kardia","Kardia","Community","BH","Borehole","Grade B","Yes","BO4110","Seasonality =Yes, Village =makumpdoron, Section =Kafala","#water_tech, #status_id, #notes"]
["Bombali","Bombali Shebora","Kafala","makumpdoron",420,4,"Centre of the village",3,"Yes","Oui","8.817683","-12.07091",false,false,"PB2","PB Mark II","Community","HDW","Hand Dug Well","Grade A","Yes","BO4111","Seasonality =Yes, Village =makumpdoron, Section =Kafala","#water_tech, #status_id, #notes"]
["Bombali","Bombali Shebora","Kafala","makumpdoron",420,5,"Benevolent Pri. Sch",4,"Yes","Oui","8.817466","-12.07281",false,false,"IM2","India Mark II","School","HDW","Hand Dug Well","Grade B","Yes","BO4112","Seasonality =Yes, Village =makumpdoron, Section =Kafala","#water_tech, #status_id, #notes"]
["Bombali","Bombali Shebora","Kafala","mamoru",550,1,"Close to the Swamp",5,"Yes","Oui","8.809333","-12.05576",false,false,"IM2","India Mark II","Community","HDW","Hand Dug Well","Grade B","Yes","BO1264","Seasonality =Yes, Village =mamoru, Section =Kafala","#water_tech, #status_id, #notes"]
["Bombali","Bombali Shebora","Kafala","mamoru",550,2,"Close to the Swamp",5,"Yes","Oui","8.809483","-12.05575",true,false,"Pully","Pully","Community","HDW","Hand Dug Well","Grade D","No","BO4113","Seasonality =Yes, Village =mamoru, Section =Kafala","#water_tech, #status_id, #notes"]
["Bombali","Bombali Shebora","Kafala","masuba",150,1,"Centre of the village",0,"No","Non","8.809166","-12.08061",false,false,"IM2","India Mark II","Community","BH","Borehole","Grade B","Yes","BO1266","Seasonality =No, Village =masuba, Section =Kafala","#water_tech, #status_id, #notes"]
["Bombali","Bombali Shebora","Kafala","masuba",150,2,"Road to Masum",0,"No","Non","8.810333","-12.07986",false,false,"Just pedestal - incomplete","Just pedestal - incomplete","Community","HDW","Hand Dug Well","Grade C","No","BO4114","Seasonality =No, Village =masuba, Section =Kafala","#water_tech, #status_id, #notes"]
["Bombali","Bombali Shebora","Kafala","masuba",150,3,"End of the village",0,"No","Non","8.80845","-12.07998",false,false,"Pully","Pully","Private","HDW","Hand Dug Well","Grade D","No","BO4115","Seasonality =No, Village =masuba, Section =Kafala","#water_tech, #status_id, #notes"]
["Bombali","Bombali Shebora","Kafala","mateneh",550,1,"Closeto the Highway",4,"Yes","Oui","8.795316","-12.02251",false,false,"IM2","India Mark II","Community","HDW","Hand Dug Well","Grade C","No","BO4116","Seasonality =Yes, Village =mateneh, Section =Kafala","#water_tech, #status_id, #notes"]
["Bombali","Bombali Shebora","Kafala","mateneh",550,2,"Close to the Mosque",1,"Yes","Non","8.795083","-12.02173",false,false,"IM2","India Mark II","Community","HDW","Hand Dug Well","Grade B","Yes","BO4117","Seasonality =Yes, Village =mateneh, Section =Kafala","#water_tech, #status_id, #notes"]
["Bombali","Bombali Shebora","Kafala","mateneh",550,3,"BDEC Pri. Sch",3,"Yes","Oui","8.7953","-12.02543",false,false,"Just pedestal - incomplete","Just pedestal - incomplete","School","HDW","Hand Dug Well","Grade C","No","BO4118","Seasonality =Yes, Village =mateneh, Section =Kafala","#water_tech, #status_id, #notes"]
["Bombali","Bombali Shebora","Kafala","mateneh",550,4,"At the Poultry side",0,"No","Non","8.79655","-12.02302",false,true,"IM2","India Mark II plus solar pump","Private","HDW","Hand Dug Well","Grade B","Yes","BO4709","Seasonality =No, Village =mateneh, Section =Kafala","#water_tech, #status_id, #notes"]
["Bombali","Bombali Shebora","Kafala","mayendeh",280,1,"Close to the Mosque",0,"No","Non","8.807183","-12.06735",false,false,"IM2","India Mark II","Community","HDW","Hand Dug Well","Grade A","Yes","BO1263","Seasonality =No, Village =mayendeh, Section =Kafala","#water_tech, #status_id, #notes"]
["Bombali","Bombali Shebora","Kafala","mayendeh",280,2,"Centre of the village",0,"No","Non","8.8073","-12.0678",false,false,"IM2","India Mark II","Community","HDW","Hand Dug Well","Grade A","Yes","BO4119","Seasonality =No, Village =mayendeh, Section =Kafala","#water_tech, #status_id, #notes"]
["Bombali","Bombali Shebora","Kafala","mayendeh",280,3,"End of the village",0,"No","Non","8.807383","-12.0685",false,false,"Pully","Pully","Community","HDW","Hand Dug Well","Grade D","No","BO4120","Seasonality =No, Village =mayendeh, Section =Kafala","#water_tech, #status_id, #notes"]
["Bombali","Bombali Shebora","Kafala","Patfu",230,1,"Centre of the village",2,"Yes","Oui","8.811333","-12.04003",false,false,"PB2","PB Mark II","Community","HDW","Hand Dug Well","Grade C","No","BO1262","Seasonality =Yes, Village =Patfu, Section =Kafala","#water_tech, #status_id, #notes"]
["Bombali","Bombali Shebora","Kafala","Patfu",230,2,"Centre of the village",0,"No","Non","8.81135","-12.04001",false,false,"IM2","India Mark II","Community","BH","Borehole","Grade A","Yes","BO4121","Seasonality =No, Village =Patfu, Section =Kafala","#water_tech, #status_id, #notes"]
["Bombali","Bombali Shebora","Kagbaran","Ahmaddiya",400,5,"School",2,"Yes","Non","8.87010","-12.05580",false,false,"IM2","India Mark II","School","HDW","Hand Dug Well","Grade B","Yes","BO1246","Seasonality =Yes, Village =Ahmaddiya, Section =Kagbaran","#water_tech, #status_id, #notes"]
["Bombali","Bombali Shebora","Kagbaran","Congo town",4000,1,"Main Congo Town",4,"Yes","Oui","8.87582","-12.03776",false,false,"IM2","India Mark II","Community","HDW","Hand Dug Well","Grade C","No","BO4122","Seasonality =Yes, Village =Congo town, Section =Kagbaran","#water_tech, #status_id, #notes"]
["Bombali","Bombali Shebora","Kagbaran","Congo town",4000,2,"W.C.S.L Pri. Sch",0,"No","Oui","8.87545","-12.03818",false,false,"IM2","India Mark II","School","BH","Borehole","Grade B","Yes","BO4123","Seasonality =No, Village =Congo town, Section =Kagbaran","#water_tech, #status_id, #notes"]
["Bombali","Bombali Shebora","Kagbaran","Congo town",4000,3,"Chief Compound",2,"Yes","Oui","8.87633","-12.03832",false,false,"Pully","Pully","Community","HDW","Hand Dug Well","Grade D","No","BO4124","Seasonality =Yes, Village =Congo town, Section =Kagbaran","#water_tech, #status_id, #notes"]
["Bombali","Bombali Shebora","Kagbaran","Congo town",4000,4,"Main Congo Town",0,"No","Oui","8.87902","-12.03856",false,false,"IM2","India Mark II","Community","HDW","Hand Dug Well","Grade C","No","BO4125","Seasonality =No, Village =Congo town, Section =Kagbaran","#water_tech, #status_id, #notes"]
["Bombali","Bombali Shebora","Kagbaran","Congo town",4000,5,"Ansarul Pri. Sch.",0,"No","Oui","8.87873","-12.04035",false,false,"IM2","India Mark II","School","HDW","Hand Dug Well","Grade B","Yes","BO4126","Seasonality =No, Village =Congo town, Section =Kagbaran","#water_tech, #status_id, #notes"]
["Bombali","Bombali Shebora","Kagbaran","Congo town",4000,6,"sSolomon Vandi St.",6,"Yes","Oui","8.87707","-12.03517",false,false,"IM2","India Mark II","Community","HDW","Hand Dug Well","Grade C","No","BO4127","Seasonality =Yes, Village =Congo town, Section =Kagbaran","#water_tech, #status_id, #notes"]
["Bombali","Bombali Shebora","Kagbaran","Ernest Bai koroma Avenue",1800,1,"At the area Mosque",6,"Yes","Oui","8.87942","-12.0316",false,false,"IM2","India Mark II","Community","HDW","Hand Dug Well","Grade C","No","BO4128","Seasonality =Yes, Village =Ernest Bai koroma Avenue, Section =Kagbaran","#water_tech, #status_id, #notes"]
["Bombali","Bombali Shebora","Kagbaran","Ernest Bai koroma Avenue",1800,2,"Mayamba Amputee Camp",0,"No","Oui","8.87941","-12.03118",false,false,"IM2","India Mark II","Community","HDW","Hand Dug Well","Grade A","Yes","BO4129","Seasonality =No, Village =Ernest Bai koroma Avenue, Section =Kagbaran","#water_tech, #status_id, #notes"]
["Bombali","Bombali Shebora","Kagbaran","Ibriham  Street",310,1,"Ibrihim Street",0,"No","Non","8.87461","-12.03566",false,false,"PB2","PB Mark II","Community","BH","Borehole","Grade A","Yes","BO2725","Seasonality =No, Village =Ibriham  Street, Section =Kagbaran","#water_tech, #status_id, #notes"]
["Bombali","Bombali Shebora","Kagbaran","JS Drive",450,1,"24 Off O.I.C Road",2,"Yes","Non","8.87227","-12.03788",false,false,"IM2","India Mark II","Community","BH","Borehole","Grade B","Yes","BO2682","Seasonality =Yes, Village =JS Drive, Section =Kagbaran","#water_tech, #status_id, #notes"]
["Bombali","Bombali Shebora","Kagbaran","Kuwait area",1900,1,"Mohamed Kamara St.",3,"Yes","Oui","8.8658","-12.03247",false,false,"IM2","India Mark II","Community","HDW","Hand Dug Well","Grade B","Yes","BO4130","Seasonality =Yes, Village =Kuwait area, Section =Kagbaran","#water_tech, #status_id, #notes"]
["Bombali","Bombali Shebora","Kagbaran","Kuwait area",1900,2,"Ali Timbo Drive",1,"Yes","Non","8.864","-12.03147",false,false,"IM2","India Mark II","Private","HDW","Hand Dug Well","Grade A","Yes","BO4131","Seasonality =Yes, Village =Kuwait area, Section =Kagbaran","#water_tech, #status_id, #notes"]
["Bombali","Bombali Shebora","Kagbaran","Kuwait area",1900,3,"Ali Timbo Drive",0,"No","Non","8.86587","-12.03304",false,false,"IM2","India Mark II","Private","HDW","Hand Dug Well","Grade A","Yes","BO4132","Seasonality =No, Village =Kuwait area, Section =Kagbaran","#water_tech, #status_id, #notes"]
["Bombali","Bombali Shebora","Kagbaran","Kuwait area",1900,4,"New Site Kuwait",0,"No","Non","8.86381","-12.03372",false,false,"IM2","India Mark II","Private","HDW","Hand Dug Well","Grade B","Yes","BO4133","Seasonality =No, Village =Kuwait area, Section =Kagbaran","#water_tech, #status_id, #notes"]
["Bombali","Bombali Shebora","Kagbaran","Limba corner",960,1,"Close to the Chief House",5,"Yes","Oui","8.86127","-12.03086",false,false,"IM2","India Mark II","Community","HDW","Hand Dug Well","Grade A","Yes","BO4134","Seasonality =Yes, Village =Limba corner, Section =Kagbaran","#water_tech, #status_id, #notes"]
["Bombali","Bombali Shebora","Kagbaran","Mabesor 1",150,1,"Side of the village",1,"Yes","Oui","8.83731","-12.07728",false,false,"IM2","India Mark II","Community","HDW","Hand Dug Well","Grade A","Yes","BO2848","Seasonality =Yes, Village =Mabesor 1, Section =Kagbaran","#water_tech, #status_id, #notes"]
["Bombali","Bombali Shebora","Kagbaran","Mabesor 2",250,1,"Entrance of the village",2,"Yes","Oui","8.83548","-12.07698",false,false,"IM2","India Mark II","Community","HDW","Hand Dug Well","Grade C","No","BO2851","Seasonality =Yes, Village =Mabesor 2, Section =Kagbaran","#water_tech, #status_id, #notes"]
["Bombali","Bombali Shebora","Kagbaran","Mabolleh",1500,1,"Entrance of the village",2,"Yes","Oui","8.82506","-12.05776",false,false,"IM2","India Mark II","Community","HDW","Hand Dug Well","Grade A","Yes","BO1239","Seasonality =Yes, Village =Mabolleh, Section =Kagbaran","#water_tech, #status_id, #notes"]
["Bombali","Bombali Shebora","Kagbaran","Mabolleh",1500,2,"UMC Pri. Sch.",2,"Yes","Oui","8.82521","-12.05864",false,false,"IM2","India Mark II","Community","HDW","Hand Dug Well","Grade A","Yes","BO1243","Seasonality =Yes, Village =Mabolleh, Section =Kagbaran","#water_tech, #status_id, #notes"]
["Bombali","Bombali Shebora","Kagbaran","Mabolleh",1500,3,"UMC Pri. Sch.",3,"Yes","Oui","8.82476","-12.05902",false,false,"IM2","India Mark II","School","HDW","Hand Dug Well","Grade A","Yes","BO4135","Seasonality =Yes, Village =Mabolleh, Section =Kagbaran","#water_tech, #status_id, #notes"]
["Bombali","Bombali Shebora","Kagbaran","Mabolleh",1500,4,"ECD Nursery Sch.",5,"Yes","Oui","8.82614","-12.05743",false,false,"IM2","India Mark II","School","HDW","Hand Dug Well","Grade B","Yes","BO4136","Seasonality =Yes, Village =Mabolleh, Section =Kagbaran","#water_tech, #status_id, #notes"]
["Bombali","Bombali Shebora","Kagbaran","Mabolleh",1500,5,"Close to the Mosque",7,"Yes","Oui","8.82434","-12.05771",false,false,"IM2","India Mark II","Community","HDW","Hand Dug Well","Grade A","Yes","BO4137","Seasonality =Yes, Village =Mabolleh, Section =Kagbaran","#water_tech, #status_id, #notes"]
["Bombali","Bombali Shebora","Kagbaran","Mabolleh",1500,6,"Centre of the village",0,"No","Oui","8.82427","-12.05786",false,false,"IM2","India Mark II","Community","HDW","Hand Dug Well","Grade A","Yes","BO1241","Seasonality =No, Village =Mabolleh, Section =Kagbaran","#water_tech, #status_id, #notes"]
["Bombali","Bombali Shebora","Kagbaran","Mabolleh",1500,7,"Close to the Second Mosque",6,"Yes","Oui","8.82218","-12.05725",false,false,"IM2","India Mark II","Community","HDW","Hand Dug Well","Grade C","No","BO4138","Seasonality =Yes, Village =Mabolleh, Section =Kagbaran","#water_tech, #status_id, #notes"]
["Bombali","Bombali Shebora","Kagbaran","Mabolleh",1500,8,"Close to the Second mosque",2,"Yes","Oui","8.8221","-12.05709",false,false,"IM2","India Mark II","Community","HDW","Hand Dug Well","Grade A","Yes","BO1240","Seasonality =Yes, Village =Mabolleh, Section =Kagbaran","#water_tech, #status_id, #notes"]
["Bombali","Bombali Shebora","Kagbaran","Mabolleh",1500,9,"At the PHU",0,"No","Oui","8.82139","-12.05441",false,true,"IM2","India Mark II plus solar pump","Health Facility","HDW","Hand Dug Well","Grade A","Yes","BO1242","Seasonality =No, Village =Mabolleh, Section =Kagbaran","#water_tech, #status_id, #notes"]
["Bombali","Bombali Shebora","Kagbaran","Mabureh",620,1,"Side of the village",1,"Yes","Oui","8.83981","-12.07779",false,false,"IM2","India Mark II","Community","HDW","Hand Dug Well","Grade A","Yes","BO1249","Seasonality =Yes, Village =Mabureh, Section =Kagbaran","#water_tech, #status_id, #notes"]
["Bombali","Bombali Shebora","Kagbaran","Mabureh",620,2,"At the Mosque",2,"Yes","Oui","8.83998","-12.07773",false,false,"IM2","India Mark II","Community","BH","Borehole","Grade C","No","BO4139","Seasonality =Yes, Village =Mabureh, Section =Kagbaran","#water_tech, #status_id, #notes"]
["Bombali","Bombali Shebora","Kagbaran","Mabureh",620,3,"Behind the Mosque",2,"Yes","Oui","8.84002","-12.07741",false,false,"IM2","India Mark II","Community","HDW","Hand Dug Well","Grade A","Yes","BO4140","Seasonality =Yes, Village =Mabureh, Section =Kagbaran","#water_tech, #status_id, #notes"]
["Bombali","Bombali Shebora","Kagbaran","Magburaka road",908,1,"Ahmadiyya Muslim Jamaat",1,"Yes","Oui","8.86666","-12.0509",false,false,"IM2","India Mark II","Community","HDW","Hand Dug Well","Grade B","Yes","BO4141","Seasonality =Yes, Village =Magburaka road, Section =Kagbaran","#water_tech, #status_id, #notes"]
["Bombali","Bombali Shebora","Kagbaran","Makama 1",2900,1,"Pait Bana Road",3,"Yes","Oui","8.8639","-12.05586",false,false,"Afridev","Afridev","Community","HDW","Hand Dug Well","Grade C","No","BO4142","Seasonality =Yes, Village =Makama 1, Section =Kagbaran","#water_tech, #status_id, #notes"]
["Bombali","Bombali Shebora","Kagbaran","Makama 1",2900,2,"Pait Bana Road",0,"No","Oui","8.86391","-12.05656",false,false,"IM2","India Mark II","Community","HDW","Hand Dug Well","Grade A","Yes","BO4143","Seasonality =No, Village =Makama 1, Section =Kagbaran","#water_tech, #status_id, #notes"]
["Bombali","Bombali Shebora","Kagbaran","Makama 1",2900,3,"Makama 1 CHP",0,"No","Oui","8.86245","-12.05587",false,true,"Solar Tap System","Solar Tap System ","Health Facility","BH","Borehole","Grade A","Yes","BO4144","Seasonality =No, Village =Makama 1, Section =Kagbaran","#water_tech, #status_id, #notes"]
["Bombali","Bombali Shebora","Kagbaran","Makama 1",2900,4,"W.C.S.L Pri. Sch. Makama",5,"Yes","Oui","8.86087","-12.05538",false,false,"Afridev","Afridev","School","HDW","Hand Dug Well","Grade B","Yes","BO1244","Seasonality =Yes, Village =Makama 1, Section =Kagbaran","#water_tech, #status_id, #notes"]
["Bombali","Bombali Shebora","Kagbaran","Makama 1",2900,5,"W.C.S.L Pri. Sch",0,"No","Oui","8.86088","-12.05542",false,false,"IM2","India Mark II","School","BH","Borehole","Grade A","Yes","BO4145","Seasonality =No, Village =Makama 1, Section =Kagbaran","#water_tech, #status_id, #notes"]
["Bombali","Bombali Shebora","Kagbaran","Makama 1",2900,6,"Baptist Sec. Sch.",1,"Yes","Oui","8.86081","-12.05599",false,false,"IM2","India Mark II","School","HDW","Hand Dug Well","Grade A","Yes","BO4146","Seasonality =Yes, Village =Makama 1, Section =Kagbaran","#water_tech, #status_id, #notes"]
["Bombali","Bombali Shebora","Kagbaran","Makama 1",2900,7,"Magburaka Highway",1,"Yes","Non","8.86033","-12.05278",false,false,"IM2","India Mark II","Private","HDW","Hand Dug Well","Grade B","Yes","BO1245","Seasonality =Yes, Village =Makama 1, Section =Kagbaran","#water_tech, #status_id, #notes"]
["Bombali","Bombali Shebora","Kagbaran","Makambo",1200,1,"Sama Comm. Christian Pri. Sch.",1,"Yes","Oui","8.84153","-12.05699",false,false,"IM2","India Mark II","School","HDW","Hand Dug Well","Grade C","No","BO4147","Seasonality =Yes, Village =Makambo, Section =Kagbaran","#water_tech, #status_id, #notes"]
["Bombali","Bombali Shebora","Kagbaran","Makambo",1200,2,"At the area Mosque",0,"No","Oui","8.84167","-12.05546",false,false,"IM2","India Mark II","Community","HDW","Hand Dug Well","Grade A","Yes","BO1258","Seasonality =No, Village =Makambo, Section =Kagbaran","#water_tech, #status_id, #notes"]
["Bombali","Bombali Shebora","Kagbaran","Makapr 1",320,1,"Centre of the village",0,"No","Oui","8.84902","-12.08747",false,false,"IM2","India Mark II","Community","HDW","Hand Dug Well","Grade A","Yes","BO1256","Seasonality =No, Village =Makapr 1, Section =Kagbaran","#water_tech, #status_id, #notes"]
["Bombali","Bombali Shebora","Kagbaran","Makapr 1",320,2,"End of the village",3,"Yes","Oui","8.84879","-12.08792",false,false,"IM2","India Mark II","Community","HDW","Hand Dug Well","Grade A","Yes","BO4148","Seasonality =Yes, Village =Makapr 1, Section =Kagbaran","#water_tech, #status_id, #notes"]
["Bombali","Bombali Shebora","Kagbaran","Makeni Regional Govt. Hospital",null,1,"Close to Out Patient World",0,"No","Non","8.87196","-12.0562",false,true,"Submersive","Submersive plus solar pump","Health Facility","BH","Borehole","Grade C","No","BO4739","Seasonality =No, Village =Makeni Regional Govt. Hospital, Section =Kagbaran","#water_tech, #status_id, #notes"]
["Bombali","Bombali Shebora","Kagbaran","Makeni Regional Govt. Hospital",null,2,"Close to the Speciality Lab.",0,"No","Non","8.87258","-12.05652",false,true,"Submersive","Submersive plus solar pump","Health Facility","BH","Borehole","Grade A","Yes","BO4740","Seasonality =No, Village =Makeni Regional Govt. Hospital, Section =Kagbaran","#water_tech, #status_id, #notes"]
["Bombali","Bombali Shebora","Kagbaran","Makeni Regional Govt. Hospital",null,3,"Back of the Mortuary",null,"No","Non","8.87254","-12.05701",false,false,"Submersive","Submersive","Health Facility","BH","Borehole","Grade C","No","BO4741",{"$f":"_xlfn.CONCAT(\"Seasonality =\",I322,\", \",\"Village =\", D322,\", \",\"Section =\", C322)","v":"Seasonality =No, Village =Makeni Regional Govt. Hospital, Section =Kagbaran"},"#water_tech, #status_id, #notes"]
["Bombali","Bombali Shebora","Kagbaran","Makeni Regional Govt. Hospital",null,4,"Back of Mortuary",0,{"$f":"IF(H323>0,\"Yes\",\"No\")","v":"No"},"Non","8.87166","-12.05741",false,true,"Just pedestal - incomplete","Just pedestal - incomplete plus solar pump","Health Facility","HDW","Hand Dug Well","Grade C",{"$f":"IF(OR(T323=\"Grade A\",T323=\"Grade B\"),\"Yes\",\"No\")","v":"No"},"BO4742","Seasonality =No, Village =Makeni Regional Govt. Hospital, Section =Kagbaran","#water_tech, #status_id, #notes"]
["Bombali","Bombali Shebora","Kagbaran","Makeni Regional Govt. Hospital",null,5,"Back of Mortuary",0,"No","Non","8.87159","-12.05744",false,false,"Just pedestal - incomplete","Just pedestal - incomplete","Health Facility","HDW","Hand Dug Well","Grade C","No","BO4743","Seasonality =No, Village =Makeni Regional Govt. Hospital, Section =Kagbaran","#water_tech, #status_id, #notes"]
["Bombali","Bombali Shebora","Kagbaran","Makeni Regional Govt. Hospital",null,6,"Laundry Area",0,"No","Non","8.87058","-12.0569",false,true,"Submersive","Submersive plus solar pump","Health Facility","HDW","Hand Dug Well","Grade C","No","BO4744","Seasonality =No, Village =Makeni Regional Govt. Hospital, Section =Kagbaran","#water_tech, #status_id, #notes"]
["Bombali","Bombali Shebora","Kagbaran","Makeni Regional Govt. Hospital",null,7,"Back of the Kitchen",0,"No","Non","8.87034","-12.05656",false,true,"Submersive","Submersive plus solar pump","Health Facility","BH","Borehole","Grade C","No","BO4745","Seasonality =No, Village =Makeni Regional Govt. Hospital, Section =Kagbaran","#water_tech, #status_id, #notes"]
["Bombali","Bombali Shebora","Kagbaran","Mamankie",450,1,"Centre of the village",7,"Yes","Oui","8.84629","-12.03693",false,false,"Afridev","Afridev","Community","HDW","Hand Dug Well","Grade B","Yes","BO1257","Seasonality =Yes, Village =Mamankie, Section =Kagbaran","#water_tech, #status_id, #notes"]
["Bombali","Bombali Shebora","Kagbaran","Mamankie",450,2,"End of the village",9,"Yes","Oui","8.8462","-12.03693",false,false,"Afridev","Afridev","Community","HDW","Hand Dug Well","Grade B","Yes","BO4149","Seasonality =Yes, Village =Mamankie, Section =Kagbaran","#water_tech, #status_id, #notes"]
["Bombali","Bombali Shebora","Kagbaran","Mamankie",450,3,"End of the village",0,"No","Oui","8.84611","-12.03692",false,false,"IM2","India Mark II","Community","HDW","Hand Dug Well","Grade A","Yes","BO4150","Seasonality =No, Village =Mamankie, Section =Kagbaran","#water_tech, #status_id, #notes"]
["Bombali","Bombali Shebora","Kagbaran","Mankneh 1",650,1,"End of the village",2,"Yes","Oui","8.85217","-12.06669",false,false,"IM2","India Mark II","Community","HDW","Hand Dug Well","Grade A","Yes","BO1248","Seasonality =Yes, Village =Mankneh 1, Section =Kagbaran","#water_tech, #status_id, #notes"]
["Bombali","Bombali Shebora","Kagbaran","Mankneh 1",650,2,"Centre of the village",2,"Yes","Oui","8.85271","-12.06616",false,false,"IM2","India Mark II","Community","HDW","Hand Dug Well","Grade A","Yes","BO4151","Seasonality =Yes, Village =Mankneh 1, Section =Kagbaran","#water_tech, #status_id, #notes"]
["Bombali","Bombali Shebora","Kagbaran","Mankneh 1",650,3,"St. Peters Pri. Sch",1,"Yes","Oui","8.85363","-12.06533",false,false,"Just pedestal - incomplete","Just pedestal - incomplete","School","HDW","Hand Dug Well","Grade C","No","BO4152","Seasonality =Yes, Village =Mankneh 1, Section =Kagbaran","#water_tech, #status_id, #notes"]
["Bombali","Bombali Shebora","Kagbaran","Mankneh 2",759,1,"Side of the village",0,"No","Oui","8.83358","-12.04091",false,false,"IM2","India Mark II","Community","HDW","Hand Dug Well","Grade A","Yes","BO1253","Seasonality =No, Village =Mankneh 2, Section =Kagbaran","#water_tech, #status_id, #notes"]
["Bombali","Bombali Shebora","Kagbaran","Mankneh 2",759,2,"African Muslim Agency Pri. Sch.",2,"Yes","Oui","8.83595","-12.04015",false,false,"IM2","India Mark II","School","HDW","Hand Dug Well","Grade C","No","BO4153","Seasonality =Yes, Village =Mankneh 2, Section =Kagbaran","#water_tech, #status_id, #notes"]
["Bombali","Bombali Shebora","Kagbaran","Mankneh 2",759,3,"Centre of the village",0,"No","Oui","8.83541","-12.04131",false,false,"IM2","India Mark II","Community","HDW","Hand Dug Well","Grade A","Yes","BO2716","Seasonality =No, Village =Mankneh 2, Section =Kagbaran","#water_tech, #status_id, #notes"]
["Bombali","Bombali Shebora","Kagbaran","Mankneh 2",759,4,"Entrance of the village",0,"No","Oui","8.83558","-12.04178",false,false,"IM2","India Mark II","Community","HDW","Hand Dug Well","Grade A","Yes","BO4154","Seasonality =No, Village =Mankneh 2, Section =Kagbaran","#water_tech, #status_id, #notes"]
["Bombali","Bombali Shebora","Kagbaran","MCA area",3600,1,"Francis Conteh St.",2,"Yes","Oui","8.87453","-12.04315",false,false,"IM2","India Mark II","Community","HDW","Hand Dug Well","Grade B","Yes","BO4155","Seasonality =Yes, Village =MCA area, Section =Kagbaran","#water_tech, #status_id, #notes"]
["Bombali","Bombali Shebora","Kagbaran","MCA area",3600,2,"Bintu Street",1,"Yes","Oui","8.87356","-12.04304",false,false,"IM2","India Mark II","Community","HDW","Hand Dug Well","Grade A","Yes","BO4156","Seasonality =Yes, Village =MCA area, Section =Kagbaran","#water_tech, #status_id, #notes"]
["Bombali","Bombali Shebora","Kagbaran","MCA area",3600,3,"MCA Market",0,"No","Oui","8.87363","-12.04118",false,false,"IM2","India Mark II","Community","BH","Borehole","Grade A","Yes","BO4157","Seasonality =No, Village =MCA area, Section =Kagbaran","#water_tech, #status_id, #notes"]
["Bombali","Bombali Shebora","Kagbaran","MCA area",3600,4,"Brighter Hope Aca. Pri. Sch.",0,"No","Oui","8.87438","-12.04031",false,false,"IM2","India Mark II","School","BH","Borehole","Grade A","Yes","BO4158","Seasonality =No, Village =MCA area, Section =Kagbaran","#water_tech, #status_id, #notes"]
["Bombali","Bombali Shebora","Kagbaran","MCA area",3600,5,"O.I.C Road",1,"Yes","Oui","8.87402","-12.03881",false,false,"IM2","India Mark II","Community","HDW","Hand Dug Well","Grade A","Yes","BO4159","Seasonality =Yes, Village =MCA area, Section =Kagbaran","#water_tech, #status_id, #notes"]
["Bombali","Bombali Shebora","Kagbaran","MCA area",3600,6,"Peter Lane Mosque",3,"Yes","Oui","8.87263","-12.03832",false,false,"IM2","India Mark II","Community","HDW","Hand Dug Well","Grade A","Yes","BO2844","Seasonality =Yes, Village =MCA area, Section =Kagbaran","#water_tech, #status_id, #notes"]
["Bombali","Bombali Shebora","Kagbaran","MCA area",3600,7,"O.I.C Road Mosque",2,"Yes","Oui","8.8737","-12.03818",false,false,"IM2","India Mark II","Community","HDW","Hand Dug Well","Grade C","No","BO4160","Seasonality =Yes, Village =MCA area, Section =Kagbaran","#water_tech, #status_id, #notes"]
["Bombali","Bombali Shebora","Kagbaran","MCA area",3600,8,"O.I.C Office",1,"Yes","Non","8.87553","-12.04109",false,false,"IM2","India Mark II","Private","HDW","Hand Dug Well","Grade B","Yes","BO4161","Seasonality =Yes, Village =MCA area, Section =Kagbaran","#water_tech, #status_id, #notes"]
["Bombali","Bombali Shebora","Kagbaran","MCA area",3600,9,"MCA Sec. Sch.",0,"No","Oui","8.87615","-12.072",false,false,"IM2","India Mark II","School","HDW","Hand Dug Well","Grade B","Yes","BO4162","Seasonality =No, Village =MCA area, Section =Kagbaran","#water_tech, #status_id, #notes"]
["Bombali","Bombali Shebora","Kagbaran","MCA area",3600,10,"MCA Pri. Sch.",0,"No","Oui","8.87568","-12.04268",false,false,"IM2","India Mark II","School","HDW","Hand Dug Well","Grade C","No","BO4163","Seasonality =No, Village =MCA area, Section =Kagbaran","#water_tech, #status_id, #notes"]
["Bombali","Bombali Shebora","Kagbaran","New York",2600,1,"Bundu Conteh Street",0,"No","Oui","8.86091","-12.04886",false,false,"IM2","India Mark II","Community","BH","Borehole","Grade B","Yes","BO4164","Seasonality =No, Village =New York, Section =Kagbaran","#water_tech, #status_id, #notes"]
["Bombali","Bombali Shebora","Kagbaran","New York",2600,2,"Felix Koroma Street",0,"No","Oui","8.85781","-12.04827",false,false,"IM2","India Mark II","Community","HDW","Hand Dug Well","Grade B","Yes","BO4165","Seasonality =No, Village =New York, Section =Kagbaran","#water_tech, #status_id, #notes"]
["Bombali","Bombali Shebora","Kagbaran","Pait Bana Marank",620,1,"End of the village",4,"Yes","Oui","8.83681","-12.03038",false,false,"IM2","India Mark II","Community","HDW","Hand Dug Well","Grade C","No","BO1250","Seasonality =Yes, Village =Pait Bana Marank, Section =Kagbaran","#water_tech, #status_id, #notes"]
["Bombali","Bombali Shebora","Kagbaran","Pait Bana Marank",620,2,"Near the Comm. Hall",2,"Yes","Oui","8.83797","-12.03015",false,false,"IM2","India Mark II","Community","HDW","Hand Dug Well","Grade A","Yes","BO4166","Seasonality =Yes, Village =Pait Bana Marank, Section =Kagbaran","#water_tech, #status_id, #notes"]
["Bombali","Bombali Shebora","Kagbaran","Pait Bana Marank",620,3,"Side of the village",1,"Yes","Oui","8.8374","-12.03106",false,false,"IM2","India Mark II","Community","HDW","Hand Dug Well","Grade A","Yes","BO4167","Seasonality =Yes, Village =Pait Bana Marank, Section =Kagbaran","#water_tech, #status_id, #notes"]
["Bombali","Bombali Shebora","Kagbaran","Pait Bana Marank",620,4,"Centre of the village",0,"No","Oui","8.83945","-12.03007",false,false,"IM2","India Mark II","Community","BH","Borehole","Grade A","Yes","BO1259","Seasonality =No, Village =Pait Bana Marank, Section =Kagbaran","#water_tech, #status_id, #notes"]
["Bombali","Bombali Shebora","Kagbaran","Pait Bana Marank",620,5,"At the PHU",0,"No","Oui","8.84028","-12.02994",false,true,"IM2","India Mark II plus solar pump","Health Facility","HDW","Hand Dug Well","Grade B","Yes","BO1251","Seasonality =No, Village =Pait Bana Marank, Section =Kagbaran","#water_tech, #status_id, #notes"]
["Bombali","Bombali Shebora","Kagbaran","Pait Bana Marank",620,6,"At the PHU",2,"Yes","Oui","8.8405","-12.02991",false,false,"IM2","India Mark II","Community","HDW","Hand Dug Well","Grade A","Yes","BO4168","Seasonality =Yes, Village =Pait Bana Marank, Section =Kagbaran","#water_tech, #status_id, #notes"]
["Bombali","Bombali Shebora","Kagbaran","Pait Bana Masimbo",540,1,"End of the village",0,"No","Oui","8.86023","-12.07488",false,false,"IM2","India Mark II","Community","HDW","Hand Dug Well","Grade B","Yes","BO1252","Seasonality =No, Village =Pait Bana Masimbo, Section =Kagbaran","#water_tech, #status_id, #notes"]
["Bombali","Bombali Shebora","Kagbaran","Pait Bana Masimbo",540,2,"At the Mosque",7,"Yes","Oui","8.86029","-12.07459",false,false,"IM2","India Mark II","Community","HDW","Hand Dug Well","Grade B","Yes","BO4169","Seasonality =Yes, Village =Pait Bana Masimbo, Section =Kagbaran","#water_tech, #status_id, #notes"]
["Bombali","Bombali Shebora","Kagbaran","Pait Bana Masimbo",540,3,"BDEC Pri. Sch.",4,"Yes","Oui","8.85964","-12.07251",false,false,"IM2","India Mark II","School","HDW","Hand Dug Well","Grade A","Yes","BO4170","Seasonality =Yes, Village =Pait Bana Masimbo, Section =Kagbaran","#water_tech, #status_id, #notes"]
["Bombali","Bombali Shebora","Kagbaran","Pait Bana Masimbo",540,4,"BDEC Pri. Sch.",5,"Yes","Oui","8.85977","-12.07247",true,false,"Just pedestal - incomplete","Just pedestal - incomplete","School","HDW","Hand Dug Well","Grade E","No","BO4171","Seasonality =Yes, Village =Pait Bana Masimbo, Section =Kagbaran","#water_tech, #status_id, #notes"]
["Bombali","Bombali Shebora","Kagbaran","Robine 1 & 2",890,1,"End of the village",1,"Yes","Oui","8.85692","-12.03823",false,false,"IM2","India Mark II","Community","HDW","Hand Dug Well","Grade A","Yes","BO1254","Seasonality =Yes, Village =Robine 1 & 2, Section =Kagbaran","#water_tech, #status_id, #notes"]
["Bombali","Bombali Shebora","Kagbaran","Robine 1 & 2",890,2,"Close to the Mosque",4,"Yes","Oui","8.85737","-12.03821",false,false,"IM2","India Mark II","Community","HDW","Hand Dug Well","Grade C","No","BO1408","Seasonality =Yes, Village =Robine 1 & 2, Section =Kagbaran","#water_tech, #status_id, #notes"]
["Bombali","Bombali Shebora","Kagbaran","Robine 1 & 2",890,3,"Close to the Mosque",1,"Yes","Oui","8.85839","-12.03824",false,false,"Inkar","Inkar","Community","HDW","Hand Dug Well","Grade A","Yes","BO4172","Seasonality =Yes, Village =Robine 1 & 2, Section =Kagbaran","#water_tech, #status_id, #notes"]
["Bombali","Bombali Shebora","Kagbaran","Robureh",550,1,"Centre of the village",2,"Yes","Non","8.87960","-12.02423",false,false,"IM2","India Mark II","Community","HDW","Hand Dug Well","Grade C","No","BO1260","Seasonality =Yes, Village =Robureh, Section =Kagbaran","#water_tech, #status_id, #notes"]
["Bombali","Bombali Shebora","Kagbaran","Robureh",550,2,"End of the village",0,"No","Non","8.87956","-12.02281",false,false,"IM2","India Mark II","School","HDW","Hand Dug Well","Grade B","Yes","BO1406","Seasonality =No, Village =Robureh, Section =Kagbaran","#water_tech, #status_id, #notes"]
["Bombali","Bombali Shebora","Kagbaran","Rofainka",520,1,"Entrance of the village",0,"No","Oui","8.82908","-12.08006",false,false,"IM2","India Mark II","Community","HDW","Hand Dug Well","Grade C","No","BO4173","Seasonality =No, Village =Rofainka, Section =Kagbaran","#water_tech, #status_id, #notes"]
["Bombali","Bombali Shebora","Kagbaran","Rofainka",520,2,"Centre of the village",0,"No","Oui","8.82061","-12.08066",false,false,"IM2","India Mark II","Community","HDW","Hand Dug Well","Grade A","Yes","BO2841","Seasonality =No, Village =Rofainka, Section =Kagbaran","#water_tech, #status_id, #notes"]
["Bombali","Bombali Shebora","Kagbaran","Rogberie",430,1,"Side of the village",3,"Yes","Oui","8.8263","-12.08849",false,false,"IM2","India Mark II","Community","HDW","Hand Dug Well","Grade A","Yes","BO4174","Seasonality =Yes, Village =Rogberie, Section =Kagbaran","#water_tech, #status_id, #notes"]
["Bombali","Bombali Shebora","Kagbaran","Rogberie",430,2,"Side of the village",3,"Yes","Oui","8.82677","-12.08781",false,false,"IM2","India Mark II","Community","HDW","Hand Dug Well","Grade A","Yes","BO4175","Seasonality =Yes, Village =Rogberie, Section =Kagbaran","#water_tech, #status_id, #notes"]
["Bombali","Bombali Shebora","Kagbaran","Rogberie",430,3,"BDEC Pri. Sch.",3,"Yes","Oui","8.82744","-12.08716",true,false,"Just pedestal - incomplete","Just pedestal - incomplete","School","HDW","Hand Dug Well","Grade C","No","BO4176","Seasonality =Yes, Village =Rogberie, Section =Kagbaran","#water_tech, #status_id, #notes"]
["Bombali","Bombali Shebora","Kagbaran","Rogbom Sella",520,1,"Gartis Pri. Sch.",0,"No","Oui","8.84029","-12.0349",false,false,"Afridev","Afridev","School","BH","Borehole","Grade C","No","BO4177","Seasonality =No, Village =Rogbom Sella, Section =Kagbaran","#water_tech, #status_id, #notes"]
["Bombali","Bombali Shebora","Kagbaran","Rogbom Sella",520,2,"At the Comm. Hall",4,"Yes","Oui","8.83733","-12.03511",false,false,"IM2","India Mark II","Community","HDW","Hand Dug Well","Grade B","Yes","BO4178","Seasonality =Yes, Village =Rogbom Sella, Section =Kagbaran","#water_tech, #status_id, #notes"]
["Bombali","Bombali Shebora","Kagbaran","Rogbom Sella",520,3,"Centre of the village",6,"Yes","Oui","8.83724","-12.03483",false,false,"IM2","India Mark II","Community","HDW","Hand Dug Well","Grade A","Yes","BO4179","Seasonality =Yes, Village =Rogbom Sella, Section =Kagbaran","#water_tech, #status_id, #notes"]
["Bombali","Bombali Shebora","Kagbaran","Rogbom Sella",520,4,"Centre of the village",0,"No","Oui","8.83716","-12.03488",false,false,"IM2","India Mark II","Community","BH","Borehole","Grade A","Yes","BO2798","Seasonality =No, Village =Rogbom Sella, Section =Kagbaran","#water_tech, #status_id, #notes"]
["Bombali","Bombali Shebora","Kagbaran","Rogbom-Makeni",330,1,"School Compound",3,"Yes","Non","8.86819","-12.03869",false,false,"IM2","India Mark II","Community","HDW","Hand Dug Well","Grade A","Yes","BO2691","Seasonality =Yes, Village =Rogbom-Makeni, Section =Kagbaran","#water_tech, #status_id, #notes"]
["Bombali","Bombali Shebora","Kagbaran","Rogbom-Makeni",330,2,"Immaculate Heart of Mary",3,"Yes","Non","8.86762","-12.03901",false,false,"PB2","PB Mark II","Community","HDW","Hand Dug Well","Grade A","Yes","BO2689","Seasonality =Yes, Village =Rogbom-Makeni, Section =Kagbaran","#water_tech, #status_id, #notes"]
["Bombali","Bombali Shebora","Kagbaran","Ropollon",2200,1,"Benevolent Pri. Sch.",1,"Yes","Oui","8.86841","-12.04706",false,false,"IM2","India Mark II","School","HDW","Hand Dug Well","Grade A","Yes","BO4180","Seasonality =Yes, Village =Ropollon, Section =Kagbaran","#water_tech, #status_id, #notes"]
["Bombali","Bombali Shebora","Kagbaran","Ropollon",2200,2,"Benevolent Sec. Sch.",2,"Yes","Oui","8.86698","-12.04385",false,false,"IM2","India Mark II","School","BH","Borehole","Grade B","Yes","BO1247","Seasonality =Yes, Village =Ropollon, Section =Kagbaran","#water_tech, #status_id, #notes"]
["Bombali","Bombali Shebora","Kagbaran","Ropollon",2200,3,"Red Cross Ropolon",1,"Yes","Oui","8.86698","-12.04385",false,false,"IM2","India Mark II","Community","HDW","Hand Dug Well","Grade A","Yes","BO4181","Seasonality =Yes, Village =Ropollon, Section =Kagbaran","#water_tech, #status_id, #notes"]
["Bombali","Bombali Shebora","Kagbaran","Ropollon",2200,4,"Main Ropolon Road",0,"No","Oui","8.87094","-12.04577",false,false,"IM2","India Mark II","Community","BH","Borehole","Grade A","Yes","BO4182","Seasonality =No, Village =Ropollon, Section =Kagbaran","#water_tech, #status_id, #notes"]
["Bombali","Bombali Shebora","Kagbaran","Ropollon",2200,5,"Close to the Mosque",2,"Yes","Oui","8.87214","-12.04678",false,false,"IM2","India Mark II","Community","HDW","Hand Dug Well","Grade B","Yes","BO4183","Seasonality =Yes, Village =Ropollon, Section =Kagbaran","#water_tech, #status_id, #notes"]
["Bombali","Bombali Shebora","Kagbaran","Teko Barracks",4000,1,"Phase 2 - A2",2,"Yes","Oui","8.86801","-12.0281",false,false,"IM2","India Mark II","Community","HDW","Hand Dug Well","Grade A","Yes","BO4185","Seasonality =Yes, Village =Teko Barracks, Section =Kagbaran","#water_tech, #status_id, #notes"]
["Bombali","Bombali Shebora","Kagbaran","Teko Barracks",4000,2,"Phase 1",3,"Yes","Oui","8.87244","-12.03215",false,false,"IM2","India Mark II","Community","HDW","Hand Dug Well","Grade B","Yes","BO4186","Seasonality =Yes, Village =Teko Barracks, Section =Kagbaran","#water_tech, #status_id, #notes"]
["Bombali","Bombali Shebora","Kagbaran","Teko Barracks",4000,2,"Phase 2 Market",2,"Yes","Oui","8.86633","-12.02703",false,false,"IM2","India Mark II","Community","BH","Borehole","Grade A","Yes","BO4187","Seasonality =Yes, Village =Teko Barracks, Section =Kagbaran","#water_tech, #status_id, #notes"]
["Bombali","Bombali Shebora","Kagbaran","Teko Barracks",4000,3,"Phase 1 Block 49",4,"Yes","Oui","8.87205","-12.03088",false,false,"IM2","India Mark II","Community","HDW","Hand Dug Well","Grade A","Yes","BO4188","Seasonality =Yes, Village =Teko Barracks, Section =Kagbaran","#water_tech, #status_id, #notes"]
["Bombali","Bombali Shebora","Kagbaran","Teko Barracks",4000,3,"Phase 2 Block 4",5,"Yes","Oui","8.86619","-12.02479",false,false,"IM2","India Mark II","Community","HDW","Hand Dug Well","Grade A","Yes","BO4189","Seasonality =Yes, Village =Teko Barracks, Section =Kagbaran","#water_tech, #status_id, #notes"]
["Bombali","Bombali Shebora","Kagbaran","Teko Barracks",4000,4,"Phase 1 Block 20",5,"Yes","Oui","8.87118","-12.03127",false,false,"IM2","India Mark II","Community","HDW","Hand Dug Well","Grade A","Yes","BO4190","Seasonality =Yes, Village =Teko Barracks, Section =Kagbaran","#water_tech, #status_id, #notes"]
["Bombali","Bombali Shebora","Kagbaran","Teko Barracks",4000,4,"Phase 2 Block 8",2,"Yes","Oui","8.86409","-12.02689",false,false,"IM2","India Mark II","Community","HDW","Hand Dug Well","Grade A","Yes","BO4191",{"$f":"_xlfn.CONCAT(\"Seasonality =\",I386,\", \",\"Village =\", D386,\", \",\"Section =\", C386)","v":"Seasonality =Yes, Village =Teko Barracks, Section =Kagbaran"},"#water_tech, #status_id, #notes"]
["Bombali","Bombali Shebora","Kagbaran","Teko Barracks",4000,5,"Phase 1",1,{"$f":"IF(H387>0,\"Yes\",\"No\")","v":"Yes"},"Oui","8.86997","-12.03231",false,false,"IM2","India Mark II","Community","HDW","Hand Dug Well","Grade A",{"$f":"IF(OR(T387=\"Grade A\",T387=\"Grade B\"),\"Yes\",\"No\")","v":"Yes"},"BO4192","Seasonality =Yes, Village =Teko Barracks, Section =Kagbaran","#water_tech, #status_id, #notes"]
["Bombali","Bombali Shebora","Kagbaran","Teko Barracks",4000,6,"Phase 2 Block A9",3,"Yes","Oui","8.86627","-12.02808",false,false,"IM2","India Mark II","Community","HDW","Hand Dug Well","Grade B","Yes","BO4195","Seasonality =Yes, Village =Teko Barracks, Section =Kagbaran","#water_tech, #status_id, #notes"]
["Bombali","Bombali Shebora","Kagbaran","Teko Barracks",4000,6,"Phase 1",2,"Yes","Oui","8.8693","-12.03103",false,false,"IM2","India Mark II","Community","BH","Borehole","Grade A","Yes","BO4194","Seasonality =Yes, Village =Teko Barracks, Section =Kagbaran","#water_tech, #status_id, #notes"]
["Bombali","Bombali Shebora","Kagbaran","Teko Barracks",4000,7,"Phase 1 Mosque",4,"Yes","Oui","8.86938","-12.0295",false,false,"IM2","India Mark II","Community","HDW","Hand Dug Well","Grade A","Yes","BO4196","Seasonality =Yes, Village =Teko Barracks, Section =Kagbaran","#water_tech, #status_id, #notes"]
["Bombali","Bombali Shebora","Kagbaran","Teko Barracks",4000,7,"Phase 2 Block A4",2,"Yes","Oui","8.86716","-12.02891",false,false,"IM2","India Mark II","Community","HDW","Hand Dug Well","Grade B","Yes","BO4197","Seasonality =Yes, Village =Teko Barracks, Section =Kagbaran","#water_tech, #status_id, #notes"]
["Bombali","Bombali Shebora","Kagbaran","Teko Barracks",4000,8,"Phase 1 Church",0,"No","Oui","8.87114","-12.02925",false,false,"IM2","India Mark II","Community","BH","Borehole","Grade B","Yes","BO4198","Seasonality =No, Village =Teko Barracks, Section =Kagbaran","#water_tech, #status_id, #notes"]
["Bombali","Bombali Shebora","Kagbaran","Teko Barracks",4000,9,"St. Andrew's Sec. Sch Phase 1",2,"Yes","Oui","8.87154","-12.02817",false,false,"IM2","India Mark II","School","HDW","Hand Dug Well","Grade A","Yes","BO4199","Seasonality =Yes, Village =Teko Barracks, Section =Kagbaran","#water_tech, #status_id, #notes"]
["Bombali","Bombali Shebora","Kagbaran","Teko Barracks",4000,10,"R.C Pri. Sch. Phase 1",3,"Yes","Oui","8.86956","-12.02909",false,false,"IM2","India Mark II","School","HDW","Hand Dug Well","Grade B","Yes","BO4200","Seasonality =Yes, Village =Teko Barracks, Section =Kagbaran","#water_tech, #status_id, #notes"]
["Bombali","Bombali Shebora","Kagbaran","Teko Barracks",4000,11,"R.C Pri. Sch. Phase 1",0,"No","Oui","8.86845","-12.02847",false,false,"IM2","India Mark II","School","HDW","Hand Dug Well","Grade A","Yes","BO4201","Seasonality =No, Village =Teko Barracks, Section =Kagbaran","#water_tech, #status_id, #notes"]
["Bombali","Bombali Shebora","Kagbaran","Teko Clinic",4000,1,"At the PHU Compound",0,"No","Non","8.87107","-12.02867",false,true,"Submersive","Submersive plus solar pump","Health Facility","HDW","Hand Dug Well","Grade C","No","BO4754","Seasonality =No, Village =Teko Clinic, Section =Kagbaran","#water_tech, #status_id, #notes"]
["Bombali","Bombali Shebora","Kagbaran","Teko Kareneh",250,1,"School",4,"Yes","Non","8.85723","-12.02490",false,false,"Afridev","Afridev","School","BH","Borehole","Grade C","No","BO1407","Seasonality =Yes, Village =Teko Kareneh, Section =Kagbaran","#water_tech, #status_id, #notes"]
["Bombali","Bombali Shebora","Kagbaran","Teko Kareneh",250,2,"Side of the Road",3,"Yes","Non","8.85780","-12.0522",false,false,"IM2","India Mark II","Community","HDW","Hand Dug Well","Grade B","Yes","BO1255","Seasonality =Yes, Village =Teko Kareneh, Section =Kagbaran","#water_tech, #status_id, #notes"]
["Bombali","Bombali Shebora","Kagbaran","Teko Minitry Barracks (COBA)",90,1,"COBA",3,"Yes","Non","8.86505","-12.02770",false,false,"PB2","PB Mark II","Community","HDW","Hand Dug Well","Grade A","Yes","BO2189","Seasonality =Yes, Village =Teko Minitry Barracks (COBA), Section =Kagbaran","#water_tech, #status_id, #notes"]
["Bombali","Bombali Shebora","Kagbaran","Teko Minitry Barracks (COBA)",90,2,"Infant Bridgage",2,"Yes","Non","8.86621","-12.02480",false,false,"IM2","India Mark II","Community","HDW","Hand Dug Well","Grade A","Yes","BO2209","Seasonality =Yes, Village =Teko Minitry Barracks (COBA), Section =Kagbaran","#water_tech, #status_id, #notes"]
["Bombali","Bombali Shebora","Kagbaran","Teko Minitry Barracks (COBA)",90,3,"Block 49",0,"No","Non","8.87213","-12.03086",false,false,"IM2","India Mark II","Community","BH","Borehole","Grade B","Yes","BO2686","Seasonality =No, Village =Teko Minitry Barracks (COBA), Section =Kagbaran","#water_tech, #status_id, #notes"]
["Bombali","Bombali Shebora","Kagbaran","Teko Minitry Barracks (COBA)",90,4,"Block 20",3,"Yes","Non","8.87118","-12.03130",false,false,"IM2","India Mark II","Community","HDW","Hand Dug Well","Grade A","Yes","BO2687","Seasonality =Yes, Village =Teko Minitry Barracks (COBA), Section =Kagbaran","#water_tech, #status_id, #notes"]
["Bombali","Bombali Shebora","Kagbaran","Teko Minitry Barracks (COBA)",90,5,"Phase 1 Block 12",2,"Yes","Non","8.86997","-12.03235",false,false,"IM2","India Mark II","Community","HDW","Hand Dug Well","Grade A","Yes","BO2726","Seasonality =Yes, Village =Teko Minitry Barracks (COBA), Section =Kagbaran","#water_tech, #status_id, #notes"]
["Bombali","Bombali Shebora","Kagbaran","Teko Vetenary",110,1,"Vet. Compound",3,"Yes","Non","8.84873","-12.02470",true,false,"IM2","India Mark II","Private","HDW","Hand Dug Well","Grade X","No","BO2799","Seasonality =Yes, Village =Teko Vetenary, Section =Kagbaran","#water_tech, #status_id, #notes"]
["Bombali","Bombali Shebora","Kagbaran","Tekor village",975,1,"Mammy Alice Pri. Sch.",0,"No","Oui","8.85723","-12.02491",false,false,"Afridev","Afridev","School","HDW","Hand Dug Well","Grade C","No","BO4202","Seasonality =No, Village =Tekor village, Section =Kagbaran","#water_tech, #status_id, #notes"]
["Bombali","Bombali Shebora","Kagbaran","Tekor village",975,2,"Tekor Comm. Mosque",0,"No","Oui","8.85721","-12.02442",false,false,"IM2","India Mark II","Community","HDW","Hand Dug Well","Grade A","Yes","BO4203","Seasonality =No, Village =Tekor village, Section =Kagbaran","#water_tech, #status_id, #notes"]
["Bombali","Bombali Shebora","Kagbaran","Upper Tekor sanda",560,1,"Tekor Sanda Road",0,"No","Non","8.86366","-12.02791",false,false,"IM2","India Mark II","Private","HDW","Hand Dug Well","Grade A","Yes","BO4204","Seasonality =No, Village =Upper Tekor sanda, Section =Kagbaran","#water_tech, #status_id, #notes"]
["Bombali","Bombali Shebora","Matotoka","Benkia",800,1,"Young muslim primary school",3,"Yes","Oui","8.7042","-12.0779",false,false,"IM2","India Mark II","School","HDW","Hand Dug Well","Grade C","No","BO4281","Seasonality =Yes, Village =Benkia, Section =Matotoka","#water_tech, #status_id, #notes"]
["Bombali","Bombali Shebora","Matotoka","Benkia",800,2,"close to the barry",4,"Yes","Oui","8.70055","-12.09308",false,false,"PB2","PB Mark II","Community","HDW","Hand Dug Well","Grade A","Yes","BO4282","Seasonality =Yes, Village =Benkia, Section =Matotoka","#water_tech, #status_id, #notes"]
["Bombali","Bombali Shebora","Matotoka","Gbanti",75,1,"End of the village",4,"Yes","Oui","8.7976","-12.07305",false,false,"IM2","India Mark II","Community","HDW","Hand Dug Well","Grade A","Yes","BO4283","Seasonality =Yes, Village =Gbanti, Section =Matotoka","#water_tech, #status_id, #notes"]
["Bombali","Bombali Shebora","Matotoka","mabunth",550,1,"Entrance of the village",4,"Yes","Oui","8.763416","-12.08231",false,false,"IM2","India Mark II","Community","HDW","Hand Dug Well","Grade A","Yes","BO1161","Seasonality =Yes, Village =mabunth, Section =Matotoka","#water_tech, #status_id, #notes"]
["Bombali","Bombali Shebora","Matotoka","mabunth",550,2,"close to the mosque",0,"No","Non","8.7625","-12.08298",false,false,"PB2","PB Mark II","Community","BH","Borehole","Grade A","Yes","BO1157","Seasonality =No, Village =mabunth, Section =Matotoka","#water_tech, #status_id, #notes"]
["Bombali","Bombali Shebora","Matotoka","mabunth",550,3,"End of the village",0,"No","Oui","8.762016","-12.08356",false,false,"IM2","India Mark II","Community","HDW","Hand Dug Well","Grade B","Yes","BO1159","Seasonality =No, Village =mabunth, Section =Matotoka","#water_tech, #status_id, #notes"]
["Bombali","Bombali Shebora","Matotoka","mabunth",550,4,"close to the mosque",3,"Yes","Non","8.7625","-12.08295",false,false,"Pully","Pully","Private","Pulley","Pulley","Grade D","No","BO1158","Seasonality =Yes, Village =mabunth, Section =Matotoka","#water_tech, #status_id, #notes"]
["Bombali","Bombali Shebora","Matotoka","Maken",600,1,"centre of the village",0,"No","Oui","8.67655","-12.10503",false,false,"IM2","India Mark II","Community","BH","Borehole","Grade A","Yes","BO2382","Seasonality =No, Village =Maken, Section =Matotoka","#water_tech, #status_id, #notes"]
["Bombali","Bombali Shebora","Matotoka","makunkabai",450,1,"WCSL primary school",4,"Yes","Oui","8.764733","-12.07993",false,false,"IM2","India Mark II","School","HDW","Hand Dug Well","Grade B","Yes","BO1160","Seasonality =Yes, Village =makunkabai, Section =Matotoka","#water_tech, #status_id, #notes"]
["Bombali","Bombali Shebora","Matotoka","makunkabai",450,2,"centre of the village",3,"Yes","Oui","8.764116","-12.0813",false,false,"PB2","PB Mark II","Community","HDW","Hand Dug Well","Grade A","Yes","BO4284","Seasonality =Yes, Village =makunkabai, Section =Matotoka","#water_tech, #status_id, #notes"]
["Bombali","Bombali Shebora","Matotoka","makunkabai",450,3,"End of the village",4,"Yes","Oui","8.76395","-12.08186",false,false,"IM2","India Mark II","Community","HDW","Hand Dug Well","Grade A","Yes","BO1162","Seasonality =Yes, Village =makunkabai, Section =Matotoka","#water_tech, #status_id, #notes"]
["Bombali","Bombali Shebora","Matotoka","makuntho",650,1,"End of the village",0,"No","Non","8.7173","-12.15398",true,false,"Pully","Pully","Community","BH","Borehole","Grade D","No","BO1154","Seasonality =No, Village =makuntho, Section =Matotoka","#water_tech, #status_id, #notes"]
["Bombali","Bombali Shebora","Matotoka","mamamdu",500,1,"centre of the village",4,"Yes","Non","8.70455","-12.12708",false,false,"Pully","Pully","Community","HDW","Hand Dug Well","Grade D","No","BO4285","Seasonality =Yes, Village =mamamdu, Section =Matotoka","#water_tech, #status_id, #notes"]
["Bombali","Bombali Shebora","Matotoka","Manaise",300,1,"Close to the swamp",0,"No","Non","8.72001","-12.09447",true,false,"Pully","Pully","Community","HDW","Hand Dug Well","Grade D","No","BO1155","Seasonality =No, Village =Manaise, Section =Matotoka","#water_tech, #status_id, #notes"]
["Bombali","Bombali Shebora","Matotoka","Masathi",350,1,"Close to the dry floor",1,"Yes","Non","8.77906","-12.05099",false,false,"IM2","India Mark II","Community","HDW","Hand Dug Well","Grade C","No","BO1223","Seasonality =Yes, Village =Masathi, Section =Matotoka","#water_tech, #status_id, #notes"]
["Bombali","Bombali Shebora","Matotoka","Masorry",1200,1,"close to the mosque",6,"Yes","Oui","8.70854","-12.09899",false,false,"IM2","India Mark II","Community","HDW","Hand Dug Well","Grade C","No","BO1147","Seasonality =Yes, Village =Masorry, Section =Matotoka","#water_tech, #status_id, #notes"]
["Bombali","Bombali Shebora","Matotoka","Masorry",1200,2,"close to the community centre",0,"No","Non","8.70882","-12.09867",false,false,"IM2","India Mark II","Community","BH","Borehole","Grade A","Yes","BO1148","Seasonality =No, Village =Masorry, Section =Matotoka","#water_tech, #status_id, #notes"]
["Bombali","Bombali Shebora","Matotoka","Masorry",1200,3,"RC primary school",0,"No","Non","8.710183","-12.09806",false,false,"IM2","India Mark II","School","HDW","Hand Dug Well","Grade A","Yes","BO1149","Seasonality =No, Village =Masorry, Section =Matotoka","#water_tech, #status_id, #notes"]
["Bombali","Bombali Shebora","Matotoka","Masorry",1200,4,"close to the school",7,"Yes","Oui","8.710933","-12.09768",false,false,"India Mark III","India Mark III","Community","HDW","Hand Dug Well","Grade A","Yes","BO1151","Seasonality =Yes, Village =Masorry, Section =Matotoka","#water_tech, #status_id, #notes"]
["Bombali","Bombali Shebora","Matotoka","Masorry",1200,5,"CHP centre",5,"Yes","Oui","8.71125","-12.09738",false,false,"IM2","India Mark II","Health Facility","HDW","Hand Dug Well","Grade B","Yes","BO1150","Seasonality =Yes, Village =Masorry, Section =Matotoka","#water_tech, #status_id, #notes"]
["Bombali","Bombali Shebora","Matotoka","Masorry",1200,6,"CHP centre",6,"Yes","Oui","8.71195","-12.09721",false,false,"IM2","India Mark II","Health Facility","HDW","Hand Dug Well","Grade A","Yes","BO1152","Seasonality =Yes, Village =Masorry, Section =Matotoka","#water_tech, #status_id, #notes"]
["Bombali","Bombali Shebora","Matotoka","Masorry",1200,7,"AB center",0,"No","Non","8.71216","-12.09757",false,false,"IM2","India Mark II","Community","HDW","Hand Dug Well","Grade C","No","BO1153","Seasonality =No, Village =Masorry, Section =Matotoka","#water_tech, #status_id, #notes"]
["Bombali","Bombali Shebora","Matotoka","Masorry",1200,8,"Centre Left",0,"No","Non","8.71258","-12.09765",false,false,"IM2","India Mark II","Community","HDW","Hand Dug Well","Grade C","No","BO2741","Seasonality =No, Village =Masorry, Section =Matotoka","#water_tech, #status_id, #notes"]
["Bombali","Bombali Shebora","Matotoka","mathamba",550,1,"close to the mosque",4,"Yes","Oui","8.76875","-12.07821",false,false,"IM2","India Mark II","Community","HDW","Hand Dug Well","Grade A","Yes","BO1163","Seasonality =Yes, Village =mathamba, Section =Matotoka","#water_tech, #status_id, #notes"]
["Bombali","Bombali Shebora","Matotoka","matotoka",350,1,"Entrance of the village",1,"Yes","Oui","8.7851","-12.0714",false,false,"IM2","India Mark II","Community","HDW","Hand Dug Well","Grade A","Yes","BO4287","Seasonality =Yes, Village =matotoka, Section =Matotoka","#water_tech, #status_id, #notes"]
["Bombali","Bombali Shebora","Matotoka","matotoka",350,2,"centre of the village",1,"Yes","Oui","8.784633","-12.07241",false,false,"IM2","India Mark II","Community","HDW","Hand Dug Well","Grade A","Yes","BO2746","Seasonality =Yes, Village =matotoka, Section =Matotoka","#water_tech, #status_id, #notes"]
["Bombali","Bombali Shebora","Matotoka","matotoka",350,3,"Behind the market",1,"Yes","Oui","8.7839","-12.07395",true,false,"Just pedestal - incomplete","Just pedestal - incomplete","Community","HDW","Hand Dug Well","Grade C","No","BO4288","Seasonality =Yes, Village =matotoka, Section =Matotoka","#water_tech, #status_id, #notes"]
["Bombali","Bombali Shebora","Matotoka","Robbat",350,1,"Entrance of the village",2,"Yes","Oui","8.791616","-12.06179",false,false,"PB2","PB Mark II","Community","HDW","Hand Dug Well","Grade A","Yes","BO1165","Seasonality =Yes, Village =Robbat, Section =Matotoka","#water_tech, #status_id, #notes"]
["Bombali","Bombali Shebora","Matotoka","Robbat",350,2,"WCSL primary school",2,"Yes","Oui","8.79042","-12.06265",false,false,"IM2","India Mark II","School","HDW","Hand Dug Well","Grade B","Yes","BO1166","Seasonality =Yes, Village =Robbat, Section =Matotoka","#water_tech, #status_id, #notes"]
["Bombali","Bombali Shebora","Matotoka","Robbat",350,3,"WCSL primary school",4,"Yes","Oui","8.79029","-12.06245",false,false,"IM2","India Mark II","School","HDW","Hand Dug Well","Grade C","No","BO1167","Seasonality =Yes, Village =Robbat, Section =Matotoka","#water_tech, #status_id, #notes"]
["Bombali","Bombali Shebora","Matotoka","Robbat",350,4,"At the CHP",5,"Yes","Non","8.791483","-12.06083",false,true,"IM2","India Mark II plus solar pump","Health Facility","HDW","Hand Dug Well","Grade B","Yes","BO4289","Seasonality =Yes, Village =Robbat, Section =Matotoka","#water_tech, #status_id, #notes"]
["Bombali","Bombali Shebora","Matotoka","Rochain",650,1,"close to the mosque",2,"Yes","Oui","8.790216","-12.0613",false,false,"IM2","India Mark II","Community","HDW","Hand Dug Well","Grade A","Yes","BO1168","Seasonality =Yes, Village =Rochain, Section =Matotoka","#water_tech, #status_id, #notes"]
["Bombali","Bombali Shebora","Matotoka","Rochain",650,3,"Center of the village",3,"Yes","Non","8.79259","-12.06031",false,false,"IM2","India Mark II","Community","HDW","Hand Dug Well","Grade A","Yes","BO4707","Seasonality =Yes, Village =Rochain, Section =Matotoka","#water_tech, #status_id, #notes"]
["Bombali","Bombali Shebora","Matotoka","Rogbanka",140,1,"close to the school",2,"Yes","Oui","8.764883","-12.0551",false,false,"IM2","India Mark II","Community","HDW","Hand Dug Well","Grade A","Yes","BO1156","Seasonality =Yes, Village =Rogbanka, Section =Matotoka","#water_tech, #status_id, #notes"]
["Bombali","Bombali Shebora","Matotoka","Rogbankan",600,1,"Close to the mosque",3,"Yes","Non","8.76491","-12.05511",false,false,"IM2","India Mark II","Community","HDW","Hand Dug Well","Grade A","Yes","BO1222","Seasonality =Yes, Village =Rogbankan, Section =Matotoka","#water_tech, #status_id, #notes"]
["Bombali","Bombali Shebora","Matotoka","Rogboro",650,1,"close to the dry floor",0,"No","Oui","8.774766","-12.0894",false,false,"IM2","India Mark II","Community","BH","Borehole","Grade B","Yes","BO4290","Seasonality =No, Village =Rogboro, Section =Matotoka","#water_tech, #status_id, #notes"]
["Bombali","Bombali Shebora","Matotoka","Rolunk",550,1,"Young muslim primary school",4,"Yes","Oui","8.749116","-12.12321",false,false,"IM2","India Mark II","School","HDW","Hand Dug Well","Grade C","No","BO4291","Seasonality =Yes, Village =Rolunk, Section =Matotoka","#water_tech, #status_id, #notes"]
["Bombali","Bombali Shebora","Matotoka","Rolunk",550,2,"Close ti the Mosque",6,"Yes","Oui","8.7495","-12.12446",false,false,"IM2","India Mark II","Community","HDW","Hand Dug Well","Grade B","Yes","BO4292","Seasonality =Yes, Village =Rolunk, Section =Matotoka","#water_tech, #status_id, #notes"]
["Bombali","Bombali Shebora","Matotoka","Ropotor",450,1,"Close to the Barray",4,"Yes","Non","8.69028","-12.12017",false,false,"IM2","India Mark II","Community","HDW","Hand Dug Well","Grade A","Yes","BO2139","Seasonality =Yes, Village =Ropotor, Section =Matotoka","#water_tech, #status_id, #notes"]
["Bombali","Bombali Shebora","Matotoka","Roputor",280,1,"End of the village",6,"Yes","Oui","8.690283","-12.1202",false,false,"IM2","India Mark II","Community","HDW","Hand Dug Well","Grade A","Yes","BO2234","Seasonality =Yes, Village =Roputor, Section =Matotoka","#water_tech, #status_id, #notes"]
["Bombali","Bombali Shebora","Matotoka","Roputor",280,2,"Entrance of the village",0,"No","Oui","8.69015","-12.1202",false,false,"IM2","India Mark II","Community","BH","Borehole","Grade A","Yes","BO2828","Seasonality =No, Village =Roputor, Section =Matotoka","#water_tech, #status_id, #notes"]
["Bombali","Bombali Shebora","Matotoka","Rothaimneh",260,1,"close to the mosque",1,"Yes","Non","8.792583","-12.08201",false,false,"IM2","India Mark II","Private","HDW","Hand Dug Well","Grade A","Yes","BO4293","Seasonality =Yes, Village =Rothaimneh, Section =Matotoka","#water_tech, #status_id, #notes"]
["Bombali","Bombali Shebora","Matotoka","sathnen",550,1,"End of the village",4,"Yes","Oui","8.7322","-12.0761",false,false,"IM2","India Mark II","Community","HDW","Hand Dug Well","Grade A","Yes","BO1169",{"$f":"_xlfn.CONCAT(\"Seasonality =\",I450,\", \",\"Village =\", D450,\", \",\"Section =\", C450)","v":"Seasonality =Yes, Village =sathnen, Section =Matotoka"},"#water_tech, #status_id, #notes"]
["Bombali","Bombali Shebora","Matotoka","sathnen",550,2,"New comt. Primary school",0,{"$f":"IF(H451>0,\"Yes\",\"No\")","v":"No"},"Non","8.73415","-12.07905",false,false,"IM2","India Mark II","School","HDW","Hand Dug Well","Grade B",{"$f":"IF(OR(T451=\"Grade A\",T451=\"Grade B\"),\"Yes\",\"No\")","v":"Yes"},"BO1170","Seasonality =No, Village =sathnen, Section =Matotoka","#water_tech, #status_id, #notes"]
["Bombali","Bombali Shebora","Matotoka","sathnen",550,3,"centre of the village",0,"No","Non","8.73325","-12.07705",false,false,"Pully","Pully","Community","HDW","Hand Dug Well","Grade D","No","BO4294","Seasonality =No, Village =sathnen, Section =Matotoka","#water_tech, #status_id, #notes"]
["Bombali","Bombali Shebora","Matotoka","Worreh Bana",420,1,"Entrance of the village",4,"Yes","Non","8.763516","-12.14168",false,false,"Pully","Pully","Community","HDW","Hand Dug Well","Grade D","No","BO4295","Seasonality =Yes, Village =Worreh Bana, Section =Matotoka","#water_tech, #status_id, #notes"]
["Bombali","Bombali Shebora","Rogbaneh","54 Rogbaneh Road",800,1,"in Town",0,"No","Non","8.89274","-12.04054",false,false,"IM2","India Mark II","Private","BH","Borehole","Grade B","Yes","BO2110","Seasonality =No, Village =54 Rogbaneh Road, Section =Rogbaneh","#water_tech, #status_id, #notes"]
["Bombali","Bombali Shebora","Rogbaneh","Alhakan Pri. Sch.",450,1,"Umaru St. Makeni",3,"Yes","Non","8.89631","-12.04710",true,false,"IM2","India Mark II","School","HDW","Hand Dug Well","Grade A","Yes","BO2717","Seasonality =Yes, Village =Alhakan Pri. Sch., Section =Rogbaneh","#water_tech, #status_id, #notes"]
["Bombali","Bombali Shebora","Rogbaneh","Ansaru school",700,1,"School compound",3,"Yes","Non","8.87781","-12.04063",true,false,"IM2","India Mark II","School","HDW","Hand Dug Well","Grade B","Yes","BO1198","Seasonality =Yes, Village =Ansaru school, Section =Rogbaneh","#water_tech, #status_id, #notes"]
["Bombali","Bombali Shebora","Rogbaneh","Arabic College Road",1200,1,"Arabic college road",2,"Yes","Oui","8.88836","-12.0362",false,false,"IM2","India Mark II","Community","HDW","Hand Dug Well","Grade B","Yes","BO4205","Seasonality =Yes, Village =Arabic College Road, Section =Rogbaneh","#water_tech, #status_id, #notes"]
["Bombali","Bombali Shebora","Rogbaneh","Arabic College Road",1200,2,"ABD Hospital",0,"No","Non","8.88845","-12.03547",false,false,"IM2","India Mark II","Health Facility","HDW","Hand Dug Well","Grade B","Yes","BO4206","Seasonality =No, Village =Arabic College Road, Section =Rogbaneh","#water_tech, #status_id, #notes"]
["Bombali","Bombali Shebora","Rogbaneh","Arabic College Road",1200,3,"Sabu street mosque",3,"Yes","Oui","8.88879","-12.03304",false,false,"IM2","India Mark II","Community","HDW","Hand Dug Well","Grade C","No","BO1185","Seasonality =Yes, Village =Arabic College Road, Section =Rogbaneh","#water_tech, #status_id, #notes"]
["Bombali","Bombali Shebora","Rogbaneh","Arabic College Road",1200,4,"Dura lane mosque",0,"No","Oui","8.88719","-12.0282",false,false,"IM2","India Mark II","Community","HDW","Hand Dug Well","Grade A","Yes","BO4207","Seasonality =No, Village =Arabic College Road, Section =Rogbaneh","#water_tech, #status_id, #notes"]
["Bombali","Bombali Shebora","Rogbaneh","Arabic College Road",1200,5,"Dura lane",2,"Yes","Non","8.88753","-12.0281",false,false,"IM2","India Mark II","Private","HDW","Hand Dug Well","Grade A","Yes","BO4208","Seasonality =Yes, Village =Arabic College Road, Section =Rogbaneh","#water_tech, #status_id, #notes"]
["Bombali","Bombali Shebora","Rogbaneh","Arabic College Road",1200,6,"Sabu street",0,"No","Oui","8.88815","-12.03266",false,false,"IM2","India Mark II","Community","BH","Borehole","Grade B","Yes","BO4209","Seasonality =No, Village =Arabic College Road, Section =Rogbaneh","#water_tech, #status_id, #notes"]
["Bombali","Bombali Shebora","Rogbaneh","Beatrice Lane",200,1,"Side of the road-School",2,"Yes","Non","8.89928","-12.04446",false,false,"Kardia","Kardia","School","HDW","Hand Dug Well","Grade B","Yes","BO2144","Seasonality =Yes, Village =Beatrice Lane, Section =Rogbaneh","#water_tech, #status_id, #notes"]
["Bombali","Bombali Shebora","Rogbaneh","Birch Secondary School",800,9,"School Compound",0,"No","Non","8.89847","-12.04154",false,false,"IM2","India Mark II","School","BH","Borehole","Grade B","Yes","BO2126","Seasonality =No, Village =Birch Secondary School, Section =Rogbaneh","#water_tech, #status_id, #notes"]
["Bombali","Bombali Shebora","Rogbaneh","Birch Secondary School",800,10,"School Compound",3,"Yes","Non","8.89803","-12.04217",false,false,"IM2","India Mark II","School","HDW","Hand Dug Well","Grade B","Yes","BO2127","Seasonality =Yes, Village =Birch Secondary School, Section =Rogbaneh","#water_tech, #status_id, #notes"]
["Bombali","Bombali Shebora","Rogbaneh","Cemetry area",2600,1,"Kabasie street",1,"Yes","Oui","8.89428","-12.03573",false,false,"IM2","India Mark II","Community","HDW","Hand Dug Well","Grade A","Yes","BO4210","Seasonality =Yes, Village =Cemetry area, Section =Rogbaneh","#water_tech, #status_id, #notes"]
["Bombali","Bombali Shebora","Rogbaneh","Child in need M.",180,1,"Inside School Compound",0,"No","Non","8.86889","-12.03960",false,false,"PB2","PB Mark II","School","HDW","Hand Dug Well","Grade B","Yes","BO1204","Seasonality =No, Village =Child in need M., Section =Rogbaneh","#water_tech, #status_id, #notes"]
["Bombali","Bombali Shebora","Rogbaneh","City Hall Library",110,1,"Inside the Compound",1,"Yes","Non","8.88199","-12.04440",false,false,"Kardia","Kardia","Private","BH","Borehole","Grade B","Yes","BO1180","Seasonality =Yes, Village =City Hall Library, Section =Rogbaneh","#water_tech, #status_id, #notes"]
["Bombali","Bombali Shebora","Rogbaneh","Congo Town Road",250,1,"Side of the village",4,"Yes","Non","8.87905","-12.03849",false,false,"IM2","India Mark II","Private","HDW","Hand Dug Well","Grade C","No","BO1200","Seasonality =Yes, Village =Congo Town Road, Section =Rogbaneh","#water_tech, #status_id, #notes"]
["Bombali","Bombali Shebora","Rogbaneh","Court No. 1",180,1,"Court area",3,"Yes","Non","8.87866","-12.05024",false,false,"IM2","India Mark II","Private","HDW","Hand Dug Well","Grade C","No","BO1214","Seasonality =Yes, Village =Court No. 1, Section =Rogbaneh","#water_tech, #status_id, #notes"]
["Bombali","Bombali Shebora","Rogbaneh","Cow Yard 1",700,1,"By the gutter",2,"Yes","Non","8.89630","-12.04347",false,false,"IM2","India Mark II","Community","HDW","Hand Dug Well","Grade A","Yes","BO2092","Seasonality =Yes, Village =Cow Yard 1, Section =Rogbaneh","#water_tech, #status_id, #notes"]
["Bombali","Bombali Shebora","Rogbaneh","Fullah Town",5000,3,"Mohamed Bangura St",3,"Yes","Non","8.89892","-12.04554",false,false,"PB2","PB Mark II","Community","HDW","Hand Dug Well","Grade A","Yes","BO1348","Seasonality =Yes, Village =Fullah Town, Section =Rogbaneh","#water_tech, #status_id, #notes"]
["Bombali","Bombali Shebora","Rogbaneh","Fullah Town",5000,11,"Sesay St Junction",null,"No","Non","8.89897","-12.04284",false,false,"IM2","India Mark II","Community","BH","Borehole","Grade A","Yes","BO1346","Seasonality =No, Village =Fullah Town, Section =Rogbaneh","#water_tech, #status_id, #notes"]
["Bombali","Bombali Shebora","Rogbaneh","Fullah Town",5000,12,"Market",0,"No","Non","8.89984","-12.04216",false,false,"IM2","India Mark II","Community","BH","Borehole","Grade B","Yes","BO1347","Seasonality =No, Village =Fullah Town, Section =Rogbaneh","#water_tech, #status_id, #notes"]
["Bombali","Bombali Shebora","Rogbaneh","Fullah Town",5000,15,"Rocks",0,"No","Non","8.88054","-12.03551",false,false,"IM2","India Mark II","Community","BH","Borehole","Grade A","Yes","BO1270","Seasonality =No, Village =Fullah Town, Section =Rogbaneh","#water_tech, #status_id, #notes"]
["Bombali","Bombali Shebora","Rogbaneh","Gadda area",950,1,"Agriculture area",0,"No","Oui","8.87756","-12.04535",false,false,"IM2","India Mark II","Community","HDW","Hand Dug Well","Grade C","No","BO4211","Seasonality =No, Village =Gadda area, Section =Rogbaneh","#water_tech, #status_id, #notes"]
["Bombali","Bombali Shebora","Rogbaneh","Gadda area",950,2,"SDA primary school",2,"Yes","Oui","8.87728","-12.05441",false,false,"IM2","India Mark II","School","HDW","Hand Dug Well","Grade A","Yes","BO4212","Seasonality =Yes, Village =Gadda area, Section =Rogbaneh","#water_tech, #status_id, #notes"]
["Bombali","Bombali Shebora","Rogbaneh","Gadda area",950,3,"Gadda lane 2",0,"No","Oui","8.87648","-12.04545",false,false,"IM2","India Mark II","Community","HDW","Hand Dug Well","Grade B","Yes","BO4213","Seasonality =No, Village =Gadda area, Section =Rogbaneh","#water_tech, #status_id, #notes"]
["Bombali","Bombali Shebora","Rogbaneh","Gadda area",950,4,"ministry of agriculture",0,"No","Non","8.88029","-12.04647",false,false,"IM2","India Mark II","Community","HDW","Hand Dug Well","Grade B","Yes","BO4214","Seasonality =No, Village =Gadda area, Section =Rogbaneh","#water_tech, #status_id, #notes"]
["Bombali","Bombali Shebora","Rogbaneh","Gadda area",950,5,"Agriculture road",0,"No","Non","8.87938","-12.04794",false,false,"IM2","India Mark II","Community","HDW","Hand Dug Well","Grade B","Yes","BO4215","Seasonality =No, Village =Gadda area, Section =Rogbaneh","#water_tech, #status_id, #notes"]
["Bombali","Bombali Shebora","Rogbaneh","Hearing Imp.",200,1,"School compound",2,"Yes","Non","8.88313","-12.03938",false,false,"IM2","India Mark II","School","HDW","Hand Dug Well","Grade B","Yes","BO1196","Seasonality =Yes, Village =Hearing Imp., Section =Rogbaneh","#water_tech, #status_id, #notes"]
["Bombali","Bombali Shebora","Rogbaneh","IDA Quarter",620,1,"IDA quarter",0,"No","Oui","8.88424","-12.0375",false,false,"IM2","India Mark II","Community","BH","Borehole","Grade B","Yes","BO1181","Seasonality =No, Village =IDA Quarter, Section =Rogbaneh","#water_tech, #status_id, #notes"]
["Bombali","Bombali Shebora","Rogbaneh","IDA Quarter",620,2,"Ousu street",1,"Yes","Oui","8.88569","-12.03641",false,false,"IM2","India Mark II","Community","HDW","Hand Dug Well","Grade B","Yes","BO4216","Seasonality =Yes, Village =IDA Quarter, Section =Rogbaneh","#water_tech, #status_id, #notes"]
["Bombali","Bombali Shebora","Rogbaneh","John Tucker Street",500,1,"Side of the road",3,"Yes","Non","8.88012","-12.03593",false,false,"Pully","Pully","Private","HDW","Hand Dug Well","Grade B","Yes","BO1203","Seasonality =Yes, Village =John Tucker Street, Section =Rogbaneh","#water_tech, #status_id, #notes"]
["Bombali","Bombali Shebora","Rogbaneh","John Tucker Street",500,2,"John Tucker street ",0,"No","Oui","8.88058","-12.0354",false,false,"IM2","India Mark II","Community","HDW","Hand Dug Well","Grade B","Yes","BO4220","Seasonality =No, Village =John Tucker Street, Section =Rogbaneh","#water_tech, #status_id, #notes"]
["Bombali","Bombali Shebora","Rogbaneh","John Tucker Street",500,3,"Bundu street",0,"No","Non","8.88046","-12.03586",false,false,"IM2","India Mark II","Private","HDW","Hand Dug Well","Grade B","Yes","BO4221","Seasonality =No, Village =John Tucker Street, Section =Rogbaneh","#water_tech, #status_id, #notes"]
["Bombali","Bombali Shebora","Rogbaneh","Kondowa Street",400,1,"Side of the road",3,"Yes","Non","8.87006","-12.03873",false,false,"IM2","India Mark II","Private","HDW","Hand Dug Well","Grade C","No","BO1205","Seasonality =Yes, Village =Kondowa Street, Section =Rogbaneh","#water_tech, #status_id, #notes"]
["Bombali","Bombali Shebora","Rogbaneh","Kulafai Pri. Sch.",350,1,"Primary Scholl compound",2,"Yes","Non","8.88513","-12.03751",true,false,"IM2","India Mark II","School","HDW","Hand Dug Well","Grade B","Yes","BO1182","Seasonality =Yes, Village =Kulafai Pri. Sch., Section =Rogbaneh","#water_tech, #status_id, #notes"]
["Bombali","Bombali Shebora","Rogbaneh","Loreto Health Services",24336,1,"Inside the PHU Compound",0,"No","Non","8.88744","-12.04606",false,false,"IM2","India Mark II","Health Facility","HDW","Hand Dug Well","Grade A","Yes","BO4750","Seasonality =No, Village =Loreto Health Services, Section =Rogbaneh","#water_tech, #status_id, #notes"]
["Bombali","Bombali Shebora","Rogbaneh","Loreto Health Services",24336,2,"Inside the PHU Compound",0,"No","Non","8.88698","-12.04357",false,true,"Submersive","Submersive plus solar pump","Health Facility","HDW","Hand Dug Well","Grade A","Yes","BO4751","Seasonality =No, Village =Loreto Health Services, Section =Rogbaneh","#water_tech, #status_id, #notes"]
["Bombali","Bombali Shebora","Rogbaneh","Low Banana Street",500,1,"Lower Banana street",2,"Yes","Non","8.88508","-12.04468",false,false,"IM2","India Mark II","Community","HDW","Hand Dug Well","Grade A","Yes","BO1178","Seasonality =Yes, Village =Low Banana Street, Section =Rogbaneh","#water_tech, #status_id, #notes"]
["Bombali","Bombali Shebora","Rogbaneh","Lower John Street",550,1,"Close to the road",3,"Yes","Non","8.88614","-12.04763",false,false,"IM2","India Mark II","Private","HDW","Hand Dug Well","Grade C","No","BO1177","Seasonality =Yes, Village =Lower John Street, Section =Rogbaneh","#water_tech, #status_id, #notes"]
["Bombali","Bombali Shebora","Rogbaneh","Magburaka Rd. Mosque",2000,1,"At the mosque",2,"Yes","Non","8.88707","-12.04525",true,false,"IM2","India Mark II","Private","HDW","Hand Dug Well","Grade B","Yes","BO1213","Seasonality =Yes, Village =Magburaka Rd. Mosque, Section =Rogbaneh","#water_tech, #status_id, #notes"]
["Bombali","Bombali Shebora","Rogbaneh","Magburaka Road",1800,1,"Makeni central mosque",2,"Yes","Oui","8.88737","-12.04513",false,false,"IM2","India Mark II","Community","HDW","Hand Dug Well","Grade A","Yes","BO4223","Seasonality =Yes, Village =Magburaka Road, Section =Rogbaneh","#water_tech, #status_id, #notes"]
["Bombali","Bombali Shebora","Rogbaneh","Makama Road",980,1,"Near the church",0,"No","Oui","8.8673","-12.05437",false,false,"IM2","India Mark II","Community","HDW","Hand Dug Well","Grade B","Yes","BO4224","Seasonality =No, Village =Makama Road, Section =Rogbaneh","#water_tech, #status_id, #notes"]
["Bombali","Bombali Shebora","Rogbaneh","Makama Turn Table",3900,1,"Court barry turn table",0,"No","Oui","8.87872","-12.0503",false,false,"Afridev","Afridev","Community","HDW","Hand Dug Well","Grade C","No","BO4225","Seasonality =No, Village =Makama Turn Table, Section =Rogbaneh","#water_tech, #status_id, #notes"]
["Bombali","Bombali Shebora","Rogbaneh","Makama Turn Table",3900,2,"mabureh street market",2,"Yes","Oui","8.87912","-12.0497",false,false,"IM2","India Mark II","Community","HDW","Hand Dug Well","Grade B","Yes","BO4226","Seasonality =Yes, Village =Makama Turn Table, Section =Rogbaneh","#water_tech, #status_id, #notes"]
["Bombali","Bombali Shebora","Rogbaneh","Makama Turn Table",3900,3,"Grace Assembly church",0,"No","Oui","8.88079","-12.04865",false,false,"IM2","India Mark II","Community","HDW","Hand Dug Well","Grade A","Yes","BO4227","Seasonality =No, Village =Makama Turn Table, Section =Rogbaneh","#water_tech, #status_id, #notes"]
["Bombali","Bombali Shebora","Rogbaneh","Makeni Main Lorry Park",1500,1,"Park center",2,"Yes","Non","8.89225","-12.04255",false,false,"IM2","India Mark II","Community","HDW","Hand Dug Well","Grade A","Yes","BO2188","Seasonality =Yes, Village =Makeni Main Lorry Park, Section =Rogbaneh","#water_tech, #status_id, #notes"]
["Bombali","Bombali Shebora","Rogbaneh","Makeni/Makama 2",3200,1,"Practicing Pri. Sch.",0,"No","Oui","8.87222","-12.05151",false,false,"IM2","India Mark II","School","HDW","Hand Dug Well","Grade C","No","BO4228","Seasonality =No, Village =Makeni/Makama 2, Section =Rogbaneh","#water_tech, #status_id, #notes"]
["Bombali","Bombali Shebora","Rogbaneh","Makeni/Makama 2",3200,2,"Texy drive",1,"Yes","Oui","8.87236","-12.05276",false,false,"IM2","India Mark II","Community","HDW","Hand Dug Well","Grade B","Yes","BO4229","Seasonality =Yes, Village =Makeni/Makama 2, Section =Rogbaneh","#water_tech, #status_id, #notes"]
["Bombali","Bombali Shebora","Rogbaneh","Makeni/Makama 2",3200,3,"FAWE Sec. Sch.",0,"No","Oui","8.8716","-12.05303",false,false,"IM2","India Mark II","School","HDW","Hand Dug Well","Grade B","Yes","BO4230","Seasonality =No, Village =Makeni/Makama 2, Section =Rogbaneh","#water_tech, #status_id, #notes"]
["Bombali","Bombali Shebora","Rogbaneh","Makeni/Makama 2",3200,4,"makama road",3,"Yes","Oui","8.87047","-12.05333",false,false,"IM2","India Mark II","Community","HDW","Hand Dug Well","Grade A","Yes","BO4231","Seasonality =Yes, Village =Makeni/Makama 2, Section =Rogbaneh","#water_tech, #status_id, #notes"]
["Bombali","Bombali Shebora","Rogbaneh","Makeni/Makama 2",3200,5,"Ahmadiyya  Sec. Sch.",4,"Yes","Oui","8.87057","-12.0554",false,false,"IM2","India Mark II","School","HDW","Hand Dug Well","Grade A","Yes","BO4232","Seasonality =Yes, Village =Makeni/Makama 2, Section =Rogbaneh","#water_tech, #status_id, #notes"]
["Bombali","Bombali Shebora","Rogbaneh","Makeni/Makama 2",3200,6,"Ahmadiyya  Sec. Sch.",4,"Yes","Oui","8.87139","-12.05593",false,false,"Afridev","Afridev","School","HDW","Hand Dug Well","Grade C","No","BO4233","Seasonality =Yes, Village =Makeni/Makama 2, Section =Rogbaneh","#water_tech, #status_id, #notes"]
["Bombali","Bombali Shebora","Rogbaneh","Makeni/Makama 2",3200,10,"BEDC home economic pri.school",0,"No","Oui","8.87644","-12.05226",false,false,"Afridev","Afridev","School","HDW","Hand Dug Well","Grade C","No","BO4237","Seasonality =No, Village =Makeni/Makama 2, Section =Rogbaneh","#water_tech, #status_id, #notes"]
["Bombali","Bombali Shebora","Rogbaneh","Makeni/Makama 2",3200,11,"BDEC Pri. Sch.",0,"No","Oui","8.87624","-12.0525",false,false,"Just pedestal - incomplete","Just pedestal - incomplete","School","HDW","Hand Dug Well","Grade C","No","BO4238","Seasonality =No, Village =Makeni/Makama 2, Section =Rogbaneh","#water_tech, #status_id, #notes"]
["Bombali","Bombali Shebora","Rogbaneh","Makeni/Makama 2",3200,12,"sylvanus municipal academy sec.",3,"Yes","Non","8.87563","-12.05282",false,false,"Pully","Pully","School","HDW","Hand Dug Well","Grade D","No","BO4239","Seasonality =Yes, Village =Makeni/Makama 2, Section =Rogbaneh","#water_tech, #status_id, #notes"]
["Bombali","Bombali Shebora","Rogbaneh","Makeni/Makama 2",3200,13,"Church of God Pri. Sch.",2,"Yes","Oui","8.87612","-12.05766",false,false,"IM2","India Mark II","School","HDW","Hand Dug Well","Grade C","No","BO4240","Seasonality =Yes, Village =Makeni/Makama 2, Section =Rogbaneh","#water_tech, #status_id, #notes"]
["Bombali","Bombali Shebora","Rogbaneh","Makeni/Makama 2",3200,14,"Church of God Pri. Sch.",0,"No","Oui","8.87714","-12.05125",false,false,"Kardia","Kardia","School","HDW","Hand Dug Well","Grade C","No","BO4241","Seasonality =No, Village =Makeni/Makama 2, Section =Rogbaneh","#water_tech, #status_id, #notes"]
["Bombali","Bombali Shebora","Rogbaneh","Makeni/Makama 2",3200,15,"Prince of Peace Church",3,"Yes","Oui","8.87626","-12.05122",false,false,"Pully","Pully","Community","HDW","Hand Dug Well","Grade C","No","BO4242","Seasonality =Yes, Village =Makeni/Makama 2, Section =Rogbaneh","#water_tech, #status_id, #notes"]
["Bombali","Bombali Shebora","Rogbaneh","Manoh Street",350,1,"Close to mosque",4,"Yes","Non","8.88379","-12.03528",false,false,"IM2","India Mark II","Private","HDW","Hand Dug Well","Grade B","Yes","BO1183","Seasonality =Yes, Village =Manoh Street, Section =Rogbaneh","#water_tech, #status_id, #notes"]
["Bombali","Bombali Shebora","Rogbaneh","Mansaray Street",980,1,"Close to the drive",5,"Yes","Oui","8.89728","-12.04376",false,false,"PB2","PB Mark II","Community","HDW","Hand Dug Well","Grade A","Yes","BO2671","Seasonality =Yes, Village =Mansaray Street, Section =Rogbaneh","#water_tech, #status_id, #notes"]
["Bombali","Bombali Shebora","Rogbaneh","Marian Street",450,1,"22 Marian street",3,"Yes","Non","8.87917","-12.04046",false,false,"IM2","India Mark II","Private","HDW","Hand Dug Well","Grade B","Yes","BO1197",{"$f":"_xlfn.CONCAT(\"Seasonality =\",I514,\", \",\"Village =\", D514,\", \",\"Section =\", C514)","v":"Seasonality =Yes, Village =Marian Street, Section =Rogbaneh"},"#water_tech, #status_id, #notes"]
["Bombali","Bombali Shebora","Rogbaneh","Masim Street",370,1,"50 Masim street",2,{"$f":"IF(H515>0,\"Yes\",\"No\")","v":"Yes"},"Non","8.89077","-12.03534",false,false,"IM2","India Mark II","Community","HDW","Hand Dug Well","Grade A",{"$f":"IF(OR(T515=\"Grade A\",T515=\"Grade B\"),\"Yes\",\"No\")","v":"Yes"},"BO1188","Seasonality =Yes, Village =Masim Street, Section =Rogbaneh","#water_tech, #status_id, #notes"]
["Bombali","Bombali Shebora","Rogbaneh","Masuba area",2400,1,"WCSL Pri. Sch.",0,"No","Oui","8.89148","-12.03472",false,false,"Kardia","Kardia","School","HDW","Hand Dug Well","Grade B","Yes","BO4243","Seasonality =No, Village =Masuba area, Section =Rogbaneh","#water_tech, #status_id, #notes"]
["Bombali","Bombali Shebora","Rogbaneh","Masuba area",2400,3,"Lower masim street",0,"No","Oui","8.88849","-12.03921",false,false,"IM2","India Mark II","Community","HDW","Hand Dug Well","Grade A","Yes","BO4245","Seasonality =No, Village =Masuba area, Section =Rogbaneh","#water_tech, #status_id, #notes"]
["Bombali","Bombali Shebora","Rogbaneh","Masuba area",2400,4,"Wallise johnson street",0,"No","Non","8.89024","-12.03872",false,false,"IM2","India Mark II","Private","HDW","Hand Dug Well","Grade A","Yes","BO4246","Seasonality =No, Village =Masuba area, Section =Rogbaneh","#water_tech, #status_id, #notes"]
["Bombali","Bombali Shebora","Rogbaneh","Masuba area",2400,5,"masuba road",0,"No","Oui","8.89204","-12.03821",false,false,"IM2","India Mark II","Community","HDW","Hand Dug Well","Grade A","Yes","BO4247","Seasonality =No, Village =Masuba area, Section =Rogbaneh","#water_tech, #status_id, #notes"]
["Bombali","Bombali Shebora","Rogbaneh","Masuba area",2400,6,"watson street",0,"No","Oui","8.89371","-12.0376",false,false,"IM2","India Mark II","Community","HDW","Hand Dug Well","Grade A","Yes","BO4248","Seasonality =No, Village =Masuba area, Section =Rogbaneh","#water_tech, #status_id, #notes"]
["Bombali","Bombali Shebora","Rogbaneh","Masuba area",2400,7,"Rogbaneh road by the mosque",1,"Yes","Oui","8.89273","-12.04051",false,false,"IM2","India Mark II","Community","HDW","Hand Dug Well","Grade B","Yes","BO1190","Seasonality =Yes, Village =Masuba area, Section =Rogbaneh","#water_tech, #status_id, #notes"]
["Bombali","Bombali Shebora","Rogbaneh","Masuba area",2400,8,"BDEC pentecostal pri.school",0,"No","Oui","8.89288","-12.03976",false,false,"Kardia","Kardia","School","HDW","Hand Dug Well","Grade B","Yes","BO4249","Seasonality =No, Village =Masuba area, Section =Rogbaneh","#water_tech, #status_id, #notes"]
["Bombali","Bombali Shebora","Rogbaneh","Masuba area",2400,10,"SLC Pri. Sch. Gbaneh rd",0,"No","Oui","8.8944","-12.04073",false,false,"IM2","India Mark II","School","HDW","Hand Dug Well","Grade B","Yes","BO4250","Seasonality =No, Village =Masuba area, Section =Rogbaneh","#water_tech, #status_id, #notes"]
["Bombali","Bombali Shebora","Rogbaneh","Masuba Road",2000,1,"Arabic College Rd.",2,"Yes","Non","8.89961","-12.02928",false,false,"IM2","India Mark II","Community","HDW","Hand Dug Well","Grade A","Yes","BO2125","Seasonality =Yes, Village =Masuba Road, Section =Rogbaneh","#water_tech, #status_id, #notes"]
["Bombali","Bombali Shebora","Rogbaneh","Mayamba Amputee Camp",700,2,"in town",2,"Yes","Non","8.87935","-12.03112",false,false,"IM2","India Mark II","Community","HDW","Hand Dug Well","Grade B","Yes","BO2111","Seasonality =Yes, Village =Mayamba Amputee Camp, Section =Rogbaneh","#water_tech, #status_id, #notes"]
["Bombali","Bombali Shebora","Rogbaneh","MCA Pri. Sch.",600,10,"School Compound",2,"Yes","Non","8.87564","-12.04272",false,false,"IM2","India Mark II","School","HDW","Hand Dug Well","Grade C","No","BO1210","Seasonality =Yes, Village =MCA Pri. Sch., Section =Rogbaneh","#water_tech, #status_id, #notes"]
["Bombali","Bombali Shebora","Rogbaneh","MCA Sec. Sch.",2500,9,"School Compound",0,"No","Non","8.87616","-12.04206",false,false,"IM2","India Mark II","School","HDW","Hand Dug Well","Grade B","Yes","BO1211","Seasonality =No, Village =MCA Sec. Sch., Section =Rogbaneh","#water_tech, #status_id, #notes"]
["Bombali","Bombali Shebora","Rogbaneh","Mena Police Station",1100,1,"mena police station",0,"No","Oui","8.87774","-12.05245",false,false,"IM2","India Mark II","Community","HDW","Hand Dug Well","Grade C","No","BO4251","Seasonality =No, Village =Mena Police Station, Section =Rogbaneh","#water_tech, #status_id, #notes"]
["Bombali","Bombali Shebora","Rogbaneh","Mena Police Station",1100,2,"mena police station",0,"No","Oui","8.87799","-12.05304",false,false,"IM2","India Mark II","Community","HDW","Hand Dug Well","Grade B","Yes","BO4252","Seasonality =No, Village =Mena Police Station, Section =Rogbaneh","#water_tech, #status_id, #notes"]
["Bombali","Bombali Shebora","Rogbaneh","Mena Police Station",1100,3,"mena police hospital",0,"No","Oui","8.87841","-12.05324",false,false,"IM2","India Mark II","Health Facility","BH","Borehole","Grade A","Yes","BO4253","Seasonality =No, Village =Mena Police Station, Section =Rogbaneh","#water_tech, #status_id, #notes"]
["Bombali","Bombali Shebora","Rogbaneh","Mena Police Station",1100,4,"mena police garage",1,"Yes","Oui","8.87765","-12.05382",false,false,"IM2","India Mark II","Community","HDW","Hand Dug Well","Grade C","No","BO4254","Seasonality =Yes, Village =Mena Police Station, Section =Rogbaneh","#water_tech, #status_id, #notes"]
["Bombali","Bombali Shebora","Rogbaneh","Mena Police Station",1100,5,"mena prison",1,"Yes","Oui","8.87744","-12.06426",false,false,"IM2","India Mark II","Private","BH","Borehole","Grade B","Yes","BO4255","Seasonality =Yes, Village =Mena Police Station, Section =Rogbaneh","#water_tech, #status_id, #notes"]
["Bombali","Bombali Shebora","Rogbaneh","Mena Police Station",1100,6,"Close to the block L",2,"Yes","Non","8.87860","-12.05296",false,false,"IM2","India Mark II","Community","BH","Borehole","Grade B","Yes","BO4710","Seasonality =Yes, Village =Mena Police Station, Section =Rogbaneh","#water_tech, #status_id, #notes"]
["Bombali","Bombali Shebora","Rogbaneh","Mena Police Station",1100,7,"female prison",6,"Yes","Oui","8.87717","-12.05488",false,false,"IM2","India Mark II","Private","HDW","Hand Dug Well","Grade C","No","BO4257","Seasonality =Yes, Village =Mena Police Station, Section =Rogbaneh","#water_tech, #status_id, #notes"]
["Bombali","Bombali Shebora","Rogbaneh","Mena Police Station",1100,8,"Prison Barracks",0,"No","Oui","8.87762","-12.05496",false,false,"IM2","India Mark II","Community","HDW","Hand Dug Well","Grade C","No","BO4258","Seasonality =No, Village =Mena Police Station, Section =Rogbaneh","#water_tech, #status_id, #notes"]
["Bombali","Bombali Shebora","Rogbaneh","Mena Police Station",1100,9,"Prison baracks",0,"No","Non","8.87744","-12.05481",false,false,"Fairwater Blue Pump","Fairwater Blue Pump","Community","BH","Borehole","Grade B","Yes","BO4711","Seasonality =No, Village =Mena Police Station, Section =Rogbaneh","#water_tech, #status_id, #notes"]
["Bombali","Bombali Shebora","Rogbaneh","Mena Police Station",1100,10,"Close to the block L",3,"Yes","Non","8.87891","-12.05319",false,false,"Just pedestal - incomplete","Just pedestal - incomplete","Community","HDW","Hand Dug Well","Grade C","No","BO4712","Seasonality =Yes, Village =Mena Police Station, Section =Rogbaneh","#water_tech, #status_id, #notes"]
["Bombali","Bombali Shebora","Rogbaneh","Mess Road",700,1,"Side of the Road",1,"Yes","Non","8.89129","-12.04614",false,false,"IM2","India Mark II","Private","HDW","Hand Dug Well","Grade B","Yes","BO1172","Seasonality =Yes, Village =Mess Road, Section =Rogbaneh","#water_tech, #status_id, #notes"]
["Bombali","Bombali Shebora","Rogbaneh","Mess Road",700,2,"Sideof the road",2,"Yes","Non","8.89156","-12.04619",true,false,"Rope","Rope","Private","HDW","Hand Dug Well","Grade C","No","BO1173","Seasonality =Yes, Village =Mess Road, Section =Rogbaneh","#water_tech, #status_id, #notes"]
["Bombali","Bombali Shebora","Rogbaneh","Missirie Street",800,1,"Close to mosque",1,"Yes","Non","8.89528","-12.04172",false,false,"IM2","India Mark II","Private","HDW","Hand Dug Well","Grade B","Yes","BO2745","Seasonality =Yes, Village =Missirie Street, Section =Rogbaneh","#water_tech, #status_id, #notes"]
["Bombali","Bombali Shebora","Rogbaneh","Missirie Street",800,1,"in town",null,"No","Non",null,null,false,false,"IM2","India Mark II","Private","HDW","Hand Dug Well","Grade X","No","BO2233","Seasonality =No, Village =Missirie Street, Section =Rogbaneh","#water_tech, #status_id, #notes"]
["Bombali","Bombali Shebora","Rogbaneh","Mohamed Bangura St.",490,1,"Mosque",1,"Yes","Non","8.9026161","-12.0439711",false,false,"IM2","India Mark II","Community","HDW","Hand Dug Well","Grade A","Yes","BO1409","Seasonality =Yes, Village =Mohamed Bangura St., Section =Rogbaneh","#water_tech, #status_id, #notes"]
["Bombali","Bombali Shebora","Rogbaneh","Mohamed Bangura St.",490,3,"Side of the road",3,"Yes","Non","8.90131","-12.04536",false,false,"IM2","India Mark II","Community","HDW","Hand Dug Well","Grade B","Yes","BO4708","Seasonality =Yes, Village =Mohamed Bangura St., Section =Rogbaneh","#water_tech, #status_id, #notes"]
["Bombali","Bombali Shebora","Rogbaneh","Momoh Street",215,1,"By the Mosque",1,"Yes","Non","8.89378","-12.05053",false,false,"IM2","India Mark II","Private","HDW","Hand Dug Well","Grade B","Yes","BO2675","Seasonality =Yes, Village =Momoh Street, Section =Rogbaneh","#water_tech, #status_id, #notes"]
["Bombali","Bombali Shebora","Rogbaneh","No 78 Station Rd.",150,1,"By the highway",0,"No","Non","8.87822","-12.04494",true,false,"Rope","Rope","Private","HDW","Hand Dug Well","Grade B","Yes","BO1212","Seasonality =No, Village =No 78 Station Rd., Section =Rogbaneh","#water_tech, #status_id, #notes"]
["Bombali","Bombali Shebora","Rogbaneh","O.I.C Road Mosque",240,7,"Close to the mosque",1,"Yes","Non","8.87371","-12.03823",false,false,"IM2","India Mark II","Private","HDW","Hand Dug Well","Grade C","No","BO1206","Seasonality =Yes, Village =O.I.C Road Mosque, Section =Rogbaneh","#water_tech, #status_id, #notes"]
["Bombali","Bombali Shebora","Rogbaneh","Opese Marriage Quarter",null,1,"In The Barrack",null,"No","Non",null,null,false,false,"IM2","India Mark II","Community","HDW","Hand Dug Well","Grade X","No","BO2795","Seasonality =No, Village =Opese Marriage Quarter, Section =Rogbaneh","#water_tech, #status_id, #notes"]
["Bombali","Bombali Shebora","Rogbaneh","Our Lady R.C",530,1,"Close to the highway",0,"No","Non","8.88321","-12.03690",true,false,"PB2","PB Mark II","School","HDW","Hand Dug Well","Grade C","No","BO1192","Seasonality =No, Village =Our Lady R.C, Section =Rogbaneh","#water_tech, #status_id, #notes"]
["Bombali","Bombali Shebora","Rogbaneh","Our Lady R.C",530,2,"Close to the highway",3,"Yes","Non","8.88307","-12.03663",false,false,"IM2","India Mark II","School","BH","Borehole","Grade B","Yes","BO1193","Seasonality =Yes, Village =Our Lady R.C, Section =Rogbaneh","#water_tech, #status_id, #notes"]
["Bombali","Bombali Shebora","Rogbaneh","Pain Squaire",370,1,"Masuba",0,"No","Non","8.89201","-12.03251",false,false,"IM2","India Mark II","Community","BH","Borehole","Grade B","Yes","BO1191","Seasonality =No, Village =Pain Squaire, Section =Rogbaneh","#water_tech, #status_id, #notes"]
["Bombali","Bombali Shebora","Rogbaneh","Renka Street",180,1,"Close to the mosque",3,"Yes","Non","8.89176","-12.04771",true,false,"IM2","India Mark II","Private","HDW","Hand Dug Well","Grade C","No","BO1174","Seasonality =Yes, Village =Renka Street, Section =Rogbaneh","#water_tech, #status_id, #notes"]
["Bombali","Bombali Shebora","Rogbaneh","Rogbalan Makeni",2200,1,"milton street",1,"Yes","Oui","8.88241","-12.054",false,false,"IM2","India Mark II","Community","HDW","Hand Dug Well","Grade B","Yes","BO4259","Seasonality =Yes, Village =Rogbalan Makeni, Section =Rogbaneh","#water_tech, #status_id, #notes"]
["Bombali","Bombali Shebora","Rogbaneh","Rosanda Lane",null,1,"Old cow Yard",null,"No","Non",null,null,false,false,"IM2","India Mark II","Community","HDW","Hand Dug Well","Grade A","Yes","BO1465","Seasonality =No, Village =Rosanda Lane, Section =Rogbaneh","#water_tech, #status_id, #notes"]
["Bombali","Bombali Shebora","Rogbaneh","S.L.M.B Sec. Sch",1380,1,"School Compound",1,"Yes","Non","8.89117","-12.05234",false,false,"IM2","India Mark II","School","HDW","Hand Dug Well","Grade B","Yes","BO2680","Seasonality =Yes, Village =S.L.M.B Sec. Sch, Section =Rogbaneh","#water_tech, #status_id, #notes"]
["Bombali","Bombali Shebora","Rogbaneh","Samuel Street Mosque",700,1,"Mosque",1,"Yes","Non","8.89233","-12.05115",false,false,"IM2","India Mark II","Community","HDW","Hand Dug Well","Grade A","Yes","BO4656","Seasonality =Yes, Village =Samuel Street Mosque, Section =Rogbaneh","#water_tech, #status_id, #notes"]
["Bombali","Bombali Shebora","Rogbaneh","Sesay Street",900,1,"Junction",0,"No","Non","8.89897","-12.04288",false,false,"IM2","India Mark II","Community","BH","Borehole","Grade A","Yes","BO2753","Seasonality =No, Village =Sesay Street, Section =Rogbaneh","#water_tech, #status_id, #notes"]
["Bombali","Bombali Shebora","Rogbaneh","Sesay Street",900,2,"Close to the Market",0,"No","Non","8.89985","-12.04217",false,false,"IM2","India Mark II","Community","BH","Borehole","Grade B","Yes","BO2145","Seasonality =No, Village =Sesay Street, Section =Rogbaneh","#water_tech, #status_id, #notes"]
["Bombali","Bombali Shebora","Rogbaneh","SLRCs Clinic",null,1,"Inside the PHU Compound",0,"No","Non","8.88744","-12.04610",false,false,"Submersive","Submersive","Health Facility","BH","Borehole","Grade D","No","BO4752","Seasonality =No, Village =SLRCs Clinic, Section =Rogbaneh","#water_tech, #status_id, #notes"]
["Bombali","Bombali Shebora","Rogbaneh","SLRCs Clinic",null,2,"Entrance of the PHU Compound",0,"No","Non","8.88798","-12.04604",false,false,"IM2","India Mark II","Health Facility","BH","Borehole","Grade B","Yes","BO4753","Seasonality =No, Village =SLRCs Clinic, Section =Rogbaneh","#water_tech, #status_id, #notes"]
["Bombali","Bombali Shebora","Rogbaneh","Solomon Vandy Street",670,1,"Side of the Road",3,"Yes","Non","8.87706","-12.03490",false,false,"IM2","India Mark II","Private","HDW","Hand Dug Well","Grade C","No","BO1202","Seasonality =Yes, Village =Solomon Vandy Street, Section =Rogbaneh","#water_tech, #status_id, #notes"]
["Bombali","Bombali Shebora","Rogbaneh","St. Francis Pri. Sch.",450,1,"School Compound",2,"Yes","Non","8.88293","-12.05273",false,false,"IM2","India Mark II","School","HDW","Hand Dug Well","Grade B","Yes","BO1271","Seasonality =Yes, Village =St. Francis Pri. Sch., Section =Rogbaneh","#water_tech, #status_id, #notes"]
["Bombali","Bombali Shebora","Rogbaneh","St. Joseph Sec. Sch.",1270,1,"TO BE CHECKED",null,"No","Non",null,null,false,false,"PB2","PB Mark II","School","HDW","Hand Dug Well","Grade A","Yes","BO1194","Seasonality =No, Village =St. Joseph Sec. Sch., Section =Rogbaneh","#water_tech, #status_id, #notes"]
["Bombali","Bombali Shebora","Rogbaneh","St. Joseph Sec. Sch.",1270,1,"School Compound",0,"No","Non","8.88244","-12.03797",false,false,"IM2","India Mark II","School","HDW","Hand Dug Well","Grade A","Yes","BO1195","Seasonality =No, Village =St. Joseph Sec. Sch., Section =Rogbaneh","#water_tech, #status_id, #notes"]
["Bombali","Bombali Shebora","Rogbaneh","Stadium Bye Pass",250,1,"Back of the Stadium",1,"Yes","Non","8.89471","-12.04524",false,false,"IM2","India Mark II","Community","HDW","Hand Dug Well","Grade A","Yes","BO1452","Seasonality =Yes, Village =Stadium Bye Pass, Section =Rogbaneh","#water_tech, #status_id, #notes"]
["Bombali","Bombali Shebora","Rogbaneh","Teko Road",3500,1,"Teko road mosque",3,"Yes","Oui","8.88319","-12.04281",false,false,"IM2","India Mark II","Community","HDW","Hand Dug Well","Grade A","Yes","BO4261","Seasonality =Yes, Village =Teko Road, Section =Rogbaneh","#water_tech, #status_id, #notes"]
["Bombali","Bombali Shebora","Rogbaneh","Teko Road",3500,2,"Ahmadiyya mosque station road",2,"Yes","Oui","8.88263","-12.04458",false,false,"IM2","India Mark II","Community","HDW","Hand Dug Well","Grade A","Yes","BO4262","Seasonality =Yes, Village =Teko Road, Section =Rogbaneh","#water_tech, #status_id, #notes"]
["Bombali","Bombali Shebora","Rogbaneh","U.M.C Sec Sch.",1100,13,"School compound",2,"Yes","Non","8.90216","-12.04151",false,false,"IM2","India Mark II","School","HDW","Hand Dug Well","Grade B","Yes","BO4706","Seasonality =Yes, Village =U.M.C Sec Sch., Section =Rogbaneh","#water_tech, #status_id, #notes"]
["Bombali","Bombali Shebora","Rogbaneh","U.M.C Sec Sch.",1100,14,"School Compound",2,"Yes","Non","8.901282","-12.042051",false,false,"IM2","India Mark II","School","HDW","Hand Dug Well","Grade A","Yes","BO2143","Seasonality =Yes, Village =U.M.C Sec Sch., Section =Rogbaneh","#water_tech, #status_id, #notes"]
["Bombali","Bombali Shebora","Rogbaneh","Umaru Street Renka",340,1,"By the School Compound",1,"Yes","Non",null,null,false,false,"IM2","India Mark II","School","HDW","Hand Dug Well","Grade A","Yes","BO2373","Seasonality =Yes, Village =Umaru Street Renka, Section =Rogbaneh","#water_tech, #status_id, #notes"]
["Bombali","Bombali Shebora","Rogbaneh","Up Andrew Street",null,1,"Side of the Road",null,"No","Non",null,null,false,false,"IM2","India Mark II","Private","HDW","Hand Dug Well","Grade B","Yes","BO1201","Seasonality =No, Village =Up Andrew Street, Section =Rogbaneh","#water_tech, #status_id, #notes"]
["Bombali","Bombali Shebora","Rogbaneh","Up Wusu Street",290,2,"Side of the Road",0,"No","Non","8.88571","-12.03637",false,false,"IM2","India Mark II","Private","HDW","Hand Dug Well","Grade B","Yes","BO1184","Seasonality =No, Village =Up Wusu Street, Section =Rogbaneh","#water_tech, #status_id, #notes"]
["Bombali","Bombali Shebora","Rogbaneh","Upper John Street",790,1,"Upper John street",0,"No","Oui","8.88283","-12.04553",false,false,"IM2","India Mark II","Community","HDW","Hand Dug Well","Grade B","Yes","BO4263","Seasonality =No, Village =Upper John Street, Section =Rogbaneh","#water_tech, #status_id, #notes"]
["Bombali","Bombali Shebora","Rogbaneh","Upper John Street",790,2,"Lower Masim Street",0,"No","Oui","8.88612","-12.04762",false,false,"IM2","India Mark II","Community","HDW","Hand Dug Well","Grade B","Yes","BO1176","Seasonality =No, Village =Upper John Street, Section =Rogbaneh","#water_tech, #status_id, #notes"]
["Bombali","Bombali Shebora","Rogbaneh","Wash Car Area",1900,1,"Thaimu Bangura Street",1,"Yes","Oui","8.90097","-12.03835",false,false,"IM2","India Mark II","Community","HDW","Hand Dug Well","Grade C","No","BO4264","Seasonality =Yes, Village =Wash Car Area, Section =Rogbaneh","#water_tech, #status_id, #notes"]
["Bombali","Bombali Shebora","Rogbaneh","Water Works Area",4200,1,"Frontier road",0,"No","Oui","8.89135","-12.04946",false,false,"IM2","India Mark II","Community","HDW","Hand Dug Well","Grade B","Yes","BO4265","Seasonality =No, Village =Water Works Area, Section =Rogbaneh","#water_tech, #status_id, #notes"]
["Bombali","Bombali Shebora","Rogbaneh","Water Works Area",4200,2,"SLMB Pri. Sch.",0,"No","Oui","8.89131","-12.05124",false,false,"Kardia","Kardia","School","HDW","Hand Dug Well","Grade B","Yes","BO4266","Seasonality =No, Village =Water Works Area, Section =Rogbaneh","#water_tech, #status_id, #notes"]
["Bombali","Bombali Shebora","Rogbaneh","Water Works Area",4200,5,"Koya Street Mosque",1,"Yes","Oui","8.89461","-12.04961",false,false,"IM2","India Mark II","Community","HDW","Hand Dug Well","Grade A","Yes","BO4269","Seasonality =Yes, Village =Water Works Area, Section =Rogbaneh","#water_tech, #status_id, #notes"]
["Bombali","Bombali Shebora","Rogbaneh","Water Works Area",4200,6,"Mess road",0,"No","Oui","8.89127","-12.0459",false,false,"IM2","India Mark II","Community","HDW","Hand Dug Well","Grade B","Yes","BO4270",{"$f":"_xlfn.CONCAT(\"Seasonality =\",I578,\", \",\"Village =\", D578,\", \",\"Section =\", C578)","v":"Seasonality =No, Village =Water Works Area, Section =Rogbaneh"},"#water_tech, #status_id, #notes"]
["Bombali","Bombali Shebora","Rogbaneh","Water Works Area",4200,7,"Mess road",0,{"$f":"IF(H579>0,\"Yes\",\"No\")","v":"No"},"Oui","8.89152","-12.04624",false,false,"IM2","India Mark II","Community","HDW","Hand Dug Well","Grade C",{"$f":"IF(OR(T579=\"Grade A\",T579=\"Grade B\"),\"Yes\",\"No\")","v":"No"},"BO4271","Seasonality =No, Village =Water Works Area, Section =Rogbaneh","#water_tech, #status_id, #notes"]
["Bombali","Bombali Shebora","Rogbaneh","Water Works Area",4200,8,"Soldier Street Mosque",2,"Yes","Oui","8.8901","-12.04419",false,false,"IM2","India Mark II","Community","HDW","Hand Dug Well","Grade B","Yes","BO4272","Seasonality =Yes, Village =Water Works Area, Section =Rogbaneh","#water_tech, #status_id, #notes"]
["Bombali","Bombali Shebora","Rogbaneh","Water Works Area",4200,15,"Yeli sanda Road",2,"Yes","Oui","8.90382","-12.04459",false,false,"IM2","India Mark II","Community","HDW","Hand Dug Well","Grade A","Yes","BO4279","Seasonality =Yes, Village =Water Works Area, Section =Rogbaneh","#water_tech, #status_id, #notes"]
["Bombali","Bombali Shebora","Rogbaneh","Wellington Street",360,1,"Side of the Road",0,"No","Non","8.88770","-12.03758",false,false,"IM2","India Mark II","Private","HDW","Hand Dug Well","Grade B","Yes","BO1187","Seasonality =No, Village =Wellington Street, Section =Rogbaneh","#water_tech, #status_id, #notes"]
["Bombali","Bombali Shebora","Rogbaneh","Yiks Road",520,1,"Yiks road",0,"No","Oui","8.88405","-12.05018",false,false,"IM2","India Mark II","Community","HDW","Hand Dug Well","Grade B","Yes","BO4280","Seasonality =No, Village =Yiks Road, Section =Rogbaneh","#water_tech, #status_id, #notes"]
["Bombali","Gbanti","Gborbana","Amputee camp",345,1,"Fatima Amputee Pri. Sch.",0,"No","Oui","8.918583","-12.03916",false,false,"Just pedestal - incomplete","Just pedestal - incomplete","School","HDW","Hand Dug Well","Grade C","No","BO1290","Seasonality =No, Village =Amputee camp, Section =Gborbana","#water_tech, #status_id, #notes"]
["Bombali","Gbanti","Gborbana","Amputee camp",345,2,"Simah's Duumbuya House",0,"No","Non","8.9181","-12.03878",false,false,"IM2","India Mark II","Private","HDW","Hand Dug Well","Grade A","Yes","BO4296","Seasonality =No, Village =Amputee camp, Section =Gborbana","#water_tech, #status_id, #notes"]
["Bombali","Gbanti","Gborbana","Amputee camp",345,3,"Town Chief House",3,"Yes","Oui","8.91807","-12.03972",false,false,"IM2","India Mark II","Community","BH","Borehole","Grade A","Yes","BO649","Seasonality =Yes, Village =Amputee camp, Section =Gborbana","#water_tech, #status_id, #notes"]
["Bombali","Gbanti","Gborbana","Gbassia",347,1,"Entrance of the village",3,"Yes","Oui","8.92980","-12.00710",false,false,"IM2","India Mark II","Community","HDW","Hand Dug Well","Grade C","No","BO646","Seasonality =Yes, Village =Gbassia, Section =Gborbana","#water_tech, #status_id, #notes"]
["Bombali","Gbanti","Gborbana","Gbassia",347,2,"Opposite Youth Leader House",6,"Yes","Oui","8.92835","-12.00775",true,false,"IM2","India Mark II","Community","HDW","Hand Dug Well","Grade C","No","BO647","Seasonality =Yes, Village =Gbassia, Section =Gborbana","#water_tech, #status_id, #notes"]
["Bombali","Gbanti","Gborbana","Gborbana",210,1,"Close to the dry floor",4,"Yes","Oui","8.979616","-12.0652",false,false,"Kardia","Kardia","Community","HDW","Hand Dug Well","Grade A","Yes","BO638","Seasonality =Yes, Village =Gborbana, Section =Gborbana","#water_tech, #status_id, #notes"]
["Bombali","Gbanti","Gborbana","Mabap",150,3,"Amputee Camp",null,"No","Non","8.91807","-12.03972",false,false,"IM2","India Mark II","Community","HDW","Hand Dug Well","Grade A","Yes","BO2141","Seasonality =No, Village =Mabap, Section =Gborbana","#water_tech, #status_id, #notes"]
["Bombali","Gbanti","Gborbana","Maforay",150,1,"Close to the dry floor",4,"Yes","Oui","8.925833","-12.02643",false,false,"Kardia","Kardia","Community","HDW","Hand Dug Well","Grade A","Yes","BO642","Seasonality =Yes, Village =Maforay, Section =Gborbana","#water_tech, #status_id, #notes"]
["Bombali","Gbanti","Gborbana","Magbakaneh",250,1,"Entrance of the village",0,"No","Oui","8.962266","-12.07083",false,false,"IM2","India Mark II","Community","BH","Borehole","Grade A","Yes","BO1289","Seasonality =No, Village =Magbakaneh, Section =Gborbana","#water_tech, #status_id, #notes"]
["Bombali","Gbanti","Gborbana","Magbakaneh",250,2,"Centre of the village",0,"No","Oui","8.961883","-12.07071",false,false,"Just pedestal - incomplete","Just pedestal - incomplete","Community","HDW","Hand Dug Well","Grade C","No","BO637","Seasonality =No, Village =Magbakaneh, Section =Gborbana","#water_tech, #status_id, #notes"]
["Bombali","Gbanti","Gborbana","Makolor",185,1,"Centre of the village",0,"No","Oui","8.969466","-12.06248",false,false,"IM2","India Mark II","Community","HDW","Hand Dug Well","Grade C","No","BO4297","Seasonality =No, Village =Makolor, Section =Gborbana","#water_tech, #status_id, #notes"]
["Bombali","Gbanti","Gborbana","Rochain",875,1,"Young Muslim Junction",3,"Yes","Oui","8.9094","-12.04501",false,false,"IM2","India Mark II","Community","HDW","Hand Dug Well","Grade C","No","BO4298","Seasonality =Yes, Village =Rochain, Section =Gborbana","#water_tech, #status_id, #notes"]
["Bombali","Gbanti","Gborbana","Sawulia",720,1,"Saint Mary Pri. Sch.",4,"Yes","Oui","8.936016","-11.99713",false,false,"PB3","PB Mark III","School","HDW","Hand Dug Well","Grade A","Yes","BO643","Seasonality =Yes, Village =Sawulia, Section =Gborbana","#water_tech, #status_id, #notes"]
["Bombali","Gbanti","Gborbana","Sawulia",720,2,"Highway to Makeni",4,"Yes","Oui","8.935116","-11.99741",false,false,"IM2","India Mark II","Community","HDW","Hand Dug Well","Grade A","Yes","BO644","Seasonality =Yes, Village =Sawulia, Section =Gborbana","#water_tech, #status_id, #notes"]
["Bombali","Gbanti","Gborbana","Sawulia",720,3,"Highway to Makeni",7,"Yes","Oui","8.93392","-12.00011",false,false,"IM2","India Mark II","Community","HDW","Hand Dug Well","Grade B","Yes","BO645","Seasonality =Yes, Village =Sawulia, Section =Gborbana","#water_tech, #status_id, #notes"]
["Bombali","Gbanti","Gborbana","Sawulia",720,4,"Side of the village",7,"Yes","Oui","8.93384","-12.000070",true,false,"Just pedestal - incomplete","Just pedestal - incomplete","Community","HDW","Hand Dug Well","Grade C","No","BO4299","Seasonality =Yes, Village =Sawulia, Section =Gborbana","#water_tech, #status_id, #notes"]
["Bombali","Gbanti","Gborbana","Sawulia",720,5,"Entrance of the village",2,"Yes","Oui","8.9329","-12.00243",false,false,"IM2","India Mark II","Community","HDW","Hand Dug Well","Grade C","No","BO4300","Seasonality =Yes, Village =Sawulia, Section =Gborbana","#water_tech, #status_id, #notes"]
["Bombali","Gbanti","Gborbana","Three mile",650,1,"Close to the dry floor",6,"Yes","Oui","8.924483","-12.03861",false,false,"Kardia","Kardia","Community","HDW","Hand Dug Well","Grade A","Yes","BO648","Seasonality =Yes, Village =Three mile, Section =Gborbana","#water_tech, #status_id, #notes"]
["Bombali","Gbanti","Gborbana","Three mile",650,2,"At the Mosque",3,"Yes","Oui","8.924033","-12.03806",false,false,"IM2","India Mark II","Community","HDW","Hand Dug Well","Grade B","Yes","BO4301","Seasonality =Yes, Village =Three mile, Section =Gborbana","#water_tech, #status_id, #notes"]
["Bombali","Gbanti","Gborbana","Wureh",350,1,"On the road to Sema",4,"Yes","Oui","8.943666","-12.06648",false,false,"PB2","PB Mark II","Community","HDW","Hand Dug Well","Grade C","No","BO636","Seasonality =Yes, Village =Wureh, Section =Gborbana","#water_tech, #status_id, #notes"]
["Bombali","Gbanti","Gborbana","Wureh",350,2,"cCose to the dry floor",0,"No","Oui","8.94345","-12.06483",false,false,"IM2","India Mark II","Community","BH","Borehole","Grade A","Yes","BO4302","Seasonality =No, Village =Wureh, Section =Gborbana","#water_tech, #status_id, #notes"]
["Bombali","Gbanti","Gborbana","Yelisanda",820,1,"Yelisanda B.D.E.C Community Pri. School",6,"Yes","Oui","8.93275","-12.04801",false,true,"Just pedestal - incomplete","Just pedestal - incomplete plus solar pump","School","HDW","Hand Dug Well","Grade D","No","BO4303","Seasonality =Yes, Village =Yelisanda, Section =Gborbana","#water_tech, #status_id, #notes"]
["Bombali","Gbanti","Gborbana","Yelisanda",820,2,"Yelisanda B.D.E.C Community Pri. School",7,"Yes","Oui","8.93285","-12.04818",false,false,"IM2","India Mark II","School","HDW","Hand Dug Well","Grade B","Yes","BO640","Seasonality =Yes, Village =Yelisanda, Section =Gborbana","#water_tech, #status_id, #notes"]
["Bombali","Gbanti","Gborbana","Yelisanda",820,3,"Yelisanda Community Jun. Sec. Sch",0,"No","Oui","8.933283","-12.04818",false,false,"Just pedestal - incomplete","Just pedestal - incomplete","School","HDW","Hand Dug Well","Grade D","No","BO4304","Seasonality =No, Village =Yelisanda, Section =Gborbana","#water_tech, #status_id, #notes"]
["Bombali","Gbanti","Gborbana","Yelisanda",820,4,"Close to former barry",4,"Yes","Oui","8.931566","-12.04736",false,false,"Pully","Pully","Community","HDW","Hand Dug Well","Grade D","No","BO4305","Seasonality =Yes, Village =Yelisanda, Section =Gborbana","#water_tech, #status_id, #notes"]
["Bombali","Gbanti","Gborbana","Yelisanda",820,5,"Opposite the mosque",4,"Yes","Oui","8.931066","-12.04653",false,false,"IM2","India Mark II","Community","HDW","Hand Dug Well","Grade C","No","BO4306","Seasonality =Yes, Village =Yelisanda, Section =Gborbana","#water_tech, #status_id, #notes"]
["Bombali","Gbanti","Gborbana","Yelisanda",820,6,"At the Mosque",4,"Yes","Oui","8.93125","-12.04638",false,false,"IM2","India Mark II","Community","HDW","Hand Dug Well","Grade C","No","BO4307","Seasonality =Yes, Village =Yelisanda, Section =Gborbana","#water_tech, #status_id, #notes"]
["Bombali","Gbanti","Gborbana","Yelisanda",820,7,"Close to the house of the Imam",4,"Yes","Oui","8.93045","-12.04521",false,false,"Just pedestal - incomplete","Just pedestal - incomplete","Community","BH","Borehole","Grade C","No","BO4308","Seasonality =Yes, Village =Yelisanda, Section =Gborbana","#water_tech, #status_id, #notes"]
["Bombali","Gbanti","Gborbana","Yelisanda",820,8,"Chief Imam House",4,"Yes","Oui","8.930483","-12.0452",false,false,"Just pedestal - incomplete","Just pedestal - incomplete","Community","BH","Borehole","Grade C","No","BO641","Seasonality =Yes, Village =Yelisanda, Section =Gborbana","#water_tech, #status_id, #notes"]
["Bombali","Gbanti","Gborbana","Yelisanda",820,9,"Entrance of the village",0,"No","Oui","8.928433","-12.0438",false,false,"IM2","India Mark II","Community","HDW","Hand Dug Well","Grade A","Yes","BO4309","Seasonality =No, Village =Yelisanda, Section =Gborbana","#water_tech, #status_id, #notes"]
["Bombali","Gbanti","Gborbana","Yelisanda",820,10,"At the far end of the village",0,"No","Oui","8.931866","-12.0444",false,false,"Pully","Pully","Community","HDW","Hand Dug Well","Grade D","No","BO4310","Seasonality =No, Village =Yelisanda, Section =Gborbana","#water_tech, #status_id, #notes"]
["Bombali","Gbanti","Gborbana","Yoni",750,1,"Opposite the Mosque",0,"No","Oui","8.9349","-12.05255",false,false,"IM2","India Mark II","Community","BH","Borehole","Grade B","Yes","BO639","Seasonality =No, Village =Yoni, Section =Gborbana","#water_tech, #status_id, #notes"]
["Bombali","Gbanti","Gborbana","Yoni",750,2,"Close to the Mosque",6,"Yes","Oui","8.93505","-12.05245",false,false,"Just pedestal - incomplete","Just pedestal - incomplete","Community","BH","Borehole","Grade C","No","BO1454","Seasonality =Yes, Village =Yoni, Section =Gborbana","#water_tech, #status_id, #notes"]
["Bombali","Gbanti","Gborbana","Yoni",750,3,"House of the Chief Imam",3,"Yes","Non","8.935383","-12.05311",false,false,"IM2","India Mark II","Private","HDW","Hand Dug Well","Grade B","Yes","BO4311","Seasonality =Yes, Village =Yoni, Section =Gborbana","#water_tech, #status_id, #notes"]
["Bombali","Gbanti","Gborbana","Yoni",750,4,"Community Health Post",2,"Yes","Oui","8.9365","-12.05475",false,false,"IM2","India Mark II","Health Facility","HDW","Hand Dug Well","Grade B","Yes","BO4312","Seasonality =Yes, Village =Yoni, Section =Gborbana","#water_tech, #status_id, #notes"]
["Bombali","Gbanti","Mabanta","Futah",315,1,"centre of the village",0,"No","Non","8.9359","-12.07075",false,false,"IM2","India Mark II","Community","BH","Borehole","Grade B","Yes","BO1459","Seasonality =No, Village =Futah, Section =Mabanta","#water_tech, #status_id, #notes"]
["Bombali","Gbanti","Mabanta","Konsho",400,1,"Konsho Science School",2,"Yes","Non","8.948833","-12.07626",true,false,"Just pedestal - incomplete","Just pedestal - incomplete","School","HDW","Hand Dug Well","Grade C","No","BO4313","Seasonality =Yes, Village =Konsho, Section =Mabanta","#water_tech, #status_id, #notes"]
["Bombali","Gbanti","Mabanta","Konsho",400,2,"Konsho Science School",0,"No","Non","8.948966","-12.07648",false,false,"IM2","India Mark II","School","HDW","Hand Dug Well","Grade C","No","BO713","Seasonality =No, Village =Konsho, Section =Mabanta","#water_tech, #status_id, #notes"]
["Bombali","Gbanti","Mabanta","Konsho",400,3,"On the road to the Health Centre",0,"No","Oui","8.953","-12.0782",false,false,"IM2","India Mark II","Community","HDW","Hand Dug Well","Grade C","No","BO4314","Seasonality =No, Village =Konsho, Section =Mabanta","#water_tech, #status_id, #notes"]
["Bombali","Gbanti","Mabanta","Konsho",400,4,"ECDC school",0,"No","Non","8.949866","-12.07641",false,true,"IM2","India Mark II plus solar pump","School","HDW","Hand Dug Well","Grade C","No","BO715","Seasonality =No, Village =Konsho, Section =Mabanta","#water_tech, #status_id, #notes"]
["Bombali","Gbanti","Mabanta","Konsho",400,5,"on the road leading to the school",0,"No","Oui","8.949933","-12.07686",false,false,"IM2","India Mark II","Community","BH","Borehole","Grade A","Yes","BO712","Seasonality =No, Village =Konsho, Section =Mabanta","#water_tech, #status_id, #notes"]
["Bombali","Gbanti","Mabanta","Konsho",400,6,"Road side to the CHP",0,"No","Oui","8.95245","-12.07783",false,false,"Pully","Pully","Community","HDW","Hand Dug Well","Grade D","No","BO4315","Seasonality =No, Village =Konsho, Section =Mabanta","#water_tech, #status_id, #notes"]
["Bombali","Gbanti","Mabanta","Konsho",400,7,"At the community health post",2,"Yes","Non","8.9539","-12.07863",false,true,"IM2","India Mark II plus solar pump","Health Facility","HDW","Hand Dug Well","Grade A","Yes","BO714","Seasonality =Yes, Village =Konsho, Section =Mabanta","#water_tech, #status_id, #notes"]
["Bombali","Gbanti","Mabanta","mabanta",2000,1,"Bai memorial school road",0,"No","Non","8.8997","-12.05971",false,false,"PB2","PB Mark II","Community","HDW","Hand Dug Well","Grade A","Yes","BO4316","Seasonality =No, Village =mabanta, Section =Mabanta","#water_tech, #status_id, #notes"]
["Bombali","Gbanti","Mabanta","mabanta",2000,2,"Koroma Compound",3,"Yes","Non","8.8988","-12.05901",false,false,"IM2","India Mark II","Community","HDW","Hand Dug Well","Grade C","No","BO726","Seasonality =Yes, Village =mabanta, Section =Mabanta","#water_tech, #status_id, #notes"]
["Bombali","Gbanti","Mabanta","mabanta",2000,3,"Kamara compound",3,"Yes","Non","8.89805","-12.05835",false,false,"IM2","India Mark II","Community","HDW","Hand Dug Well","Grade C","No","BO729","Seasonality =Yes, Village =mabanta, Section =Mabanta","#water_tech, #status_id, #notes"]
["Bombali","Gbanti","Mabanta","mabanta",2000,4,"Radio mankneh",0,"No","Non","8.896216","-12.05846",false,false,"IM2","India Mark II","Community","BH","Borehole","Grade C","No","BO4317","Seasonality =No, Village =mabanta, Section =Mabanta","#water_tech, #status_id, #notes"]
["Bombali","Gbanti","Mabanta","mabanta",2000,5,"Al-Alkaan School",0,"No","Non","8.898916","-12.05708",true,false,"Pully","Pully","School","Pulley","Pulley","Grade D","No","BO730","Seasonality =No, Village =mabanta, Section =Mabanta","#water_tech, #status_id, #notes"]
["Bombali","Gbanti","Mabanta","mabanta",2000,6,"New London Road",0,"No","Non","8.899816","-12.05765",false,false,"PB2","PB Mark II","Community","HDW","Hand Dug Well","Grade C","No","BO4318","Seasonality =No, Village =mabanta, Section =Mabanta","#water_tech, #status_id, #notes"]
["Bombali","Gbanti","Mabanta","mabanta",2000,7,"A S Koroma street",0,"No","Non","8.898066","-12.05445",false,false,"IM2","India Mark II","Community","BH","Borehole","Grade A","Yes","BO4319","Seasonality =No, Village =mabanta, Section =Mabanta","#water_tech, #status_id, #notes"]
["Bombali","Gbanti","Mabanta","mabanta",2000,8,"NgobehDavid house",0,"No","Non","8.897233","-12.05475",false,false,"IM2","India Mark II","Private","HDW","Hand Dug Well","Grade A","Yes","BO727","Seasonality =No, Village =mabanta, Section =Mabanta","#water_tech, #status_id, #notes"]
["Bombali","Gbanti","Mabanta","mabanta",2000,9,"Masjid Rahim Mosque",4,"Yes","Non","8.898933","-12.05445",false,false,"IM2","India Mark II","Community","HDW","Hand Dug Well","Grade B","Yes","BO728","Seasonality =Yes, Village =mabanta, Section =Mabanta","#water_tech, #status_id, #notes"]
["Bombali","Gbanti","Mabanta","Maburahun",null,1,"Village Entrance",0,"No","Non","8.95165","-12.09873",false,false,"PB2","PB Mark II","Community","HDW","Hand Dug Well","Grade A","Yes","BO2714","Seasonality =No, Village =Maburahun, Section =Mabanta","#water_tech, #status_id, #notes"]
["Bombali","Gbanti","Mabanta","mafonikay",700,2,"At the Community Centre",0,"No","Non","8.9257","-12.05593",false,false,"IM2","India Mark II","Community","HDW","Hand Dug Well","Grade C","No","BO719","Seasonality =No, Village =mafonikay, Section =Mabanta","#water_tech, #status_id, #notes"]
["Bombali","Gbanti","Mabanta","mafonikay",700,3,"At the Nursery School",3,"Yes","Non","8.925866","-12.05613",true,false,"Just pedestal - incomplete","Just pedestal - incomplete","School","HDW","Hand Dug Well","Grade C","No","BO722","Seasonality =Yes, Village =mafonikay, Section =Mabanta","#water_tech, #status_id, #notes"]
["Bombali","Gbanti","Mabanta","mafonikay",700,4,"Opposite chief house",0,"No","Non","8.925133","-12.05681",false,false,"IM2","India Mark II","Community","HDW","Hand Dug Well","Grade A","Yes","BO721","Seasonality =No, Village =mafonikay, Section =Mabanta","#water_tech, #status_id, #notes"]
["Bombali","Gbanti","Mabanta","mafonikay",700,5,"Close to the Banana Pantation",3,"Yes","Non","8.924483","-12.0569",false,false,"Pully","Pully","Community","HDW","Hand Dug Well","Grade D","No","BO4320","Seasonality =Yes, Village =mafonikay, Section =Mabanta","#water_tech, #status_id, #notes"]
["Bombali","Gbanti","Mabanta","mafonikay",700,6,"At Alkanother Mosque",0,"No","Non","8.922566","-12.05685",false,false,"IM2","India Mark II","Community","HDW","Hand Dug Well","Grade C","No","BO4321","Seasonality =No, Village =mafonikay, Section =Mabanta","#water_tech, #status_id, #notes"]
["Bombali","Gbanti","Mabanta","mafonikay",700,7,"At Masimera Road",0,"No","Non","8.921483","-12.05686",false,false,"IM2","India Mark II","Community","BH","Borehole","Grade C","No","BO4322",{"$f":"_xlfn.CONCAT(\"Seasonality =\",I642,\", \",\"Village =\", D642,\", \",\"Section =\", C642)","v":"Seasonality =No, Village =mafonikay, Section =Mabanta"},"#water_tech, #status_id, #notes"]
["Bombali","Gbanti","Mabanta","makayeh",150,1,"close to the mosque",0,{"$f":"IF(H643>0,\"Yes\",\"No\")","v":"No"},"Oui","8.94135","-12.09076",false,false,"IM2","India Mark II","Community","HDW","Hand Dug Well","Grade A",{"$f":"IF(OR(T643=\"Grade A\",T643=\"Grade B\"),\"Yes\",\"No\")","v":"Yes"},"BO711","Seasonality =No, Village =makayeh, Section =Mabanta","#water_tech, #status_id, #notes"]
["Bombali","Gbanti","Mabanta","makayeh",150,2,"At the chief house",0,"No","Oui","8.940833","-12.09151",false,false,"IM2","India Mark II","Community","BH","Borehole","Grade A","Yes","BO710","Seasonality =No, Village =makayeh, Section =Mabanta","#water_tech, #status_id, #notes"]
["Bombali","Gbanti","Mabanta","makondeh",130,1,"Entrance of the village",3,"Yes","Non","8.9562","-12.09026",false,false,"IM2","India Mark II","Community","BH","Borehole","Grade A","Yes","BO1291","Seasonality =Yes, Village =makondeh, Section =Mabanta","#water_tech, #status_id, #notes"]
["Bombali","Gbanti","Mabanta","makondeh",130,2,"River Road",0,"No","Non","8.95665","-12.09151",false,false,"IM2","India Mark II","Community","HDW","Hand Dug Well","Grade C","No","BO717","Seasonality =No, Village =makondeh, Section =Mabanta","#water_tech, #status_id, #notes"]
["Bombali","Gbanti","Mabanta","makorie",120,1,"Entrance of the village",0,"No","Non","8.95015","-12.09131",false,false,"IM2","India Mark II","Community","BH","Borehole","Grade A","Yes","BO2803","Seasonality =No, Village =makorie, Section =Mabanta","#water_tech, #status_id, #notes"]
["Bombali","Gbanti","Mabanta","makorie",120,2,"Centre of the village",3,"Yes","Non","8.949933","-12.09128",false,false,"IM2","India Mark II","Community","HDW","Hand Dug Well","Grade C","No","BO718","Seasonality =Yes, Village =makorie, Section =Mabanta","#water_tech, #status_id, #notes"]
["Bombali","Gbanti","Mabanta","manegri",250,1,"Left side of the village",0,"No","Non","8.960716","-12.08546",false,false,"IM2","India Mark II","Community","BH","Borehole","Grade C","No","BO4323","Seasonality =No, Village =manegri, Section =Mabanta","#water_tech, #status_id, #notes"]
["Bombali","Gbanti","Mabanta","manegri",250,2,"Close to the Swamp",0,"No","Non","8.960083","-12.08486",false,false,"Wavid","Wavid","Community","HDW","Hand Dug Well","Grade C","No","BO4324","Seasonality =No, Village =manegri, Section =Mabanta","#water_tech, #status_id, #notes"]
["Bombali","Gbanti","Mabanta","manegri",250,3,"At the Nursery school",0,"No","Non","8.959083","-12.08533",false,false,"IM2","India Mark II","School","HDW","Hand Dug Well","Grade B","Yes","BO4325","Seasonality =No, Village =manegri, Section =Mabanta","#water_tech, #status_id, #notes"]
["Bombali","Gbanti","Mabanta","manegri",250,4,"Close to the Swamp",0,"No","Non","8.96007","-12.08482",false,false,"Just pedestal - incomplete","Just pedestal - incomplete","Community","HDW","Hand Dug Well","Grade C","No","BO4713","Seasonality =No, Village =manegri, Section =Mabanta","#water_tech, #status_id, #notes"]
["Bombali","Gbanti","Mabanta","Manekeray",null,1,null,null,"No","Non",null,null,true,false,"IM2","India Mark II","Community","HDW","Hand Dug Well","Grade X","No","BO716","Seasonality =No, Village =Manekeray, Section =Mabanta","#water_tech, #status_id, #notes"]
["Bombali","Gbanti","Mabanta","masimra",1000,1,"Road to train line",3,"Yes","Non","8.915666","-12.0577",false,false,"IM2","India Mark II","Community","HDW","Hand Dug Well","Grade C","No","BO723","Seasonality =Yes, Village =masimra, Section =Mabanta","#water_tech, #status_id, #notes"]
["Bombali","Gbanti","Mabanta","masimra",1000,2,"Close to pump 3",0,"No","Non","8.9138","-12.05788",false,false,"IM2","India Mark II","Community","HDW","Hand Dug Well","Grade C","No","BO4326","Seasonality =No, Village =masimra, Section =Mabanta","#water_tech, #status_id, #notes"]
["Bombali","Gbanti","Mabanta","masimra",1000,3,"Opposite Community centre",0,"No","Non","8.91355","-12.05793",false,false,"IM2","India Mark II","Community","BH","Borehole","Grade C","No","BO724","Seasonality =No, Village =masimra, Section =Mabanta","#water_tech, #status_id, #notes"]
["Bombali","Gbanti","Mabanta","masimra",1000,4,"At Baptist church",2,"Yes","Non","8.909716","-12.0585",false,false,"IM2","India Mark II","Community","HDW","Hand Dug Well","Grade C","No","BO725","Seasonality =Yes, Village =masimra, Section =Mabanta","#water_tech, #status_id, #notes"]
["Bombali","Gbanti","Mabanta","New London 2",1500,1,"Muslim jamaat New London",3,"Yes","Non","8.90175","-12.05685",false,false,"IM2","India Mark II","Community","HDW","Hand Dug Well","Grade A","Yes","BO4327","Seasonality =Yes, Village =New London 2, Section =Mabanta","#water_tech, #status_id, #notes"]
["Bombali","Gbanti","Mabanta","New London 3",1300,2,"WCSL school",0,"No","Non","8.903416","-12.05975",false,false,"IM2","India Mark II","School","BH","Borehole","Grade B","Yes","BO4328","Seasonality =No, Village =New London 3, Section =Mabanta","#water_tech, #status_id, #notes"]
["Bombali","Gbanti","Mabanta","New London 3",1300,3,"WCSL school",3,"Yes","Non","8.903","-12.05936",false,false,"IM2","India Mark II","School","HDW","Hand Dug Well","Grade C","No","BO4329","Seasonality =Yes, Village =New London 3, Section =Mabanta","#water_tech, #status_id, #notes"]
["Bombali","Gbanti","Mabanta","New London 3",1300,4,"After Mabanta",3,"Yes","Non","8.902616","-12.05898",false,false,"IM2","India Mark II","Private","HDW","Hand Dug Well","Grade C","No","BO4330","Seasonality =Yes, Village =New London 3, Section =Mabanta","#water_tech, #status_id, #notes"]
["Bombali","Gbanti","Mabanta","Simah Town",2000,1,"Close to Kamakwie Highway",0,"No","Non","8.95648","-12.08219",false,false,"IM2","India Mark II","Community","HDW","Hand Dug Well","Grade B","Yes","BO4714","Seasonality =No, Village =Simah Town, Section =Mabanta","#water_tech, #status_id, #notes"]
["Bombali","Gbanti","Masuba","ABB Line/Makeni",800,7,"# 1 ABB line",3,"Yes","Non","8.903333","-12.03196",false,false,"IM2","India Mark II","Private","HDW","Hand Dug Well","Grade B","Yes","BO4331","Seasonality =Yes, Village =ABB Line/Makeni, Section =Masuba","#water_tech, #status_id, #notes"]
["Bombali","Gbanti","Masuba","ABB Line/Makeni",800,8,"Masjid Kubarr",4,"Yes","Non","8.904433","-12.03071",false,false,"IM2","India Mark II","Community","HDW","Hand Dug Well","Grade C","No","BO4332","Seasonality =Yes, Village =ABB Line/Makeni, Section =Masuba","#water_tech, #status_id, #notes"]
["Bombali","Gbanti","Masuba","Alhaka School",1500,1,"Anzowew Street",0,"No","Non","8.90435","-12.03699",false,false,"IM2","India Mark II","School","HDW","Hand Dug Well","Grade C","No","BO700","Seasonality =No, Village =Alhaka School, Section =Masuba","#water_tech, #status_id, #notes"]
["Bombali","Gbanti","Masuba","Arabic College-Makeni",1000,5,"Arabic college mosque",0,"No","Non","8.889033","-12.03121",false,false,"IM2","India Mark II","Community","HDW","Hand Dug Well","Grade A","Yes","BO4333","Seasonality =No, Village =Arabic College-Makeni, Section =Masuba","#water_tech, #status_id, #notes"]
["Bombali","Gbanti","Masuba","Arabic College-Makeni",1000,6,"Arabic college ",0,"No","Non","8.8895","-12.03136",false,false,"IM2","India Mark II","School","HDW","Hand Dug Well","Grade B","Yes","BO697","Seasonality =No, Village =Arabic College-Makeni, Section =Masuba","#water_tech, #status_id, #notes"]
["Bombali","Gbanti","Masuba","Back of Alharkaan",1500,22,"Auzomed street",0,"No","Non","8.906383","-12.03676",false,false,"IM2","India Mark II","Community","BH","Borehole","Grade A","Yes","BO4334","Seasonality =No, Village =Back of Alharkaan, Section =Masuba","#water_tech, #status_id, #notes"]
["Bombali","Gbanti","Masuba","Back of Alharkaan",1500,23,"Back of al-aknan comm.mosque",3,"Yes","Non","8.907016","-12.0365",false,false,"IM2","India Mark II","Community","HDW","Hand Dug Well","Grade A","Yes","BO4335","Seasonality =Yes, Village =Back of Alharkaan, Section =Masuba","#water_tech, #status_id, #notes"]
["Bombali","Gbanti","Masuba","Back of Alharkaan",1500,24,"Abu D Bangura's compound",0,"No","Non","8.907866","-12.03635",false,false,"IM2","India Mark II","Private","HDW","Hand Dug Well","Grade A","Yes","BO4336","Seasonality =No, Village =Back of Alharkaan, Section =Masuba","#water_tech, #status_id, #notes"]
["Bombali","Gbanti","Masuba","Lico Town-Makeni",1100,11,"Back of komeh's house",6,"Yes","Non","8.897233","-12.02558",false,false,"IM2","India Mark II","Community","HDW","Hand Dug Well","Grade B","Yes","BO4337","Seasonality =Yes, Village =Lico Town-Makeni, Section =Masuba","#water_tech, #status_id, #notes"]
["Bombali","Gbanti","Masuba","Mankneh-Makeni",2500,1,"Inter Aide Inside the Compound",0,"No","Non","8.91280","-12.03082",false,false,"IM2","India Mark II","Private","HDW","Hand Dug Well","Grade A","Yes","BO2486","Seasonality =No, Village =Mankneh-Makeni, Section =Masuba","#water_tech, #status_id, #notes"]
["Bombali","Gbanti","Masuba","Mankneh-Makeni",2500,25,"makeneh mosque",2,"Yes","Non","8.9077","-12.03215",false,false,"IM2","India Mark II","Community","HDW","Hand Dug Well","Grade A","Yes","BO701","Seasonality =Yes, Village =Mankneh-Makeni, Section =Masuba","#water_tech, #status_id, #notes"]
["Bombali","Gbanti","Masuba","Mankneh-Makeni",2500,26,"By Alie sesay drive",3,"Yes","Non","8.907016","-12.03408",false,false,"IM2","India Mark II","Private","HDW","Hand Dug Well","Grade A","Yes","BO4338","Seasonality =Yes, Village =Mankneh-Makeni, Section =Masuba","#water_tech, #status_id, #notes"]
["Bombali","Gbanti","Masuba","Mankneh-Makeni",2500,27,"madrasatu dawahmakeneh",0,"No","Non","8.907483","-12.03406",false,false,"IM2","India Mark II","School","HDW","Hand Dug Well","Grade A","Yes","BO4339","Seasonality =No, Village =Mankneh-Makeni, Section =Masuba","#water_tech, #status_id, #notes"]
["Bombali","Gbanti","Masuba","Mankneh-Makeni",2500,28,"Jalloh drive",0,"No","Non","8.910366","-12.03418",false,false,"IM2","India Mark II","Community","HDW","Hand Dug Well","Grade A","Yes","BO4340","Seasonality =No, Village =Mankneh-Makeni, Section =Masuba","#water_tech, #status_id, #notes"]
["Bombali","Gbanti","Masuba","Maporta",550,15,"Aruna street mosque",6,"Yes","Non","8.8967","-12.03628",false,false,"IM2","India Mark II","Community","HDW","Hand Dug Well","Grade A","Yes","BO2138","Seasonality =Yes, Village =Maporta, Section =Masuba","#water_tech, #status_id, #notes"]
["Bombali","Gbanti","Masuba","Masuba",10000,2,"WCSL",1,"Yes","Non","8.89193","-12.03456",false,false,"Kardia","Kardia","School","HDW","Hand Dug Well","Grade C","No","BO699","Seasonality =Yes, Village =Masuba, Section =Masuba","#water_tech, #status_id, #notes"]
["Bombali","Gbanti","Masuba","Masuba 1-Makeni",2000,2,"Railway line",0,"No","Oui","8.89505","-12.03153",false,false,"IM2","India Mark II","Community","HDW","Hand Dug Well","Grade A","Yes","BO2706","Seasonality =No, Village =Masuba 1-Makeni, Section =Masuba","#water_tech, #status_id, #notes"]
["Bombali","Gbanti","Masuba","Masuba 1-Makeni",2000,3,"Masuba road-Masuba",2,"Yes","Non","8.896033","-12.03211",false,false,"IM2","India Mark II","Community","HDW","Hand Dug Well","Grade A","Yes","BO2051","Seasonality =Yes, Village =Masuba 1-Makeni, Section =Masuba","#water_tech, #status_id, #notes"]
["Bombali","Gbanti","Masuba","Masuba 2-Makeni",1800,1,"Close to the Church",0,"No","Oui","8.89415","-12.03238",false,false,"IM2","India Mark II","Community","BH","Borehole","Grade A","Yes","BO1410","Seasonality =No, Village =Masuba 2-Makeni, Section =Masuba","#water_tech, #status_id, #notes"]
["Bombali","Gbanti","Masuba","Masuba Clinic (Midfery)",550,1,"Inside the PHU Compound",0,"No","Non","8.89155","-12.03663",false,false,"IM2","India Mark II","Health Facility","HDW","Hand Dug Well","Grade A","Yes","BO1453","Seasonality =No, Village =Masuba Clinic (Midfery), Section =Masuba","#water_tech, #status_id, #notes"]
["Bombali","Gbanti","Masuba","Masuba Clinic (Midfery)",550,2,"Inside the PHU Compound",0,"No","Non","8.89088","-12.03593",false,false,"IM2","India Mark II","Health Facility","HDW","Hand Dug Well","Grade A","Yes","BO1455","Seasonality =No, Village =Masuba Clinic (Midfery), Section =Masuba","#water_tech, #status_id, #notes"]
["Bombali","Gbanti","Masuba","Masuba Clinic (Midfery)",550,3,"Inside the PHU Compound",3,"Yes","Non","8.89135","-12.03623",false,true,"Submersive","Submersive plus solar pump","Health Facility","HDW","Hand Dug Well","Grade D","No","BO4657","Seasonality =Yes, Village =Masuba Clinic (Midfery), Section =Masuba","#water_tech, #status_id, #notes"]
["Bombali","Gbanti","Masuba","Pane Square-Makeni",800,4,"Back of Pain Square",4,"Yes","Non","8.89285","-12.03371",false,false,"PB2","PB Mark II","Community","HDW","Hand Dug Well","Grade B","Yes","BO4341","Seasonality =Yes, Village =Pane Square-Makeni, Section =Masuba","#water_tech, #status_id, #notes"]
["Bombali","Gbanti","Masuba","Rokel-Makeni",900,1,"Close to the Mosque",0,"No","Non","8.907633","-12.04003",false,false,"IM2","India Mark II","Community","BH","Borehole","Grade A","Yes","BO2668","Seasonality =No, Village =Rokel-Makeni, Section =Masuba","#water_tech, #status_id, #notes"]
["Bombali","Gbanti","Masuba","Rokel-Makeni",900,2,"Close to the Mosque",3,"Yes","Non","8.907616","-12.03998",false,false,"IM2","India Mark II","Community","BH","Borehole","Grade A","Yes","BO4342","Seasonality =Yes, Village =Rokel-Makeni, Section =Masuba","#water_tech, #status_id, #notes"]
["Bombali","Gbanti","Masuba","Sengbeh Road-Makeni",1300,9,"Kankalay school",5,"Yes","Non","8.897266","-12.02878",false,false,"IM2","India Mark II","School","HDW","Hand Dug Well","Grade B","Yes","BO4343","Seasonality =Yes, Village =Sengbeh Road-Makeni, Section =Masuba","#water_tech, #status_id, #notes"]
["Bombali","Gbanti","Masuba","Sengbeh Road-Makeni",1300,10,"Ford St. Saidu Koroma house",0,"No","Non","8.89755","-12.02801",false,false,"Just pedestal - incomplete","Just pedestal - incomplete","Private","HDW","Hand Dug Well","Grade C","No","BO4344","Seasonality =No, Village =Sengbeh Road-Makeni, Section =Masuba","#water_tech, #status_id, #notes"]
["Bombali","Gbanti","Masuba","Talent Town-Makeni",3000,16,"Arunawa street",0,"No","Non","8.899","-12.03143",false,false,"IM2","India Mark II","Community","BH","Borehole","Grade A","Yes","BO702","Seasonality =No, Village =Talent Town-Makeni, Section =Masuba","#water_tech, #status_id, #notes"]
["Bombali","Gbanti","Masuba","Talent Town-Makeni",3000,17,"Arunawa street",3,"Yes","Non","8.898466","-12.03078",false,false,"IM2","India Mark II","Private","HDW","Hand Dug Well","Grade A","Yes","BO2383","Seasonality =Yes, Village =Talent Town-Makeni, Section =Masuba","#water_tech, #status_id, #notes"]
["Bombali","Gbanti","Masuba","Talent Town-Makeni",3000,18,"Masjid Khalid Mosque",0,"No","Non","8.90123","-12.03071",false,false,"IM2","India Mark II","Community","HDW","Hand Dug Well","Grade B","Yes","BO4345","Seasonality =No, Village =Talent Town-Makeni, Section =Masuba","#water_tech, #status_id, #notes"]
["Bombali","Gbanti","Masuba","Talent Town-Makeni",3000,19,"saidu conteh street",3,"Yes","Non","8.901766","-12.03078",false,false,"IM2","India Mark II","Community","HDW","Hand Dug Well","Grade A","Yes","BO2543","Seasonality =Yes, Village =Talent Town-Makeni, Section =Masuba","#water_tech, #status_id, #notes"]
["Bombali","Gbanti","Masuba","Timbo-Makeni",2000,12,"masjid Aqsarr mosque",6,"Yes","Non","8.90225","-12.03508",false,false,"IM2","India Mark II","Community","HDW","Hand Dug Well","Grade A","Yes","BO4346","Seasonality =Yes, Village =Timbo-Makeni, Section =Masuba","#water_tech, #status_id, #notes"]
["Bombali","Gbanti","Masuba","Timbo-Makeni",2000,13,"Timbo",2,"Yes","Non","8.902533","-12.03448",false,false,"IM2","India Mark II","Community","HDW","Hand Dug Well","Grade A","Yes","BO4347","Seasonality =Yes, Village =Timbo-Makeni, Section =Masuba","#water_tech, #status_id, #notes"]
["Bombali","Gbanti","Masuba","Timbo-Makeni",2000,14,"kabata highway right",0,"No","Non","8.9034","-12.03446",false,false,"IM2","India Mark II","Community","HDW","Hand Dug Well","Grade A","Yes","BO696","Seasonality =No, Village =Timbo-Makeni, Section =Masuba","#water_tech, #status_id, #notes"]
["Bombali","Gbanti","Masuba","Tonko Clinic",11646,1,"Close to the PHU",0,"No","Non","8.88883","-12.03249",false,false,"IM2","India Mark II","Health Facility","HDW","Hand Dug Well","Grade B","Yes","BO4755","Seasonality =No, Village =Tonko Clinic, Section =Masuba","#water_tech, #status_id, #notes"]
["Bombali","Gbanti","Mina Gbanti","Kamathor Road/Makeni",1000,1,"Chief Compound",0,"No","Non","8.953233","-11.9783",false,false,"IM2","India Mark II","Community","HDW","Hand Dug Well","Grade A","Yes","BO4348","Seasonality =No, Village =Kamathor Road/Makeni, Section =Mina Gbanti","#water_tech, #status_id, #notes"]
["Bombali","Gbanti","Mina Gbanti","Kamathor Road/Makeni",1000,2,"Hill Side",0,"No","Non","8.89034","-12.06427",false,false,"Pully","Pully","Community","HDW","Hand Dug Well","Grade D","No","BO4349","Seasonality =No, Village =Kamathor Road/Makeni, Section =Mina Gbanti","#water_tech, #status_id, #notes"]
["Bombali","Gbanti","Mina Gbanti","Kay Street/Makeni",600,12,"Conteh U Drive",0,"No","Non","8.895133","-12.06045",false,false,"IM2","India Mark II","Community","HDW","Hand Dug Well","Grade C","No","BO4350","Seasonality =No, Village =Kay Street/Makeni, Section =Mina Gbanti","#water_tech, #status_id, #notes"]
["Bombali","Gbanti","Mina Gbanti","Kay Street/Makeni",600,13,"Masjid Mustapha Mosque",0,"No","Non","8.892866","-12.06105",false,false,"IM2","India Mark II","Community","HDW","Hand Dug Well","Grade C","No","BO4351","Seasonality =No, Village =Kay Street/Makeni, Section =Mina Gbanti","#water_tech, #status_id, #notes"]
["Bombali","Gbanti","Mina Gbanti","Kay Street/Makeni",600,14,"Jallohs Compound",0,"No","Non","8.891433","-12.0607",false,false,"IM2","India Mark II","Private","HDW","Hand Dug Well","Grade A","Yes","BO4352","Seasonality =No, Village =Kay Street/Makeni, Section =Mina Gbanti","#water_tech, #status_id, #notes"]
["Bombali","Gbanti","Mina Gbanti","Kay Street/Makeni",600,15,"Rev.JT Bangura's house",0,"No","Non","8.89215","-12.06278",false,true,"IM2","India Mark II plus solar pump","Private","HDW","Hand Dug Well","Grade B","Yes","BO4353","Seasonality =No, Village =Kay Street/Makeni, Section =Mina Gbanti","#water_tech, #status_id, #notes"]
["Bombali","Gbanti","Mina Gbanti","Looking Town 1/Makeni",2000,9,"sabannoh",3,"Yes","Non","8.895983","-12.06416",false,false,"IM2","India Mark II","Community","HDW","Hand Dug Well","Grade C","No","BO4354","Seasonality =Yes, Village =Looking Town 1/Makeni, Section =Mina Gbanti","#water_tech, #status_id, #notes"]
["Bombali","Gbanti","Mina Gbanti","Looking Town 1/Makeni",2000,10,"Back of P3 quest house",3,"Yes","Non","8.894883","-12.06263",false,false,"IM2","India Mark II","Private","HDW","Hand Dug Well","Grade C","No","BO4355","Seasonality =Yes, Village =Looking Town 1/Makeni, Section =Mina Gbanti","#water_tech, #status_id, #notes"]
["Bombali","Gbanti","Mina Gbanti","Looking Town 1/Makeni",2000,11,"Ramatulai Memorial school",0,"No","Non","8.894883","-12.06263",false,false,"IM2","India Mark II","School","HDW","Hand Dug Well","Grade A","Yes","BO4356",{"$f":"_xlfn.CONCAT(\"Seasonality =\",I706,\", \",\"Village =\", D706,\", \",\"Section =\", C706)","v":"Seasonality =No, Village =Looking Town 1/Makeni, Section =Mina Gbanti"},"#water_tech, #status_id, #notes"]
["Bombali","Gbanti","Mina Gbanti","Looking Town 2/Makeni",1200,3,"Mohamed Shaban place",0,{"$f":"IF(H707>0,\"Yes\",\"No\")","v":"No"},"Non","8.8911","-12.06475",false,false,"Pully","Pully","Community","HDW","Hand Dug Well","Grade D",{"$f":"IF(OR(T707=\"Grade A\",T707=\"Grade B\"),\"Yes\",\"No\")","v":"No"},"BO4357","Seasonality =No, Village =Looking Town 2/Makeni, Section =Mina Gbanti","#water_tech, #status_id, #notes"]
["Bombali","Gbanti","Mina Gbanti","Looking Town 2/Makeni",1200,4,"masjid Bilrr",0,"No","Non","8.8916","-12.06526",false,false,"IM2","India Mark II","Community","BH","Borehole","Grade A","Yes","BO680","Seasonality =No, Village =Looking Town 2/Makeni, Section =Mina Gbanti","#water_tech, #status_id, #notes"]
["Bombali","Gbanti","Mina Gbanti","Looking Town 2/Makeni",1200,5,"Rev.David S mansaray house",0,"No","Non","8.8914","-12.06676",false,false,"IM2","India Mark II","Community","BH","Borehole","Grade A","Yes","BO681","Seasonality =No, Village =Looking Town 2/Makeni, Section =Mina Gbanti","#water_tech, #status_id, #notes"]
["Bombali","Gbanti","Mina Gbanti","Looking Town 2/Makeni",1200,7,"Alharrkan islamic jr.sec. school",3,"Yes","Non","8.892416","-12.06623",false,false,"IM2","India Mark II","School","HDW","Hand Dug Well","Grade B","Yes","BO682","Seasonality =Yes, Village =Looking Town 2/Makeni, Section =Mina Gbanti","#water_tech, #status_id, #notes"]
["Bombali","Gbanti","Mina Gbanti","Looking Town 2/Makeni",1200,8,"Care Junction",3,"Yes","Non","8.891816","-12.06356",false,false,"Pully","Pully","Community","HDW","Hand Dug Well","Grade D","No","BO683","Seasonality =Yes, Village =Looking Town 2/Makeni, Section =Mina Gbanti","#water_tech, #status_id, #notes"]
["Bombali","Gbanti","Mina Gbanti","Mangoro",1000,16,"Close to Mabanta Road",3,"Yes","Non","8.89415","-12.05639",false,false,"Kardia","Kardia","Community","BH","Borehole","Grade B","Yes","BO685","Seasonality =Yes, Village =Mangoro, Section =Mina Gbanti","#water_tech, #status_id, #notes"]
["Bombali","Gbanti","Mina Gbanti","Old Lunsar road/Makeni",1200,19,"Old chief compound",0,"No","Non","8.891283","-12.05685",false,false,"IM2","India Mark II","Community","HDW","Hand Dug Well","Grade A","Yes","BO4358","Seasonality =No, Village =Old Lunsar road/Makeni, Section =Mina Gbanti","#water_tech, #status_id, #notes"]
["Bombali","Gbanti","Mina Gbanti","Old Lunsar road/Makeni",1200,20,"Amina mosque",5,"Yes","Non","8.891366","-12.05746",false,false,"IM2","India Mark II","Community","HDW","Hand Dug Well","Grade A","Yes","BO4359","Seasonality =Yes, Village =Old Lunsar road/Makeni, Section =Mina Gbanti","#water_tech, #status_id, #notes"]
["Bombali","Gbanti","Mina Gbanti","Radio Maria/Makeni",200,21,"At Radio Maria",2,"Yes","Non","8.887883","-12.05788",false,false,"IM2","India Mark II","Private","HDW","Hand Dug Well","Grade B","Yes","BO4360","Seasonality =Yes, Village =Radio Maria/Makeni, Section =Mina Gbanti","#water_tech, #status_id, #notes"]
["Bombali","Gbanti","Mina Gbanti","Radio Maria/Makeni",200,22,"Unimak Hostel",3,"Yes","Non","8.88552","-12.05999",false,true,"IM2","India Mark II plus solar pump","Private","HDW","Hand Dug Well","Grade C","No","BO4361","Seasonality =Yes, Village =Radio Maria/Makeni, Section =Mina Gbanti","#water_tech, #status_id, #notes"]
["Bombali","Gbanti","Mina Gbanti","Romango/Makeni",1000,16,"Old Lunsar Road",3,"Yes","Non","8.894116","-12.05638",false,false,"IM2","India Mark II","Community","HDW","Hand Dug Well","Grade C","No","BO4362","Seasonality =Yes, Village =Romango/Makeni, Section =Mina Gbanti","#water_tech, #status_id, #notes"]
["Bombali","Gbanti","Mina Gbanti","Romango/Makeni",1000,17,"Pa osu kamara's compound",3,"Yes","Non","8.895116","-12.05671",false,false,"Kardia","Kardia","Community","HDW","Hand Dug Well","Grade A","Yes","BO4363","Seasonality =Yes, Village =Romango/Makeni, Section =Mina Gbanti","#water_tech, #status_id, #notes"]
["Bombali","Gbanti","Mina Gbanti","Romango/Makeni",1000,18,"close to Q cell pole",0,"No","Non","8.89485","-12.05761",false,false,"IM2","India Mark II","Community","HDW","Hand Dug Well","Grade A","Yes","BO4364","Seasonality =No, Village =Romango/Makeni, Section =Mina Gbanti","#water_tech, #status_id, #notes"]
["Bombali","Gbanti","Mina Gbanti","St. Mena/Makeni",900,6,"15 St. Mena by the Swamp",0,"No","Non","8.890516","-12.06678",false,false,"IM2","India Mark II","Private","HDW","Hand Dug Well","Grade B","Yes","BO4365","Seasonality =No, Village =St. Mena/Makeni, Section =Mina Gbanti","#water_tech, #status_id, #notes"]
["Bombali","Gbanti","Mina Gbanti","Stocco",1000,1,"Stocco Road",null,"No","Non","8.89095","-12.05992",false,false,"PB2","PB Mark II","Community","HDW","Hand Dug Well","Grade A","Yes","BO684","Seasonality =No, Village =Stocco, Section =Mina Gbanti","#water_tech, #status_id, #notes"]
["Bombali","Gbanti","Rosint","Mano",210,1,"Close to the Mosque",6,"Yes","Oui","8.908866","-12.00415",true,false,"IM2","India Mark II","Community","HDW","Hand Dug Well","Grade A","Yes","BO651","Seasonality =Yes, Village =Mano, Section =Rosint","#water_tech, #status_id, #notes"]
["Bombali","Gbanti","Rosint","Mano",210,2,"Entrance of the village",3,"Yes","Oui","8.909233","-12.00368",false,false,"Just pedestal - incomplete","Just pedestal - incomplete","Community","HDW","Hand Dug Well","Grade C","No","BO4366","Seasonality =Yes, Village =Mano, Section =Rosint","#water_tech, #status_id, #notes"]
["Bombali","Gbanti","Rosint","Panlap",1320,1,"Kabala Highway",0,"No","Non","8.91677","-12.02917",false,false,"PB2","PB Mark II","Community","BH","Borehole","Grade A","Yes","BO657","Seasonality =No, Village =Panlap, Section =Rosint","#water_tech, #status_id, #notes"]
["Bombali","Gbanti","Rosint","Panlap",1320,2,"Check point by the Mosque",4,"Yes","Non","8.91793","-12.02972",false,false,"IM2","India Mark II","Private","HDW","Hand Dug Well","Grade A","Yes","BO652","Seasonality =Yes, Village =Panlap, Section =Rosint","#water_tech, #status_id, #notes"]
["Bombali","Gbanti","Rosint","Panlap",1320,3,"Close to Catholic Church",4,"Yes","Non","8.9172","-12.03132",false,false,"PB2","PB Mark II","Private","HDW","Hand Dug Well","Grade B","Yes","BO1299","Seasonality =Yes, Village =Panlap, Section =Rosint","#water_tech, #status_id, #notes"]
["Bombali","Gbanti","Rosint","Panlap",1320,6,"Roman Catholic School",6,"Yes","Non","8.91925","-12.03093",false,false,"IM2","India Mark II","School","HDW","Hand Dug Well","Grade A","Yes","BO656","Seasonality =Yes, Village =Panlap, Section =Rosint","#water_tech, #status_id, #notes"]
["Bombali","Gbanti","Rosint","Panlap",1320,7,"Close to J.S Sch.",6,"Yes","Non","8.91997","-12.0304",false,false,"IM2","India Mark II","Community","BH","Borehole","Grade A","Yes","BO654","Seasonality =Yes, Village =Panlap, Section =Rosint","#water_tech, #status_id, #notes"]
["Bombali","Gbanti","Rosint","Panlap",1320,8,"Amputy Camp",0,"No","Non","8.92098","-12.03138",false,false,"IM2","India Mark II","Community","HDW","Hand Dug Well","Grade A","Yes","BO2387","Seasonality =No, Village =Panlap, Section =Rosint","#water_tech, #status_id, #notes"]
["Bombali","Gbanti","Rosint","Panlap",1320,9,"Close to Councelior",9,"Yes","Non","8.92123","-12.03195",false,false,"IM2","India Mark II","Community","HDW","Hand Dug Well","Grade A","Yes","BO2684","Seasonality =Yes, Village =Panlap, Section =Rosint","#water_tech, #status_id, #notes"]
["Bombali","Gbanti","Rosint","Panlap",1320,10,"Blind school",0,"No","Non","8.91848","-12.03032",false,false,"IM2","India Mark II","School","BH","Borehole","Grade A","Yes","BO655","Seasonality =No, Village =Panlap, Section =Rosint","#water_tech, #status_id, #notes"]
["Bombali","Gbanti","Rosint","Panlap",1320,11,"Amputy Camp 2",4,"Yes","Non","8.91908","-12.02997",false,false,"Kardia","Kardia","Community","HDW","Hand Dug Well","Grade A","Yes","BO653","Seasonality =Yes, Village =Panlap, Section =Rosint","#water_tech, #status_id, #notes"]
["Bombali","Gbanti","Rosint","Panlap",1320,12,"At the CHC",0,"No","Non","8.91707","-12.03145",false,false,"India Mark III","India Mark III","Health Facility","HDW","Hand Dug Well","Grade A","Yes","BO4759","Seasonality =No, Village =Panlap, Section =Rosint","#water_tech, #status_id, #notes"]
["Bombali","Gbanti","Rosint","Panlap",1320,13,"At the CHC",null,"No","Non","8.91708","-12.03127",false,false,"Just pedestal - incomplete","Just pedestal - incomplete","Health Facility","BH","Borehole","Grade D","No","BO4760","Seasonality =No, Village =Panlap, Section =Rosint","#water_tech, #status_id, #notes"]
["Bombali","Gbanti","Rosint","Robuya",995,1,"On the road to robombeh",6,"Yes","Oui","8.875216","-12.00695",false,false,"IM2","India Mark II","Community","HDW","Hand Dug Well","Grade A","Yes","BO1279","Seasonality =Yes, Village =Robuya, Section =Rosint","#water_tech, #status_id, #notes"]
["Bombali","Gbanti","Rosint","Robuya",995,2,"close to the dry floor",5,"Yes","Oui","8.8744","-12.00755",false,false,"IM2","India Mark II","Community","HDW","Hand Dug Well","Grade B","Yes","BO1463","Seasonality =Yes, Village =Robuya, Section =Rosint","#water_tech, #status_id, #notes"]
["Bombali","Gbanti","Rosint","Robuya",995,3,"close to the mosque",0,"No","Oui","8.874566","-12.00806",false,false,"IM2","India Mark II","Community","BH","Borehole","Grade A","Yes","BO658","Seasonality =No, Village =Robuya, Section =Rosint","#water_tech, #status_id, #notes"]
["Bombali","Gbanti","Rosint","Robuya",995,4,"On the road to Robombeh",5,"Yes","Oui","8.87454","-12.00880",false,false,"India Mark III","India Mark III","Community","HDW","Hand Dug Well","Grade A","Yes","BO1464","Seasonality =Yes, Village =Robuya, Section =Rosint","#water_tech, #status_id, #notes"]
["Bombali","Gbanti","Rosint","Robuya",995,5,"End of the hill",6,"Yes","Oui","8.875016","-12.00931",false,false,"Just pedestal - incomplete","Just pedestal - incomplete","Community","HDW","Hand Dug Well","Grade C","No","BO2077","Seasonality =Yes, Village =Robuya, Section =Rosint","#water_tech, #status_id, #notes"]
["Bombali","Gbanti","Rosint","Rosint",400,1,"Opposite the Mosque",5,"Yes","Oui","8.9182","-12.00685",false,false,"PB3","PB Mark III","Community","HDW","Hand Dug Well","Grade C","No","BO4367","Seasonality =Yes, Village =Rosint, Section =Rosint","#water_tech, #status_id, #notes"]
["Bombali","Gbanti","Rosint","Rosint",400,2,"Alharrkan Islamic Sec.school",5,"Yes","Oui","8.921566","-12.00875",false,false,"IM2","India Mark II","School","HDW","Hand Dug Well","Grade C","No","BO659","Seasonality =Yes, Village =Rosint, Section =Rosint","#water_tech, #status_id, #notes"]
["Bombali","Gbanti","Rosint","Rosint",400,3,"opposite the mosque",0,"No","Non","8.917966","-12.0068",false,false,"IM2","India Mark II","Community","HDW","Hand Dug Well","Grade B","Yes","BO4368","Seasonality =No, Village =Rosint, Section =Rosint","#water_tech, #status_id, #notes"]
["Bombali","Gbanti","Rosint","Sengbeh",190,1,"At the mosque",0,"No","Oui","8.90475","-12.01436",false,false,"IM2","India Mark II","Community","HDW","Hand Dug Well","Grade A","Yes","BO4369","Seasonality =No, Village =Sengbeh, Section =Rosint","#water_tech, #status_id, #notes"]
["Bombali","Gbendembu","Gbendembu","Gbendembu 1",2800,1,"At the Chief Compound",3,"Yes","Non","9.10821","-12.20797",false,false,"IM2","India Mark II","Community","HDW","Hand Dug Well","Grade A","Yes","BO2845","Seasonality =Yes, Village =Gbendembu 1, Section =Gbendembu","#water_tech, #status_id, #notes"]
["Bombali","Gbendembu","Gbendembu","Gbendembu 1",2800,2,"Close to the court Barry",2,"Yes","Oui","9.10802","-12.20739",false,false,"IM2","India Mark II","Community","HDW","Hand Dug Well","Grade A","Yes","BO2768","Seasonality =Yes, Village =Gbendembu 1, Section =Gbendembu","#water_tech, #status_id, #notes"]
["Bombali","Gbendembu","Gbendembu","Gbendembu 1",2800,6,"Bible school compound",0,"No","Non","9.10513","-12.20853",false,false,"IM2","India Mark II","School","BH","Borehole","Grade A","Yes","BO4373","Seasonality =No, Village =Gbendembu 1, Section =Gbendembu","#water_tech, #status_id, #notes"]
["Bombali","Gbendembu","Gbendembu","Gbendembu 1",2800,7,"Bible School Compound",3,"Yes","Oui","9.10498","-12.20889",false,false,"IM2","India Mark II","School","HDW","Hand Dug Well","Grade A","Yes","BO1460","Seasonality =Yes, Village =Gbendembu 1, Section =Gbendembu","#water_tech, #status_id, #notes"]
["Bombali","Gbendembu","Gbendembu","Gbendembu 1",2800,8,"Inside Mosque Compound",3,"Yes","Oui","9.10827","-12.20624",false,false,"IM2","India Mark II","Community","HDW","Hand Dug Well","Grade A","Yes","BO4374","Seasonality =Yes, Village =Gbendembu 1, Section =Gbendembu","#water_tech, #status_id, #notes"]
["Bombali","Gbendembu","Gbendembu","Gbendembu 1",2800,11,"By the Fishery",5,"Yes","Non","9.10306","-12.20589",false,false,"IM2","India Mark II","Community","HDW","Hand Dug Well","Grade B","Yes","BO4732","Seasonality =Yes, Village =Gbendembu 1, Section =Gbendembu","#water_tech, #status_id, #notes"]
["Bombali","Gbendembu","Gbendembu","Gbendembu 2",4975,1,"Kamakwie Highway",null,"No","Non",null,null,false,false,"IM2","India Mark II","Community","HDW","Hand Dug Well","Grade A","Yes","BO916","Seasonality =No, Village =Gbendembu 2, Section =Gbendembu","#water_tech, #status_id, #notes"]
["Bombali","Gbendembu","Gbendembu","Gbendembu 2",4975,4,"Danger St",5,"Yes","Non",null,null,true,false,"Pully","Pully","Community","HDW","Hand Dug Well","Grade C","No","BO919","Seasonality =Yes, Village =Gbendembu 2, Section =Gbendembu","#water_tech, #status_id, #notes"]
["Bombali","Gbendembu","Gbendembu","Gbendembu 2",4975,5,"Along Kamakwie",4,"Yes","Non","9.10824","-12.20797",false,false,"Just pedestal - incomplete","Just pedestal - incomplete","Private","HDW","Hand Dug Well","Grade C","No","BO920","Seasonality =Yes, Village =Gbendembu 2, Section =Gbendembu","#water_tech, #status_id, #notes"]
["Bombali","Gbendembu","Gbendembu","Gbendembu 2",4975,8,"Model Pri. Sch.",5,"Yes","Non","9.11062","-12.19880",false,false,"IM2","India Mark II","School","HDW","Hand Dug Well","Grade A","Yes","BO923","Seasonality =Yes, Village =Gbendembu 2, Section =Gbendembu","#water_tech, #status_id, #notes"]
["Bombali","Gbendembu","Gbendembu","Gbendembu 2",4975,9,"W.C.S.L Pri. School",0,"No","Non","9.10699","-12.20764",false,false,"IM2","India Mark II","School","BH","Borehole","Grade A","Yes","BO924","Seasonality =No, Village =Gbendembu 2, Section =Gbendembu","#water_tech, #status_id, #notes"]
["Bombali","Gbendembu","Gbendembu","Gbendembu 2",4975,11,"Hospital",null,"No","Non",null,null,false,false,"Solar Tap System","Solar Tap System","Health Facility","HDW","Hand Dug Well","Grade A","Yes","BO926","Seasonality =No, Village =Gbendembu 2, Section =Gbendembu","#water_tech, #status_id, #notes"]
["Bombali","Gbendembu","Gbendembu","Gbendembu 2",4975,13,null,null,"No","Non",null,null,false,false,"Kardia","Kardia","Community","HDW","Hand Dug Well","Grade X","No","BO2531","Seasonality =No, Village =Gbendembu 2, Section =Gbendembu","#water_tech, #status_id, #notes"]
["Bombali","Gbendembu","Gbendembu","Gbendembu 3",420,2,"Centre of the village",0,"No","Oui","9.11023","-12.20184",false,false,"IM2","India Mark II","Community","HDW","Hand Dug Well","Grade A","Yes","BO2769","Seasonality =No, Village =Gbendembu 3, Section =Gbendembu","#water_tech, #status_id, #notes"]
["Bombali","Gbendembu","Gbendembu","Lubaya",356,1,"Middle of the Town",2,"Yes","Non","9.10310","-12.22326",false,false,"IM2","India Mark II","Community","HDW","Hand Dug Well","Grade A","Yes","BO4680","Seasonality =Yes, Village =Lubaya, Section =Gbendembu","#water_tech, #status_id, #notes"]
["Bombali","Gbendembu","Gbendembu","Makongor",642,1,"In town",2,"Yes","Non","9.05239","-12.18699",false,false,"IM2","India Mark II","Community","BH","Borehole","Grade A","Yes","BO2185","Seasonality =Yes, Village =Makongor, Section =Gbendembu","#water_tech, #status_id, #notes"]
["Bombali","Gbendembu","Gbendembu","Manyeh",300,1,"Centre of the village",3,"Yes","Oui","9.09175","-12.19338",false,false,"IM2","India Mark II","Community","HDW","Hand Dug Well","Grade A","Yes","BO1303","Seasonality =Yes, Village =Manyeh, Section =Gbendembu","#water_tech, #status_id, #notes"]
["Bombali","Gbendembu","Gbendembu","Mapenyala",573,1,"Village entrance",0,"No","Non","9.05589","-12.21984",false,false,"IM2","India Mark II","Community","BH","Borehole","Grade A","Yes","BO1462","Seasonality =No, Village =Mapenyala, Section =Gbendembu","#water_tech, #status_id, #notes"]
["Bombali","Gbendembu","Gbendembu","Mayamba",190,1,"In the Town",4,"Yes","Non",null,null,false,false,"IM2","India Mark II","Community","HDW","Hand Dug Well","Grade B","Yes","BO4676","Seasonality =Yes, Village =Mayamba, Section =Gbendembu","#water_tech, #status_id, #notes"]
["Bombali","Gbendembu","Gbendembu","Robayah",150,1,"Close to the Access Road",0,"No","Non","9.10310","-12.22326",false,false,"IM2","India Mark II","Community","HDW","Hand Dug Well","Grade A","Yes","BO4738","Seasonality =No, Village =Robayah, Section =Gbendembu","#water_tech, #status_id, #notes"]
["Bombali","Gbendembu","Lohindi","Gbangohun",125,1,"At the school compound",0,"No","Oui","9.14871","-12.12546",false,false,"Inkar","Inkar","School","BH","Borehole","Grade C","No","BO4379","Seasonality =No, Village =Gbangohun, Section =Lohindi","#water_tech, #status_id, #notes"]
["Bombali","Gbendembu","Lohindi","Kortorhun",620,1,"Centre of the village",3,"Yes","Oui","9.12066","-12.11570",false,false,"Kardia","Kardia","Community","BH","Borehole","Grade A","Yes","BO894","Seasonality =Yes, Village =Kortorhun, Section =Lohindi","#water_tech, #status_id, #notes"]
["Bombali","Gbendembu","Lohindi","Kortorhun",620,2,"Centre of the village",3,"Yes","Oui","9.12077","-12.11518",false,false,"IM2","India Mark II","Community","HDW","Hand Dug Well","Grade B","Yes","BO897","Seasonality =Yes, Village =Kortorhun, Section =Lohindi","#water_tech, #status_id, #notes"]
["Bombali","Gbendembu","Lohindi","Kortorhun",620,3,"End of the village",0,"No","Oui","9.12157","-12.11256",true,false,"Kardia","Kardia","Community","BH","Borehole","Grade C","No","BO898","Seasonality =No, Village =Kortorhun, Section =Lohindi","#water_tech, #status_id, #notes"]
["Bombali","Gbendembu","Lohindi","Kortorhun",620,4,"End of the village",0,"No","Oui","9.12177","-12.11143",false,false,"IM2","India Mark II","Community","HDW","Hand Dug Well","Grade A","Yes","BO895","Seasonality =No, Village =Kortorhun, Section =Lohindi","#water_tech, #status_id, #notes"]
["Bombali","Gbendembu","Lohindi","Kortorhun",620,5,"At the school compound",0,"No","Oui","9.11952","-12.11211",false,false,"IM2","India Mark II","School","BH","Borehole","Grade A","Yes","BO896","Seasonality =No, Village =Kortorhun, Section =Lohindi","#water_tech, #status_id, #notes"]
["Bombali","Gbendembu","Lohindi","Kortorhun",620,6,"C.H.C",7,"Yes","Non","9.122659","-12.114996",false,false,"Just pedestal - incomplete","Just pedestal - incomplete","Health Facility","HDW","Hand Dug Well","Grade C","No","BO4735",{"$f":"_xlfn.CONCAT(\"Seasonality =\",I770,\", \",\"Village =\", D770,\", \",\"Section =\", C770)","v":"Seasonality =Yes, Village =Kortorhun, Section =Lohindi"},"#water_tech, #status_id, #notes"]
["Bombali","Gbendembu","Lohindi","Liliya",152,1,"Out of the village",2,{"$f":"IF(H771>0,\"Yes\",\"No\")","v":"Yes"},"Oui","9.15709","-12.10645",false,false,"IM2","India Mark II","Community","HDW","Hand Dug Well","Grade A",{"$f":"IF(OR(T771=\"Grade A\",T771=\"Grade B\"),\"Yes\",\"No\")","v":"Yes"},"BO2805","Seasonality =Yes, Village =Liliya, Section =Lohindi","#water_tech, #status_id, #notes"]
["Bombali","Gbendembu","Lohindi","Lohindi",220,1,"Entrance of the village",0,"No","Oui","9.12284","-12.13477",false,false,"IM2","India Mark II","Community","HDW","Hand Dug Well","Grade A","Yes","BO2056","Seasonality =No, Village =Lohindi, Section =Lohindi","#water_tech, #status_id, #notes"]
["Bombali","Gbendembu","Lohindi","Lohindi",220,2,"At the school compound",3,"Yes","Non","9.12211","-12.13389",false,false,"IM2","India Mark II","School","HDW","Hand Dug Well","Grade A","Yes","BO2180","Seasonality =Yes, Village =Lohindi, Section =Lohindi","#water_tech, #status_id, #notes"]
["Bombali","Gbendembu","Lohindi","Lohindi 1",250,1,"close to the mosque",3,"Yes","Oui","9.12343","-12.13776",false,false,"IM2","India Mark II","Community","HDW","Hand Dug Well","Grade A","Yes","BO4380","Seasonality =Yes, Village =Lohindi 1, Section =Lohindi","#water_tech, #status_id, #notes"]
["Bombali","Gbendembu","Lohindi","Magbanna",262,1,"centre of the village",2,"Yes","Oui","9.12266","-12.14841",false,false,"IM2","India Mark II","Community","BH","Borehole","Grade A","Yes","BO899","Seasonality =Yes, Village =Magbanna, Section =Lohindi","#water_tech, #status_id, #notes"]
["Bombali","Gbendembu","Lohindi","Mahambolie",130,1,"Entrance of the village",2,"Yes","Oui","9.16527","-12.11474",false,false,"IM2","India Mark II","Community","HDW","Hand Dug Well","Grade A","Yes","BO2807","Seasonality =Yes, Village =Mahambolie, Section =Lohindi","#water_tech, #status_id, #notes"]
["Bombali","Gbendembu","Lohindi","Mahanwa",null,1,"Up the Village Junction",2,"Yes","Non","9.13377","-12.08855",false,false,"IM2","India Mark II","Community","BH","Borehole","Grade A","Yes","BO901","Seasonality =Yes, Village =Mahanwa, Section =Lohindi","#water_tech, #status_id, #notes"]
["Bombali","Gbendembu","Lohindi","Makargoh",621,1,"Centre of the town",4,"Yes","Non","9.12259","-12.11479",false,false,"IM2","India Mark II","Community","BH","Borehole","Grade A","Yes","BO900","Seasonality =Yes, Village =Makargoh, Section =Lohindi","#water_tech, #status_id, #notes"]
["Bombali","Gbendembu","Lohindi","Makasseh Ngobehun",79,1,"Out of the village",2,"Yes","Oui","9.17973","-12.10952",false,false,"IM2","India Mark II","Community","HDW","Hand Dug Well","Grade A","Yes","BO4381","Seasonality =Yes, Village =Makasseh Ngobehun, Section =Lohindi","#water_tech, #status_id, #notes"]
["Bombali","Gbendembu","Lohindi","Makawo",820,1,"Close to the Mosque",6,"Yes","Oui","9.12982","-12.09267",false,false,"Kardia","Kardia","Community","BH","Borehole","Grade A","Yes","BO4382","Seasonality =Yes, Village =Makawo, Section =Lohindi","#water_tech, #status_id, #notes"]
["Bombali","Gbendembu","Lohindi","Makendi",null,1,"End of the Village",0,"No","Non","9.16314","-12.06510",false,false,"IM2","India Mark II","Community","HDW","Hand Dug Well","Grade A","Yes","BO2808","Seasonality =No, Village =Makendi, Section =Lohindi","#water_tech, #status_id, #notes"]
["Bombali","Gbendembu","Lohindi","Mamaya",160,1,"At the side of the village",0,"No","Oui","9.15617","-12.11956",false,false,"IM2","India Mark II","Community","HDW","Hand Dug Well","Grade A","Yes","BO2804","Seasonality =No, Village =Mamaya, Section =Lohindi","#water_tech, #status_id, #notes"]
["Bombali","Gbendembu","Lohindi","Maselengba",120,1,"Entrance of the village",2,"Yes","Oui","9.14561","-12.09564",false,false,"IM2","India Mark II","Community","HDW","Hand Dug Well","Grade A","Yes","BO2810","Seasonality =Yes, Village =Maselengba, Section =Lohindi","#water_tech, #status_id, #notes"]
["Bombali","Gbendembu","Lohindi","Masiba",668,2,"Inside the town",2,"Yes","Non","9.16911","-12.06179",false,false,"Kardia","Kardia","Community","BH","Borehole","Grade A","Yes","BO902","Seasonality =Yes, Village =Masiba, Section =Lohindi","#water_tech, #status_id, #notes"]
["Bombali","Gbendembu","Lohindi","Ngoworhun",711,1,"Out of the village",3,"Yes","Oui","9.14885","-12.09802",false,false,"IM2","India Mark II","Community","BH","Borehole","Grade B","Yes","BO4383","Seasonality =Yes, Village =Ngoworhun, Section =Lohindi","#water_tech, #status_id, #notes"]
["Bombali","Gbendembu","Lohindi","Wahun",120,1,"centre of the village",0,"No","Oui","9.10721","-12.12981",false,false,"IM2","India Mark II","Community","HDW","Hand Dug Well","Grade A","Yes","BO2181","Seasonality =No, Village =Wahun, Section =Lohindi","#water_tech, #status_id, #notes"]
["Bombali","Gbendembu","Lohindi","Wangay",200,1,"Out of the village",0,"No","Oui","9.13968","-12.13604",false,false,"IM2","India Mark II","Community","HDW","Hand Dug Well","Grade A","Yes","BO2182","Seasonality =No, Village =Wangay, Section =Lohindi","#water_tech, #status_id, #notes"]
["Bombali","Gbendembu","Madina loko","madina loko",770,1,"Close to the Mosque",4,"Yes","Non","9.09375","-12.04766",true,false,"Just pedestal - incomplete","Just pedestal - incomplete","Community","HDW","Hand Dug Well","Grade C","No","BO990","Seasonality =Yes, Village =madina loko, Section =Madina loko","#water_tech, #status_id, #notes"]
["Bombali","Gbendembu","Madina loko","madina loko",770,2,"Centre of the village",2,"Yes","Non","9.09397","-12.04922",true,false,"PB2","PB Mark II","Community","HDW","Hand Dug Well","Grade C","No","BO4384","Seasonality =Yes, Village =madina loko, Section =Madina loko","#water_tech, #status_id, #notes"]
["Bombali","Gbendembu","Madina loko","madina loko",770,3,"Centre of the village",2,"Yes","Non","9.09401","-12.04934",true,false,"Just pedestal - incomplete","Just pedestal - incomplete","Community","HDW","Hand Dug Well","Grade C","No","BO4385","Seasonality =Yes, Village =madina loko, Section =Madina loko","#water_tech, #status_id, #notes"]
["Bombali","Gbendembu","Madina loko","madina loko",770,4,"B.D.E.C Pri. Sch.",5,"Yes","Non","9.09494","-12.04913",false,false,"IM2","India Mark II","School","HDW","Hand Dug Well","Grade C","No","BO991","Seasonality =Yes, Village =madina loko, Section =Madina loko","#water_tech, #status_id, #notes"]
["Bombali","Gbendembu","Mahawa","Mahawa",250,1,"End of the village",3,"Yes","Oui","9.13377","-12.08855",false,false,"IM2","India Mark II","Community","BH","Borehole","Grade A","Yes","BO4386","Seasonality =Yes, Village =Mahawa, Section =Mahawa","#water_tech, #status_id, #notes"]
["Bombali","Gbendembu","Mahawa","Makendi",472,1,"End of the village",4,"Yes","Oui","9.16290","-12.06513",false,false,"IM2","India Mark II","Community","BH","Borehole","Grade A","Yes","BO4387","Seasonality =Yes, Village =Makendi, Section =Mahawa","#water_tech, #status_id, #notes"]
["Bombali","Gbendembu","Mahawa","Masibah",300,1,"Entrance of the village",2,"Yes","Oui","9.16881","-12.06192",false,false,"IM2","India Mark II","Community","BH","Borehole","Grade A","Yes","BO4388","Seasonality =Yes, Village =Masibah, Section =Mahawa","#water_tech, #status_id, #notes"]
["Bombali","Gbendembu","Mahawa","Masibah",300,2,"Entrance of the village",3,"Yes","Oui","9.16913","-12.06180",false,false,"Kardia","Kardia","Community","BH","Borehole","Grade B","Yes","BO4389","Seasonality =Yes, Village =Masibah, Section =Mahawa","#water_tech, #status_id, #notes"]
["Bombali","Gbendembu","Makaie","Bathsint",160,1,"Entrance of the village",0,"No","Oui","9.18404","-12.19617",false,false,"IM2","India Mark II","Community","HDW","Hand Dug Well","Grade A","Yes","BO2065","Seasonality =No, Village =Bathsint, Section =Makaie","#water_tech, #status_id, #notes"]
["Bombali","Gbendembu","Makaie","Lilian",150,1,"Centre of the village",0,"No","Oui","9.16949","-12.18205",false,false,"IM2","India Mark II","Community","HDW","Hand Dug Well","Grade A","Yes","BO2055","Seasonality =No, Village =Lilian, Section =Makaie","#water_tech, #status_id, #notes"]
["Bombali","Gbendembu","Makaie","Maboima",176,1,"At the school compound",3,"Yes","Oui","9.14236","-12.17633",true,false,"IM2","India Mark II","School","HDW","Hand Dug Well","Grade C","No","BO4390","Seasonality =Yes, Village =Maboima, Section =Makaie","#water_tech, #status_id, #notes"]
["Bombali","Gbendembu","Makaie","Maboima",176,2,"Entrance of the village",0,"No","Oui","9.14203","-12.17598",false,false,"IM2","India Mark II","School","HDW","Hand Dug Well","Grade A","Yes","BO4391","Seasonality =No, Village =Maboima, Section =Makaie","#water_tech, #status_id, #notes"]
["Bombali","Gbendembu","Makaie","Mahai",200,1,"Out of the village",0,"No","Oui","9.16421","-12.19105",false,false,"IM2","India Mark II","Community","HDW","Hand Dug Well","Grade A","Yes","BO2054","Seasonality =No, Village =Mahai, Section =Makaie","#water_tech, #status_id, #notes"]
["Bombali","Gbendembu","Makaie","Mahai",200,2,"At the Sch. Compound",3,"Yes","Non","9.15981","-12.18872",false,false,"IM2","India Mark II","School","HDW","Hand Dug Well","Grade A","Yes","BO4392","Seasonality =Yes, Village =Mahai, Section =Makaie","#water_tech, #status_id, #notes"]
["Bombali","Gbendembu","Makaie","Makaie",430,1,"Close to the Mosque",3,"Yes","Oui","9.11686","-12.18578",false,false,"IM2","India Mark II","Community","HDW","Hand Dug Well","Grade B","Yes","BO978","Seasonality =Yes, Village =Makaie, Section =Makaie","#water_tech, #status_id, #notes"]
["Bombali","Gbendembu","Makaie","Makaie",430,2,"Centre of the village",0,"No","Oui","9.11674","-12.18609",false,false,"IM2","India Mark II","Community","BH","Borehole","Grade A","Yes","BO977","Seasonality =No, Village =Makaie, Section =Makaie","#water_tech, #status_id, #notes"]
["Bombali","Gbendembu","Makaie","Makaie",430,3,"Entrance of the village",4,"Yes","Oui","9.11637","-12.18667",false,false,"PB2","PB Mark II","Community","HDW","Hand Dug Well","Grade B","Yes","BO979","Seasonality =Yes, Village =Makaie, Section =Makaie","#water_tech, #status_id, #notes"]
["Bombali","Gbendembu","Makaie","Makorogba",85,1,"Centre of the village",7,"Yes","Oui","9.07151","-12.09973",true,false,"Pully","Pully","Community","HDW","Hand Dug Well","Grade D","No","BO4393","Seasonality =Yes, Village =Makorogba, Section =Makaie","#water_tech, #status_id, #notes"]
["Bombali","Gbendembu","Makaie","Makwie",176,1,"Centre of the village",4,"Yes","Oui","9.11430","-12.18928",false,false,"IM2","India Mark II","Community","BH","Borehole","Grade A","Yes","BO976","Seasonality =Yes, Village =Makwie, Section =Makaie","#water_tech, #status_id, #notes"]
["Bombali","Gbendembu","Makaie","Makwie",176,2,"End of the vilage",4,"Yes","Oui","9.11478","-12.18902",false,false,"IM2","India Mark II","Community","HDW","Hand Dug Well","Grade B","Yes","BO975","Seasonality =Yes, Village =Makwie, Section =Makaie","#water_tech, #status_id, #notes"]
["Bombali","Gbendembu","Makoloh","kambia",492,1,"At the Pri. Sch.",0,"No","Oui","9.10578","-12.02301",false,false,"IM2","India Mark II","School","BH","Borehole","Grade A","Yes","BO4394","Seasonality =No, Village =kambia, Section =Makoloh","#water_tech, #status_id, #notes"]
["Bombali","Gbendembu","Makoloh","kambia",492,2,"Entrance side of the village",0,"No","Non","9.17767","-12.03759",false,false,"IM2","India Mark II","Community","HDW","Hand Dug Well","Grade A","Yes","BO4736","Seasonality =No, Village =kambia, Section =Makoloh","#water_tech, #status_id, #notes"]
["Bombali","Gbendembu","Makoloh","Mabala",559,1,"Village Entrance",4,"Yes","Non","9.17857","-12.04957",false,false,"IM2","India Mark II","Community","HDW","Hand Dug Well","Grade B","Yes","BO967","Seasonality =Yes, Village =Mabala, Section =Makoloh","#water_tech, #status_id, #notes"]
["Bombali","Gbendembu","Makoloh","Mabala",559,2,"At the School Compound",2,"Yes","Non","9.18220","-12.04697",false,false,"IM2","India Mark II","Community","BH","Borehole","Grade A","Yes","BO968","Seasonality =Yes, Village =Mabala, Section =Makoloh","#water_tech, #status_id, #notes"]
["Bombali","Gbendembu","Makoloh","Mabala",559,3,"End of the village",0,"No","Non","9.18038","-12.04871",false,false,"Kardia","Kardia","School","BH","Borehole","Grade A","Yes","BO2781","Seasonality =No, Village =Mabala, Section =Makoloh","#water_tech, #status_id, #notes"]
["Bombali","Gbendembu","Makoloh","Mabala",559,4,"At the Sec. Sch.",0,"No","Non","9.17936","-12.05103",false,false,"IM2","India Mark II","School","BH","Borehole","Grade A","Yes","BO4737","Seasonality =No, Village =Mabala, Section =Makoloh","#water_tech, #status_id, #notes"]
["Bombali","Gbendembu","Makombi","Makombie",632,1,"Village Centre",null,"No","Non",null,null,false,false,"IM2","India Mark II","Community","HDW","Hand Dug Well","Grade C","No","BO2532","Seasonality =No, Village =Makombie, Section =Makombi","#water_tech, #status_id, #notes"]
["Bombali","Gbendembu","Mamakah","Maforay",null,1,"In Town",2,"Yes","Non","9.07962","-12.31701",false,false,"IM2","India Mark II","Community","HDW","Hand Dug Well","Grade A","Yes","BO2053","Seasonality =Yes, Village =Maforay, Section =Mamakah","#water_tech, #status_id, #notes"]
["Bombali","Gbendembu","Mamakah","Magiro",null,1,"End of the Village",null,"No","Non",null,null,false,false,"IM2","India Mark II","Community","HDW","Hand Dug Well","Grade A","Yes","BO2376","Seasonality =No, Village =Magiro, Section =Mamakah","#water_tech, #status_id, #notes"]
["Bombali","Gbendembu","Mamakah","Mamakah A",650,1,"At the CHP",0,"No","Oui","9.04084","-12.10536",false,false,"IM2","India Mark II","Health Facility","HDW","Hand Dug Well","Grade C","No","BO992","Seasonality =No, Village =Mamakah A, Section =Mamakah","#water_tech, #status_id, #notes"]
["Bombali","Gbendembu","Mamakah","Mamakah A",650,2,"At the CHP",0,"No","Oui","9.01302","-12.20096",false,true,"Solar Tap System","Solar Tap System ","Health Facility","BH","Borehole","Grade A","Yes","BO4399","Seasonality =No, Village =Mamakah A, Section =Mamakah","#water_tech, #status_id, #notes"]
["Bombali","Gbendembu","Mamakah","Mamakah A",650,3,"W.C.S.L Pri. Sch. Compound",2,"Yes","Oui","9.01283","-12.20124",false,false,"IM2","India Mark II","School","HDW","Hand Dug Well","Grade C","No","BO993","Seasonality =Yes, Village =Mamakah A, Section =Mamakah","#water_tech, #status_id, #notes"]
["Bombali","Gbendembu","Mamakah","Mamakah A",650,4,"W.C.S.L Pri. Sch. Compound",0,"No","Oui","9.01278","-12.20107",false,false,"IM2","India Mark II","School","BH","Borehole","Grade A","Yes","BO4400","Seasonality =No, Village =Mamakah A, Section =Mamakah","#water_tech, #status_id, #notes"]
["Bombali","Gbendembu","Mamakah","Mamakah A",650,5,"Centre of the village",2,"Yes","Oui","9.013021","-12.20182",false,false,"Kardia","Kardia","Community","HDW","Hand Dug Well","Grade A","Yes","BO1280","Seasonality =Yes, Village =Mamakah A, Section =Mamakah","#water_tech, #status_id, #notes"]
["Bombali","Gbendembu","Mamakah","Mamakah B",250,1,"Out of the village",0,"No","Oui",null,null,false,false,"PB2","PB Mark II","Community","BH","Borehole","Grade B","Yes","BO994","Seasonality =No, Village =Mamakah B, Section =Mamakah","#water_tech, #status_id, #notes"]
["Bombali","Gbendembu","Mamakah","Shimbeck",200,1,"Centre of the village",3,"Yes","Oui","9.05152","-12.16736",false,false,"IM2","India Mark II","Community","HDW","Hand Dug Well","Grade A","Yes","BO4401","Seasonality =Yes, Village =Shimbeck, Section =Mamakah","#water_tech, #status_id, #notes"]
["Bombali","Gbendembu","Mayorthan","Fore-Road loko",500,1,"Close to the village chief",3,"Yes","Non","9.07900","-12.13695",false,false,"Pully","Pully","Community","Pulley","Pulley","Grade C","No","BO985","Seasonality =Yes, Village =Fore-Road loko, Section =Mayorthan","#water_tech, #status_id, #notes"]
["Bombali","Gbendembu","Mayorthan","Fore-Road loko",500,2,"At the Mosque",5,"Yes","Oui","9.07858","-12.13554",false,false,"IM2","India Mark II","Community","HDW","Hand Dug Well","Grade C","No","BO984","Seasonality =Yes, Village =Fore-Road loko, Section =Mayorthan","#water_tech, #status_id, #notes"]
["Bombali","Gbendembu","Mayorthan","Fore-Road loko",500,3,"At the Pri. Sch.",7,"Yes","Non","9.07961","-12.13497",false,false,"IM2","India Mark II","School","HDW","Hand Dug Well","Grade C","No","BO2545","Seasonality =Yes, Village =Fore-Road loko, Section =Mayorthan","#water_tech, #status_id, #notes"]
["Bombali","Gbendembu","Mayorthan","Fore-Road loko",500,4,"At the Pri. Sch.",7,"Yes","Non","9.07959","-12.13484",false,false,"IM2","India Mark II","School","HDW","Hand Dug Well","Grade C","No","BO4402","Seasonality =Yes, Village =Fore-Road loko, Section =Mayorthan","#water_tech, #status_id, #notes"]
["Bombali","Gbendembu","Mayorthan","Fore-Road loko",500,5,"At the A.B.C centre",4,"Yes","Non","9.07956","-12.13469",false,false,"IM2","India Mark II","Community","HDW","Hand Dug Well","Grade A","Yes","BO4403","Seasonality =Yes, Village =Fore-Road loko, Section =Mayorthan","#water_tech, #status_id, #notes"]
["Bombali","Gbendembu","Mayorthan","mayaingu",250,1,"At the Pri. Sch.",5,"Yes","Oui","9.05557","-12.15211",false,false,"IM2","India Mark II","School","HDW","Hand Dug Well","Grade B","Yes","BO981","Seasonality =Yes, Village =mayaingu, Section =Mayorthan","#water_tech, #status_id, #notes"]
["Bombali","Gbendembu","Mayorthan","mayaingu",250,2,"Opposite the Mosque",2,"Yes","Oui","9.05590","-12.15275",false,false,"IM2","India Mark II","Community","HDW","Hand Dug Well","Grade A","Yes","BO980","Seasonality =Yes, Village =mayaingu, Section =Mayorthan","#water_tech, #status_id, #notes"]
["Bombali","Gbendembu","Mayorthan","mayigibah",200,1,"Entrance of the town",4,"Yes","Non","9.09457","-12.23502",false,false,"IM2","India Mark II","Community","HDW","Hand Dug Well","Grade A","Yes","BO4734","Seasonality =Yes, Village =mayigibah, Section =Mayorthan","#water_tech, #status_id, #notes"]
["Bombali","Gbendembu","Mayorthan","mayorthan",250,1,"Close to the Mosque",2,"Yes","Oui","9.05738","-12.14450",false,false,"IM2","India Mark II","Community","HDW","Hand Dug Well","Grade C","No","BO4404","Seasonality =Yes, Village =mayorthan, Section =Mayorthan","#water_tech, #status_id, #notes"]
["Bombali","Gbendembu","Mayorthan","Ronkohun",478,1,"Close to the Mosque",4,"Yes","Non","9.08786","-12.26447",false,false,"IM2","India Mark II","Community","HDW","Hand Dug Well","Grade A","Yes","BO982","Seasonality =Yes, Village =Ronkohun, Section =Mayorthan","#water_tech, #status_id, #notes"]
["Bombali","Gbendembu","Mayorthan","Ronkohun",478,2,"S.L.G.B.O Pri. Sch.",5,"Yes","Non","9.08889","-12.26338",false,false,"IM2","India Mark II","School","HDW","Hand Dug Well","Grade B","Yes","BO983",{"$f":"_xlfn.CONCAT(\"Seasonality =\",I834,\", \",\"Village =\", D834,\", \",\"Section =\", C834)","v":"Seasonality =Yes, Village =Ronkohun, Section =Mayorthan"},"#water_tech, #status_id, #notes"]
["Bombali","Gbendembu","Mayorthan","Ronkohun",478,3,"Centre of the village",0,{"$f":"IF(H835>0,\"Yes\",\"No\")","v":"No"},"Non","9.08809","-12.26425",false,false,"IM2","India Mark II","Community","HDW","Hand Dug Well","Grade A",{"$f":"IF(OR(T835=\"Grade A\",T835=\"Grade B\"),\"Yes\",\"No\")","v":"Yes"},"BO4733","Seasonality =No, Village =Ronkohun, Section =Mayorthan","#water_tech, #status_id, #notes"]
["Bombali","Gbendembu","Robanka","kenema",150,1,"Entrance of the village",0,"No","Oui","9.21572","-12.05988",false,false,"IM2","India Mark II","Community","HDW","Hand Dug Well","Grade A","Yes","BO2062","Seasonality =No, Village =kenema, Section =Robanka","#water_tech, #status_id, #notes"]
["Bombali","Gbendembu","Robanka","makeheh",300,1,"Out of the village",3,"Yes","Oui","9.21200","-12.03237",false,false,"IM2","India Mark II","Community","HDW","Hand Dug Well","Grade A","Yes","BO969","Seasonality =Yes, Village =makeheh, Section =Robanka","#water_tech, #status_id, #notes"]
["Bombali","Gbendembu","Robanka","Robanka",180,1,"Close to the Mosque",3,"Yes","Oui","9.22583","-12.05780",false,false,"IM2","India Mark II","Community","HDW","Hand Dug Well","Grade A","Yes","BO2061","Seasonality =Yes, Village =Robanka, Section =Robanka","#water_tech, #status_id, #notes"]
["Bombali","Gbendembu","Robanka","Torgborhun",200,1,"Centre of the village",4,"Yes","Oui","9.23588","-12.03947",false,false,"IM2","India Mark II","Community","HDW","Hand Dug Well","Grade A","Yes","BO2835","Seasonality =Yes, Village =Torgborhun, Section =Robanka","#water_tech, #status_id, #notes"]
["Bombali","Gbendembu","Sahun","Gbengoro",497,1,"Centre of the village",4,"Yes","Oui","9.09203","-12.09044",false,false,"IM2","India Mark II","Community","BH","Borehole","Grade A","Yes","BO988","Seasonality =Yes, Village =Gbengoro, Section =Sahun","#water_tech, #status_id, #notes"]
["Bombali","Gbendembu","Sahun","Magbandi",150,1,"Centre of the village",3,"Yes","Oui","9.07349","-12.07193",false,false,"IM2","India Mark II","Community","BH","Borehole","Grade A","Yes","BO989","Seasonality =Yes, Village =Magbandi, Section =Sahun","#water_tech, #status_id, #notes"]
["Bombali","Gbendembu","Sahun","Makorheh",130,1,"Centre of the village",3,"Yes","Oui","9.15039","-12.06378",false,false,"IM2","India Mark II","Community","HDW","Hand Dug Well","Grade A","Yes","BO2183","Seasonality =Yes, Village =Makorheh, Section =Sahun","#water_tech, #status_id, #notes"]
["Bombali","Gbendembu","Sahun","Malaie",223,1,"Close to the Mosque",2,"Yes","Oui","9.10649","-12.08199",false,false,"IM2","India Mark II","Community","HDW","Hand Dug Well","Grade A","Yes","BO2064","Seasonality =Yes, Village =Malaie, Section =Sahun","#water_tech, #status_id, #notes"]
["Bombali","Gbendembu","Sahun","Mandaha",365,1,"In the Town",2,"Yes","Non","9.14734","-12.05050",false,false,"IM2","India Mark II","Community","HDW","Hand Dug Well","Grade A","Yes","BO4679","Seasonality =Yes, Village =Mandaha, Section =Sahun","#water_tech, #status_id, #notes"]
["Bombali","Gbendembu","Sahun","Manjaha",200,1,"Close to the Mosque",3,"Yes","Oui","9.14733","-12.05050",false,false,"IM2","India Mark II","Community","HDW","Hand Dug Well","Grade A","Yes","BO4405","Seasonality =Yes, Village =Manjaha, Section =Sahun","#water_tech, #status_id, #notes"]
["Bombali","Gbendembu","Sahun","Manjawor",384,1,"Centre of the village",4,"Yes","Oui","9.07922","-12.09568",false,false,"IM2","India Mark II","Community","HDW","Hand Dug Well","Grade A","Yes","BO986","Seasonality =Yes, Village =Manjawor, Section =Sahun","#water_tech, #status_id, #notes"]
["Bombali","Gbendembu","Sahun","Manjawor",384,2,"Centre of the village",3,"Yes","Oui","9.08123","-12.09625",false,false,"IM2","India Mark II","Community","HDW","Hand Dug Well","Grade A","Yes","BO987","Seasonality =Yes, Village =Manjawor, Section =Sahun","#water_tech, #status_id, #notes"]
["Bombali","Gbendembu","Sahun","Sahun",447,1,"Close to the Mosque",4,"Yes","Non","9.09293","-12.08864",false,false,"IM2","India Mark II","School","HDW","Hand Dug Well","Grade A","Yes","BO2063","Seasonality =Yes, Village =Sahun, Section =Sahun","#water_tech, #status_id, #notes"]
["Bombali","Gbendembu","Sahun","Sahun",447,2,"Centre of the village",2,"Yes","Oui","9.09292","-12.08823",false,false,"IM2","India Mark II","Community","HDW","Hand Dug Well","Grade A","Yes","BO4406","Seasonality =Yes, Village =Sahun, Section =Sahun","#water_tech, #status_id, #notes"]
["Bombali","Gbendembu","Tanehun","Mafortaneh",160,1,"Out of the village",0,"No","Oui","9.07956","-12.13469",false,false,"IM2","India Mark II","Community","HDW","Hand Dug Well","Grade A","Yes","BO2058","Seasonality =No, Village =Mafortaneh, Section =Tanehun","#water_tech, #status_id, #notes"]
["Bombali","Gbendembu","Tanehun","Magbugu",250,1,"Entrance of the village",2,"Yes","Oui","9.12511","-12.05155",false,false,"IM2","India Mark II","Community","HDW","Hand Dug Well","Grade A","Yes","BO2811","Seasonality =Yes, Village =Magbugu, Section =Tanehun","#water_tech, #status_id, #notes"]
["Bombali","Gbendembu","Tanehun","Magbuku",150,1,"Out of town",4,"Yes","Non","9.20849","-12.08590",false,false,"IM2","India Mark II","Community","HDW","Hand Dug Well","Grade A","Yes","BO2060","Seasonality =Yes, Village =Magbuku, Section =Tanehun","#water_tech, #status_id, #notes"]
["Bombali","Gbendembu","Tanehun","Makasseh/Ngobehun",351,1,"Middle of the town",3,"Yes","Non","9.22338","-12.10934",false,false,"IM2","India Mark II","Community","HDW","Hand Dug Well","Grade A","Yes","BO2806","Seasonality =Yes, Village =Makasseh/Ngobehun, Section =Tanehun","#water_tech, #status_id, #notes"]
["Bombali","Gbendembu","Tanehun","Managba",155,1,"End of the village",0,"No","Oui","9.09553","-12.05595",false,false,"IM2","India Mark II","Community","HDW","Hand Dug Well","Grade A","Yes","BO2187","Seasonality =No, Village =Managba, Section =Tanehun","#water_tech, #status_id, #notes"]
["Bombali","Gbendembu","Tanehun","Mandorie 1",165,1,"End of the village",4,"Yes","Oui","9.11056","-12.05369",false,false,"IM2","India Mark II","Community","HDW","Hand Dug Well","Grade A","Yes","BO4407","Seasonality =Yes, Village =Mandorie 1, Section =Tanehun","#water_tech, #status_id, #notes"]
["Bombali","Gbendembu","Tanehun","Mandorie 1",165,2,"At the Pri. Sch.",4,"Yes","Non","9.10998","-12.05409",true,false,"Just pedestal - incomplete","Just pedestal - incomplete","School","HDW","Hand Dug Well","Grade C","No","BO4408","Seasonality =Yes, Village =Mandorie 1, Section =Tanehun","#water_tech, #status_id, #notes"]
["Bombali","Gbendembu","Tanehun","Matamba",170,1,"Side of the village",2,"Yes","Oui","9.22277","-12.09429",false,false,"IM2","India Mark II","Community","HDW","Hand Dug Well","Grade A","Yes","BO2059","Seasonality =Yes, Village =Matamba, Section =Tanehun","#water_tech, #status_id, #notes"]
["Bombali","Gbendembu","Tanehun","Tanehun",150,1,"End of the village",0,"No","Oui","9.21942","-12.09742",false,false,"IM2","India Mark II","Community","HDW","Hand Dug Well","Grade A","Yes","BO2057","Seasonality =No, Village =Tanehun, Section =Tanehun","#water_tech, #status_id, #notes"]
["Bombali","Kamaranka","Kamaranka","kamaranka",1356,1,"Entrance of the village",0,"No","Oui","9.29621","-12.21043",false,false,"PB2","PB Mark II","Community","BH","Borehole","Grade A","Yes","BO4409","Seasonality =No, Village =kamaranka, Section =Kamaranka","#water_tech, #status_id, #notes"]
["Bombali","Kamaranka","Kamaranka","kamaranka",1356,2,"Side of the village",2,"Yes","Oui","9.29527","-12.21159",false,false,"Kardia","Kardia","Community","HDW","Hand Dug Well","Grade C","No","BO1591","Seasonality =Yes, Village =kamaranka, Section =Kamaranka","#water_tech, #status_id, #notes"]
["Bombali","Kamaranka","Kamaranka","kamaranka",1356,3,"S.L.M.W.B.O Pri. Sch.",2,"Yes","Oui","9.29525","-12.21299",false,false,"IM2","India Mark II","School","HDW","Hand Dug Well","Grade A","Yes","BO1967","Seasonality =Yes, Village =kamaranka, Section =Kamaranka","#water_tech, #status_id, #notes"]
["Bombali","Kamaranka","Kamaranka","kamaranka",1356,4,"R.C Pri. Sch. Cpd",0,"No","Oui","9.29683","-12.20837",false,false,"India Mark III","India Mark III","School","HDW","Hand Dug Well","Grade A","Yes","BO1969","Seasonality =No, Village =kamaranka, Section =Kamaranka","#water_tech, #status_id, #notes"]
["Bombali","Kamaranka","Kamaranka","kamaranka",1356,5,"Close to the PHU",0,"No","Oui","9.29752","-12.20584",false,false,"IM2","India Mark II","Community","BH","Borehole","Grade A","Yes","BO1589","Seasonality =No, Village =kamaranka, Section =Kamaranka","#water_tech, #status_id, #notes"]
["Bombali","Kamaranka","Kamaranka","kamaranka",1356,6,"At the PHU centre",0,"No","Oui","9.29778","-12.20599",false,true,"Solar Tap System","Solar Tap System ","Health Facility","BH","Borehole","Grade A","Yes","BO4410","Seasonality =No, Village =kamaranka, Section =Kamaranka","#water_tech, #status_id, #notes"]
["Bombali","Kamaranka","Kamaranka","kamaranka",1356,7,"At the Police Quarter",2,"Yes","Oui","9.29563","-12.20703",false,false,"IM2","India Mark II","Community","HDW","Hand Dug Well","Grade A","Yes","BO1592","Seasonality =Yes, Village =kamaranka, Section =Kamaranka","#water_tech, #status_id, #notes"]
["Bombali","Kamaranka","Kamaranka","kamaranka",1356,8,"At the Councilor Office",3,"Yes","Oui","9.29521","-12.20727",false,false,"IM2","India Mark II","Community","BH","Borehole","Grade A","Yes","BO1590","Seasonality =Yes, Village =kamaranka, Section =Kamaranka","#water_tech, #status_id, #notes"]
["Bombali","Kamaranka","Kamaranka","kamaranka",1356,9,"Kamaranka Sec. Sch.",3,"Yes","Oui","9.29089","-12.20528",false,false,"IM2","India Mark II","School","HDW","Hand Dug Well","Grade A","Yes","BO1593","Seasonality =Yes, Village =kamaranka, Section =Kamaranka","#water_tech, #status_id, #notes"]
["Bombali","Kamaranka","Kamaranka","kamaranka",1356,10,"King Murray SC",null,"No","Non","9.29830","-12.20519",false,false,null,0,"School","HDW","Hand Dug Well","Grade X","No","BO4722","Seasonality =No, Village =kamaranka, Section =Kamaranka","#water_tech, #status_id, #notes"]
["Bombali","Kamaranka","Kamaranka","kamaranka",1356,11,"Entrance of the school",null,"No","Non","9.29100","-12.20529",true,false,"Just pedestal - incomplete","Just pedestal - incomplete","School","HDW","Hand Dug Well","Grade X","No","BO4723","Seasonality =No, Village =kamaranka, Section =Kamaranka","#water_tech, #status_id, #notes"]
["Bombali","Kamaranka","Kamaranka","makuteh",320,1,"F.A.W.E Pri. Sch.",3,"Yes","Oui","9.27709","-12.19123",false,false,"India Mark III","India Mark III","School","HDW","Hand Dug Well","Grade C","No","BO4411","Seasonality =Yes, Village =makuteh, Section =Kamaranka","#water_tech, #status_id, #notes"]
["Bombali","Kamaranka","Kamaranka","mamanso",200,1,"S.L.M.W.B.O Pri. Sch.",0,"No","Oui","9.32258","-12.15736",false,false,"IM2","India Mark II","School","HDW","Hand Dug Well","Grade B","Yes","BO1551","Seasonality =No, Village =mamanso, Section =Kamaranka","#water_tech, #status_id, #notes"]
["Bombali","Kamaranka","Kamaranka","mamanso",200,2,"Side of the village",0,"No","Oui","9.32324","-12.15676",false,false,"IM2","India Mark II","Community","HDW","Hand Dug Well","Grade B","Yes","BO2091","Seasonality =No, Village =mamanso, Section =Kamaranka","#water_tech, #status_id, #notes"]
["Bombali","Kamaranka","Makapr","makapr",350,1,"side of the village",2,"Yes","Oui","9.29158","-12.17419",false,false,"IM2","India Mark II","Community","HDW","Hand Dug Well","Grade A","Yes","BO2534","Seasonality =Yes, Village =makapr, Section =Makapr","#water_tech, #status_id, #notes"]
["Bombali","Kamaranka","Makapr","makapr",350,2,"At WCSL primary school",0,"No","Oui","9.29079","-12.17464",false,false,"IM2","India Mark II","School","HDW","Hand Dug Well","Grade A","Yes","BO2535","Seasonality =No, Village =makapr, Section =Makapr","#water_tech, #status_id, #notes"]
["Bombali","Kamaranka","Makapr","Rokon",230,1,"End of the village",3,"Yes","Oui","9.29136","-12.15566",false,false,"IM2","India Mark II","Community","HDW","Hand Dug Well","Grade A","Yes","BO2068","Seasonality =Yes, Village =Rokon, Section =Makapr","#water_tech, #status_id, #notes"]
["Bombali","Kamaranka","Makapr","Rosinth 1",230,1,"Entrance of the village",0,"No","Oui","9.28232","-12.17243",false,false,"IM2","India Mark II","Community","HDW","Hand Dug Well","Grade A","Yes","BO1949","Seasonality =No, Village =Rosinth 1, Section =Makapr","#water_tech, #status_id, #notes"]
["Bombali","Kamaranka","Makapr","Rosinth 3",200,1,"centre of the village",0,"No","Oui","9.27587","-12.17161",false,false,"IM2","India Mark II","Community","HDW","Hand Dug Well","Grade A","Yes","BO1964","Seasonality =No, Village =Rosinth 3, Section =Makapr","#water_tech, #status_id, #notes"]
["Bombali","Kamaranka","Malikia","Malikia",400,1,"Centre of the village",1,"Yes","Oui","9.27881","-12.23900",false,false,"Kardia","Kardia","Community","HDW","Hand Dug Well","Grade A","Yes","BO1549","Seasonality =Yes, Village =Malikia, Section =Malikia","#water_tech, #status_id, #notes"]
["Bombali","Kamaranka","Malikia","Malikia",400,2,"B.D.E.C Pri. School",1,"Yes","Oui","9.28034","-12.23787",false,false,"IM2","India Mark II","School","HDW","Hand Dug Well","Grade A","Yes","BO1968","Seasonality =Yes, Village =Malikia, Section =Malikia","#water_tech, #status_id, #notes"]
["Bombali","Kamaranka","Malikia","Robanka",600,1,"Out of the village",4,"Yes","Oui","9.27001","-12.23230",false,false,"IM2","India Mark II","Community","HDW","Hand Dug Well","Grade A","Yes","BO1550","Seasonality =Yes, Village =Robanka, Section =Malikia","#water_tech, #status_id, #notes"]
["Bombali","Kamaranka","Maneh","Gbomsamu",195,1,"centre of the village",1,"Yes","Oui","9.29580","-12.24081",false,false,"IM2","India Mark II","Community","HDW","Hand Dug Well","Grade A","Yes","BO1868","Seasonality =Yes, Village =Gbomsamu, Section =Maneh","#water_tech, #status_id, #notes"]
["Bombali","Kamaranka","Maneh","kunthaya",450,1,"Side of the village",2,"Yes","Oui","9.30131","-12.21439",false,false,"Kardia","Kardia","Community","HDW","Hand Dug Well","Grade A","Yes","BO1531","Seasonality =Yes, Village =kunthaya, Section =Maneh","#water_tech, #status_id, #notes"]
["Bombali","Kamaranka","Maneh","makarankay",180,1,"Out of the Town",2,"Yes","Non","9.30411","-12.16311",false,false,"IM2","India Mark II","Community","HDW","Hand Dug Well","Grade A","Yes","BO4689","Seasonality =Yes, Village =makarankay, Section =Maneh","#water_tech, #status_id, #notes"]
["Bombali","Kamaranka","Maneh","mamank",220,1,"Centre of the village",2,"Yes","Oui","9.30897","-12.21952",false,false,"IM2","India Mark II","Community","BH","Borehole","Grade A","Yes","BO1950","Seasonality =Yes, Village =mamank, Section =Maneh","#water_tech, #status_id, #notes"]
["Bombali","Kamaranka","Maneh","Mamaso",null,1,"School Compound",0,"No","Non","9.32256","-12.15741",false,false,"IM2","India Mark II","Community","HDW","Hand Dug Well","Grade D","No","BO2069","Seasonality =No, Village =Mamaso, Section =Maneh","#water_tech, #status_id, #notes"]
["Bombali","Kamaranka","Maneh","Rowullah down",100,1,"End of the vilage",3,"Yes","Oui","9.29466","-12.23113",false,false,"Kardia","Kardia","Community","HDW","Hand Dug Well","Grade A","Yes","BO1981","Seasonality =Yes, Village =Rowullah down, Section =Maneh","#water_tech, #status_id, #notes"]
["Bombali","Kamaranka","Maneh","Rowullah up",109,1,"RC primary school cpd",2,"Yes","Oui","9.29421","-12.23481",false,false,"IM2","India Mark II","School","HDW","Hand Dug Well","Grade A","Yes","BO1966","Seasonality =Yes, Village =Rowullah up, Section =Maneh","#water_tech, #status_id, #notes"]
["Bombali","Kamaranka","Matandorkor","Gbankoro",237,1,"centre of the village",2,"Yes","Oui","9.32737","-12.23492",false,false,"PB2","PB Mark II","Community","BH","Borehole","Grade A","Yes","BO1557","Seasonality =Yes, Village =Gbankoro, Section =Matandorkor","#water_tech, #status_id, #notes"]
["Bombali","Kamaranka","Matandorkor","Gbinti kabapa",215,1,"End of the village",2,"Yes","Oui","9.31717","-12.22132",false,false,"IM2","India Mark II","Community","HDW","Hand Dug Well","Grade A","Yes","BO4412","Seasonality =Yes, Village =Gbinti kabapa, Section =Matandorkor","#water_tech, #status_id, #notes"]
["Bombali","Kamaranka","Matandorkor","Gbinti kabapa",215,2,"centre of the village",0,"No","Oui","9.31622","-12.22095",false,false,"PB2","PB Mark II","Community","BH","Borehole","Grade B","Yes","BO1569","Seasonality =No, Village =Gbinti kabapa, Section =Matandorkor","#water_tech, #status_id, #notes"]
["Bombali","Kamaranka","Matandorkor","Gbinti kabapa",215,3,"Entrance of the village",2,"Yes","Oui","9.31593","-12.22117",false,false,"Kardia","Kardia","Community","HDW","Hand Dug Well","Grade A","Yes","BO1568","Seasonality =Yes, Village =Gbinti kabapa, Section =Matandorkor","#water_tech, #status_id, #notes"]
["Bombali","Kamaranka","Matandorkor","makankoi",210,1,"close to the mosque",2,"Yes","Oui","9.32106","-12.22903",false,false,"IM2","India Mark II","Community","HDW","Hand Dug Well","Grade A","Yes","BO2697","Seasonality =Yes, Village =makankoi, Section =Matandorkor","#water_tech, #status_id, #notes"]
["Bombali","Kamaranka","Matandorkor","Masoryer",1560,1,"School Compound",2,"Yes","Non","9.33915","-12.25151",true,false,"Just pedestal - incomplete","Just pedestal - incomplete","School","HDW","Hand Dug Well","Grade C","No","BO2747","Seasonality =Yes, Village =Masoryer, Section =Matandorkor","#water_tech, #status_id, #notes"]
["Bombali","Kamaranka","Matandorkor","matandorkor",490,1,"Entrance of the village",1,"Yes","Oui","9.34046","-12.24815",false,false,"IM2","India Mark II","Community","HDW","Hand Dug Well","Grade A","Yes","BO1865","Seasonality =Yes, Village =matandorkor, Section =Matandorkor","#water_tech, #status_id, #notes"]
["Bombali","Kamaranka","Royeama","Ro Lilliya",560,1,"At RC pri. School compound",0,"No","Oui","9.26186","-12.17537",false,false,"IM2","India Mark II","School","HDW","Hand Dug Well","Grade A","Yes","BO2704","Seasonality =No, Village =Ro Lilliya, Section =Royeama","#water_tech, #status_id, #notes"]
["Bombali","Kamaranka","Royeama","Ro Lilliya",560,2,"Middle of the Town",2,"Yes","Non","9.26163","-12.17828",false,false,"IM2","India Mark II","Community","HDW","Hand Dug Well","Grade A","Yes","BO4687","Seasonality =Yes, Village =Ro Lilliya, Section =Royeama","#water_tech, #status_id, #notes"]
["Bombali","Kamaranka","Royeama","Robat",180,null,"Side of the Village",null,"No","Non","9.24965","-12.15477",false,false,null,0,"Community","Spring","Spring","Grade A","Yes","BO1560","Seasonality =No, Village =Robat, Section =Royeama","#water_tech, #status_id, #notes"]
["Bombali","Kamaranka","Royeama","Royeama",629,null,"Side of the town",null,"No","Non","9.24965","-12.15477",false,false,null,0,"Community","Spring","Spring","Grade A","Yes","BO4416",{"$f":"_xlfn.CONCAT(\"Seasonality =\",I898,\", \",\"Village =\", D898,\", \",\"Section =\", C898)","v":"Seasonality =No, Village =Royeama, Section =Royeama"},"#water_tech, #status_id, #notes"]
["Bombali","Kamaranka","Royeama","Royeama",629,1,"End of the village",0,{"$f":"IF(H899>0,\"Yes\",\"No\")","v":"No"},"Oui","9.24891","-12.16049",false,false,"IM2","India Mark II","Community","BH","Borehole","Grade A",{"$f":"IF(OR(T899=\"Grade A\",T899=\"Grade B\"),\"Yes\",\"No\")","v":"Yes"},"BO1889","Seasonality =No, Village =Royeama, Section =Royeama","#water_tech, #status_id, #notes"]
["Bombali","Kamaranka","Royeama","Royeama",629,2,"close to the mosque",5,"Yes","Oui","9.24918","-12.16164",false,false,"IM2","India Mark II","Community","HDW","Hand Dug Well","Grade D","No","BO4414","Seasonality =Yes, Village =Royeama, Section =Royeama","#water_tech, #status_id, #notes"]
["Bombali","Kamaranka","Royeama","Royeama",629,3,"At SLMWBO pri. School",0,"No","Oui","9.24931","-12.16331",false,false,"IM2","India Mark II","Community","HDW","Hand Dug Well","Grade A","Yes","BO1887","Seasonality =No, Village =Royeama, Section =Royeama","#water_tech, #status_id, #notes"]
["Bombali","Kamaranka","Royeama","Royeama",629,4,"At the ABC store",3,"Yes","Oui","9.25128","-12.16911",false,false,"IM2","India Mark II","Community","HDW","Hand Dug Well","Grade D","No","BO4415","Seasonality =Yes, Village =Royeama, Section =Royeama","#water_tech, #status_id, #notes"]
["Bombali","Kamaranka","Royeama","Royeama",629,5,"At the health centre",4,"Yes","Oui","9.25137","-12.16420",false,true,"IM2","India Mark II plus solar pump","Health Facility","HDW","Hand Dug Well","Grade A","Yes","BO1888","Seasonality =Yes, Village =Royeama, Section =Royeama","#water_tech, #status_id, #notes"]
["Bombali","Kamaranka","Royeama","Thongbonkle",100,null,"End of the town",null,"No","Non","9.24965","-12.15477",false,false,null,0,"Community","Spring","Spring","Grade A","Yes","BO1573","Seasonality =No, Village =Thongbonkle, Section =Royeama","#water_tech, #status_id, #notes"]
["Bombali","Kamaranka","Sakuma","Arafa",290,1,"close to the store",2,"Yes","Oui","9.29194","-12.22669",false,false,"Kardia","Kardia","Community","HDW","Hand Dug Well","Grade A","Yes","BO1548","Seasonality =Yes, Village =Arafa, Section =Sakuma","#water_tech, #status_id, #notes"]
["Bombali","Kamaranka","Sakuma","makaiba",750,1,"End of the village",3,"Yes","Oui","9.25884","-12.20935",false,false,"Kardia","Kardia","Community","HDW","Hand Dug Well","Grade A","Yes","BO1853","Seasonality =Yes, Village =makaiba, Section =Sakuma","#water_tech, #status_id, #notes"]
["Bombali","Kamaranka","Sakuma","makaiba",750,2,"centre of the village",2,"Yes","Oui","9.25949","-12.20867",false,false,"IM2","India Mark II","Community","BH","Borehole","Grade D","No","BO1851","Seasonality =Yes, Village =makaiba, Section =Sakuma","#water_tech, #status_id, #notes"]
["Bombali","Kamaranka","Sakuma","makaiba",750,3,"At the health centre",2,"Yes","Oui","9.26010","-12.20893",false,false,"IM2","India Mark II","Health Facility","HDW","Hand Dug Well","Grade A","Yes","BO1850","Seasonality =Yes, Village =makaiba, Section =Sakuma","#water_tech, #status_id, #notes"]
["Bombali","Kamaranka","Sakuma","makaiba",750,4,"RC primary school ",2,"Yes","Oui","9.26023","-12.20597",false,false,"IM2","India Mark II","School","HDW","Hand Dug Well","Grade A","Yes","BO2088","Seasonality =Yes, Village =makaiba, Section =Sakuma","#water_tech, #status_id, #notes"]
["Bombali","Kamaranka","Sakuma","mataetie",420,1,"centre of the village",2,"Yes","Oui","9.26155","-12.20458",false,false,"Kardia","Kardia","Community","HDW","Hand Dug Well","Grade A","Yes","BO1547","Seasonality =Yes, Village =mataetie, Section =Sakuma","#water_tech, #status_id, #notes"]
["Bombali","Kamaranka","Sakuma","pintkili",589,1,"Centre of the village",1,"Yes","Oui","9.25971","-12.21024",false,false,"IM2","India Mark II","Community","HDW","Hand Dug Well","Grade A","Yes","BO1939","Seasonality =Yes, Village =pintkili, Section =Sakuma","#water_tech, #status_id, #notes"]
["Bombali","Kamaranka","Sakuma","sakuma up",410,1,"Entrance of the village",0,"No","Oui","9.28772","-12.22001",false,false,"IM2","India Mark II","Community","BH","Borehole","Grade A","Yes","BO1558","Seasonality =No, Village =sakuma up, Section =Sakuma","#water_tech, #status_id, #notes"]
["Bombali","Kamaranka","Sakuma","sakuma up",410,2,"centre of the village",0,"No","Oui","9.28841","-12.22036",false,false,"PB2","PB Mark II","Community","HDW","Hand Dug Well","Grade A","Yes","BO1990","Seasonality =No, Village =sakuma up, Section =Sakuma","#water_tech, #status_id, #notes"]
["Bombali","Kamaranka","Sendugu","Gbaneh",290,1,"Entrance of the village",2,"Yes","Oui","9.33810","-12.22309",false,false,"IM2","India Mark II","Community","HDW","Hand Dug Well","Grade A","Yes","BO1867","Seasonality =Yes, Village =Gbaneh, Section =Sendugu","#water_tech, #status_id, #notes"]
["Bombali","Kamaranka","Sendugu","Kalangba",258,1,"Entrance of the village",2,"Yes","Oui","9.36498","-12.21307",false,false,"IM2","India Mark II","Community","HDW","Hand Dug Well","Grade A","Yes","BO1532","Seasonality =Yes, Village =Kalangba, Section =Sendugu","#water_tech, #status_id, #notes"]
["Bombali","Kamaranka","Sendugu","Kamba",472,1,"centre of the village",3,"Yes","Oui","9.32985","-12.22585",false,false,"PB2","PB Mark II","Community","HDW","Hand Dug Well","Grade A","Yes","BO1533","Seasonality =Yes, Village =Kamba, Section =Sendugu","#water_tech, #status_id, #notes"]
["Bombali","Kamaranka","Sendugu","Kamba",472,2,"RC primary school",1,"Yes","Oui","9.33039","-12.22967",false,false,"India Mark III","India Mark III","School","HDW","Hand Dug Well","Grade A","Yes","BO4417","Seasonality =Yes, Village =Kamba, Section =Sendugu","#water_tech, #status_id, #notes"]
["Bombali","Kamaranka","Sendugu","Makarankay",350,1,"in town",4,"Yes","Non",null,null,false,false,"IM2","India Mark II","Community","HDW","Hand Dug Well","Grade A","Yes","BO1858","Seasonality =Yes, Village =Makarankay, Section =Sendugu","#water_tech, #status_id, #notes"]
["Bombali","Kamaranka","Sendugu","Makassa",650,1,"kamaranka Secondary sch.",1,"Yes","Oui","9.34799","-12.21262",false,false,"IM2","India Mark II","Community","HDW","Hand Dug Well","Grade A","Yes","BO1585","Seasonality =Yes, Village =Makassa, Section =Sendugu","#water_tech, #status_id, #notes"]
["Bombali","Kamaranka","Sendugu","Makassa",650,2,"centre of the village",2,"Yes","Oui","9.34701","-12.21271",false,false,"IM2","India Mark II","Community","HDW","Hand Dug Well","Grade A","Yes","BO1586","Seasonality =Yes, Village =Makassa, Section =Sendugu","#water_tech, #status_id, #notes"]
["Bombali","Kamaranka","Sendugu","Makassa",650,3,"RC primary school",4,"Yes","Oui","9.34598","-12.21204",false,false,"India Mark III","India Mark III","School","HDW","Hand Dug Well","Grade C","No","BO1587","Seasonality =Yes, Village =Makassa, Section =Sendugu","#water_tech, #status_id, #notes"]
["Bombali","Kamaranka","Sendugu","Makassa",650,4,"Side of the village",0,"No","Non","9.34747","-12.21235",true,false,"Pully","Pully","Community","Pulley","Pulley","Grade D","No","BO1588","Seasonality =No, Village =Makassa, Section =Sendugu","#water_tech, #status_id, #notes"]
["Bombali","Kamaranka","Sendugu","Maken",287,1,"Side of the village",null,"No","Non","9.34141","-12.21515",false,true,"Submersive","Submersive plus solar pump","Community","BH","Borehole","Grade A","Yes","BO4721","Seasonality =No, Village =Maken, Section =Sendugu","#water_tech, #status_id, #notes"]
["Bombali","Kamaranka","Sendugu","Malal",190,1,"close to the school",3,"Yes","Oui","9.34606","-12.21253",false,false,"Kardia","Kardia","Community","HDW","Hand Dug Well","Grade A","Yes","BO4418","Seasonality =Yes, Village =Malal, Section =Sendugu","#water_tech, #status_id, #notes"]
["Bombali","Kamaranka","Sendugu","sendugu",195,1,"Out of the village",1,"Yes","Oui","9.32999","-12.22342",false,false,"IM2","India Mark II","Community","HDW","Hand Dug Well","Grade A","Yes","BO1866","Seasonality =Yes, Village =sendugu, Section =Sendugu","#water_tech, #status_id, #notes"]
["Bombali","Magbaimba N'dohahun","Hunduwa","Hunduwa",400,1,"At the Nursery Facility",2,"Yes","Non","9.23775","-12.06125",false,false,"IM2","India Mark II","Health Facility","HDW","Hand Dug Well","Grade A","Yes","BO1920","Seasonality =Yes, Village =Hunduwa, Section =Hunduwa","#water_tech, #status_id, #notes"]
["Bombali","Magbaimba N'dohahun","Hunduwa","Hunduwa",400,2,"R.C Pri. Sch.",3,"Yes","Non","9.23823","-12.0611",false,false,"IM2","India Mark II","School","HDW","Hand Dug Well","Grade A","Yes","BO1921","Seasonality =Yes, Village =Hunduwa, Section =Hunduwa","#water_tech, #status_id, #notes"]
["Bombali","Magbaimba N'dohahun","Hunduwa","Hunduwa",400,3,"Centre of the village",3,"Yes","Non","9.23865","-12.06247",false,false,"IM2","India Mark II","Community","HDW","Hand Dug Well","Grade A","Yes","BO1923","Seasonality =Yes, Village =Hunduwa, Section =Hunduwa","#water_tech, #status_id, #notes"]
["Bombali","Magbaimba N'dohahun","Hunduwa","Hunduwa",400,4,"Close the Community centre",0,"No","Non","9.23835","-12.06417",true,false,"IM2","India Mark II","Community","HDW","Hand Dug Well","Grade D","No","BO1922","Seasonality =No, Village =Hunduwa, Section =Hunduwa","#water_tech, #status_id, #notes"]
["Bombali","Magbaimba N'dohahun","Hunduwa","malahai",70,1,"At the Health Centre",3,"Yes","Non","9.22068","-12.14017",false,false,"IM2","India Mark II","Health Facility","HDW","Hand Dug Well","Grade A","Yes","BO4419","Seasonality =Yes, Village =malahai, Section =Hunduwa","#water_tech, #status_id, #notes"]
["Bombali","Magbaimba N'dohahun","Hunduwa","Masorie Nhoi",65,1,"Moreya Road",0,"No","Oui","9.2488","-12.04117",false,false,"IM2","India Mark II","Community","HDW","Hand Dug Well","Grade A","Yes","BO2008","Seasonality =No, Village =Masorie Nhoi, Section =Hunduwa","#water_tech, #status_id, #notes"]
["Bombali","Magbaimba N'dohahun","Kababala","Machogo",200,1,"Entrance of the village",0,"No","Oui","9.16722","-12.17143",false,false,"IM2","India Mark II","Community","HDW","Hand Dug Well","Grade A","Yes","BO1952","Seasonality =No, Village =Machogo, Section =Kababala","#water_tech, #status_id, #notes"]
["Bombali","Magbaimba N'dohahun","Kababala","Magboema",650,1,"At the community pri.sch",0,"No","Oui","9.14235","-12.17635",false,false,"PB2","PB Mark II","School","HDW","Hand Dug Well","Grade C","No","BO1994","Seasonality =No, Village =Magboema, Section =Kababala","#water_tech, #status_id, #notes"]
["Bombali","Magbaimba N'dohahun","Kababala","Magboema",650,2,"End of the village",0,"No","Oui","9.14203","-12.17602",false,false,"IM2","India Mark II","Community","HDW","Hand Dug Well","Grade A","Yes","BO4420","Seasonality =No, Village =Magboema, Section =Kababala","#water_tech, #status_id, #notes"]
["Bombali","Magbaimba N'dohahun","Kababala","Mahokoway",90,1,"centre of the village",0,"No","Oui","9.21363","-12.16323",false,false,"IM2","India Mark II","Community","HDW","Hand Dug Well","Grade A","Yes","BO1955","Seasonality =No, Village =Mahokoway, Section =Kababala","#water_tech, #status_id, #notes"]
["Bombali","Magbaimba N'dohahun","Kababala","Makawo",145,1,"Entrance of the village",0,"No","Oui","9.16363","-12.14788",false,false,"IM2","India Mark II","Community","HDW","Hand Dug Well","Grade A","Yes","BO1954","Seasonality =No, Village =Makawo, Section =Kababala","#water_tech, #status_id, #notes"]
["Bombali","Magbaimba N'dohahun","Kababala","Mapundi",150,1,"close to the church",0,"No","Oui","9.2007","-12.1476",false,false,"IM2","India Mark II","Community","HDW","Hand Dug Well","Grade A","Yes","BO2011","Seasonality =No, Village =Mapundi, Section =Kababala","#water_tech, #status_id, #notes"]
["Bombali","Magbaimba N'dohahun","Kababala","Maseba",60,2,"End of the village",0,"No","Oui","9.18357","-12.15982",false,false,"IM2","India Mark II","Community","BH","Borehole","Grade A","Yes","BO4421","Seasonality =No, Village =Maseba, Section =Kababala","#water_tech, #status_id, #notes"]
["Bombali","Magbaimba N'dohahun","Kababala","Pelewala",220,1,"At pelewala 2",0,"No","Oui","9.1857","-12.14758",false,false,"PB2","PB Mark II","Community","HDW","Hand Dug Well","Grade A","Yes","BO1926","Seasonality =No, Village =Pelewala, Section =Kababala","#water_tech, #status_id, #notes"]
["Bombali","Magbaimba N'dohahun","Kababala","Pelewala",220,2,"BDEC school",5,"Yes","Oui","9.1845","-12.14798",false,false,"Kardia","Kardia","School","HDW","Hand Dug Well","Grade A","Yes","BO1993","Seasonality =Yes, Village =Pelewala, Section =Kababala","#water_tech, #status_id, #notes"]
["Bombali","Magbaimba N'dohahun","Kababala","Pelewala",220,3,"pelewala 1",3,"Yes","Oui","9.18957","-12.14743",false,false,"IM2","India Mark II","Private","HDW","Hand Dug Well","Grade A","Yes","BO2012","Seasonality =Yes, Village =Pelewala, Section =Kababala","#water_tech, #status_id, #notes"]
["Bombali","Magbaimba N'dohahun","Kababala","Pelewala",220,4,"By WCSL church",0,"No","Oui","9.18802","-12.14673",false,false,"IM2","India Mark II","Community","BH","Borehole","Grade A","Yes","BO4422","Seasonality =No, Village =Pelewala, Section =Kababala","#water_tech, #status_id, #notes"]
["Bombali","Magbaimba N'dohahun","Kababala","Robanka",750,1,"Entrance of the village",4,"Yes","Oui","9.18272","-12.15988",false,false,"PB2","PB Mark II","Community","HDW","Hand Dug Well","Grade A","Yes","BO1925","Seasonality =Yes, Village =Robanka, Section =Kababala","#water_tech, #status_id, #notes"]
["Bombali","Magbaimba N'dohahun","Kagbere","kagbere",500,1,"Kagbere Comm. Sec. Sch",0,"No","Non","9.22171","-12.14319",false,false,"IM2","India Mark II","School","BH","Borehole","Grade A","Yes","BO2208","Seasonality =No, Village =kagbere, Section =Kagbere","#water_tech, #status_id, #notes"]
["Bombali","Magbaimba N'dohahun","Kagbere","kagbere",500,2,"W.C.S.L Pri. Sch. Compound",2,"Yes","Oui","9.22556","-12.1401",false,false,"IM2","India Mark II","School","HDW","Hand Dug Well","Grade A","Yes","BO1928","Seasonality =Yes, Village =kagbere, Section =Kagbere","#water_tech, #status_id, #notes"]
["Bombali","Magbaimba N'dohahun","Kagbere","kagbere",500,3,"At the CHC",0,"No","Oui","9.22048","-12.14053",false,true,"IM2","India Mark II plus solar pump","Health Facility","HDW","Hand Dug Well","Grade A","Yes","BO1932","Seasonality =No, Village =kagbere, Section =Kagbere","#water_tech, #status_id, #notes"]
["Bombali","Magbaimba N'dohahun","Kagbere","kagbere",500,4,"African Muslim Agency sch.",9,"Yes","Non","9.21987","-12.14133",false,false,"IM2","India Mark II","School","HDW","Hand Dug Well","Grade A","Yes","BO1931","Seasonality =Yes, Village =kagbere, Section =Kagbere","#water_tech, #status_id, #notes"]
["Bombali","Magbaimba N'dohahun","Kagbere","kagbere",500,5,"Opposite W.C.S.L Church",3,"Yes","Oui","9.22316","-12.1389",false,false,"PB2","PB Mark II","Community","HDW","Hand Dug Well","Grade A","Yes","BO1930","Seasonality =Yes, Village =kagbere, Section =Kagbere","#water_tech, #status_id, #notes"]
["Bombali","Magbaimba N'dohahun","Kagbere","kagbere",500,6,"End of the village",0,"No","Oui","9.22343","-12.13841",false,false,"Kardia","Kardia","Community","BH","Borehole","Grade A","Yes","BO1927","Seasonality =No, Village =kagbere, Section =Kagbere","#water_tech, #status_id, #notes"]
["Bombali","Magbaimba N'dohahun","Kagbere","kagbere",500,7,"Kagbere Comm. Sec. Sch",null,"No","Non","9.22192","-12.14284",false,false,"Just pedestal - incomplete","Just pedestal - incomplete","School","HDW","Hand Dug Well","Grade E","No","BO2078","Seasonality =No, Village =kagbere, Section =Kagbere","#water_tech, #status_id, #notes"]
["Bombali","Magbaimba N'dohahun","Kagbere","kagbere",500,8,"Magahoe road",2,"Yes","Non","9.22205","-12.13953",false,false,"IM2","India Mark II","Private","HDW","Hand Dug Well","Grade A","Yes","BO1995","Seasonality =Yes, Village =kagbere, Section =Kagbere","#water_tech, #status_id, #notes"]
["Bombali","Magbaimba N'dohahun","Kagbere","kagbere",500,9,"Chief Compound",4,"Yes","Non","9.22419","-12.13873",true,false,"Just pedestal - incomplete","Just pedestal - incomplete","Community","BH","Borehole","Grade E","No","BO1929","Seasonality =Yes, Village =kagbere, Section =Kagbere","#water_tech, #status_id, #notes"]
["Bombali","Magbaimba N'dohahun","Kagbere","magahoe",135,1,"Magahoe Junction",3,"Yes","Oui","9.21329","-12.13967",false,false,"IM2","India Mark II","Community","HDW","Hand Dug Well","Grade C","No","BO1935","Seasonality =Yes, Village =magahoe, Section =Kagbere","#water_tech, #status_id, #notes"]
["Bombali","Magbaimba N'dohahun","Kagbere","mahamba",150,1,"Close to the Mosque",2,"Yes","Oui","9.21653","-12.12638",false,false,"IM2","India Mark II","Community","HDW","Hand Dug Well","Grade A","Yes","BO1936","Seasonality =Yes, Village =mahamba, Section =Kagbere","#water_tech, #status_id, #notes"]
["Bombali","Magbaimba N'dohahun","Kagbere","Mahambama",320,1,"Entrance of the village",0,"No","Oui","9.17292","-12.15597",false,false,"IM2","India Mark II","Community","HDW","Hand Dug Well","Grade A","Yes","BO1951","Seasonality =No, Village =Mahambama, Section =Kagbere","#water_tech, #status_id, #notes"]
["Bombali","Magbaimba N'dohahun","Kagbere","Neyahun",100,1,"Centre of the village",2,"Yes","Oui","9.25195","-12.13618",false,false,"Kardia","Kardia","Community","BH","Borehole","Grade A","Yes","BO1934","Seasonality =Yes, Village =Neyahun, Section =Kagbere","#water_tech, #status_id, #notes"]
["Bombali","Magbaimba N'dohahun","Kagbere","wahorowa",395,1,"Side of the village",0,"No","Oui","9.24223","-12.13568",false,false,"Kardia","Kardia","Community","BH","Borehole","Grade A","Yes","BO1933","Seasonality =No, Village =wahorowa, Section =Kagbere","#water_tech, #status_id, #notes"]
["Bombali","Magbaimba N'dohahun","Kagbere","wahorowa",395,2,"Entrance of the village",0,"No","Oui","9.24195","-12.13642",false,false,"Kardia","Kardia","Community","BH","Borehole","Grade A","Yes","BO2206","Seasonality =No, Village =wahorowa, Section =Kagbere","#water_tech, #status_id, #notes"]
["Bombali","Magbaimba N'dohahun","Kawunkulu","Kaworokosona",750,1,"out of town",3,"Yes","Non","9.38169","-11.95686",false,false,"IM2","India Mark II","Community","HDW","Hand Dug Well","Grade A","Yes","BO2171","Seasonality =Yes, Village =Kaworokosona, Section =Kawunkulu","#water_tech, #status_id, #notes"]
["Bombali","Magbaimba N'dohahun","Mabaima","Mabaima",350,1,"At the Wesleyan School",0,"No","Non","9.28398","-12.0952",false,false,"PB2","PB Mark II","School","BH","Borehole","Grade A","Yes","BO2764","Seasonality =No, Village =Mabaima, Section =Mabaima","#water_tech, #status_id, #notes"]
["Bombali","Magbaimba N'dohahun","Mabaima","Makabie",300,1,"In town",1,"Yes","Non",null,null,false,false,"IM2","India Mark II","Community","HDW","Hand Dug Well","Grade A","Yes","BO2010","Seasonality =Yes, Village =Makabie, Section =Mabaima","#water_tech, #status_id, #notes"]
["Bombali","Magbaimba N'dohahun","Mabaima","N'dendenhun",250,1,"R.C Pri. Sch.",3,"Yes","Non","9.2624","-12.13738",true,false,"Just pedestal - incomplete","Just pedestal - incomplete","School","HDW","Hand Dug Well","Grade D","No","BO4425",{"$f":"_xlfn.CONCAT(\"Seasonality =\",I962,\", \",\"Village =\", D962,\", \",\"Section =\", C962)","v":"Seasonality =Yes, Village =N'dendenhun, Section =Mabaima"},"#water_tech, #status_id, #notes"]
["Bombali","Magbaimba N'dohahun","Mabaima","N'dendenhun",250,2,"Entrance of the village",0,{"$f":"IF(H963>0,\"Yes\",\"No\")","v":"No"},"Oui","9.26235","-12.13667",false,false,"IM2","India Mark II","Community","BH","Borehole","Grade A",{"$f":"IF(OR(T963=\"Grade A\",T963=\"Grade B\"),\"Yes\",\"No\")","v":"Yes"},"BO2207","Seasonality =No, Village =N'dendenhun, Section =Mabaima","#water_tech, #status_id, #notes"]
["Bombali","Magbaimba N'dohahun","Mabaima","Wangay",350,1,"Centre of the village",0,"No","Oui","9.3052","-12.12442",false,false,"IM2","India Mark II","Community","HDW","Hand Dug Well","Grade A","Yes","BO2009","Seasonality =No, Village =Wangay, Section =Mabaima","#water_tech, #status_id, #notes"]
["Bombali","Magbaimba N'dohahun","Mabaima","Wangay",350,2,"B.D.E.C Pri. Sch.",6,"Yes","Oui","9.30702","-12.12253",true,false,"PB2","PB Mark II","School","HDW","Hand Dug Well","Grade C","No","BO4426","Seasonality =Yes, Village =Wangay, Section =Mabaima","#water_tech, #status_id, #notes"]
["Bombali","Magbaimba N'dohahun","Mabaima","Wangay",350,3,"B.D.E.C Pri. Sch.",6,"Yes","Oui","9.30668","-12.12303",false,false,"IM2","India Mark II","School","HDW","Hand Dug Well","Grade C","No","BO1924","Seasonality =Yes, Village =Wangay, Section =Mabaima","#water_tech, #status_id, #notes"]
["Bombali","Magbaimba N'dohahun","Makendema","mabuku",100,1,"out of the village",0,"No","Oui","9.28623","-12.01173",false,false,"IM2","India Mark II","Community","HDW","Hand Dug Well","Grade A","Yes","BO2007","Seasonality =No, Village =mabuku, Section =Makendema","#water_tech, #status_id, #notes"]
["Bombali","Magbaimba N'dohahun","Makendema","Magbugu",400,1,"Centre of the village",2,"Yes","Oui","9.28622","-12.01170",false,false,"IM2","India Mark II","Community","HDW","Hand Dug Well","Grade A","Yes","BO2004","Seasonality =Yes, Village =Magbugu, Section =Makendema","#water_tech, #status_id, #notes"]
["Bombali","Magbaimba N'dohahun","Makendema","makendema",180,1,"Side of the village",2,"Yes","Non","9.32264","-12.00549",false,false,"IM2","India Mark II","Community","HDW","Hand Dug Well","Grade A","Yes","BO4701","Seasonality =Yes, Village =makendema, Section =Makendema","#water_tech, #status_id, #notes"]
["Bombali","Magbaimba N'dohahun","Makendema","saccohya",74,1,"centre of the village",0,"No","Oui","9.33088","-12.0019",false,false,"IM2","India Mark II","Community","HDW","Hand Dug Well","Grade A","Yes","BO2005","Seasonality =No, Village =saccohya, Section =Makendema","#water_tech, #status_id, #notes"]
["Bombali","Magbaimba N'dohahun","Manjaka","manjaka",261,1,"Out side the village",0,"No","Oui","9.22806","-11.99805",false,false,"IM2","India Mark II","Community","HDW","Hand Dug Well","Grade A","Yes","BO4427","Seasonality =No, Village =manjaka, Section =Manjaka","#water_tech, #status_id, #notes"]
["Bombali","Magbaimba N'dohahun","Manjaka","manjaykor",200,1,"Back of the village",3,"Yes","Oui","9.25644","-12.00756",false,false,"IM2","India Mark II","Community","HDW","Hand Dug Well","Grade A","Yes","BO2168","Seasonality =Yes, Village =manjaykor, Section =Manjaka","#water_tech, #status_id, #notes"]
["Bombali","Magbaimba N'dohahun","Manjaka","mayambie",200,1,"close to the church",0,"No","Oui","9.22950","-12.00169",false,false,"IM2","India Mark II","Community","HDW","Hand Dug Well","Grade A","Yes","BO2169","Seasonality =No, Village =mayambie, Section =Manjaka","#water_tech, #status_id, #notes"]
["Bombali","Magbaimba N'dohahun","Manjaka","mayambie",200,2,"At the school compound",12,"Yes","Non","9.22843","-12.00043",false,false,"Just pedestal - incomplete","Just pedestal - incomplete","School","HDW","Hand Dug Well","Grade D","No","BO4428","Seasonality =Yes, Village =mayambie, Section =Manjaka","#water_tech, #status_id, #notes"]
["Bombali","Magbaimba N'dohahun","Sukodala","Haramakono 1",550,1,"Entrance of the village",0,"No","Oui","9.31447","-12.01028",false,false,"IM2","India Mark II","Community","HDW","Hand Dug Well","Grade A","Yes","BO2006","Seasonality =No, Village =Haramakono 1, Section =Sukodala","#water_tech, #status_id, #notes"]
["Bombali","Magbaimba N'dohahun","Sukodala","kaworokosona",350,1,"Entrance of the village",4,"Yes","Oui","9.381633","-11.95688",false,false,"IM2","India Mark II","Community","HDW","Hand Dug Well","Grade A","Yes","BO4429","Seasonality =Yes, Village =kaworokosona, Section =Sukodala","#water_tech, #status_id, #notes"]
["Bombali","Magbaimba N'dohahun","Sukodala","sokudala",298,1,"on the way to makagu",0,"No","Oui","9.3658","-11.97598",false,false,"IM2","India Mark II","Community","HDW","Hand Dug Well","Grade A","Yes","BO2170","Seasonality =No, Village =sokudala, Section =Sukodala","#water_tech, #status_id, #notes"]
["Bombali","Makarie","Magbenteh","Agape Centre",190,1,"In the Centre Compound",0,"No","Non","8.88877","-12.07507",false,false,"IM2","India Mark II","School","HDW","Hand Dug Well","Grade B","Yes","BO2705","Seasonality =No, Village =Agape Centre, Section =Magbenteh","#water_tech, #status_id, #notes"]
["Bombali","Makarie","Magbenteh","B.D.C",300,1,"Water Directorate Office",0,"No","Non","8.87945","-12.08099",false,false,"IM2","India Mark II","Community","HDW","Hand Dug Well","Grade A","Yes","BO704","Seasonality =No, Village =B.D.C, Section =Magbenteh","#water_tech, #status_id, #notes"]
["Bombali","Makarie","Magbenteh","B.D.C",300,2,"Bombali District Council",0,"No","Non","8.87943","-12.08160",false,false,"IM2","India Mark II","Community","HDW","Hand Dug Well","Grade C","No","BO705","Seasonality =No, Village =B.D.C, Section =Magbenteh","#water_tech, #status_id, #notes"]
["Bombali","Makarie","Magbenteh","Magbema",750,1,"Back of the mosque",0,"No","Non","8.88049","-12.08157",false,false,"IM2","India Mark II","Community","HDW","Hand Dug Well","Grade A","Yes","BO703","Seasonality =No, Village =Magbema, Section =Magbenteh","#water_tech, #status_id, #notes"]
["Bombali","Makarie","Magbenteh","Magbenteh",1120,1,"Section Chief",2,"Yes","Oui","8.887233","-12.07125",false,false,"PB3","PB Mark III","Community","BH","Borehole","Grade A","Yes","BO708","Seasonality =Yes, Village =Magbenteh, Section =Magbenteh","#water_tech, #status_id, #notes"]
["Bombali","Makarie","Magbenteh","Magbenteh",1120,2,"close to the coconut tree",2,"Yes","Oui","8.886833","-12.07211",false,false,"IM2","India Mark II","Community","HDW","Hand Dug Well","Grade C","No","BO707","Seasonality =Yes, Village =Magbenteh, Section =Magbenteh","#water_tech, #status_id, #notes"]
["Bombali","Makarie","Magbenteh","Magbenteh",1120,3,"Road to Rochain",0,"No","Oui","8.886216","-12.07351",false,false,"IM2","India Mark II","Community","HDW","Hand Dug Well","Grade A","Yes","BO709","Seasonality =No, Village =Magbenteh, Section =Magbenteh","#water_tech, #status_id, #notes"]
["Bombali","Makarie","Magbenteh","Magbenteh Clinic",12000,1,"At the Health Centre",0,"No","Non","8.88386","-12.07218",false,true,"Submersive","Submersive plus solar pump","Health Facility","BH","Borehole","Grade A","Yes","BO4746","Seasonality =No, Village =Magbenteh Clinic, Section =Magbenteh","#water_tech, #status_id, #notes"]
["Bombali","Makarie","Magbenteh","Magbenteh Clinic",12000,2,"At the Health Centre",0,"No","Non","8.88395","-12.07224",false,true,"Submersive","Submersive plus solar pump","Health Facility","HDW","Hand Dug Well","Grade A","Yes","BO4747","Seasonality =No, Village =Magbenteh Clinic, Section =Magbenteh","#water_tech, #status_id, #notes"]
["Bombali","Makarie","Magbenteh","Magbenteh Clinic",12000,3,"At the Guest House",0,"No","Non","8.88360","-12.07168",false,true,"Submersive","Submersive plus solar pump","Health Facility","HDW","Hand Dug Well","Grade A","Yes","BO4748","Seasonality =No, Village =Magbenteh Clinic, Section =Magbenteh","#water_tech, #status_id, #notes"]
["Bombali","Makarie","Magbenteh","Magbenteh Clinic",12000,4,"At the Health Centre",0,"No","Non","8.88364","-12.07378",false,false,"IM2","India Mark II","Health Facility","HDW","Hand Dug Well","Grade C","No","BO4749","Seasonality =No, Village =Magbenteh Clinic, Section =Magbenteh","#water_tech, #status_id, #notes"]
["Bombali","Makarie","Magbenteh","Magbopnwa",240,1,"Back of the Town",0,"No","Non","8.90169","-12.08185",false,false,"IM2","India Mark II","Community","HDW","Hand Dug Well","Grade A","Yes","BO4663","Seasonality =No, Village =Magbopnwa, Section =Magbenteh","#water_tech, #status_id, #notes"]
["Bombali","Makarie","Magbenteh","Makal",210,1,"Entrance of the village",4,"Yes","Oui","8.89345","-12.07738",false,false,"IM2","India Mark II","Community","HDW","Hand Dug Well","Grade A","Yes","BO1428","Seasonality =Yes, Village =Makal, Section =Magbenteh","#water_tech, #status_id, #notes"]
["Bombali","Makarie","Magbenteh","Matinka",340,1,"On the road to mangay",0,"No","Oui","8.890933","-12.0709",false,false,"PB2","PB Mark II","Community","BH","Borehole","Grade A","Yes","BO706","Seasonality =No, Village =Matinka, Section =Magbenteh","#water_tech, #status_id, #notes"]
["Bombali","Makarie","Magbenteh","Matinka",340,2,"On the way to mangay",0,"No","Non","8.890983","-12.07141",false,false,"Just pedestal - incomplete","Just pedestal - incomplete","Community","HDW","Hand Dug Well","Grade D","No","BO4430","Seasonality =No, Village =Matinka, Section =Magbenteh","#water_tech, #status_id, #notes"]
["Bombali","Makarie","Magbenteh","Matinka II",920,1,"On the road to foday sesay house",3,"Yes","Oui","8.892966","-12.06976",false,false,"IM2","India Mark II","Community","HDW","Hand Dug Well","Grade C","No","BO4431","Seasonality =Yes, Village =Matinka II, Section =Magbenteh","#water_tech, #status_id, #notes"]
["Bombali","Makarie","Mangay","Mafaray",170,1,"Road to magbondeh",3,"Yes","Oui","8.913816","-12.113",false,false,"IM2","India Mark II","Community","HDW","Hand Dug Well","Grade A","Yes","BO762","Seasonality =Yes, Village =Mafaray, Section =Mangay","#water_tech, #status_id, #notes"]
["Bombali","Makarie","Mangay","Magbondeh",150,1,"kayrifay road",5,"Yes","Non","8.91205","-12.12521",false,false,"Kardia","Kardia","Community","HDW","Hand Dug Well","Grade A","Yes","BO4432","Seasonality =Yes, Village =Magbondeh, Section =Mangay","#water_tech, #status_id, #notes"]
["Bombali","Makarie","Mangay","Majabama",96,1,"centre of the village",3,"Yes","Oui","8.9453","-12.10235",false,false,"IM2","India Mark II","Community","HDW","Hand Dug Well","Grade A","Yes","BO2703","Seasonality =Yes, Village =Majabama, Section =Mangay","#water_tech, #status_id, #notes"]
["Bombali","Makarie","Mangay","Maliliyahun",130,1,"centre of the village",3,"Yes","Non","8.951833","-12.10441",false,false,"IM2","India Mark II","Community","HDW","Hand Dug Well","Grade A","Yes","BO2112","Seasonality =Yes, Village =Maliliyahun, Section =Mangay","#water_tech, #status_id, #notes"]
["Bombali","Makarie","Mangay","Mangay Loko",3065,1,"At the MCHP centre",2,"Yes","Non","8.919166","-12.08578",false,true,"Just pedestal - incomplete","Just pedestal - incomplete plus solar pump","Health Facility","HDW","Hand Dug Well","Grade C","No","BO756","Seasonality =Yes, Village =Mangay Loko, Section =Mangay","#water_tech, #status_id, #notes"]
["Bombali","Makarie","Mangay","Mangay Loko",3065,2,"centre of the village",5,"Yes","Oui","8.920116","-12.08791",false,false,"IM2","India Mark II","Community","HDW","Hand Dug Well","Grade A","Yes","BO755","Seasonality =Yes, Village =Mangay Loko, Section =Mangay","#water_tech, #status_id, #notes"]
["Bombali","Makarie","Mangay","Mangay Loko",3065,3,"centre of the village",5,"Yes","Oui","8.9203","-12.0879",false,false,"IM2","India Mark II","Community","HDW","Hand Dug Well","Grade A","Yes","BO757","Seasonality =Yes, Village =Mangay Loko, Section =Mangay","#water_tech, #status_id, #notes"]
["Bombali","Makarie","Mangay","Mangay Loko",3065,4,"Back of the mosque",0,"No","Oui","8.921483","-12.09036",false,false,"IM2","India Mark II","Community","HDW","Hand Dug Well","Grade A","Yes","BO758","Seasonality =No, Village =Mangay Loko, Section =Mangay","#water_tech, #status_id, #notes"]
["Bombali","Makarie","Mangay","Mangay Loko",3065,5,"African muslim Agency ",3,"Yes","Oui","8.921216","-12.09045",false,false,"IM2","India Mark II","Community","HDW","Hand Dug Well","Grade A","Yes","BO759","Seasonality =Yes, Village =Mangay Loko, Section =Mangay","#water_tech, #status_id, #notes"]
["Bombali","Makarie","Mangay","Mangay Loko",3065,6,"Baptist model primary school",3,"Yes","Non","8.919166","-12.09103",false,false,"IM2","India Mark II","School","HDW","Hand Dug Well","Grade A","Yes","BO2052","Seasonality =Yes, Village =Mangay Loko, Section =Mangay","#water_tech, #status_id, #notes"]
["Bombali","Makarie","Mangay","Marenka",218,1,"Town Entrance",0,"No","Oui","8.929366","-12.11793",false,false,"IM2","India Mark II","Community","HDW","Hand Dug Well","Grade A","Yes","BO761","Seasonality =No, Village =Marenka, Section =Mangay","#water_tech, #status_id, #notes"]
["Bombali","Makarie","Mangay","Masantigie",250,1,"After the Mosque",0,"No","Oui","8.927266","-12.01083",false,false,"IM2","India Mark II","Community","HDW","Hand Dug Well","Grade A","Yes","BO760","Seasonality =No, Village =Masantigie, Section =Mangay","#water_tech, #status_id, #notes"]
["Bombali","Makarie","Mangay","Masapre Loko",300,1,"centre of the village",3,"Yes","Oui","8.93235","-12.09738",false,false,"IM2","India Mark II","Community","HDW","Hand Dug Well","Grade A","Yes","BO2669","Seasonality =Yes, Village =Masapre Loko, Section =Mangay","#water_tech, #status_id, #notes"]
["Bombali","Makarie","Mangay","Matokoh",926,1,"Entrance of the village",0,"No","Non","8.904466","-12.13598",false,false,"Kardia","Kardia","Community","HDW","Hand Dug Well","Grade B","Yes","BO4433","Seasonality =No, Village =Matokoh, Section =Mangay","#water_tech, #status_id, #notes"]
["Bombali","Makarie","Mangay","Matokoh",926,2,"centre of the village",6,"Yes","Oui","8.9033","-12.137",false,false,"IM2","India Mark II","Community","HDW","Hand Dug Well","Grade A","Yes","BO763","Seasonality =Yes, Village =Matokoh, Section =Mangay","#water_tech, #status_id, #notes"]
["Bombali","Makarie","Mangay","Matokoh",926,3,"mahiray road",3,"Yes","Non","8.8995","-12.1357",false,false,"IM2","India Mark II","Community","HDW","Hand Dug Well","Grade C","No","BO764","Seasonality =Yes, Village =Matokoh, Section =Mangay","#water_tech, #status_id, #notes"]
["Bombali","Makarie","Mangay","Matombo",150,1,"Ahmaddiya Primary school",null,"No","Non","8.92394","-12.10677",false,false,"IM2","India Mark II","School","HDW","Hand Dug Well","Grade A","Yes","BO4725","Seasonality =No, Village =Matombo, Section =Mangay","#water_tech, #status_id, #notes"]
["Bombali","Makarie","Mangay","Rogbesseh",480,1,"End of the village / Primary school",3,"Yes","Oui","8.8975","-12.11195",false,false,"IM2","India Mark II","Community","HDW","Hand Dug Well","Grade A","Yes","BO765","Seasonality =Yes, Village =Rogbesseh, Section =Mangay","#water_tech, #status_id, #notes"]
["Bombali","Makarie","Mangay","Rogbesseh",480,2,"Road to Malimba",3,"Yes","Oui","8.897516","-12.11191",false,false,"IM2","India Mark II","Community","HDW","Hand Dug Well","Grade C","No","BO766","Seasonality =Yes, Village =Rogbesseh, Section =Mangay","#water_tech, #status_id, #notes"]
["Bombali","Makarie","Mankneh","Karifay Thomneh",350,1,"child in need primary school",3,"Yes","Non","8.8249","-12.10135",false,false,"Just pedestal - incomplete","Just pedestal - incomplete","School","HDW","Hand Dug Well","Grade C","No","BO671","Seasonality =Yes, Village =Karifay Thomneh, Section =Mankneh","#water_tech, #status_id, #notes"]
["Bombali","Makarie","Mankneh","Karifay Thomneh",350,2,"opposite the mosque",0,"No","Non","8.823333","-12.09948",false,false,"IM2","India Mark II","Community","BH","Borehole","Grade A","Yes","BO2751","Seasonality =No, Village =Karifay Thomneh, Section =Mankneh","#water_tech, #status_id, #notes"]
["Bombali","Makarie","Mankneh","Karifay Thomneh",350,3,"End of the village",0,"No","Non","8.822666","-12.0987",false,false,"Just pedestal - incomplete","Just pedestal - incomplete","Community","HDW","Hand Dug Well","Grade C","No","BO4434","Seasonality =No, Village =Karifay Thomneh, Section =Mankneh","#water_tech, #status_id, #notes"]
["Bombali","Makarie","Mankneh","Keteh",null,1,"Road to Rolayon",6,"Yes","Non","8.85830","-12.11766",false,false,"IM2","India Mark II","Community","HDW","Hand Dug Well","Grade A","Yes","BO795","Seasonality =Yes, Village =Keteh, Section =Mankneh","#water_tech, #status_id, #notes"]
["Bombali","Makarie","Mankneh","Mabuya 1",70,1,"Road side to Makaprie",3,"Yes","Oui","8.840333","-12.10528",false,false,"IM2","India Mark II","Community","HDW","Hand Dug Well","Grade C","No","BO4435","Seasonality =Yes, Village =Mabuya 1, Section =Mankneh","#water_tech, #status_id, #notes"]
["Bombali","Makarie","Mankneh","Mabuya 2",180,1,"Road to mabuya 1",3,"Yes","Oui","8.84125","-12.10731",false,false,"IM2","India Mark II","Community","HDW","Hand Dug Well","Grade A","Yes","BO672","Seasonality =Yes, Village =Mabuya 2, Section =Mankneh","#water_tech, #status_id, #notes"]
["Bombali","Makarie","Mankneh","Madina Woreh Thabon",250,1,"Close to the mosque",0,"No","Non","8.83025","-12.17895",false,false,"IM2","India Mark II","Community","HDW","Hand Dug Well","Grade A","Yes","BO664","Seasonality =No, Village =Madina Woreh Thabon, Section =Mankneh","#water_tech, #status_id, #notes"]
["Bombali","Makarie","Mankneh","Makapri",150,1,"BBC school",3,"Yes","Non","8.8467","-12.0942",false,false,"Kardia","Kardia","School","HDW","Hand Dug Well","Grade A","Yes","BO810","Seasonality =Yes, Village =Makapri, Section =Mankneh","#water_tech, #status_id, #notes"]
["Bombali","Makarie","Mankneh","Makapri",150,2,"centre of the village",3,"Yes","Non","8.847183","-12.09313",false,false,"PB2","PB Mark II","Community","HDW","Hand Dug Well","Grade B","Yes","BO4437","Seasonality =Yes, Village =Makapri, Section =Mankneh","#water_tech, #status_id, #notes"]
["Bombali","Makarie","Mankneh","Makarie",4000,1,"RC primary school",3,"Yes","Non","8.865466","-12.12585",false,false,"IM2","India Mark II","School","HDW","Hand Dug Well","Grade A","Yes","BO677","Seasonality =Yes, Village =Makarie, Section =Mankneh","#water_tech, #status_id, #notes"]
["Bombali","Makarie","Mankneh","Makarie",4000,2,"Kainbana",0,"No","Oui","8.8681","-12.12575",false,false,"Just pedestal - incomplete","Just pedestal - incomplete","Community","BH","Borehole","Grade C","No","BO4438","Seasonality =No, Village =Makarie, Section =Mankneh","#water_tech, #status_id, #notes"]
["Bombali","Makarie","Mankneh","Makarie",4000,3,"community centre",0,"No","Oui","8.868666","-12.12483",false,false,"IM2","India Mark II","Community","BH","Borehole","Grade A","Yes","BO675","Seasonality =No, Village =Makarie, Section =Mankneh","#water_tech, #status_id, #notes"]
["Bombali","Makarie","Mankneh","Makarie",4000,4,"close to the chief house",0,"No","Oui","8.870416","-12.12463",false,false,"IM2","India Mark II","Community","BH","Borehole","Grade A","Yes","BO676","Seasonality =No, Village =Makarie, Section =Mankneh","#water_tech, #status_id, #notes"]
["Bombali","Makarie","Mankneh","Makarie",4000,5,"At the CHP",0,"No","Oui","8.864866","-12.12641",false,false,"IM2","India Mark II","Health Facility","HDW","Hand Dug Well","Grade C","No","BO678",{"$f":"_xlfn.CONCAT(\"Seasonality =\",I1026,\", \",\"Village =\", D1026,\", \",\"Section =\", C1026)","v":"Seasonality =No, Village =Makarie, Section =Mankneh"},"#water_tech, #status_id, #notes"]
["Bombali","Makarie","Mankneh","Makarie",4000,6,"st Vincent junior sec school",0,{"$f":"IF(H1027>0,\"Yes\",\"No\")","v":"No"},"Non","8.864166","-12.12678",false,false,"Just pedestal - incomplete","Just pedestal - incomplete","School","BH","Borehole","Grade C",{"$f":"IF(OR(T1027=\"Grade A\",T1027=\"Grade B\"),\"Yes\",\"No\")","v":"No"},"BO4439","Seasonality =No, Village =Makarie, Section =Mankneh","#water_tech, #status_id, #notes"]
["Bombali","Makarie","Mankneh","Makeh",350,1,"Kankalay primary school",0,"No","Non","8.813833","-12.11426",false,false,"Kardia","Kardia","School","HDW","Hand Dug Well","Grade B","Yes","BO670","Seasonality =No, Village =Makeh, Section =Mankneh","#water_tech, #status_id, #notes"]
["Bombali","Makarie","Mankneh","Makeh",350,2,"masjid Haak mosque",3,"Yes","Non","8.812283","-12.11463",false,false,"IM2","India Mark II","Community","HDW","Hand Dug Well","Grade A","Yes","BO2749","Seasonality =Yes, Village =Makeh, Section =Mankneh","#water_tech, #status_id, #notes"]
["Bombali","Makarie","Mankneh","Makeray",400,1,"centre of the village",5,"Yes","Non","8.873383","-12.1571",false,false,"IM2","India Mark II","Community","HDW","Hand Dug Well","Grade A","Yes","BO4440","Seasonality =Yes, Village =Makeray, Section =Mankneh","#water_tech, #status_id, #notes"]
["Bombali","Makarie","Mankneh","Makoth",1800,1,"At the School Road",0,"No","Oui","8.822283","-12.21761",false,false,"PB2","PB Mark II","Community","BH","Borehole","Grade A","Yes","BO663","Seasonality =No, Village =Makoth, Section =Mankneh","#water_tech, #status_id, #notes"]
["Bombali","Makarie","Mankneh","Makoth",1800,2,"Close to the Mosque",3,"Yes","Oui","8.822666","-12.21715",false,false,"IM2","India Mark II","Community","HDW","Hand Dug Well","Grade A","Yes","BO1325","Seasonality =Yes, Village =Makoth, Section =Mankneh","#water_tech, #status_id, #notes"]
["Bombali","Makarie","Mankneh","Makoth",1800,3,"Community Centre area",5,"Yes","Oui","8.822383","-12.21736",false,false,"Just pedestal - incomplete","Just pedestal - incomplete","Community","HDW","Hand Dug Well","Grade D","No","BO661","Seasonality =Yes, Village =Makoth, Section =Mankneh","#water_tech, #status_id, #notes"]
["Bombali","Makarie","Mankneh","Makoth",1800,4,"Church of God Pri. Sch.",5,"Yes","Oui","8.8215","-12.21815",false,false,"Just pedestal - incomplete","Just pedestal - incomplete","School","HDW","Hand Dug Well","Grade C","No","BO4441","Seasonality =Yes, Village =Makoth, Section =Mankneh","#water_tech, #status_id, #notes"]
["Bombali","Makarie","Mankneh","Makoth",1800,5,"St. Mark Junior Sec. Sch.",0,"No","Oui","8.824966","-12.21956",false,false,"IM2","India Mark II","School","HDW","Hand Dug Well","Grade C","No","BO1326","Seasonality =No, Village =Makoth, Section =Mankneh","#water_tech, #status_id, #notes"]
["Bombali","Makarie","Mankneh","Makoth",1800,6,"African Muslim Agency Mosque",1,"Yes","Oui","8.822633","-12.2168",false,false,"IM2","India Mark II","Community","HDW","Hand Dug Well","Grade A","Yes","BO4442","Seasonality =Yes, Village =Makoth, Section =Mankneh","#water_tech, #status_id, #notes"]
["Bombali","Makarie","Mankneh","Makoth",1800,7,"Back of the Market",0,"No","Oui","8.8231","-12.21703",false,false,"IM2","India Mark II","Community","BH","Borehole","Grade A","Yes","BO662","Seasonality =No, Village =Makoth, Section =Mankneh","#water_tech, #status_id, #notes"]
["Bombali","Makarie","Mankneh","Makoth",1800,8,"At the ABC centre",3,"Yes","Oui","8.82207","-12.21883",false,false,"Just pedestal - incomplete","Just pedestal - incomplete","Community","HDW","Hand Dug Well","Grade D","No","BO4443","Seasonality =Yes, Village =Makoth, Section =Mankneh","#water_tech, #status_id, #notes"]
["Bombali","Makarie","Mankneh","Mankneh town",3000,1,"Road to the stream",0,"No","Oui","8.838816","-12.1149",true,false,"Kardia","Kardia","School","HDW","Hand Dug Well","Grade B","Yes","BO669","Seasonality =No, Village =Mankneh town, Section =Mankneh","#water_tech, #status_id, #notes"]
["Bombali","Makarie","Mankneh","Mankneh town",3000,2,"opposite section chief house",0,"No","Non","8.836916","-12.1149",false,false,"IM2","India Mark II","Community","HDW","Hand Dug Well","Grade C","No","BO666","Seasonality =No, Village =Mankneh town, Section =Mankneh","#water_tech, #status_id, #notes"]
["Bombali","Makarie","Mankneh","Mankneh town",3000,3,"Royeakain road",6,"Yes","Non","8.83535","-12.11446",true,false,"IM2","India Mark II","Community","HDW","Hand Dug Well","Grade C","No","BO667","Seasonality =Yes, Village =Mankneh town, Section =Mankneh","#water_tech, #status_id, #notes"]
["Bombali","Makarie","Mankneh","Mankneh town",3000,4,"Royeakain road",3,"Yes","Non","8.834983","-12.11463",false,false,"IM2","India Mark II","Community","HDW","Hand Dug Well","Grade A","Yes","BO668","Seasonality =Yes, Village =Mankneh town, Section =Mankneh","#water_tech, #status_id, #notes"]
["Bombali","Makarie","Mankneh","Mankneh town",3000,5,"st mark junior sec. school",0,"No","Oui","8.824966","-12.21956",false,false,"IM2","India Mark II","School","HDW","Hand Dug Well","Grade B","Yes","BO4444","Seasonality =No, Village =Mankneh town, Section =Mankneh","#water_tech, #status_id, #notes"]
["Bombali","Makarie","Mankneh","Masapri",450,1,"Entrance of the village",2,"Yes","Non","8.86055","-12.10868",false,false,"IM2","India Mark II","Community","HDW","Hand Dug Well","Grade A","Yes","BO796","Seasonality =Yes, Village =Masapri, Section =Mankneh","#water_tech, #status_id, #notes"]
["Bombali","Makarie","Mankneh","Masapri",450,2,"centre of the village",3,"Yes","Non","8.861483","-12.10848",true,false,"IM2","India Mark II","Community","HDW","Hand Dug Well","Grade B","Yes","BO4446","Seasonality =Yes, Village =Masapri, Section =Mankneh","#water_tech, #status_id, #notes"]
["Bombali","Makarie","Mankneh","Masongbo",2800,1,"Sec. Sch.-Masongbo",null,"No","Non",null,null,false,false,"IM2","India Mark II","School","HDW","Hand Dug Well","Grade A","Yes","BO4664","Seasonality =No, Village =Masongbo, Section =Mankneh","#water_tech, #status_id, #notes"]
["Bombali","Makarie","Mankneh","Mayoboh",40,1,"End of the village",3,"Yes","Non","8.852183","-12.15156",false,false,"Pully","Pully","Community","Pulley","Pulley","Grade D","No","BO674","Seasonality =Yes, Village =Mayoboh, Section =Mankneh","#water_tech, #status_id, #notes"]
["Bombali","Makarie","Mankneh","Mayoboh",40,2,"End of the village",0,"No","Non","8.852233","-12.15165",false,false,"Just pedestal - incomplete","Just pedestal - incomplete","Community","HDW","Hand Dug Well","Grade D","No","BO4447","Seasonality =No, Village =Mayoboh, Section =Mankneh","#water_tech, #status_id, #notes"]
["Bombali","Makarie","Mankneh","Monkaray",230,1,"Center of the town",3,"Yes","Non","8.87342","-12.15704",false,false,"IM2","India Mark II","Community","HDW","Hand Dug Well","Grade C","No","BO679","Seasonality =Yes, Village =Monkaray, Section =Mankneh","#water_tech, #status_id, #notes"]
["Bombali","Makarie","Mankneh","Morieya",450,1,"Center of the village",3,"Yes","Non","8.86961","-12.13352",false,false,"Rope","Rope","Community","HDW","Hand Dug Well","Grade D","No","BO673","Seasonality =Yes, Village =Morieya, Section =Mankneh","#water_tech, #status_id, #notes"]
["Bombali","Makarie","Mankneh","Morriah",120,1,"centre of the village",3,"Yes","Non","8.8552","-12.14763",false,false,"Pully","Pully","Community","HDW","Hand Dug Well","Grade D","No","BO4448","Seasonality =Yes, Village =Morriah, Section =Mankneh","#water_tech, #status_id, #notes"]
["Bombali","Makarie","Mankneh","Robana",130,1,"Left part of the main highway",0,"No","Oui","8.833583","-12.16601",false,false,"PB2","PB Mark II","Community","BH","Borehole","Grade A","Yes","BO665","Seasonality =No, Village =Robana, Section =Mankneh","#water_tech, #status_id, #notes"]
["Bombali","Makarie","Mankneh","Rochain fullah",90,1,"centre of the village",3,"Yes","Non","8.862433","-12.2058",false,false,"Kardia","Kardia","Community","HDW","Hand Dug Well","Grade B","Yes","BO4449","Seasonality =Yes, Village =Rochain fullah, Section =Mankneh","#water_tech, #status_id, #notes"]
["Bombali","Makarie","Mankneh","Rokethe",300,1,"Rolayan road",0,"No","Oui","8.858333","-12.11761",false,false,"IM2","India Mark II","Community","HDW","Hand Dug Well","Grade C","No","BO4450","Seasonality =No, Village =Rokethe, Section =Mankneh","#water_tech, #status_id, #notes"]
["Bombali","Makarie","Mankneh","Rolarkoh I",300,1,"Close to the mosque",0,"No","Oui","8.841666","-12.15441",false,false,"IM2","India Mark II","Community","BH","Borehole","Grade A","Yes","BO660","Seasonality =No, Village =Rolarkoh I, Section =Mankneh","#water_tech, #status_id, #notes"]
["Bombali","Makarie","Mankneh","Rolarkoh I",300,2,"Road side to Robana",0,"No","Oui","8.841383","-12.1547",false,false,"IM2","India Mark II","Community","BH","Borehole","Grade A","Yes","BO4451","Seasonality =No, Village =Rolarkoh I, Section =Mankneh","#water_tech, #status_id, #notes"]
["Bombali","Makarie","Mankneh","Rolarkoh I",300,3,"At the Pri. School",4,"Yes","Oui","8.8401","-12.15533",false,false,"Kardia","Kardia","School","HDW","Hand Dug Well","Grade A","Yes","BO4452","Seasonality =Yes, Village =Rolarkoh I, Section =Mankneh","#water_tech, #status_id, #notes"]
["Bombali","Makarie","Mankneh","Rolayan",600,1,"Entrance of the village",3,"Yes","Non","8.851483","-12.11653",false,false,"IM2","India Mark II","Community","HDW","Hand Dug Well","Grade A","Yes","BO4453","Seasonality =Yes, Village =Rolayan, Section =Mankneh","#water_tech, #status_id, #notes"]
["Bombali","Makarie","Mankneh","Rolayan",600,2,null,null,"No","Non",null,null,true,false,"Rope","Rope","Community","HDW","Hand Dug Well","Grade X","No","BO794","Seasonality =No, Village =Rolayan, Section =Mankneh","#water_tech, #status_id, #notes"]
["Bombali","Makarie","Mankneh","Royanka",650,4,"Primary school",6,"Yes","Non","8.81689","-12.23894",false,false,"IM2","India Mark II","School","HDW","Hand Dug Well","Grade C","No","BO4727","Seasonality =Yes, Village =Royanka, Section =Mankneh","#water_tech, #status_id, #notes"]
["Bombali","Makarie","Mankneh","Royanka",650,5,"At the PHU",3,"Yes","Non","8.81932","-12.23731",false,false,"IM2","India Mark II","Health Facility","HDW","Hand Dug Well","Grade C","No","BO4728","Seasonality =Yes, Village =Royanka, Section =Mankneh","#water_tech, #status_id, #notes"]
["Bombali","Makarie","Mankneh","Royanka",650,6,"At the PHU",6,"Yes","Non","8.81954","-12.23734",false,false,"IM2","India Mark II","Health Facility","HDW","Hand Dug Well","Grade C","No","BO4729","Seasonality =Yes, Village =Royanka, Section =Mankneh","#water_tech, #status_id, #notes"]
["Bombali","Makarie","Mankneh","Royeama",170,1,"centre of the village",3,"Yes","Non","8.782016","-12.3353",false,false,"IM2","India Mark II","Community","HDW","Hand Dug Well","Grade A","Yes","BO4454","Seasonality =Yes, Village =Royeama, Section =Mankneh","#water_tech, #status_id, #notes"]
["Bombali","Makarie","Mankneh","Royekain",450,1,"Close to the mosque",1,"Yes","Non","8.82391","-12.11943",false,false,"IM2","India Mark II","Community","HDW","Hand Dug Well","Grade C","No","BO4731","Seasonality =Yes, Village =Royekain, Section =Mankneh","#water_tech, #status_id, #notes"]
["Bombali","Makarie","Mankneh","Worreh Yeama",230,1,"BDEC worreh yeama",0,"No","Non","8.7774","-12.33",false,false,"IM2","India Mark II","School","HDW","Hand Dug Well","Grade B","Yes","BO734","Seasonality =No, Village =Worreh Yeama, Section =Mankneh","#water_tech, #status_id, #notes"]
["Bombali","Makarie","Mankneh","Worreh Yeama",230,2,"centre of the village",0,"No","Non","8.778533","-12.33128",false,false,"Japan Below","Japan Below","Community","BH","Borehole","Grade C","No","BO4456","Seasonality =No, Village =Worreh Yeama, Section =Mankneh","#water_tech, #status_id, #notes"]
["Bombali","Makarie","Mankneh","Worreh Yeama",230,3,"opposite the mosque",0,"No","Non","8.77835","-12.33183",false,false,"IM2","India Mark II","Community","BH","Borehole","Grade A","Yes","BO4457","Seasonality =No, Village =Worreh Yeama, Section =Mankneh","#water_tech, #status_id, #notes"]
["Bombali","Makarie","Mankneh","Worreh Yeama",230,4,"opposite the mosque",3,"Yes","Non","8.7783","-12.33183",false,false,"IM2","India Mark II","Community","HDW","Hand Dug Well","Grade B","Yes","BO4458","Seasonality =Yes, Village =Worreh Yeama, Section =Mankneh","#water_tech, #status_id, #notes"]
["Bombali","Makarie","Masongbo","Baraynin Krui (Old town)",100,1,"centre of the village",0,"No","Oui","8.8206","-12.2734",false,false,"IM2","India Mark II","Community","BH","Borehole","Grade B","Yes","BO4459","Seasonality =No, Village =Baraynin Krui (Old town), Section =Masongbo","#water_tech, #status_id, #notes"]
["Bombali","Makarie","Masongbo","Baraynin Line II",150,1,"S.L.M.W.B.O Pri. Sch.",5,"Yes","Oui","8.809133","-12.26518",false,false,"PB2","PB Mark II","School","HDW","Hand Dug Well","Grade A","Yes","BO4460","Seasonality =Yes, Village =Baraynin Line II, Section =Masongbo","#water_tech, #status_id, #notes"]
["Bombali","Makarie","Masongbo","Baraynin Line II",150,2,"Close to the Highway",4,"Yes","Oui","8.807833","-12.26665",false,false,"Just pedestal - incomplete","Just pedestal - incomplete","Community","HDW","Hand Dug Well","Grade C","No","BO4461","Seasonality =Yes, Village =Baraynin Line II, Section =Masongbo","#water_tech, #status_id, #notes"]
["Bombali","Makarie","Masongbo","Baraynin Line II",150,3,"End of the village",4,"Yes","Oui","8.807666","-12.26741",false,false,"Kardia","Kardia","Community","HDW","Hand Dug Well","Grade C","No","BO4462","Seasonality =Yes, Village =Baraynin Line II, Section =Masongbo","#water_tech, #status_id, #notes"]
["Bombali","Makarie","Masongbo","Fullah Town",400,1,"Close to the Chief House",0,"No","Oui","8.818716","-12.22766",false,false,"IM2","India Mark II","Community","BH","Borehole","Grade A","Yes","BO788","Seasonality =No, Village =Fullah Town, Section =Masongbo","#water_tech, #status_id, #notes"]
["Bombali","Makarie","Masongbo","Fullah Town",400,2,"At the CHP",2,"Yes","Oui","8.8176","-12.22801",false,false,"IM2","India Mark II","Health Facility","HDW","Hand Dug Well","Grade A","Yes","BO789","Seasonality =Yes, Village =Fullah Town, Section =Masongbo","#water_tech, #status_id, #notes"]
["Bombali","Makarie","Masongbo","Fullah Town",400,3,"Close to Comm. Store",4,"Yes","Oui","8.8193","-12.22803",false,false,"IM2","India Mark II","Community","HDW","Hand Dug Well","Grade A","Yes","BO790","Seasonality =Yes, Village =Fullah Town, Section =Masongbo","#water_tech, #status_id, #notes"]
["Bombali","Makarie","Masongbo","Gbom Tarawalie",150,1,"Close to the Highway",0,"No","Oui","8.822533","-12.20685",false,false,"IM2","India Mark II","Community","BH","Borehole","Grade A","Yes","BO4463","Seasonality =No, Village =Gbom Tarawalie, Section =Masongbo","#water_tech, #status_id, #notes"]
["Bombali","Makarie","Masongbo","Karfay Loko",850,1,"Side of the Village",3,"Yes","Non","8.91875","-12.13233",false,false,"IM2","India Mark II","Community","HDW","Hand Dug Well","Grade A","Yes","BO807","Seasonality =Yes, Village =Karfay Loko, Section =Masongbo","#water_tech, #status_id, #notes"]
["Bombali","Makarie","Masongbo","Karfay Loko",850,2,"At the MCHP centre",4,"Yes","Oui","8.9175","-12.12996",false,true,"IM2","India Mark II plus solar pump","Health Facility","HDW","Hand Dug Well","Grade A","Yes","BO803","Seasonality =Yes, Village =Karfay Loko, Section =Masongbo","#water_tech, #status_id, #notes"]
["Bombali","Makarie","Masongbo","Karfay Loko",850,3,"RC primary school",4,"Yes","Non","8.917616","-12.1305",false,false,"IM2","India Mark II","School","HDW","Hand Dug Well","Grade A","Yes","BO809","Seasonality =Yes, Village =Karfay Loko, Section =Masongbo","#water_tech, #status_id, #notes"]
["Bombali","Makarie","Masongbo","Karfay Loko",850,4,"Opposite the Mosque",6,"Yes","Non","8.91905","-12.13225",false,false,"IM2","India Mark II","Community","HDW","Hand Dug Well","Grade A","Yes","BO808","Seasonality =Yes, Village =Karfay Loko, Section =Masongbo","#water_tech, #status_id, #notes"]
["Bombali","Makarie","Masongbo","Katharie",null,1,null,null,"No","Non",null,null,false,false,"Kardia","Kardia","Community","HDW","Hand Dug Well","Grade X","No","BO806","Seasonality =No, Village =Katharie, Section =Masongbo","#water_tech, #status_id, #notes"]
["Bombali","Makarie","Masongbo","Macheray",350,1,"Opposite the Mosque",4,"Yes","Oui","8.8912","-12.13303",false,false,"IM2","India Mark II","Community","HDW","Hand Dug Well","Grade C","No","BO4467","Seasonality =Yes, Village =Macheray, Section =Masongbo","#water_tech, #status_id, #notes"]
["Bombali","Makarie","Masongbo","Madina Gbamgbay",370,1,"Close to the dry floor",4,"Yes","Oui","8.88807","-12.12432",false,false,"IM2","India Mark II","Community","HDW","Hand Dug Well","Grade B","Yes","BO797","Seasonality =Yes, Village =Madina Gbamgbay, Section =Masongbo","#water_tech, #status_id, #notes"]
["Bombali","Makarie","Masongbo","Madina Gbamgbay",370,2,"At the dry floor",0,"No","Non",8.8878500000000003,"-12.12385",false,false,"IM2","India Mark II","Community","HDW","Hand Dug Well","Grade C","No","BO2750","Seasonality =No, Village =Madina Gbamgbay, Section =Masongbo","#water_tech, #status_id, #notes"]
["Bombali","Makarie","Masongbo","Malikia",250,1,"Close to the Mango Tree",0,"No","Oui","8.817","-12.23705",false,false,"PB2","PB Mark II","Community","BH","Borehole","Grade A","Yes","BO785","Seasonality =No, Village =Malikia, Section =Masongbo","#water_tech, #status_id, #notes"]
["Bombali","Makarie","Masongbo","Malikia",250,2,"End of the village",6,"Yes","Oui","8.817466","-12.2376",false,false,"IM2","India Mark II","Community","HDW","Hand Dug Well","Grade A","Yes","BO783","Seasonality =Yes, Village =Malikia, Section =Masongbo","#water_tech, #status_id, #notes"]
["Bombali","Makarie","Masongbo","Malikia",250,3,"Centre of the village",6,"Yes","Oui","8.816883","-12.2379",false,false,"IM2","India Mark II","Community","HDW","Hand Dug Well","Grade A","Yes","BO784","Seasonality =Yes, Village =Malikia, Section =Masongbo","#water_tech, #status_id, #notes"]
["Bombali","Makarie","Masongbo","Masongbo",1500,1,"Opposite St. Francis Pri. Sch.",0,"No","Oui","8.872583","-12.10431",false,false,"IM2","India Mark II","Community","BH","Borehole","Grade A","Yes","BO802","Seasonality =No, Village =Masongbo, Section =Masongbo","#water_tech, #status_id, #notes"]
["Bombali","Makarie","Masongbo","Masongbo",1500,2,"St. Francis Pri. Sch.",4,"Yes","Oui","8.872766","-12.10456",false,false,"IM2","India Mark II","School","HDW","Hand Dug Well","Grade A","Yes","BO799","Seasonality =Yes, Village =Masongbo, Section =Masongbo","#water_tech, #status_id, #notes"]
["Bombali","Makarie","Masongbo","Masongbo",1500,3,"Opposite Big rock St. Francis Pri. Sch.",4,"Yes","Oui","8.873066","-12.10418",false,false,"IM2","India Mark II","Community","HDW","Hand Dug Well","Grade A","Yes","BO1295",{"$f":"_xlfn.CONCAT(\"Seasonality =\",I1090,\", \",\"Village =\", D1090,\", \",\"Section =\", C1090)","v":"Seasonality =Yes, Village =Masongbo, Section =Masongbo"},"#water_tech, #status_id, #notes"]
["Bombali","Makarie","Masongbo","Masongbo",1500,4,"Close to the Field",6,{"$f":"IF(H1091>0,\"Yes\",\"No\")","v":"Yes"},"Oui","8.870633","-12.10345",false,false,"PB2","PB Mark II","Community","HDW","Hand Dug Well","Grade A",{"$f":"IF(OR(T1091=\"Grade A\",T1091=\"Grade B\"),\"Yes\",\"No\")","v":"Yes"},"BO4468","Seasonality =Yes, Village =Masongbo, Section =Masongbo","#water_tech, #status_id, #notes"]
["Bombali","Makarie","Masongbo","Masongbo",1500,5,"Close to Dan Kamara house",0,"No","Oui","8.874516","-12.1071",false,false,"IM2","India Mark II","Community","BH","Borehole","Grade C","No","BO4469","Seasonality =No, Village =Masongbo, Section =Masongbo","#water_tech, #status_id, #notes"]
["Bombali","Makarie","Masongbo","Masongbo",1500,6,"Close to the Imam House",3,"Yes","Oui","8.874116","-12.10885",false,false,"IM2","India Mark II","Community","HDW","Hand Dug Well","Grade A","Yes","BO4470","Seasonality =Yes, Village =Masongbo, Section =Masongbo","#water_tech, #status_id, #notes"]
["Bombali","Makarie","Masongbo","Masongbo",1500,7,"Opposite the Mosque",4,"Yes","Oui","8.876","-12.10605",false,false,"IM2","India Mark II","Community","HDW","Hand Dug Well","Grade A","Yes","BO4471","Seasonality =Yes, Village =Masongbo, Section =Masongbo","#water_tech, #status_id, #notes"]
["Bombali","Makarie","Masongbo","Masongbo",1500,8,"On the road to the Cemetry",3,"Yes","Oui","8.876833","-12.10511",false,false,"PB2","PB Mark II","Community","BH","Borehole","Grade C","No","BO800","Seasonality =Yes, Village =Masongbo, Section =Masongbo","#water_tech, #status_id, #notes"]
["Bombali","Makarie","Masongbo","Masongbo",1500,9,"On the road to Robombeh",2,"Yes","Oui","8.878","-12.10563",false,false,"IM2","India Mark II","Community","HDW","Hand Dug Well","Grade C","No","BO4472","Seasonality =Yes, Village =Masongbo, Section =Masongbo","#water_tech, #status_id, #notes"]
["Bombali","Makarie","Masongbo","Masongbo",1500,10,"Opposite the house of former ALSS",0,"No","Oui","8.878","-12.10563",false,false,"PB2","PB Mark II","Community","BH","Borehole","Grade A","Yes","BO804","Seasonality =No, Village =Masongbo, Section =Masongbo","#water_tech, #status_id, #notes"]
["Bombali","Makarie","Masongbo","Masongbo",1500,11,"Opposite Catholic Church",4,"Yes","Oui","8.878033","-12.10723",false,false,"IM2","India Mark II","Community","HDW","Hand Dug Well","Grade C","No","BO1294","Seasonality =Yes, Village =Masongbo, Section =Masongbo","#water_tech, #status_id, #notes"]
["Bombali","Makarie","Masongbo","Masongbo",1500,12,"At the CHC",0,"No","Oui","8.8776","-12.1086",false,true,"Kardia","Kardia plus solar pump","Health Facility","HDW","Hand Dug Well","Grade A","Yes","BO4473","Seasonality =No, Village =Masongbo, Section =Masongbo","#water_tech, #status_id, #notes"]
["Bombali","Makarie","Masongbo","Masongbo",1500,13,"S.L.M.B Pri. Sch.",4,"Yes","Oui","8.876833","-12.10886",false,false,"Kardia","Kardia","School","HDW","Hand Dug Well","Grade A","Yes","BO801","Seasonality =Yes, Village =Masongbo, Section =Masongbo","#water_tech, #status_id, #notes"]
["Bombali","Makarie","Masongbo","Masongbo",1500,14,"Close to the Swamp",4,"Yes","Oui","8.876283","-12.10815",false,false,"IM2","India Mark II","Community","HDW","Hand Dug Well","Grade A","Yes","BO4474","Seasonality =Yes, Village =Masongbo, Section =Masongbo","#water_tech, #status_id, #notes"]
["Bombali","Makarie","Masongbo","Masongbo",1500,15,"At Easy Corner",0,"No","Oui","8.8758","-12.10775",false,false,"Just pedestal - incomplete","Just pedestal - incomplete","Community","HDW","Hand Dug Well","Grade C","No","BO4475","Seasonality =No, Village =Masongbo, Section =Masongbo","#water_tech, #status_id, #notes"]
["Bombali","Makarie","Masongbo","Masongbo",1500,16,"Close to Amputee Swamp",3,"Yes","Oui","8.871983","-12.10755",false,false,"IM2","India Mark II","Community","HDW","Hand Dug Well","Grade A","Yes","BO4476","Seasonality =Yes, Village =Masongbo, Section =Masongbo","#water_tech, #status_id, #notes"]
["Bombali","Makarie","Masongbo","Masongbo",1500,17,"Luma Area",0,"No","Non","8.87417","-12.10851",false,false,"IM2","India Mark II","Community","HDW","Hand Dug Well","Grade D","No","BO4660","Seasonality =No, Village =Masongbo, Section =Masongbo","#water_tech, #status_id, #notes"]
["Bombali","Makarie","Masongbo","Masongbo",1500,18,"Close to Sheik Ibrahim",null,"No","Non","8.87411","-12.10871",false,false,"IM2","India Mark II","Community","BH","Borehole","Grade A","Yes","BO4724","Seasonality =No, Village =Masongbo, Section =Masongbo","#water_tech, #status_id, #notes"]
["Bombali","Makarie","Masongbo","Mataekra",380,1,"Centre of the village",2,"Yes","Non","8.89121","-12.13302",false,false,"IM2","India Mark II","Community","HDW","Hand Dug Well","Grade A","Yes","BO798","Seasonality =Yes, Village =Mataekra, Section =Masongbo","#water_tech, #status_id, #notes"]
["Bombali","Makarie","Masongbo","Matak",450,1,"Close to the Mosque",6,"Yes","Oui","8.867283","-12.08351",false,false,"Kardia","Kardia","Community","HDW","Hand Dug Well","Grade A","Yes","BO1426","Seasonality =Yes, Village =Matak, Section =Masongbo","#water_tech, #status_id, #notes"]
["Bombali","Makarie","Masongbo","Matamba",100,1,"Close to the mosque",7,"Yes","Oui","8.885466","-12.19708",false,false,"Kardia","Kardia","Community","HDW","Hand Dug Well","Grade A","Yes","BO4477","Seasonality =Yes, Village =Matamba, Section =Masongbo","#water_tech, #status_id, #notes"]
["Bombali","Makarie","Masongbo","Mayimberay",200,1,"End of the village",0,"No","Oui","8.875583","-12.24133",false,false,"Afridev","Afridev","Community","BH","Borehole","Grade A","Yes","BO791","Seasonality =No, Village =Mayimberay, Section =Masongbo","#water_tech, #status_id, #notes"]
["Bombali","Makarie","Masongbo","Mayobah",250,1,"End of the village",3,"Yes","Oui","8.86325","-12.09588",false,false,"IM2","India Mark II","Community","HDW","Hand Dug Well","Grade A","Yes","BO805","Seasonality =Yes, Village =Mayobah, Section =Masongbo","#water_tech, #status_id, #notes"]
["Bombali","Makarie","Masongbo","Robombeh",250,1,"Close to the Mosque",4,"Yes","Oui","8.877133","-12.09073",false,false,"IM2","India Mark II","Community","HDW","Hand Dug Well","Grade C","No","BO1427","Seasonality =Yes, Village =Robombeh, Section =Masongbo","#water_tech, #status_id, #notes"]
["Bombali","Makarie","Masongbo","Robombeh",250,2,"Close to the Highway",0,"No","Oui","8.875733","-12.09806",false,false,"IM2","India Mark II","Community","HDW","Hand Dug Well","Grade A","Yes","BO4478","Seasonality =No, Village =Robombeh, Section =Masongbo","#water_tech, #status_id, #notes"]
["Bombali","Makarie","Masongbo","Robombeh",250,3,"Side of the village",7,"Yes","Oui","8.876416","-12.0973",false,false,"IM2","India Mark II","Community","HDW","Hand Dug Well","Grade C","No","BO4479","Seasonality =Yes, Village =Robombeh, Section =Masongbo","#water_tech, #status_id, #notes"]
["Bombali","Makarie","Masongbo","Rokupr",200,1,"Centre of the village",4,"Yes","Oui","8.894183","-12.10258",false,false,"Kardia","Kardia","Community","HDW","Hand Dug Well","Grade A","Yes","BO4480","Seasonality =Yes, Village =Rokupr, Section =Masongbo","#water_tech, #status_id, #notes"]
["Bombali","Makarie","Masongbo","Roranka",680,1,"By the Church",6,"Yes","Non","8.81749","-12.23760",false,false,"IM2","India Mark II","Community","HDW","Hand Dug Well","Grade C","No","BO786","Seasonality =Yes, Village =Roranka, Section =Masongbo","#water_tech, #status_id, #notes"]
["Bombali","Makarie","Masongbo","Roranka",680,2,"Highway",0,"No","Non","8.87735","-12.04096",false,false,"PB2","PB Mark II","Community","BH","Borehole","Grade A","Yes","BO787","Seasonality =No, Village =Roranka, Section =Masongbo","#water_tech, #status_id, #notes"]
["Bombali","Makarie","Masongbo","Roranka",680,3,"Close to Sec-village",6,"Yes","Non","8.81688","-12.23789",false,false,"IM2","India Mark II","Community","HDW","Hand Dug Well","Grade A","Yes","BO1292","Seasonality =Yes, Village =Roranka, Section =Masongbo","#water_tech, #status_id, #notes"]
["Bombali","Makarie","Masongbo","Worreh Moria",120,2,"End of the village",0,"No","Oui","8.828266","-12.18843",false,false,"PB2","PB Mark II","Community","BH","Borehole","Grade B","Yes","BO792","Seasonality =No, Village =Worreh Moria, Section =Masongbo","#water_tech, #status_id, #notes"]
["Bombali","Makarie","Punthun","Bourahun",55,1,"Centre of the village",3,"Yes","Oui","8.951616","-12.0987",false,false,"IM2","India Mark II","Community","HDW","Hand Dug Well","Grade A","Yes","BO4482","Seasonality =Yes, Village =Bourahun, Section =Punthun","#water_tech, #status_id, #notes"]
["Bombali","Makarie","Punthun","Mabaftar",70,1,"Centre of the village",0,"No","Non","8.960433","-12.10121",false,false,"IM2","India Mark II","Community","HDW","Hand Dug Well","Grade A","Yes","BO811","Seasonality =No, Village =Mabaftar, Section =Punthun","#water_tech, #status_id, #notes"]
["Bombali","Makarie","Punthun","Mabayo",300,1,"At the CHP",0,"No","Non","8.94095","-12.13026",false,true,"Kardia","Kardia plus solar pump","Health Facility","HDW","Hand Dug Well","Grade A","Yes","BO1293","Seasonality =No, Village =Mabayo, Section =Punthun","#water_tech, #status_id, #notes"]
["Bombali","Makarie","Punthun","Mabayo",300,2,"Centre of the village",0,"No","Oui","8.9399","-12.1291",false,false,"IM2","India Mark II","Community","HDW","Hand Dug Well","Grade A","Yes","BO691","Seasonality =No, Village =Mabayo, Section =Punthun","#water_tech, #status_id, #notes"]
["Bombali","Makarie","Punthun","Mabayo",300,3,"SLMWBO Mabayo",7,"Yes","Non","8.93834","-12.12861",false,false,"IM2","India Mark II","School","HDW","Hand Dug Well","Grade A","Yes","BO692","Seasonality =Yes, Village =Mabayo, Section =Punthun","#water_tech, #status_id, #notes"]
["Bombali","Makarie","Punthun","Makankray Worren",550,1,"Side of the field",5,"Yes","Non","8.840333","-12.25471",false,false,"Kardia","Kardia","School","HDW","Hand Dug Well","Grade A","Yes","BO4483","Seasonality =Yes, Village =Makankray Worren, Section =Punthun","#water_tech, #status_id, #notes"]
["Bombali","Makarie","Punthun","Makankray Worren",550,2,"Centre of the village",0,"No","Non","8.8416","-12.25445",false,false,"IM2","India Mark II","Community","HDW","Hand Dug Well","Grade A","Yes","BO2530","Seasonality =No, Village =Makankray Worren, Section =Punthun","#water_tech, #status_id, #notes"]
["Bombali","Makarie","Punthun","Makankray Worren",550,3,"Close to the community centre",6,"Yes","Oui","8.8421","-12.25478",false,false,"Just pedestal - incomplete","Just pedestal - incomplete","Community","HDW","Hand Dug Well","Grade C","No","BO4485","Seasonality =Yes, Village =Makankray Worren, Section =Punthun","#water_tech, #status_id, #notes"]
["Bombali","Makarie","Punthun","Makondo",640,1,"Benevolent Makondo",0,"No","Oui","8.949983","-12.14593",false,false,"IM2","India Mark II","School","HDW","Hand Dug Well","Grade B","Yes","BO689","Seasonality =No, Village =Makondo, Section =Punthun","#water_tech, #status_id, #notes"]
["Bombali","Makarie","Punthun","Makondo",640,2,"Centre of the village",0,"No","Oui","8.9511","-12.14805",false,false,"Kardia","Kardia","Community","HDW","Hand Dug Well","Grade B","Yes","BO690","Seasonality =No, Village =Makondo, Section =Punthun","#water_tech, #status_id, #notes"]
["Bombali","Makarie","Punthun","Makondo",640,3,"Road to Masantigie",3,"Yes","Oui","8.951983","-12.14961",false,false,"IM2","India Mark II","Community","HDW","Hand Dug Well","Grade C","No","BO4486","Seasonality =Yes, Village =Makondo, Section =Punthun","#water_tech, #status_id, #notes"]
["Bombali","Makarie","Punthun","Matayma",130,1,"Centre of the village",3,"Yes","Oui","8.957766","-12.11218",false,false,"IM2","India Mark II","Community","HDW","Hand Dug Well","Grade A","Yes","BO693","Seasonality =Yes, Village =Matayma, Section =Punthun","#water_tech, #status_id, #notes"]
["Bombali","Makarie","Punthun","Punthun",900,1,"At the Junction",5,"Yes","Non","8.929466","-12.14331",false,false,"IM2","India Mark II","Community","HDW","Hand Dug Well","Grade A","Yes","BO687","Seasonality =Yes, Village =Punthun, Section =Punthun","#water_tech, #status_id, #notes"]
["Bombali","Makarie","Punthun","Punthun",900,2,"Close to the rice mill",3,"Yes","Non","8.931416","-12.14325",false,false,"IM2","India Mark II","Community","HDW","Hand Dug Well","Grade A","Yes","BO688","Seasonality =Yes, Village =Punthun, Section =Punthun","#water_tech, #status_id, #notes"]
["Bombali","Makarie","Punthun","Punthun",900,3,"Benevolent Punthun",3,"Yes","Oui","8.931966","-12.14323",false,false,"IM2","India Mark II","School","HDW","Hand Dug Well","Grade A","Yes","BO4487","Seasonality =Yes, Village =Punthun, Section =Punthun","#water_tech, #status_id, #notes"]
["Bombali","Makarie","Punthun","Punthun",900,4,"MCHP",3,"Yes","Non","8.929566","-12.14516",false,false,"IM2","India Mark II","Health Facility","HDW","Hand Dug Well","Grade A","Yes","BO4488","Seasonality =Yes, Village =Punthun, Section =Punthun","#water_tech, #status_id, #notes"]
["Bombali","Makarie","Punthun","Rokon",100,1,"Centre of the village",0,"No","Oui","8.9639","-12.12386",false,false,"IM2","India Mark II","Community","HDW","Hand Dug Well","Grade A","Yes","BO695","Seasonality =No, Village =Rokon, Section =Punthun","#water_tech, #status_id, #notes"]
["Bombali","Makarie","Tonkonba","Mabai Buda",450,1,"On the Highway to Mabuya",0,"No","Oui","8.876366","-12.29456",false,false,"PB2","PB Mark II","Community","BH","Borehole","Grade A","Yes","BO770","Seasonality =No, Village =Mabai Buda, Section =Tonkonba","#water_tech, #status_id, #notes"]
["Bombali","Makarie","Tonkonba","Mabai Buda",450,2,"R.C Pri. School",5,"Yes","Oui","8.878433","-12.29476",false,false,"Kardia","Kardia","School","HDW","Hand Dug Well","Grade A","Yes","BO771","Seasonality =Yes, Village =Mabai Buda, Section =Tonkonba","#water_tech, #status_id, #notes"]
["Bombali","Makarie","Tonkonba","Mabaibana",650,1,"Centre of the village",2,"Yes","Non","8.90846","-12.27772",false,false,"IM2","India Mark II","Community","BH","Borehole","Grade A","Yes","BO775","Seasonality =Yes, Village =Mabaibana, Section =Tonkonba","#water_tech, #status_id, #notes"]
["Bombali","Makarie","Tonkonba","Mabaibana",650,2,"Close to the mosque",0,"No","Non","8.90768","-12.27792",false,false,"IM2","India Mark II","Community","BH","Borehole","Grade B","Yes","BO776","Seasonality =No, Village =Mabaibana, Section =Tonkonba","#water_tech, #status_id, #notes"]
["Bombali","Makarie","Tonkonba","Mabaibana",650,3,"End of the village",6,"Yes","Non","8.90814","-12.27861",false,false,"IM2","India Mark II","Community","HDW","Hand Dug Well","Grade D","No","BO4730","Seasonality =Yes, Village =Mabaibana, Section =Tonkonba","#water_tech, #status_id, #notes"]
["Bombali","Makarie","Tonkonba","Mabotemah",550,1,"close to the mosque",0,"No","Oui","8.922916","-12.19473",false,false,"PB2","PB Mark II","Community","HDW","Hand Dug Well","Grade A","Yes","BO779","Seasonality =No, Village =Mabotemah, Section =Tonkonba","#water_tech, #status_id, #notes"]
["Bombali","Makarie","Tonkonba","Mabotemah",550,2,"At the community pri.sch",4,"Yes","Oui","8.9221","-12.1933",false,false,"Kardia","Kardia","School","HDW","Hand Dug Well","Grade A","Yes","BO4489","Seasonality =Yes, Village =Mabotemah, Section =Tonkonba","#water_tech, #status_id, #notes"]
["Bombali","Makarie","Tonkonba","Mabuya",950,1,"Church",0,"No","Non","8.87614","-12.31433",false,false,"IM2","India Mark II","Community","BH","Borehole","Grade A","Yes","BO773","Seasonality =No, Village =Mabuya, Section =Tonkonba","#water_tech, #status_id, #notes"]
["Bombali","Makarie","Tonkonba","Mabuya",950,2,"Pri. Sch. Compound",2,"Yes","Non","8.87476","-12.31360",false,false,"IM2","India Mark II","School","HDW","Hand Dug Well","Grade A","Yes","BO774","Seasonality =Yes, Village =Mabuya, Section =Tonkonba","#water_tech, #status_id, #notes"]
["Bombali","Makarie","Tonkonba","Magbakoli",800,1,"Botima Road",null,"No","Non",null,null,false,false,"IM2","India Mark II","Community","HDW","Hand Dug Well","Grade A","Yes","BO2203","Seasonality =No, Village =Magbakoli, Section =Tonkonba","#water_tech, #status_id, #notes"]
["Bombali","Makarie","Tonkonba","Magbakoli",800,2,"Mosque",null,"No","Non",null,null,false,false,"IM2","India Mark II","Community","HDW","Hand Dug Well","Grade A","Yes","BO2205","Seasonality =No, Village =Magbakoli, Section =Tonkonba","#water_tech, #status_id, #notes"]
["Bombali","Makarie","Tonkonba","Magbakoli",800,3,"School Compound",null,"No","Non",null,null,false,false,"IM2","India Mark II","School","HDW","Hand Dug Well","Grade A","Yes","BO4658","Seasonality =No, Village =Magbakoli, Section =Tonkonba","#water_tech, #status_id, #notes"]
["Bombali","Makarie","Tonkonba","Magbekoleh",800,1,"At the CHP",2,"Yes","Oui","8.915466","-12.21041",false,true,"IM2","India Mark II plus solar pump","Health Facility","HDW","Hand Dug Well","Grade B","Yes","BO782","Seasonality =Yes, Village =Magbekoleh, Section =Tonkonba","#water_tech, #status_id, #notes"]
["Bombali","Makarie","Tonkonba","Magbekoleh",800,2,"Close to the Mosque",0,"No","Oui","8.916483","-12.20958",false,false,"PB2","PB Mark II","Community","BH","Borehole","Grade A","Yes","BO780","Seasonality =No, Village =Magbekoleh, Section =Tonkonba","#water_tech, #status_id, #notes"]
["Bombali","Makarie","Tonkonba","Magbekoleh",800,3,"End of the village",3,"Yes","Oui","8.916466","-12.20901",false,false,"IM2","India Mark II","Community","HDW","Hand Dug Well","Grade C","No","BO781","Seasonality =Yes, Village =Magbekoleh, Section =Tonkonba","#water_tech, #status_id, #notes"]
["Bombali","Makarie","Tonkonba","Magumbu",520,1,"magumbu comm.junior school",3,"Yes","Oui","8.901533","-12.17178",false,false,"IM2","India Mark II","School","HDW","Hand Dug Well","Grade A","Yes","BO777","Seasonality =Yes, Village =Magumbu, Section =Tonkonba","#water_tech, #status_id, #notes"]
["Bombali","Makarie","Tonkonba","Magumbu",520,2,"BDEC primary school",4,"Yes","Oui","8.90075","-12.17236",false,false,"IM2","India Mark II","School","HDW","Hand Dug Well","Grade A","Yes","BO778","Seasonality =Yes, Village =Magumbu, Section =Tonkonba","#water_tech, #status_id, #notes"]
["Bombali","Makarie","Tonkonba","Magumbu",520,3,"close to the mosque",4,"Yes","Oui","8.899116","-12.17283",false,false,"IM2","India Mark II","Community","HDW","Hand Dug Well","Grade A","Yes","BO4490","Seasonality =Yes, Village =Magumbu, Section =Tonkonba","#water_tech, #status_id, #notes"]
["Bombali","Makarie","Tonkonba","Magumbu",520,4,"opposite the mosque",0,"No","Oui","8.874666","-12.26831",false,false,"Afridev","Afridev","Community","BH","Borehole","Grade A","Yes","BO4491",{"$f":"_xlfn.CONCAT(\"Seasonality =\",I1154,\", \",\"Village =\", D1154,\", \",\"Section =\", C1154)","v":"Seasonality =No, Village =Magumbu, Section =Tonkonba"},"#water_tech, #status_id, #notes"]
["Bombali","Makarie","Tonkonba","Matakay",null,1,"Side of the Town",null,{"$f":"IF(H1155>0,\"Yes\",\"No\")","v":"No"},"Non",null,null,false,false,"IM2","India Mark II","Community","HDW","Hand Dug Well","Grade A",{"$f":"IF(OR(T1155=\"Grade A\",T1155=\"Grade B\"),\"Yes\",\"No\")","v":"Yes"},"BO4659","Seasonality =No, Village =Matakay, Section =Tonkonba","#water_tech, #status_id, #notes"]
["Bombali","Makarie","Tonkonba","Moriya",480,1,"End of the village",0,"No","Non","8.87238","-12.31759",false,false,"PB2","PB Mark II","Community","BH","Borehole","Grade A","Yes","BO772","Seasonality =No, Village =Moriya, Section =Tonkonba","#water_tech, #status_id, #notes"]
["Bombali","Makarie","Tonkonba","Tonkonba",895,1,"At the CHP",4,"Yes","Oui","8.87445","-12.26546",false,false,"IM2","India Mark II","Health Facility","HDW","Hand Dug Well","Grade A","Yes","BO767","Seasonality =Yes, Village =Tonkonba, Section =Tonkonba","#water_tech, #status_id, #notes"]
["Bombali","Makarie","Tonkonba","Tonkonba",895,2,"opposite the barry",4,"Yes","Oui","8.87455","-12.26653",false,false,"IM2","India Mark II","Community","HDW","Hand Dug Well","Grade A","Yes","BO769","Seasonality =Yes, Village =Tonkonba, Section =Tonkonba","#water_tech, #status_id, #notes"]
["Bombali","Makarie","Tonkonba","Tonkonba",895,3,"BDEC primary school",6,"Yes","Oui","8.876016","-12.26688",false,false,"Just pedestal - incomplete","Just pedestal - incomplete","School","HDW","Hand Dug Well","Grade D","No","BO2074","Seasonality =Yes, Village =Tonkonba, Section =Tonkonba","#water_tech, #status_id, #notes"]
["Bombali","Makarie","Tonkonba","Tonkonba",895,4,"Centre",0,"No","Non","8.87470","-12.26828",false,false,"Japan Below","Japan Below","Community","BH","Borehole","Grade A","Yes","BO768","Seasonality =No, Village =Tonkonba, Section =Tonkonba","#water_tech, #status_id, #notes"]
["Bombali","Makarie","Yainkassa","Chain Bundu",90,1,"centre of the village",0,"No","Oui","8.780866","-12.2611",false,false,"IM2","India Mark II","Community","BH","Borehole","Grade A","Yes","BO4492","Seasonality =No, Village =Chain Bundu, Section =Yainkassa","#water_tech, #status_id, #notes"]
["Bombali","Makarie","Yainkassa","Kolisokoh",895,1,"SLMB primary school",1,"Yes","Oui","8.765283","-12.19611",false,false,"Kardia","Kardia","School","HDW","Hand Dug Well","Grade B","Yes","BO750","Seasonality =Yes, Village =Kolisokoh, Section =Yainkassa","#water_tech, #status_id, #notes"]
["Bombali","Makarie","Yainkassa","Kolisokoh",895,2,"wesleyan primary school",0,"No","Oui","8.766283","-12.1968",false,false,"IM2","India Mark II","School","BH","Borehole","Grade C","No","BO751","Seasonality =No, Village =Kolisokoh, Section =Yainkassa","#water_tech, #status_id, #notes"]
["Bombali","Makarie","Yainkassa","Kolisokoh",895,3,"wesleyan primary school",4,"Yes","Oui","8.766633","-12.19668",false,false,"Kardia","Kardia","School","HDW","Hand Dug Well","Grade C","No","BO4493","Seasonality =Yes, Village =Kolisokoh, Section =Yainkassa","#water_tech, #status_id, #notes"]
["Bombali","Makarie","Yainkassa","Kolisokoh",895,4,"At the CHP",0,"No","Oui","8.7669","-12.19691",false,false,"IM2","India Mark II","Health Facility","HDW","Hand Dug Well","Grade C","No","BO748","Seasonality =No, Village =Kolisokoh, Section =Yainkassa","#water_tech, #status_id, #notes"]
["Bombali","Makarie","Yainkassa","Kolisokoh",895,5,"At the CHP",0,"No","Oui","8.766716","-12.19705",false,true,"IM2","India Mark II plus solar pump","Health Facility","BH","Borehole","Grade A","Yes","BO4494","Seasonality =No, Village =Kolisokoh, Section =Yainkassa","#water_tech, #status_id, #notes"]
["Bombali","Makarie","Yainkassa","Kolisokoh",895,6,"Road to Gbom tarawalie",0,"No","Oui","8.7678","-12.19681",false,false,"PB2","PB Mark II","Community","BH","Borehole","Grade A","Yes","BO752","Seasonality =No, Village =Kolisokoh, Section =Yainkassa","#water_tech, #status_id, #notes"]
["Bombali","Makarie","Yainkassa","Kolisokoh",895,7,"At the mosque",6,"Yes","Oui","8.76875","-12.1974",false,false,"IM2","India Mark II","Community","HDW","Hand Dug Well","Grade B","Yes","BO747","Seasonality =Yes, Village =Kolisokoh, Section =Yainkassa","#water_tech, #status_id, #notes"]
["Bombali","Makarie","Yainkassa","Kolisokoh",895,8,"close to the barry",0,"No","Oui","8.769133","-12.198",false,false,"IM2","India Mark II","Community","BH","Borehole","Grade A","Yes","BO4495","Seasonality =No, Village =Kolisokoh, Section =Yainkassa","#water_tech, #status_id, #notes"]
["Bombali","Makarie","Yainkassa","Kolisokoh",895,9,"Road to makeni",0,"No","Oui","8.768983","-12.19683",false,false,"Just pedestal - incomplete","Just pedestal - incomplete","Community","BH","Borehole","Grade D","No","BO4496","Seasonality =No, Village =Kolisokoh, Section =Yainkassa","#water_tech, #status_id, #notes"]
["Bombali","Makarie","Yainkassa","Kolisokoh",895,10,"At the barry",2,"Yes","Oui","8.769183","-12.19815",false,false,"Just pedestal - incomplete","Just pedestal - incomplete","Community","HDW","Hand Dug Well","Grade C","No","BO749","Seasonality =Yes, Village =Kolisokoh, Section =Yainkassa","#water_tech, #status_id, #notes"]
["Bombali","Makarie","Yainkassa","Laminaya",450,1,"Close to the Mosque",null,"No","Non",null,null,false,false,"IM2","India Mark II","Community","HDW","Hand Dug Well","Grade X","No","BO4761","Seasonality =No, Village =Laminaya, Section =Yainkassa","#water_tech, #status_id, #notes"]
["Bombali","Makarie","Yainkassa","Lungi Ache",420,1,"close to the mosque",0,"No","Oui","8.758166","-12.30765",false,false,"IM2","India Mark II","Community","BH","Borehole","Grade A","Yes","BO4497","Seasonality =No, Village =Lungi Ache, Section =Yainkassa","#water_tech, #status_id, #notes"]
["Bombali","Makarie","Yainkassa","Lungi Ache",420,2,"At the mosque",6,"Yes","Oui","8.758483","-12.30755",false,false,"PB2","PB Mark II","Community","HDW","Hand Dug Well","Grade A","Yes","BO733","Seasonality =Yes, Village =Lungi Ache, Section =Yainkassa","#water_tech, #status_id, #notes"]
["Bombali","Makarie","Yainkassa","Makama Bana",200,1,"Road to fullah town junction",4,"Yes","Oui","8.751466","-12.258",false,false,"Kardia","Kardia","Community","HDW","Hand Dug Well","Grade B","Yes","BO742","Seasonality =Yes, Village =Makama Bana, Section =Yainkassa","#water_tech, #status_id, #notes"]
["Bombali","Makarie","Yainkassa","Maneh",350,1,"close to the mosque",0,"No","Oui","8.742083","-12.33683",false,false,"Kardia","Kardia","Community","BH","Borehole","Grade A","Yes","BO4498","Seasonality =No, Village =Maneh, Section =Yainkassa","#water_tech, #status_id, #notes"]
["Bombali","Makarie","Yainkassa","Maro",280,1,"close to the mosque",0,"No","Oui","8.772083","-12.31836",false,false,"IM2","India Mark II","Community","HDW","Hand Dug Well","Grade A","Yes","BO4499","Seasonality =No, Village =Maro, Section =Yainkassa","#water_tech, #status_id, #notes"]
["Bombali","Makarie","Yainkassa","Maronkoh",250,1,"centre of the village",3,"Yes","Oui","8.787633","-12.29786",false,false,"IM2","India Mark II","Community","HDW","Hand Dug Well","Grade C","No","BO740","Seasonality =Yes, Village =Maronkoh, Section =Yainkassa","#water_tech, #status_id, #notes"]
["Bombali","Makarie","Yainkassa","Maronkoh",250,2,"End of the village",0,"No","Oui","8.787083","-12.29818",false,false,"IM2","India Mark II","Community","BH","Borehole","Grade A","Yes","BO739","Seasonality =No, Village =Maronkoh, Section =Yainkassa","#water_tech, #status_id, #notes"]
["Bombali","Makarie","Yainkassa","Mathene",420,1,"close to the mosque",4,"Yes","Oui","8.745583","-12.26551",true,false,"PB2","PB Mark II","Community","BH","Borehole","Grade D","No","BO744","Seasonality =Yes, Village =Mathene, Section =Yainkassa","#water_tech, #status_id, #notes"]
["Bombali","Makarie","Yainkassa","Mathene",420,2,"close to the mosque(Back)",4,"Yes","Oui","8.745483","-12.26571",false,false,"Kardia","Kardia","Community","HDW","Hand Dug Well","Grade A","Yes","BO743","Seasonality =Yes, Village =Mathene, Section =Yainkassa","#water_tech, #status_id, #notes"]
["Bombali","Makarie","Yainkassa","Mathene",420,3,"At the CHP",0,"No","Oui","8.745883","-12.26391",false,false,"IM2","India Mark II","Health Facility","HDW","Hand Dug Well","Grade A","Yes","BO746","Seasonality =No, Village =Mathene, Section =Yainkassa","#water_tech, #status_id, #notes"]
["Bombali","Makarie","Yainkassa","Mathene",420,4,"At the CHP",0,"No","Oui","8.7461","-12.26401",false,false,"Solar Tap System","Solar Tap System","Health Facility","BH","Borehole","Grade A","Yes","BO4500","Seasonality =No, Village =Mathene, Section =Yainkassa","#water_tech, #status_id, #notes"]
["Bombali","Makarie","Yainkassa","Mathene",420,5,"BDEC primary school",4,"Yes","Oui","8.746416","-12.26371",false,false,"IM2","India Mark II","School","HDW","Hand Dug Well","Grade A","Yes","BO745","Seasonality =Yes, Village =Mathene, Section =Yainkassa","#water_tech, #status_id, #notes"]
["Bombali","Makarie","Yainkassa","Rocompound",73,1,"centre of the village",4,"Yes","Oui","8.795966","-12.278",false,false,"Kardia","Kardia","Community","HDW","Hand Dug Well","Grade C","No","BO4501","Seasonality =Yes, Village =Rocompound, Section =Yainkassa","#water_tech, #status_id, #notes"]
["Bombali","Makarie","Yainkassa","Romapa",450,1,"opposite the barry",2,"Yes","Non","8.733483","-12.22356",false,false,"IM2","India Mark II","Community","HDW","Hand Dug Well","Grade C","No","BO4502","Seasonality =Yes, Village =Romapa, Section =Yainkassa","#water_tech, #status_id, #notes"]
["Bombali","Makarie","Yainkassa","Rothun",350,1,"centre of the village",3,"Yes","Non","8.753483","-12.27091",true,false,"Just pedestal - incomplete","Just pedestal - incomplete","Community","HDW","Hand Dug Well","Grade C","No","BO4503","Seasonality =Yes, Village =Rothun, Section =Yainkassa","#water_tech, #status_id, #notes"]
["Bombali","Makarie","Yainkassa","Royanka",320,1,"close to the highway",5,"Yes","Oui","8.802116","-12.29495",false,false,"PB2","PB Mark II","Community","HDW","Hand Dug Well","Grade A","Yes","BO738","Seasonality =Yes, Village =Royanka, Section =Yainkassa","#water_tech, #status_id, #notes"]
["Bombali","Makarie","Yainkassa","Taiama",350,1,"Road to makama",0,"No","Oui","8.788766","-12.22953",false,false,"IM2","India Mark II","Community","BH","Borehole","Grade A","Yes","BO4504","Seasonality =No, Village =Taiama, Section =Yainkassa","#water_tech, #status_id, #notes"]
["Bombali","Makarie","Yainkassa","Wurreh Wanda",350,1,"opposite the mosque",5,"Yes","Oui","8.724633","-12.20056",false,false,"Kardia","Kardia","Community","HDW","Hand Dug Well","Grade B","Yes","BO4505","Seasonality =Yes, Village =Wurreh Wanda, Section =Yainkassa","#water_tech, #status_id, #notes"]
["Bombali","Makarie","Yainkassa","Yainkassa",895,1,"BDEC primary school",5,"Yes","Oui","8.798183","-12.30798",false,false,"IM2","India Mark II","School","HDW","Hand Dug Well","Grade A","Yes","BO732","Seasonality =Yes, Village =Yainkassa, Section =Yainkassa","#water_tech, #status_id, #notes"]
["Bombali","Makarie","Yainkassa","Yainkassa",895,2,"close to the dry floor",0,"No","Oui","8.797766","-12.3093",false,false,"IM2","India Mark II","Community","BH","Borehole","Grade C","No","BO731","Seasonality =No, Village =Yainkassa, Section =Yainkassa","#water_tech, #status_id, #notes"]
["Bombali","Makarie","Yainkassa","Yainkassa",895,3,"close to the community store",3,"Yes","Oui","8.797533","-12.30976",false,false,"IM2","India Mark II","Private","HDW","Hand Dug Well","Grade A","Yes","BO4506","Seasonality =Yes, Village =Yainkassa, Section =Yainkassa","#water_tech, #status_id, #notes"]
["Bombali","Makarie","Yainkassa","Yainkassa",895,4,"At the CHP",3,"Yes","Oui","8.7961","-12.3115",false,false,"IM2","India Mark II","Health Facility","HDW","Hand Dug Well","Grade B","Yes","BO4507","Seasonality =Yes, Village =Yainkassa, Section =Yainkassa","#water_tech, #status_id, #notes"]
["Bombali","Mara ","Kiampkakolo","Kiampkakolo",1400,1,"At the P H U",2,"Yes","Oui","8.61065","-12.20288",false,false,"IM2","India Mark II","Health Facility","HDW","Hand Dug Well","Grade A","Yes","BO2556","Seasonality =Yes, Village =Kiampkakolo, Section =Kiampkakolo","#water_tech, #status_id, #notes"]
["Bombali","Mara ","Kiampkakolo","Kiampkakolo",1400,2,"EMS Primary School",2,"Yes","Oui","8.60961","-12.20341",false,false,"IM2","India Mark II","School","HDW","Hand Dug Well","Grade A","Yes","BO2558","Seasonality =Yes, Village =Kiampkakolo, Section =Kiampkakolo","#water_tech, #status_id, #notes"]
["Bombali","Mara ","Kiampkakolo","Madora",480,1,"Aljadi Islamic Primary School",0,"No","Oui","8.64478","-12.22822",false,false,"IM2","India Mark II","School","HDW","Hand Dug Well","Grade A","Yes","BO2537","Seasonality =No, Village =Madora, Section =Kiampkakolo","#water_tech, #status_id, #notes"]
["Bombali","Mara ","Kiampkakolo","Madora",480,2,"entrance of the village",0,"No","Oui","8.64541","-12.23065",false,false,"Kardia","Kardia","Community","HDW","Hand Dug Well","Grade A","Yes","BO2536","Seasonality =No, Village =Madora, Section =Kiampkakolo","#water_tech, #status_id, #notes"]
["Bombali","Mara ","Kiampkakolo","Mamilleh",1000,1,"Entrance of the village",4,"Yes","Oui","8.67558","-12.18971",false,false,"IM2","India Mark II","Community","HDW","Hand Dug Well","Grade A","Yes","BO2569","Seasonality =Yes, Village =Mamilleh, Section =Kiampkakolo","#water_tech, #status_id, #notes"]
["Bombali","Mara ","Kiampkakolo","Mamilleh",1000,2,"central of the town",2,"Yes","Oui","8.67467","-12.19123",false,false,"IM2","India Mark II","Community","HDW","Hand Dug Well","Grade A","Yes","BO2573","Seasonality =Yes, Village =Mamilleh, Section =Kiampkakolo","#water_tech, #status_id, #notes"]
["Bombali","Mara ","Kiampkakolo","Mamilleh",1000,3,"Hizibula Primary School",0,"No","Oui","8.67398","-12.19069",false,false,"IM2","India Mark II","School","HDW","Hand Dug Well","Grade A","Yes","BO2568","Seasonality =No, Village =Mamilleh, Section =Kiampkakolo","#water_tech, #status_id, #notes"]
["Bombali","Mara ","Kiampkakolo","Matanko",310,1,"Near the mosque",0,"No","Oui","8.62306","-12.23915",false,false,"IM2","India Mark II","Community","BH","Borehole","Grade A","Yes","BO2557","Seasonality =No, Village =Matanko, Section =Kiampkakolo","#water_tech, #status_id, #notes"]
["Bombali","Mara ","Kiampkakolo","Rowaka",980,1,"Entrance of the village",4,"Yes","Oui","8.64765","-12.17266",true,false,"Just pedestal - incomplete","Just pedestal - incomplete","Community","HDW","Hand Dug Well","Grade C","No","BO4508","Seasonality =Yes, Village =Rowaka, Section =Kiampkakolo","#water_tech, #status_id, #notes"]
["Bombali","Mara ","Kiampkakolo","Rowaka",980,2,"Near the mosque",4,"Yes","Oui","8.64672","-12.17218",false,false,"IM2","India Mark II","Community","HDW","Hand Dug Well","Grade C","No","BO2572","Seasonality =Yes, Village =Rowaka, Section =Kiampkakolo","#water_tech, #status_id, #notes"]
["Bombali","Mara ","Kiampkakolo","Rowaka",980,3,"end of the town",0,"No","Oui","8.64659","-12.17226",false,false,"IM2","India Mark II","Community","HDW","Hand Dug Well","Grade A","Yes","BO2571","Seasonality =No, Village =Rowaka, Section =Kiampkakolo","#water_tech, #status_id, #notes"]
["Bombali","Mara ","Kiampkakolo","Rowaka",980,4,"EMS Primary School",0,"No","Oui","8.6461","-12.17377",false,false,"IM2","India Mark II","Community","HDW","Hand Dug Well","Grade A","Yes","BO2574","Seasonality =No, Village =Rowaka, Section =Kiampkakolo","#water_tech, #status_id, #notes"]
["Bombali","Mara ","Magbilafu","Mabereh",2000,1,"central of the town",5,"Yes","Oui","8.73848","-12.18032",true,false,"Just pedestal - incomplete","Just pedestal - incomplete","Community","HDW","Hand Dug Well","Grade C","No","BO4509","Seasonality =Yes, Village =Mabereh, Section =Magbilafu","#water_tech, #status_id, #notes"]
["Bombali","Mara ","Magbilafu","Magbiafu",1200,1,"EMS Primary School",3,"Yes","Oui","8.70148","-12.23389",false,false,"IM2","India Mark II","School","HDW","Hand Dug Well","Grade A","Yes","BO2602","Seasonality =Yes, Village =Magbiafu, Section =Magbilafu","#water_tech, #status_id, #notes"]
["Bombali","Mara ","Magbilafu","Magbiafu",1200,2,"Near the mosque",4,"Yes","Oui","8.70343","-12.23528",false,false,"Inkar","Inkar","Community","HDW","Hand Dug Well","Grade A","Yes","BO2540","Seasonality =Yes, Village =Magbiafu, Section =Magbilafu","#water_tech, #status_id, #notes"]
["Bombali","Mara ","Magbilafu","Masethleh",1200,1,"end of the town",5,"Yes","Oui","8.70898","-12.20299",false,false,"Just pedestal - incomplete","Just pedestal - incomplete","Community","HDW","Hand Dug Well","Grade C","No","BO4511","Seasonality =Yes, Village =Masethleh, Section =Magbilafu","#water_tech, #status_id, #notes"]
["Bombali","Mara ","Magbilafu","Masethleh",1200,2,"central of the town",4,"Yes","Oui","8.7088","-12.20233",false,false,"IM2","India Mark II","Community","BH","Borehole","Grade A","Yes","BO4512","Seasonality =Yes, Village =Masethleh, Section =Magbilafu","#water_tech, #status_id, #notes"]
["Bombali","Mara ","Magbilafu","Ropeitfu Kaparok",250,1,"Entrance of the village",4,"Yes","Oui","8.70704","-12.23246",false,false,"IM2","India Mark II","Community","HDW","Hand Dug Well","Grade C","No","BO4513","Seasonality =Yes, Village =Ropeitfu Kaparok, Section =Magbilafu","#water_tech, #status_id, #notes"]
["Bombali","Mara ","Magbilafu","Rothonka",450,1,"Close to Chief house",0,"No","Non","8.71630","-12.23914",false,false,"IM2","India Mark II","Community","BH","Borehole","Grade A","Yes","BO2612","Seasonality =No, Village =Rothonka, Section =Magbilafu","#water_tech, #status_id, #notes"]
["Bombali","Mara ","Magbilafu","Rothonkoh",220,1,"Entrance of the village",0,"No","Oui","8.69713","-12.19822",false,false,"IM2","India Mark II","Community","BH","Borehole","Grade A","Yes","BO4514","Seasonality =No, Village =Rothonkoh, Section =Magbilafu","#water_tech, #status_id, #notes"]
["Bombali","Mara ","Manewa","Makombi",508,1,"Center of the town",0,"No","Oui","8.6615","-12.18447",false,false,"IM2","India Mark II","Community","BH","Borehole","Grade A","Yes","BO2576","Seasonality =No, Village =Makombi, Section =Manewa","#water_tech, #status_id, #notes"]
["Bombali","Mara ","Manewa","Mamarie",720,1,"Close to the mosque",2,"Yes","Oui","8.68661","-12.13973",true,false,"IM2","India Mark II","Community","HDW","Hand Dug Well","Grade E","No","BO2609","Seasonality =Yes, Village =Mamarie, Section =Manewa","#water_tech, #status_id, #notes"]
["Bombali","Mara ","Manewa","Mamarie",720,2,"near the town hall",0,"No","Oui","8.68705","-12.14015",false,false,"IM2","India Mark II","Community","HDW","Hand Dug Well","Grade A","Yes","BO2611","Seasonality =No, Village =Mamarie, Section =Manewa","#water_tech, #status_id, #notes"]
["Bombali","Mara ","Manewa","Mamarie",720,3,"SLMB primary school",4,"Yes","Oui","8.68888","-12.14041",false,false,"IM2","India Mark II","School","HDW","Hand Dug Well","Grade C","No","BO2608",{"$f":"_xlfn.CONCAT(\"Seasonality =\",I1218,\", \",\"Village =\", D1218,\", \",\"Section =\", C1218)","v":"Seasonality =Yes, Village =Mamarie, Section =Manewa"},"#water_tech, #status_id, #notes"]
["Bombali","Mara ","Manewa","Manewa",1100,1,"Entrance of the village",0,{"$f":"IF(H1219>0,\"Yes\",\"No\")","v":"No"},"Oui","8.70117","-12.14371",false,false,"IM2","India Mark II","Community","BH","Borehole","Grade A",{"$f":"IF(OR(T1219=\"Grade A\",T1219=\"Grade B\"),\"Yes\",\"No\")","v":"Yes"},"BO2577","Seasonality =No, Village =Manewa, Section =Manewa","#water_tech, #status_id, #notes"]
["Bombali","Mara ","Manewa","Manewa",1100,2,"Near the mosque",3,"Yes","Oui","8.70148","-12.14306",true,false,"Just pedestal - incomplete","Just pedestal - incomplete","Community","HDW","Hand Dug Well","Grade C","No","BO2578","Seasonality =Yes, Village =Manewa, Section =Manewa","#water_tech, #status_id, #notes"]
["Bombali","Mara ","Manewa","Manewa",1100,3,"At the PHU",3,"Yes","Oui","8.70302","-12.14157",false,false,"IM2","India Mark II","Health Facility","HDW","Hand Dug Well","Grade A","Yes","BO4515","Seasonality =Yes, Village =Manewa, Section =Manewa","#water_tech, #status_id, #notes"]
["Bombali","Mara ","Manewa","Manewa",1100,4,"Evengelical Primary School",4,"Yes","Oui","8.69649","-12.1478",false,false,"Kardia","Kardia","School","HDW","Hand Dug Well","Grade C","No","BO2723","Seasonality =Yes, Village =Manewa, Section =Manewa","#water_tech, #status_id, #notes"]
["Bombali","Mara ","Manewa","Marokie",690,1,"Entrance of the village",0,"No","Oui","8.69465","-12.15032",false,false,"IM2","India Mark II","Community","BH","Borehole","Grade A","Yes","BO4516","Seasonality =No, Village =Marokie, Section =Manewa","#water_tech, #status_id, #notes"]
["Bombali","Mara ","Manewa","Marokie",690,2,"Near the mosque",4,"Yes","Oui","8.69357","-12.15184",false,false,"IM2","India Mark II","Community","HDW","Hand Dug Well","Grade C","No","BO4517","Seasonality =Yes, Village =Marokie, Section =Manewa","#water_tech, #status_id, #notes"]
["Bombali","Mara ","Manewa","Marokie",690,3,"Benevolent primary school",2,"Yes","Oui","8.69235","-12.15446",false,false,"IM2","India Mark II","School","HDW","Hand Dug Well","Grade A","Yes","BO2575","Seasonality =Yes, Village =Marokie, Section =Manewa","#water_tech, #status_id, #notes"]
["Bombali","Mara ","Manewa","Mataro",580,1,"Entrance of the village",3,"Yes","Oui","8.68791","-12.18144",false,false,"IM2","India Mark II","Community","HDW","Hand Dug Well","Grade A","Yes","BO2570","Seasonality =Yes, Village =Mataro, Section =Manewa","#water_tech, #status_id, #notes"]
["Bombali","Mara ","Manewa","Mataro",580,2,"Entrance of the village",0,"No","Oui","8.68773","-12.18128",false,false,"IM2","India Mark II","Community","BH","Borehole","Grade C","No","BO4518","Seasonality =No, Village =Mataro, Section =Manewa","#water_tech, #status_id, #notes"]
["Bombali","Mara ","Marah","Mabonsor",2800,1,"Close to the Chief compound",0,"No","Non","8.67792","-12.24313",false,false,"IM2","India Mark II","Community","BH","Borehole","Grade A","Yes","BO2483","Seasonality =No, Village =Mabonsor, Section =Marah","#water_tech, #status_id, #notes"]
["Bombali","Mara ","Marah","Mabonsor",2800,2,"EMS Primary School",0,"No","Oui","8.67863","-12.24129",false,false,"Just pedestal - incomplete","Just pedestal - incomplete","School","BH","Borehole","Grade D","No","BO4519","Seasonality =No, Village =Mabonsor, Section =Marah","#water_tech, #status_id, #notes"]
["Bombali","Mara ","Marah","Mabonsor",2800,3,"end of the town",0,"No","Oui","8.67616","-12.24298",false,false,"IM2","India Mark II","Community","BH","Borehole","Grade D","No","BO2559","Seasonality =No, Village =Mabonsor, Section =Marah","#water_tech, #status_id, #notes"]
["Bombali","Mara ","Marah","Magbemsaw",450,1,"near the mosque",0,"No","Oui","8.65604","-12.21322",false,false,"IM2","India Mark II","Community","BH","Borehole","Grade A","Yes","BO2526","Seasonality =No, Village =Magbemsaw, Section =Marah","#water_tech, #status_id, #notes"]
["Bombali","Mara ","Marah","Magbemsaw",450,2,"central of the town",0,"No","Oui","8.65616","-12.21318",false,false,"IM2","India Mark II","Community","HDW","Hand Dug Well","Grade A","Yes","BO4521","Seasonality =No, Village =Magbemsaw, Section =Marah","#water_tech, #status_id, #notes"]
["Bombali","Mara ","Marah","Magbonsor",1600,1,"Near the mosque",0,"No","Oui","8.63523","-12.22906",false,false,"Just pedestal - incomplete","Just pedestal - incomplete","Community","HDW","Hand Dug Well","Grade D","No","BO2710","Seasonality =No, Village =Magbonsor, Section =Marah","#water_tech, #status_id, #notes"]
["Bombali","Mara ","Marah","Magbonsor",1600,2,"UMC primary school",0,"No","Oui","8.63889","-12.22984",false,false,"IM2","India Mark II","School","HDW","Hand Dug Well","Grade A","Yes","BO2538","Seasonality =No, Village =Magbonsor, Section =Marah","#water_tech, #status_id, #notes"]
["Bombali","Mara ","Marah","Makay",210,1,"Center of the town",0,"No","Oui","8.66988","-12.22887",false,false,"Rope","Rope","Community","HDW","Hand Dug Well","Grade C","No","BO2527","Seasonality =No, Village =Makay, Section =Marah","#water_tech, #status_id, #notes"]
["Bombali","Mara ","Marah","Malainka",950,1,"Entrance of the village",2,"Yes","Oui","8.66545","-12.2094",false,false,"IM2","India Mark II","Community","HDW","Hand Dug Well","Grade A","Yes","BO4522","Seasonality =Yes, Village =Malainka, Section =Marah","#water_tech, #status_id, #notes"]
["Bombali","Mara ","Marah","Malainka",950,2,"Near the mosque",0,"No","Oui","8.66476","-12.21114",false,false,"IM2","India Mark II","Community","BH","Borehole","Grade A","Yes","BO2562","Seasonality =No, Village =Malainka, Section =Marah","#water_tech, #status_id, #notes"]
["Bombali","Mara ","Marah","Malainka",950,3,"EMS Primary School",0,"No","Oui","8.66372","-12.2127",false,false,"IM2","India Mark II","School","HDW","Hand Dug Well","Grade C","No","BO2563","Seasonality =No, Village =Malainka, Section =Marah","#water_tech, #status_id, #notes"]
["Bombali","Mara ","Marah","Marah",2800,1,"starting of the village",3,"Yes","Oui","8.66313","-12.23988",false,false,"IM2","India Mark II","Community","HDW","Hand Dug Well","Grade C","No","BO4523","Seasonality =Yes, Village =Marah, Section =Marah","#water_tech, #status_id, #notes"]
["Bombali","Mara ","Marah","Marah",2800,2,"Center of the town",1,"Yes","Oui","8.66363","-12.24274",false,false,"PB2","PB Mark II","Community","HDW","Hand Dug Well","Grade A","Yes","BO4524","Seasonality =Yes, Village =Marah, Section =Marah","#water_tech, #status_id, #notes"]
["Bombali","Mara ","Marah","Marah",2800,3,"RC Primary School",3,"Yes","Oui","8.6625","-12.2424",false,false,"IM2","India Mark II","School","HDW","Hand Dug Well","Grade A","Yes","BO2541","Seasonality =Yes, Village =Marah, Section =Marah","#water_tech, #status_id, #notes"]
["Bombali","Mara ","Marah","Marah",2800,4,"Side of the town",4,"Yes","Oui","8.66369","-12.24489",false,false,"Rope","Rope","Community","HDW","Hand Dug Well","Grade C","No","BO4525","Seasonality =Yes, Village =Marah, Section =Marah","#water_tech, #status_id, #notes"]
["Bombali","Mara ","Marah","Marah",2800,5,"Near the mosque",0,"No","Oui","8.66416","-12.2457",false,false,"Rope","Rope","Community","HDW","Hand Dug Well","Grade C","No","BO2560","Seasonality =No, Village =Marah, Section =Marah","#water_tech, #status_id, #notes"]
["Bombali","Mara ","Marah","Marah",2800,6,"Ansurul Secondary School",0,"No","Oui","8.66212","-12.24362",false,false,"IM2","India Mark II","School","BH","Borehole","Grade A","Yes","BO2561","Seasonality =No, Village =Marah, Section =Marah","#water_tech, #status_id, #notes"]
["Bombali","Mara ","Marah","Marah",2800,7,"At the PHU",0,"No","Oui","8.66285","-12.24576",false,false,"IM2","India Mark II","Health Facility","HDW","Hand Dug Well","Grade C","No","BO2542","Seasonality =No, Village =Marah, Section =Marah","#water_tech, #status_id, #notes"]
["Bombali","Mara ","Marah","Marah",2800,8,"At the chief compound",0,"No","Oui","8.66325","-12.24713",false,false,"IM2","India Mark II","Community","HDW","Hand Dug Well","Grade A","Yes","BO4526","Seasonality =No, Village =Marah, Section =Marah","#water_tech, #status_id, #notes"]
["Bombali","Ngowahun","Garangana","Garangana",350,1,"At the school compound",0,"No","Oui","8.94258","-12.23836",false,false,"IM2","India Mark II","School","BH","Borehole","Grade A","Yes","BO962","Seasonality =No, Village =Garangana, Section =Garangana","#water_tech, #status_id, #notes"]
["Bombali","Ngowahun","Garangana","Mabombor",400,1,"close to the church",0,"No","Oui","8.97176","-12.22166",false,false,"IM2","India Mark II","Community","HDW","Hand Dug Well","Grade A","Yes","BO958","Seasonality =No, Village =Mabombor, Section =Garangana","#water_tech, #status_id, #notes"]
["Bombali","Ngowahun","Garangana","Mabombor",400,2,"Down the village",0,"No","Non","8.97458","-12.21789",false,false,"Pully","Pully","Community","HDW","Hand Dug Well","Grade D","No","BO957","Seasonality =No, Village =Mabombor, Section =Garangana","#water_tech, #status_id, #notes"]
["Bombali","Ngowahun","Garangana","Maharie",700,1,"close to the mosque",4,"Yes","Non","8.95000","-12.22340",true,false,"IM2","India Mark II","Community","HDW","Hand Dug Well","Grade B","Yes","BO959","Seasonality =Yes, Village =Maharie, Section =Garangana","#water_tech, #status_id, #notes"]
["Bombali","Ngowahun","Garangana","Maharie",700,2,"side of the village",4,"Yes","Non","8.95087","-12.22411",false,false,"IM2","India Mark II","Community","HDW","Hand Dug Well","Grade A","Yes","BO4527","Seasonality =Yes, Village =Maharie, Section =Garangana","#water_tech, #status_id, #notes"]
["Bombali","Ngowahun","Garangana","Maharie",700,3,"At the CHP",3,"Yes","Oui","8.95140","-12.22379",false,false,"Inkar","Inkar","Health Facility","HDW","Hand Dug Well","Grade A","Yes","BO960","Seasonality =Yes, Village =Maharie, Section =Garangana","#water_tech, #status_id, #notes"]
["Bombali","Ngowahun","Garangana","Maharie",700,4,"WCSL primary school",0,"No","Oui","8.95127","-12.22331",false,false,"Inkar","Inkar","School","BH","Borehole","Grade A","Yes","BO961","Seasonality =No, Village =Maharie, Section =Garangana","#water_tech, #status_id, #notes"]
["Bombali","Ngowahun","Garangana","Mayoko",520,1,"centre of the village",0,"No","Oui","9.01878","-12.28436",false,false,"IM2","India Mark II","Community","HDW","Hand Dug Well","Grade A","Yes","BO2178","Seasonality =No, Village =Mayoko, Section =Garangana","#water_tech, #status_id, #notes"]
["Bombali","Ngowahun","Kalangba","Gbugbuima",603,1,"Entrance of the village",0,"No","Oui","8.99513","-12.12665",false,false,"IM2","India Mark II","Community","BH","Borehole","Grade A","Yes","BO907","Seasonality =No, Village =Gbugbuima, Section =Kalangba","#water_tech, #status_id, #notes"]
["Bombali","Ngowahun","Kalangba","Gbugbuima",603,2,"End of the village",3,"Yes","Oui","8.99321","-12.12693",false,false,"IM2","India Mark II","Community","HDW","Hand Dug Well","Grade A","Yes","BO4528","Seasonality =Yes, Village =Gbugbuima, Section =Kalangba","#water_tech, #status_id, #notes"]
["Bombali","Ngowahun","Kalangba","kalangba",620,1,"WCSL primary school",2,"Yes","Oui","9.03430","-12.16261",false,false,"IM2","India Mark II","School","HDW","Hand Dug Well","Grade A","Yes","BO2388","Seasonality =Yes, Village =kalangba, Section =Kalangba","#water_tech, #status_id, #notes"]
["Bombali","Ngowahun","Kalangba","kalangba",620,2,"WCSL primary school",5,"Yes","Oui","9.03448","-12.16315",false,false,"IM2","India Mark II","School","HDW","Hand Dug Well","Grade B","Yes","BO2123","Seasonality =Yes, Village =kalangba, Section =Kalangba","#water_tech, #status_id, #notes"]
["Bombali","Ngowahun","Kalangba","kalangba",620,3,"close to the mosque",4,"Yes","Non","9.03328","-12.16191",false,false,"IM2","India Mark II","Community","HDW","Hand Dug Well","Grade B","Yes","BO2605","Seasonality =Yes, Village =kalangba, Section =Kalangba","#water_tech, #status_id, #notes"]
["Bombali","Ngowahun","Kalangba","kalangba",620,3,"At the KAS School",null,"No","Non",null,null,false,false,"IM2","India Mark II","Community","HDW","Hand Dug Well","Grade A","Yes","BO915","Seasonality =No, Village =kalangba, Section =Kalangba","#water_tech, #status_id, #notes"]
["Bombali","Ngowahun","Kalangba","kalangba",620,4,"close to the mosque",2,"Yes","Oui","9.03311","-12.16061",false,false,"IM2","India Mark II","Community","HDW","Hand Dug Well","Grade A","Yes","BO911","Seasonality =Yes, Village =kalangba, Section =Kalangba","#water_tech, #status_id, #notes"]
["Bombali","Ngowahun","Kalangba","kalangba",620,5,"side of the village",4,"Yes","Oui","9.03391","-12.16092",true,false,"PB2","PB Mark II","Community","HDW","Hand Dug Well","Grade C","No","BO913","Seasonality =Yes, Village =kalangba, Section =Kalangba","#water_tech, #status_id, #notes"]
["Bombali","Ngowahun","Kalangba","kalangba",620,6,"At the school compound",2,"Yes","Oui","9.03124","-12.15687",false,false,"IM2","India Mark II","School","BH","Borehole","Grade A","Yes","BO910","Seasonality =Yes, Village =kalangba, Section =Kalangba","#water_tech, #status_id, #notes"]
["Bombali","Ngowahun","Kalangba","kalangba",620,7,"At the school compound",4,"Yes","Oui","9.03067","-12.15649",false,false,"Just pedestal - incomplete","Just pedestal - incomplete","School","HDW","Hand Dug Well","Grade B","Yes","BO2778","Seasonality =Yes, Village =kalangba, Section =Kalangba","#water_tech, #status_id, #notes"]
["Bombali","Ngowahun","Kalangba","kalangba",620,8,"At the health centre",2,"Yes","Oui","9.03070","-12.15811",false,false,"IM2","India Mark II","Health Facility","HDW","Hand Dug Well","Grade A","Yes","BO912","Seasonality =Yes, Village =kalangba, Section =Kalangba","#water_tech, #status_id, #notes"]
["Bombali","Ngowahun","Kalangba","kalangba",620,9,"At the health centre",2,"Yes","Non","9.03011","-12.15769",false,false,"IM2","India Mark II","Health Facility","HDW","Hand Dug Well","Grade A","Yes","BO914","Seasonality =Yes, Village =kalangba, Section =Kalangba","#water_tech, #status_id, #notes"]
["Bombali","Ngowahun","Kalangba","kalangba",620,10,"Side of the town",null,"No","Non","9.03288","-12.15987",true,false,"PB2","PB Mark II","Community","HDW","Hand Dug Well","Grade C","No","BO4704","Seasonality =No, Village =kalangba, Section =Kalangba","#water_tech, #status_id, #notes"]
["Bombali","Ngowahun","Kalangba","kalangba",620,11,"Close to the church",2,"Yes","Non","9.03316","-12.16170",false,false,"IM2","India Mark II","Community","HDW","Hand Dug Well","Grade B","Yes","BO4703","Seasonality =Yes, Village =kalangba, Section =Kalangba","#water_tech, #status_id, #notes"]
["Bombali","Ngowahun","Kalangba","kalangba",620,12,"At the back of the market",null,"No","Non","9.03392","-12.16090",false,false,"Just pedestal - incomplete","Just pedestal - incomplete","Community","BH","Borehole","Grade E","No","BO4705","Seasonality =No, Village =kalangba, Section =Kalangba","#water_tech, #status_id, #notes"]
["Bombali","Ngowahun","Kalangba","Logberay",240,1,"centre of the village",5,"Yes","Oui","9.00084","-12.16935",false,false,"IM2","India Mark II","Community","HDW","Hand Dug Well","Grade A","Yes","BO2174","Seasonality =Yes, Village =Logberay, Section =Kalangba","#water_tech, #status_id, #notes"]
["Bombali","Ngowahun","Kalangba","Logberay",240,2,"At the school compound",0,"No","Non","9.00145","-12.16835",true,false,"IM2","India Mark II","School","BH","Borehole","Grade B","Yes","BO4529","Seasonality =No, Village =Logberay, Section =Kalangba","#water_tech, #status_id, #notes"]
["Bombali","Ngowahun","Kalangba","maforay kolatik",300,1,"End of the village",7,"Yes","Oui","9.01091","-12.13931",false,false,"IM2","India Mark II","Community","HDW","Hand Dug Well","Grade A","Yes","BO908","Seasonality =Yes, Village =maforay kolatik, Section =Kalangba","#water_tech, #status_id, #notes"]
["Bombali","Ngowahun","Kalangba","maforay kolatik",300,2,"centre of the village",6,"Yes","Oui","9.01170","-12.14046",true,false,"IM2","India Mark II","Community","HDW","Hand Dug Well","Grade B","Yes","BO909","Seasonality =Yes, Village =maforay kolatik, Section =Kalangba","#water_tech, #status_id, #notes"]
["Bombali","Ngowahun","Kalangba","maforay kolatik",300,3,"At the school compound",6,"Yes","Oui","9.01227","-12.14187",true,false,"Just pedestal - incomplete","Just pedestal - incomplete","School","HDW","Hand Dug Well","Grade B","Yes","BO1278","Seasonality =Yes, Village =maforay kolatik, Section =Kalangba","#water_tech, #status_id, #notes"]
["Bombali","Ngowahun","Kalangba","maforay kolatik",300,4,"At the school compound",3,"Yes","Oui","9.01266","-12.14245",false,false,"IM2","India Mark II","School","BH","Borehole","Grade A","Yes","BO4530","Seasonality =Yes, Village =maforay kolatik, Section =Kalangba","#water_tech, #status_id, #notes"]
["Bombali","Ngowahun","Kalangba","magbana",58,1,"Close to the dry floor",3,"Yes","Oui","8.98618","-12.19078",false,false,"IM2","India Mark II","Community","HDW","Hand Dug Well","Grade A","Yes","BO4531","Seasonality =Yes, Village =magbana, Section =Kalangba","#water_tech, #status_id, #notes"]
["Bombali","Ngowahun","Kalangba","manjaga",157,1,"close to the mosque",1,"Yes","Oui","9.00451","-12.16281",false,false,"IM2","India Mark II","Community","HDW","Hand Dug Well","Grade A","Yes","BO2784","Seasonality =Yes, Village =manjaga, Section =Kalangba","#water_tech, #status_id, #notes"]
["Bombali","Ngowahun","Kalangba","Tanyehun",255,1,"At the school compound",0,"No","Oui","8.99274","-12.18287",false,false,"IM2","India Mark II","School","HDW","Hand Dug Well","Grade A","Yes","BO2683","Seasonality =No, Village =Tanyehun, Section =Kalangba","#water_tech, #status_id, #notes"]
["Bombali","Ngowahun","Kania","Chogorema",479,2,"In town",0,"No","Non","9.04185","-12.14666",false,false,"IM2","India Mark II","Community","HDW","Hand Dug Well","Grade A","Yes","BO2179","Seasonality =No, Village =Chogorema, Section =Kania","#water_tech, #status_id, #notes"]
["Bombali","Ngowahun","Kania","Gahomba",500,1,"close to the school Cpd.",0,"No","Oui","9.05450","-12.15284",false,false,"IM2","India Mark II","Community","HDW","Hand Dug Well","Grade A","Yes","BO4532","Seasonality =No, Village =Gahomba, Section =Kania","#water_tech, #status_id, #notes"]
["Bombali","Ngowahun","Kania","Ghagorayma",250,1,"Back of the village",0,"No","Oui","9.04142","-12.14660",false,false,"IM2","India Mark II","Community","HDW","Hand Dug Well","Grade A","Yes","BO955","Seasonality =No, Village =Ghagorayma, Section =Kania","#water_tech, #status_id, #notes"]
["Bombali","Ngowahun","Kania","Kagberay",120,1,"Entrance of the village",0,"No","Non","9.06320","-12.13851",false,false,"PB2","PB Mark II","Community","HDW","Hand Dug Well","Grade A","Yes","BO4702",{"$f":"_xlfn.CONCAT(\"Seasonality =\",I1282,\", \",\"Village =\", D1282,\", \",\"Section =\", C1282)","v":"Seasonality =No, Village =Kagberay, Section =Kania"},"#water_tech, #status_id, #notes"]
["Bombali","Ngowahun","Kania","Maharibor",180,1,"At the school compound",2,{"$f":"IF(H1283>0,\"Yes\",\"No\")","v":"Yes"},"Oui","9.10111","-12.14214",false,false,"IM2","India Mark II","School","HDW","Hand Dug Well","Grade A",{"$f":"IF(OR(T1283=\"Grade A\",T1283=\"Grade B\"),\"Yes\",\"No\")","v":"Yes"},"BO4533","Seasonality =Yes, Village =Maharibor, Section =Kania","#water_tech, #status_id, #notes"]
["Bombali","Ngowahun","Kania","Mangna",200,1,"At the school compound",3,"Yes","Oui","9.04872","-12.11389",false,false,"IM2","India Mark II","School","HDW","Hand Dug Well","Grade B","Yes","BO953","Seasonality =Yes, Village =Mangna, Section =Kania","#water_tech, #status_id, #notes"]
["Bombali","Ngowahun","Kania","Mangna",200,2,"close to the mosque",0,"No","Oui","9.04977","-12.11191",false,false,"IM2","India Mark II","Community","HDW","Hand Dug Well","Grade A","Yes","BO4534","Seasonality =No, Village =Mangna, Section =Kania","#water_tech, #status_id, #notes"]
["Bombali","Ngowahun","Kania","Matikay",150,1,"End of the village",4,"Yes","Oui","9.07718","-12.14468",false,false,"IM2","India Mark II","Community","HDW","Hand Dug Well","Grade A","Yes","BO956","Seasonality =Yes, Village =Matikay, Section =Kania","#water_tech, #status_id, #notes"]
["Bombali","Ngowahun","Kania","Ngoworhun",150,1,"centre of the village",4,"Yes","Oui","9.04463","-12.13849",false,false,"IM2","India Mark II","Community","HDW","Hand Dug Well","Grade A","Yes","BO954","Seasonality =Yes, Village =Ngoworhun, Section =Kania","#water_tech, #status_id, #notes"]
["Bombali","Ngowahun","Makeiteh","Gaingay",250,1,"Back of the village",2,"Yes","Oui","9.03809","-12.09696",false,false,"IM2","India Mark II","Community","HDW","Hand Dug Well","Grade A","Yes","BO2186","Seasonality =Yes, Village =Gaingay, Section =Makeiteh","#water_tech, #status_id, #notes"]
["Bombali","Ngowahun","Makeiteh","Mabandi",null,1,"Village Centre",null,"No","Non",null,null,false,false,"IM2","India Mark II","Community","HDW","Hand Dug Well","Grade A","Yes","BO2533","Seasonality =No, Village =Mabandi, Section =Makeiteh","#water_tech, #status_id, #notes"]
["Bombali","Ngowahun","Makeiteh","Magbereh",670,1,"Middle of the village",0,"No","Non","9.01196","-12.09548",false,false,"IM2","India Mark II","Community","HDW","Hand Dug Well","Grade A","Yes","BO1457","Seasonality =No, Village =Magbereh, Section =Makeiteh","#water_tech, #status_id, #notes"]
["Bombali","Ngowahun","Makeiteh","Makeiteh",580,1,"Entrance of the village",0,"No","Oui","9.02806","-12.10119",false,false,"IM2","India Mark II","Community","BH","Borehole","Grade A","Yes","BO2232","Seasonality =No, Village =Makeiteh, Section =Makeiteh","#water_tech, #status_id, #notes"]
["Bombali","Ngowahun","Makeiteh","Makeiteh",580,2,"Centre of the village-Hospital",0,"No","Oui","9.02925","-12.10251",false,false,"IM2","India Mark II","Community","BH","Borehole","Grade A","Yes","BO905","Seasonality =No, Village =Makeiteh, Section =Makeiteh","#water_tech, #status_id, #notes"]
["Bombali","Ngowahun","Makeiteh","Makeiteh",580,3,"Close school",null,"No","Non",null,null,false,false,"IM2","India Mark II","School","HDW","Hand Dug Well","Grade A","Yes","BO2606","Seasonality =No, Village =Makeiteh, Section =Makeiteh","#water_tech, #status_id, #notes"]
["Bombali","Ngowahun","Makeiteh","Makorgoh",290,2,"Close to the Section Chief House",0,"No","Non","9.02879","-12.09438",true,false,"Pully","Pully","Community","HDW","Hand Dug Well","Grade D","No","BO904","Seasonality =No, Village =Makorgoh, Section =Makeiteh","#water_tech, #status_id, #notes"]
["Bombali","Ngowahun","Makeiteh","Makoromba",190,1,"close to the school",4,"Yes","Oui","9.03102","-12.13507",false,false,"IM2","India Mark II","Community","HDW","Hand Dug Well","Grade A","Yes","BO906","Seasonality =Yes, Village =Makoromba, Section =Makeiteh","#water_tech, #status_id, #notes"]
["Bombali","Ngowahun","Makeiteh","Makorwor",250,1,"close to the church",0,"No","Non","9.02768","-12.09447",false,false,"IM2","India Mark II","Community","BH","Borehole","Grade A","Yes","BO903","Seasonality =No, Village =Makorwor, Section =Makeiteh","#water_tech, #status_id, #notes"]
["Bombali","Ngowahun","Makeiteh","Makorwor",250,2,"centre of the village",3,"Yes","Oui","9.02880","-12.09436",false,false,"IM2","India Mark II","Community","HDW","Hand Dug Well","Grade A","Yes","BO4535","Seasonality =Yes, Village =Makorwor, Section =Makeiteh","#water_tech, #status_id, #notes"]
["Bombali","Ngowahun","Makeiteh","Malaie",101,1,"close to the mosque",0,"No","Oui","9.01748","-12.12369",false,false,"IM2","India Mark II","Community","BH","Borehole","Grade A","Yes","BO4536","Seasonality =No, Village =Malaie, Section =Makeiteh","#water_tech, #status_id, #notes"]
["Bombali","Ngowahun","Makeiteh","Rogbalan",150,1,"Middle of the Village",0,"No","Non","9.01900","-12.10981",false,false,"IM2","India Mark II","Community","HDW","Hand Dug Well","Grade A","Yes","BO4682","Seasonality =No, Village =Rogbalan, Section =Makeiteh","#water_tech, #status_id, #notes"]
["Bombali","Ngowahun","Makelegbohun","Baykayhun",350,1,"centre of the village",3,"Yes","Oui","8.99983","-12.07364",false,false,"IM2","India Mark II","Community","BH","Borehole","Grade A","Yes","BO1392","Seasonality =Yes, Village =Baykayhun, Section =Makelegbohun","#water_tech, #status_id, #notes"]
["Bombali","Ngowahun","Makelegbohun","Baykayhun",350,2,"End of the town",3,"Yes","Oui","8.99984","-12.07412",false,false,"IM2","India Mark II","Community","HDW","Hand Dug Well","Grade A","Yes","BO944","Seasonality =Yes, Village =Baykayhun, Section =Makelegbohun","#water_tech, #status_id, #notes"]
["Bombali","Ngowahun","Makelegbohun","Maberreh",112,1,"centre of the village",0,"No","Oui","9.01843","-12.06424",false,false,"IM2","India Mark II","Community","BH","Borehole","Grade A","Yes","BO2702","Seasonality =No, Village =Maberreh, Section =Makelegbohun","#water_tech, #status_id, #notes"]
["Bombali","Ngowahun","Makelegbohun","Mafaray",75,1,"close to the mosque",0,"No","Oui","8.99424","-12.08335",false,false,"IM2","India Mark II","Community","BH","Borehole","Grade A","Yes","BO942","Seasonality =No, Village =Mafaray, Section =Makelegbohun","#water_tech, #status_id, #notes"]
["Bombali","Ngowahun","Makelegbohun","Magbai",85,1,"out of the village",0,"No","Oui","8.99976","-12.08468",true,false,"Just pedestal - incomplete","Just pedestal - incomplete","Community","HDW","Hand Dug Well","Grade C","No","BO943","Seasonality =No, Village =Magbai, Section =Makelegbohun","#water_tech, #status_id, #notes"]
["Bombali","Ngowahun","Makelegbohun","Makelegbohun",66,1,"End of the village",0,"No","Oui","9.01192","-12.09550",false,false,"IM2","India Mark II","Community","BH","Borehole","Grade A","Yes","BO947","Seasonality =No, Village =Makelegbohun, Section =Makelegbohun","#water_tech, #status_id, #notes"]
["Bombali","Ngowahun","Makelegbohun","Maron",159,1,"End of the village-Store",0,"No","Oui","9.01661","-12.08373",false,false,"IM2","India Mark II","Community","BH","Borehole","Grade A","Yes","BO1393","Seasonality =No, Village =Maron, Section =Makelegbohun","#water_tech, #status_id, #notes"]
["Bombali","Ngowahun","Makelegbohun","Maron",159,2,"Close to the church",4,"Yes","Oui","9.01743","-12.08357",true,false,"IM2","India Mark II","Community","HDW","Hand Dug Well","Grade C","No","BO946","Seasonality =Yes, Village =Maron, Section =Makelegbohun","#water_tech, #status_id, #notes"]
["Bombali","Ngowahun","Makelegbohun","Matogo",150,1,"Back of the village",6,"Yes","Oui","8.99365","-12.07141",true,false,"Just pedestal - incomplete","Just pedestal - incomplete","Community","HDW","Hand Dug Well","Grade C","No","BO945","Seasonality =Yes, Village =Matogo, Section =Makelegbohun","#water_tech, #status_id, #notes"]
["Bombali","Ngowahun","Makelegbohun","Mayemeh",150,1,"centre of the village",0,"No","Oui","8.98641","-12.07522",false,false,"IM2","India Mark II","Community","HDW","Hand Dug Well","Grade A","Yes","BO941","Seasonality =No, Village =Mayemeh, Section =Makelegbohun","#water_tech, #status_id, #notes"]
["Bombali","Ngowahun","Makump","Mabambaga",110,1,"Entrance of the village",2,"Yes","Oui","9.04901","-12.08392",false,false,"IM2","India Mark II","Community","HDW","Hand Dug Well","Grade A","Yes","BO948","Seasonality =Yes, Village =Mabambaga, Section =Makump","#water_tech, #status_id, #notes"]
["Bombali","Ngowahun","Makump","Maforay Loko",120,1,"Close to the Church",8,"Yes","Oui","9.05080","-12.07381",true,false,"IM2","India Mark II","Community","HDW","Hand Dug Well","Grade C","No","BO950","Seasonality =Yes, Village =Maforay Loko, Section =Makump","#water_tech, #status_id, #notes"]
["Bombali","Ngowahun","Makump","Maforay Loko",120,2,"close to the church",4,"Yes","Oui","9.05078","-12.07370",false,false,"IM2","India Mark II","Community","BH","Borehole","Grade A","Yes","BO4537","Seasonality =Yes, Village =Maforay Loko, Section =Makump","#water_tech, #status_id, #notes"]
["Bombali","Ngowahun","Makump","Makiteh",280,1,"At the PHU",0,"No","Oui","9.05487","-12.08082",true,false,"IM2","India Mark II","Health Facility","BH","Borehole","Grade C","No","BO951","Seasonality =No, Village =Makiteh, Section =Makump","#water_tech, #status_id, #notes"]
["Bombali","Ngowahun","Makump","Makiteh",280,2,"At the school compound",4,"Yes","Oui","9.05522","-12.08198",false,false,"IM2","India Mark II","School","HDW","Hand Dug Well","Grade A","Yes","BO4538","Seasonality =Yes, Village =Makiteh, Section =Makump","#water_tech, #status_id, #notes"]
["Bombali","Ngowahun","Makump","Makiteh",280,3,"Middle of the village",0,"No","Oui","9.05448","-12.08358",false,false,"IM2","India Mark II","Community","BH","Borehole","Grade A","Yes","BO952","Seasonality =No, Village =Makiteh, Section =Makump","#water_tech, #status_id, #notes"]
["Bombali","Ngowahun","Mamukay","Machogo",225,1,"centre of the village",6,"Yes","Oui","9.02822","-12.18030",false,false,"IM2","India Mark II","Community","HDW","Hand Dug Well","Grade A","Yes","BO996","Seasonality =Yes, Village =Machogo, Section =Mamukay","#water_tech, #status_id, #notes"]
["Bombali","Ngowahun","Mamukay","Machogo",225,2,"End of the village",0,"No","Oui","9.02788","-12.18130",false,false,"IM2","India Mark II","Community","BH","Borehole","Grade A","Yes","BO995","Seasonality =No, Village =Machogo, Section =Mamukay","#water_tech, #status_id, #notes"]
["Bombali","Ngowahun","Mamukay","Mafay",250,1,"At the school compound",5,"Yes","Oui","9.01908","-12.26382",false,false,"IM2","India Mark II","School","HDW","Hand Dug Well","Grade C","No","BO4539","Seasonality =Yes, Village =Mafay, Section =Mamukay","#water_tech, #status_id, #notes"]
["Bombali","Ngowahun","Mamukay","Mafay",250,2,"Centre of the village",2,"Yes","Oui","9.01959","-12.26494",false,false,"IM2","India Mark II","Community","HDW","Hand Dug Well","Grade A","Yes","BO2177","Seasonality =Yes, Village =Mafay, Section =Mamukay","#water_tech, #status_id, #notes"]
["Bombali","Ngowahun","Mamukay","Makahe",200,1,"In the Town",0,"No","Non","9.02108","-12.22030",false,false,"IM2","India Mark II","Community","HDW","Hand Dug Well","Grade A","Yes","BO4683","Seasonality =No, Village =Makahe, Section =Mamukay","#water_tech, #status_id, #notes"]
["Bombali","Ngowahun","Mamukay","Makaytay",362,1,"Back of the village",0,"No","Oui","9.01375","-12.19172",false,false,"IM2","India Mark II","Community","HDW","Hand Dug Well","Grade A","Yes","BO997","Seasonality =No, Village =Makaytay, Section =Mamukay","#water_tech, #status_id, #notes"]
["Bombali","Ngowahun","Mamukay","Makaytay",362,2,"At the school compound",3,"Yes","Non","9.01298","-12.19409",true,false,"IM2","India Mark II","School","HDW","Hand Dug Well","Grade B","Yes","BO4540","Seasonality =Yes, Village =Makaytay, Section =Mamukay","#water_tech, #status_id, #notes"]
["Bombali","Ngowahun","Mamukay","Makiheh",120,1,"Entrance of the village",3,"Yes","Oui","9.04235","-12.24024",false,false,"IM2","India Mark II","Community","HDW","Hand Dug Well","Grade A","Yes","BO2176","Seasonality =Yes, Village =Makiheh, Section =Mamukay","#water_tech, #status_id, #notes"]
["Bombali","Ngowahun","Mamukay","Mamukay",210,1,"End of the village",2,"Yes","Oui","9.01198","-12.22335",false,false,"IM2","India Mark II","Community","HDW","Hand Dug Well","Grade A","Yes","BO2829","Seasonality =Yes, Village =Mamukay, Section =Mamukay","#water_tech, #status_id, #notes"]
["Bombali","Ngowahun","Mamukay","Mandilo",200,1,"Centre of the village",3,"Yes","Oui","8.98619","-12.33167",false,false,"PB2","PB Mark II","Community","BH","Borehole","Grade A","Yes","BO1304","Seasonality =Yes, Village =Mandilo, Section =Mamukay","#water_tech, #status_id, #notes"]
["Bombali","Ngowahun","Mamukay","Mapema",null,1,"BDC primary school",3,"Yes","Non","8.98011","-12.29878",false,false,"IM2","India Mark II","Community","HDW","Hand Dug Well","Grade A","Yes","BO2090","Seasonality =Yes, Village =Mapema, Section =Mamukay","#water_tech, #status_id, #notes"]
["Bombali","Ngowahun","Masongbo","Kagberay",350,1,"At the school compound",0,"No","Non","8.97800","-12.18611",true,false,"IM2","India Mark II","School","HDW","Hand Dug Well","Grade E","No","BO2672","Seasonality =No, Village =Kagberay, Section =Masongbo","#water_tech, #status_id, #notes"]
["Bombali","Ngowahun","Masongbo","Kagberay",350,2,"close to the church",0,"No","Oui","8.97709","-12.18400",false,false,"IM2","India Mark II","Community","HDW","Hand Dug Well","Grade A","Yes","BO2783","Seasonality =No, Village =Kagberay, Section =Masongbo","#water_tech, #status_id, #notes"]
["Bombali","Ngowahun","Masongbo","Magborahun",320,1,"close to the church",0,"No","Oui","8.94824","-12.17397",false,false,"IM2","India Mark II","Community","BH","Borehole","Grade A","Yes","BO4541","Seasonality =No, Village =Magborahun, Section =Masongbo","#water_tech, #status_id, #notes"]
["Bombali","Ngowahun","Masongbo","Makabie",178,1,"centre of the village",0,"No","Oui","8.95948","-12.16176",false,false,"IM2","India Mark II","Community","HDW","Hand Dug Well","Grade A","Yes","BO966","Seasonality =No, Village =Makabie, Section =Masongbo","#water_tech, #status_id, #notes"]
["Bombali","Ngowahun","Masongbo","Masongbo Loko",800,1,"close to the chief house",0,"No","Oui","8.96526","-12.15924",false,false,"IM2","India Mark II","Community","BH","Borehole","Grade A","Yes","BO964","Seasonality =No, Village =Masongbo Loko, Section =Masongbo","#water_tech, #status_id, #notes"]
["Bombali","Ngowahun","Masongbo","Masongbo Loko",800,2,"close to the church",0,"No","Oui","8.96665","-12.15948",false,false,"IM2","India Mark II","Community","BH","Borehole","Grade A","Yes","BO4542","Seasonality =No, Village =Masongbo Loko, Section =Masongbo","#water_tech, #status_id, #notes"]
["Bombali","Ngowahun","Masongbo","Masongbo Loko",800,3,"WCSL primary school",0,"No","Oui","8.96758","-12.15998",false,false,"IM2","India Mark II","School","BH","Borehole","Grade A","Yes","BO4543","Seasonality =No, Village =Masongbo Loko, Section =Masongbo","#water_tech, #status_id, #notes"]
["Bombali","Ngowahun","Masongbo","Masongbo Loko",800,4,"Centre of the village",4,"Yes","Non","8.97062","-12.16005",true,false,"IM2","India Mark II","Community","HDW","Hand Dug Well","Grade B","Yes","BO963","Seasonality =Yes, Village =Masongbo Loko, Section =Masongbo","#water_tech, #status_id, #notes"]
["Bombali","Ngowahun","Masongbo","Masongbo Loko",800,5,"Entrance of the village",4,"Yes","Oui","8.96773","-12.15950",true,false,"IM2","India Mark II","Community","HDW","Hand Dug Well","Grade B","Yes","BO965","Seasonality =Yes, Village =Masongbo Loko, Section =Masongbo","#water_tech, #status_id, #notes"]
["Bombali","Ngowahun","Masongbo","Werehun",null,1,"in town",0,"No","Non","8.95077","-12.19798",false,false,"IM2","India Mark II","Community","HDW","Hand Dug Well","Grade A","Yes","BO2175","Seasonality =No, Village =Werehun, Section =Masongbo","#water_tech, #status_id, #notes"]
["Bombali","Ngowahun","Masongbo","Yahun",315,1,"Entrance of the village",0,"No","Oui","8.94914","-12.16627",false,false,"IM2","India Mark II","Community","HDW","Hand Dug Well","Grade A","Yes","BO2830","Seasonality =No, Village =Yahun, Section =Masongbo","#water_tech, #status_id, #notes"]
["Bombali","Ngowahun","Matehun","Fullah town",320,1,"At the school compound",0,"No","Oui","9.03477","-12.16662",true,false,"IM2","India Mark II","School","BH","Borehole","Grade B","Yes","BO974","Seasonality =No, Village =Fullah town, Section =Matehun","#water_tech, #status_id, #notes"]
["Bombali","Ngowahun","Matehun","makambie",312,1,"Centre of the village",4,"Yes","Oui","9.03414","-12.16874",true,false,"IM2","India Mark II","Community","HDW","Hand Dug Well","Grade C","No","BO973","Seasonality =Yes, Village =makambie, Section =Matehun","#water_tech, #status_id, #notes"]
["Bombali","Ngowahun","Matehun","masongbo/matehun 2",27,1,"Centre of the village",4,"Yes","Oui","9.03854","-12.05570",true,false,"IM2","India Mark II","Community","BH","Borehole","Grade C","No","BO949","Seasonality =Yes, Village =masongbo/matehun 2, Section =Matehun","#water_tech, #status_id, #notes"]
["Bombali","Ngowahun","Matehun","matehun 1",403,1,"Close to the mosque",0,"No","Oui","9.069180","-12.17697",false,false,"IM2","India Mark II","Community","HDW","Hand Dug Well","Grade A","Yes","BO970","Seasonality =No, Village =matehun 1, Section =Matehun","#water_tech, #status_id, #notes"]
["Bombali","Ngowahun","Matehun","matehun 1",403,2,"Close to the church",0,"No","Oui","9.068606","-12.175840",false,false,"IM2","India Mark II","Community","HDW","Hand Dug Well","Grade A","Yes","BO971","Seasonality =No, Village =matehun 1, Section =Matehun","#water_tech, #status_id, #notes"]
["Bombali","Ngowahun","Matehun","matehun 1",403,3,"At the primary school",0,"No","Non","9.0681","-12.175600",false,false,"IM2","India Mark II","School","HDW","Hand Dug Well","Grade A","Yes","BO972","Seasonality =No, Village =matehun 1, Section =Matehun","#water_tech, #status_id, #notes"]
["Bombali","Ngowahun","Tambiama","Mabolleh",200,1,"close to the mosque",4,"Yes","Non","8.96317","-12.08931",false,false,"IM2","India Mark II","Community","HDW","Hand Dug Well","Grade A","Yes","BO2737","Seasonality =Yes, Village =Mabolleh, Section =Tambiama","#water_tech, #status_id, #notes"]
["Bombali","Ngowahun","Tambiama","Maforay Njala",254,1,"Kamakwe Road",4,"Yes","Oui","8.97153","-12.08826",false,false,"IM2","India Mark II","Community","HDW","Hand Dug Well","Grade A","Yes","BO935","Seasonality =Yes, Village =Maforay Njala, Section =Tambiama","#water_tech, #status_id, #notes"]
["Bombali","Ngowahun","Tambiama","Maforay Njala",254,2,"At the school compound",0,"No","Oui","8.97361","-12.08716",false,false,"IM2","India Mark II","School","HDW","Hand Dug Well","Grade A","Yes","BO936",{"$f":"_xlfn.CONCAT(\"Seasonality =\",I1346,\", \",\"Village =\", D1346,\", \",\"Section =\", C1346)","v":"Seasonality =No, Village =Maforay Njala, Section =Tambiama"},"#water_tech, #status_id, #notes"]
["Bombali","Ngowahun","Tambiama","Maforay Njala",254,3,"Entrance of the village",0,{"$f":"IF(H1347>0,\"Yes\",\"No\")","v":"No"},"Oui","8.97365","-12.08791",false,false,"PB2","PB Mark II","Community","HDW","Hand Dug Well","Grade A",{"$f":"IF(OR(T1347=\"Grade A\",T1347=\"Grade B\"),\"Yes\",\"No\")","v":"Yes"},"BO937","Seasonality =No, Village =Maforay Njala, Section =Tambiama","#water_tech, #status_id, #notes"]
["Bombali","Ngowahun","Tambiama","magenemba",195,1,"End of the village",0,"No","Oui","8.96927","-12.11152",false,false,"IM2","India Mark II","Community","HDW","Hand Dug Well","Grade A","Yes","BO4544","Seasonality =No, Village =magenemba, Section =Tambiama","#water_tech, #status_id, #notes"]
["Bombali","Ngowahun","Tambiama","Manabaingoina",150,1,"End of the village",0,"No","Oui","8.96441","-12.09929",false,false,"IM2","India Mark II","Community","HDW","Hand Dug Well","Grade A","Yes","BO938","Seasonality =No, Village =Manabaingoina, Section =Tambiama","#water_tech, #status_id, #notes"]
["Bombali","Ngowahun","Tambiama","Mandorkor",70,1,"Entrance of the village",0,"No","Non","8.91015","-12.1552",false,false,"IM2","India Mark II","Community","BH","Borehole","Grade A","Yes","BO2688","Seasonality =No, Village =Mandorkor, Section =Tambiama","#water_tech, #status_id, #notes"]
["Bombali","Ngowahun","Tambiama","Mangoe",180,1,"Out of the Town",0,"No","Non","8.97549","-12.09063",false,false,"IM2","India Mark II","Community","HDW","Hand Dug Well","Grade A","Yes","BO4681","Seasonality =No, Village =Mangoe, Section =Tambiama","#water_tech, #status_id, #notes"]
["Bombali","Ngowahun","Tambiama","Mapainda",96,1,"At the school compound",4,"Yes","Oui","8.96666","-12.09759",false,false,"IM2","India Mark II","School","BH","Borehole","Grade A","Yes","BO940","Seasonality =Yes, Village =Mapainda, Section =Tambiama","#water_tech, #status_id, #notes"]
["Bombali","Ngowahun","Tambiama","Mapainda",96,2,"Entrance of the village",0,"No","Non","8.96397","-12.09746",false,false,"IM2","India Mark II","Community","BH","Borehole","Grade A","Yes","BO939","Seasonality =No, Village =Mapainda, Section =Tambiama","#water_tech, #status_id, #notes"]
["Bombali","Ngowahun","Tambiama","Matombana",120,1,"End of the village",0,"No","Oui","8.97575","-12.11576",false,false,"IM2","India Mark II","Community","BH","Borehole","Grade A","Yes","BO2673","Seasonality =No, Village =Matombana, Section =Tambiama","#water_tech, #status_id, #notes"]
["Bombali","Ngowahun","Tambiama","Mayatta",550,1,"Entrance of the village",2,"Yes","Oui","8.99901","-12.12897",false,false,"IM2","India Mark II","Community","HDW","Hand Dug Well","Grade A","Yes","BO928","Seasonality =Yes, Village =Mayatta, Section =Tambiama","#water_tech, #status_id, #notes"]
["Bombali","Ngowahun","Tambiama","Mayatta",550,2,"Out of the sch. Compound",6,"Yes","Oui","8.99686","-12.12709",false,false,"IM2","India Mark II","School","BH","Borehole","Grade A","Yes","BO1461","Seasonality =Yes, Village =Mayatta, Section =Tambiama","#water_tech, #status_id, #notes"]
["Bombali","Ngowahun","Tambiama","Tambiama",680,1,"side of the village",3,"Yes","Non","8.99726","-12.11145",false,false,"IM2","India Mark II","Community","HDW","Hand Dug Well","Grade A","Yes","BO929","Seasonality =Yes, Village =Tambiama, Section =Tambiama","#water_tech, #status_id, #notes"]
["Bombali","Ngowahun","Tambiama","Tambiama",680,2,"Close to the mosque",3,"Yes","Oui","8.99634","-12.11147",false,false,"IM2","India Mark II","Community","BH","Borehole","Grade A","Yes","BO931","Seasonality =Yes, Village =Tambiama, Section =Tambiama","#water_tech, #status_id, #notes"]
["Bombali","Ngowahun","Tambiama","Tambiama",680,3,"Close to the school",5,"Yes","Oui","8.99580","-12.11128",true,false,"IM2","India Mark II","School","HDW","Hand Dug Well","Grade C","No","BO933","Seasonality =Yes, Village =Tambiama, Section =Tambiama","#water_tech, #status_id, #notes"]
["Bombali","Ngowahun","Tambiama","Tambiama",680,4,"At the Pri. Sch. Compound",2,"Yes","Non","8.99511","-12.11177",true,false,"IM2","India Mark II","School","HDW","Hand Dug Well","Grade C","No","BO934","Seasonality =Yes, Village =Tambiama, Section =Tambiama","#water_tech, #status_id, #notes"]
["Bombali","Ngowahun","Tambiama","Tambiama",680,5,"At the Sec. School",0,"No","Non","8.99553","-12.11181",true,false,"IM2","India Mark II","School","HDW","Hand Dug Well","Grade D","No","BO932","Seasonality =No, Village =Tambiama, Section =Tambiama","#water_tech, #status_id, #notes"]
["Bombali","Ngowahun","Tambiama","Tambiama",680,6,"Centre of the village",0,"No","Non","8.99480","-12.11050",true,false,"IM2","India Mark II","Health Facility","HDW","Hand Dug Well","Grade C","No","BO930","Seasonality =No, Village =Tambiama, Section =Tambiama","#water_tech, #status_id, #notes"]
["Bombali","Paki Masabong","Bumba ","Baka",200,1,"At the Dry Floor",5,"Yes","Oui","8.84085","-11.97608",false,false,"IM2","India Mark II","Community","HDW","Hand Dug Well","Grade A","Yes","BO1402","Seasonality =Yes, Village =Baka, Section =Bumba ","#water_tech, #status_id, #notes"]
["Bombali","Paki Masabong","Bumba ","Bumban",385,1,"RC  Pri. Sch.",4,"Yes","Oui","8.807916","-11.94866",false,false,"IM2","India Mark II","School","HDW","Hand Dug Well","Grade A","Yes","BO1398","Seasonality =Yes, Village =Bumban, Section =Bumba ","#water_tech, #status_id, #notes"]
["Bombali","Paki Masabong","Bumba ","Bumban",385,1,"Dry floor",null,"No","Non",null,null,false,false,"IM2","India Mark II","Community","HDW","Hand Dug Well","Grade A","Yes","BO2692","Seasonality =No, Village =Bumban, Section =Bumba ","#water_tech, #status_id, #notes"]
["Bombali","Paki Masabong","Bumba ","Bumban",385,2,"Close to the Mosque-Community Center",0,"No","Oui","8.808783","-11.95103",false,false,"Kardia","Kardia","Community","HDW","Hand Dug Well","Grade A","Yes","BO1399","Seasonality =No, Village =Bumban, Section =Bumba ","#water_tech, #status_id, #notes"]
["Bombali","Paki Masabong","Bumba ","Bumban",385,3,"On the road to Masongbo",4,"Yes","Oui","8.8096","-11.95175",false,false,"IM2","India Mark II","Community","HDW","Hand Dug Well","Grade A","Yes","BO1400","Seasonality =Yes, Village =Bumban, Section =Bumba ","#water_tech, #status_id, #notes"]
["Bombali","Paki Masabong","Bumba ","Kagbaneh",250,1,"Dry Floord",5,"Yes","Oui","8.847866","-11.9432",false,false,"Kardia","Kardia","Community","HDW","Hand Dug Well","Grade A","Yes","BO1394","Seasonality =Yes, Village =Kagbaneh, Section =Bumba ","#water_tech, #status_id, #notes"]
["Bombali","Paki Masabong","Bumba ","Kagbaneh",250,2,"B.D.E.C Pri. Sch.",null,"No","Oui","8.84785","-11.94045",true,false,"Just pedestal - incomplete","Just pedestal - incomplete","School","HDW","Hand Dug Well","Grade E","No","BO1395","Seasonality =No, Village =Kagbaneh, Section =Bumba ","#water_tech, #status_id, #notes"]
["Bombali","Paki Masabong","Bumba ","Kagbanka",250,1,"Back of Chief House",0,"No","Oui","8.85321","-11.96018",false,false,"IM2","India Mark II","Community","HDW","Hand Dug Well","Grade A","Yes","BO1396","Seasonality =No, Village =Kagbanka, Section =Bumba ","#water_tech, #status_id, #notes"]
["Bombali","Paki Masabong","Bumba ","Kamasuba",230,1,"On the road to mayinka",0,"No","Oui","8.850533","-11.97095",false,false,"Rope","Rope","Community","BH","Borehole","Grade C","No","BO2734","Seasonality =No, Village =Kamasuba, Section =Bumba ","#water_tech, #status_id, #notes"]
["Bombali","Paki Masabong","Bumba ","Kamayatha",90,1,"Extreme end of  the village",0,"No","Oui","8.87117","-11.93960",false,false,"Kardia 65","Kardia 65","Community","HDW","Hand Dug Well","Grade A","Yes","BO1397","Seasonality =No, Village =Kamayatha, Section =Bumba ","#water_tech, #status_id, #notes"]
["Bombali","Paki Masabong","Bumba ","Mabanta",345,1,"Entrance of the village",0,"No","Oui","8.82579","-11.93254",false,false,"Kardia","Kardia","Community","HDW","Hand Dug Well","Grade A","Yes","BO1401","Seasonality =No, Village =Mabanta, Section =Bumba ","#water_tech, #status_id, #notes"]
["Bombali","Paki Masabong","Bumba ","Masuba",240,1,"Centre of the village",0,"No","Non","8.85051","-11.97092",false,false,"IM2","India Mark II","Community","BH","Borehole","Grade A","Yes","BO1419","Seasonality =No, Village =Masuba, Section =Bumba ","#water_tech, #status_id, #notes"]
["Bombali","Paki Masabong","Kathantha","Kamasingbie Damaieh",370,1,"Entrance of the village",4,"Yes","Oui","8.867666","-11.91518",false,false,"IM2","India Mark II","Community","HDW","Hand Dug Well","Grade A","Yes","BO4545","Seasonality =Yes, Village =Kamasingbie Damaieh, Section =Kathantha","#water_tech, #status_id, #notes"]
["Bombali","Paki Masabong","Kathantha","kathantha Bana",895,1,"At the CHP",3,"Yes","Oui","8.877066","-11.9286",true,false,"Just pedestal - incomplete","Just pedestal - incomplete","Health Facility","HDW","Hand Dug Well","Grade C","No","BO1388","Seasonality =Yes, Village =kathantha Bana, Section =Kathantha","#water_tech, #status_id, #notes"]
["Bombali","Paki Masabong","Kathantha","kathantha Bana",895,2,"At the CHP",0,"No","Oui","8.8773","-11.92856",false,true,"Submersive","Submersive plus solar pump","Health Facility","BH","Borehole","Grade A","Yes","BO1389","Seasonality =No, Village =kathantha Bana, Section =Kathantha","#water_tech, #status_id, #notes"]
["Bombali","Paki Masabong","Kathantha","kathantha Bana",895,3,"RC  Pri. Sch.",4,"Yes","Oui","8.878033","-11.92856",false,false,"IM2","India Mark II","School","HDW","Hand Dug Well","Grade A","Yes","BO1390","Seasonality =Yes, Village =kathantha Bana, Section =Kathantha","#water_tech, #status_id, #notes"]
["Bombali","Paki Masabong","Kathantha","kathantha Bana",895,4,"At the Dry Floor",4,"Yes","Oui","8.8784","-11.92785",true,false,"PB2","PB Mark II","Community","HDW","Hand Dug Well","Grade D","No","BO1387","Seasonality =Yes, Village =kathantha Bana, Section =Kathantha","#water_tech, #status_id, #notes"]
["Bombali","Paki Masabong","Kathantha","kathantha Bana",895,5,"End of the village",0,"No","Oui","8.87975","-11.92731",false,false,"Kardia","Kardia","Community","HDW","Hand Dug Well","Grade A","Yes","BO1386","Seasonality =No, Village =kathantha Bana, Section =Kathantha","#water_tech, #status_id, #notes"]
["Bombali","Paki Masabong","Kathantha","Kawuthirie",657,1,"Entrance of the village",4,"Yes","Oui","8.895583","-11.91991",false,false,"IM2","India Mark II","Community","HDW","Hand Dug Well","Grade A","Yes","BO1145","Seasonality =Yes, Village =Kawuthirie, Section =Kathantha","#water_tech, #status_id, #notes"]
["Bombali","Paki Masabong","Kathantha","Mabai",500,1,"Close to the dry floor",5,"Yes","Oui","8.871083","-11.93936",false,false,"Kardia","Kardia","Community","HDW","Hand Dug Well","Grade A","Yes","BO1146","Seasonality =Yes, Village =Mabai, Section =Kathantha","#water_tech, #status_id, #notes"]
["Bombali","Paki Masabong","Kathantha","Maforay Limba",150,1,"Entrance of the village",4,"Yes","Oui","8.877766","-11.94481",false,false,"IM2","India Mark II","Community","HDW","Hand Dug Well","Grade A","Yes","BO2210","Seasonality =Yes, Village =Maforay Limba, Section =Kathantha","#water_tech, #status_id, #notes"]
["Bombali","Paki Masabong","Kathantha","Makoroboh",377,1,"Entrance of the village",0,"No","Oui","8.851516","-11.90761",false,false,"Kardia","Kardia","Community","HDW","Hand Dug Well","Grade A","Yes","BO1403","Seasonality =No, Village =Makoroboh, Section =Kathantha","#water_tech, #status_id, #notes"]
["Bombali","Paki Masabong","Kathekeya","Kamasuba",390,1,"Centre of the village",4,"Yes","Oui","8.89595","-11.87198",false,false,"Kardia","Kardia","Community","HDW","Hand Dug Well","Grade A","Yes","BO2736","Seasonality =Yes, Village =Kamasuba, Section =Kathekeya","#water_tech, #status_id, #notes"]
["Bombali","Paki Masabong","Kathekeya","Kathekeya Kabolie",325,1,"At the Community School",4,"Yes","Oui","8.909033","-11.9044",false,false,"IM2","India Mark II","School","HDW","Hand Dug Well","Grade D","No","BO1404","Seasonality =Yes, Village =Kathekeya Kabolie, Section =Kathekeya","#water_tech, #status_id, #notes"]
["Bombali","Paki Masabong","Kathekeya","Kathekeya Kabolie",325,2,"Entrance of the village",4,"Yes","Oui","8.912366","-11.90355",false,false,"IM2","India Mark II","Community","HDW","Hand Dug Well","Grade A","Yes","BO2733","Seasonality =Yes, Village =Kathekeya Kabolie, Section =Kathekeya","#water_tech, #status_id, #notes"]
["Bombali","Paki Masabong","Kathekeya","Kathekeya Kabolie",325,3,"Mr. John Simbo's Compound",0,"No","Non","8.912333","-11.9038",false,true,"IM2","India Mark II plus solar pump","Private","HDW","Hand Dug Well","Grade A","Yes","BO4546","Seasonality =No, Village =Kathekeya Kabolie, Section =Kathekeya","#water_tech, #status_id, #notes"]
["Bombali","Paki Masabong","Kathekeya","Koamolia",null,1,"By the Church",2,"Yes","Non","8.83884","-11.89708",false,false,"Kardia","Kardia","Community","HDW","Hand Dug Well","Grade A","Yes","BO4667","Seasonality =Yes, Village =Koamolia, Section =Kathekeya","#water_tech, #status_id, #notes"]
["Bombali","Paki Masabong","Mapaki","Mafina",312,1,"At the road to Rosint",4,"Yes","Oui","8.77165","-11.89716",false,false,"Kardia","Kardia","Community","HDW","Hand Dug Well","Grade C","No","BO1102","Seasonality =Yes, Village =Mafina, Section =Mapaki","#water_tech, #status_id, #notes"]
["Bombali","Paki Masabong","Mapaki","Mafina",312,2,"At the extreme side of the village",3,"Yes","Non","8.774116","-11.8954",true,false,"Just pedestal - incomplete","Just pedestal - incomplete","Community","HDW","Hand Dug Well","Grade E","No","BO4548","Seasonality =Yes, Village =Mafina, Section =Mapaki","#water_tech, #status_id, #notes"]
["Bombali","Paki Masabong","Mapaki","Maforay",30,1,"At the entrance of the village",0,"No","Oui","8.792366","-11.93208",false,false,"Kardia","Kardia","Community","HDW","Hand Dug Well","Grade A","Yes","BO1114","Seasonality =No, Village =Maforay, Section =Mapaki","#water_tech, #status_id, #notes"]
["Bombali","Paki Masabong","Mapaki","Makamray",200,1,"At the road to Mabai",4,"Yes","Oui","8.838716","-11.92558",false,false,"IM2","India Mark II","Community","HDW","Hand Dug Well","Grade A","Yes","BO1384","Seasonality =Yes, Village =Makamray, Section =Mapaki","#water_tech, #status_id, #notes"]
["Bombali","Paki Masabong","Mapaki","Makamray",200,2,"Baptish Model Pri. Sch.",0,"No","Oui","8.84305","-11.92555",false,false,"IM2","India Mark II","School","HDW","Hand Dug Well","Grade A","Yes","BO1385","Seasonality =No, Village =Makamray, Section =Mapaki","#water_tech, #status_id, #notes"]
["Bombali","Paki Masabong","Mapaki","Makotha",472,1,"At the entrance",0,"No","Oui","8.756466","-11.9246",false,false,"IM2","India Mark II","Community","HDW","Hand Dug Well","Grade A","Yes","BO1097","Seasonality =No, Village =Makotha, Section =Mapaki","#water_tech, #status_id, #notes"]
["Bombali","Paki Masabong","Mapaki","Makotha",472,2,"The road to Moria",0,"No","Oui","8.755916","-11.92515",false,false,"PB2","PB Mark II","Community","HDW","Hand Dug Well","Grade A","Yes","BO1098","Seasonality =No, Village =Makotha, Section =Mapaki","#water_tech, #status_id, #notes"]
["Bombali","Paki Masabong","Mapaki","Makotha",472,3,"Maranatha Church-Shool",4,"Yes","Oui","8.756266","-11.92981",false,false,"Kardia","Kardia","School","HDW","Hand Dug Well","Grade A","Yes","BO1099","Seasonality =Yes, Village =Makotha, Section =Mapaki","#water_tech, #status_id, #notes"]
["Bombali","Paki Masabong","Mapaki","Makoto",50,1,"Opposite the Mosque",0,"No","Oui","8.764533","-11.92151",false,false,"IM2","India Mark II","Community","HDW","Hand Dug Well","Grade A","Yes","BO1100","Seasonality =No, Village =Makoto, Section =Mapaki","#water_tech, #status_id, #notes"]
["Bombali","Paki Masabong","Mapaki","Malai",350,1,"Centre of the village",0,"No","Non","8.80535","-11.92819",false,false,"IM2","India Mark II","Community","HDW","Hand Dug Well","Grade A","Yes","BO1115","Seasonality =No, Village =Malai, Section =Mapaki","#water_tech, #status_id, #notes"]
["Bombali","Paki Masabong","Mapaki","Malimp",297,1,"Close to the Mosque",0,"No","Oui","8.805033","-11.8895",false,false,"Kardia","Kardia","Community","HDW","Hand Dug Well","Grade A","Yes","BO1109","Seasonality =No, Village =Malimp, Section =Mapaki","#water_tech, #status_id, #notes"]
["Bombali","Paki Masabong","Mapaki","Mamanso",110,1,"Close to the Mosque",4,"Yes","Oui","8.787666","-11.8854",false,false,"Kardia","Kardia","Community","HDW","Hand Dug Well","Grade A","Yes","BO1110","Seasonality =Yes, Village =Mamanso, Section =Mapaki","#water_tech, #status_id, #notes"]
["Bombali","Paki Masabong","Mapaki","Manonkoh",300,1,"Centre of the village",0,"No","Non","8.76922","-11.93155",false,false,"Kardia","Kardia","Community","HDW","Hand Dug Well","Grade A","Yes","BO2767","Seasonality =No, Village =Manonkoh, Section =Mapaki","#water_tech, #status_id, #notes"]
["Bombali","Paki Masabong","Mapaki","Mapaki I",1200,1,"Road to Mamaso",0,"No","Oui","8.78912","-11.90710",false,false,"Kardia","Kardia","School","HDW","Hand Dug Well","Grade A","Yes","BO1104","Seasonality =No, Village =Mapaki I, Section =Mapaki","#water_tech, #status_id, #notes"]
["Bombali","Paki Masabong","Mapaki","Mapaki I",1200,4,"The road to the Paramount Chief",0,"No","Oui","8.7894","-11.90858",true,false,"IM2","India Mark II","Community","HDW","Hand Dug Well","Grade C","No","BO1107","Seasonality =No, Village =Mapaki I, Section =Mapaki","#water_tech, #status_id, #notes"]
["Bombali","Paki Masabong","Mapaki","Mapaki II",900,5,"At the Comm. Centre",0,"No","Oui","8.78883","-11.90943",false,true,"Submersive","Submersive plus solar pump","Health Facility","HDW","Hand Dug Well","Grade A","Yes","BO1105","Seasonality =No, Village =Mapaki II, Section =Mapaki","#water_tech, #status_id, #notes"]
["Bombali","Paki Masabong","Mapaki","Mapaki II",900,6,"Close to the dry floor",3,"Yes","Oui","8.787916","-11.91053",true,false,"IM2","India Mark II","Community","HDW","Hand Dug Well","Grade C","No","BO4549","Seasonality =Yes, Village =Mapaki II, Section =Mapaki","#water_tech, #status_id, #notes"]
["Bombali","Paki Masabong","Mapaki","Mapaki II",900,7,"R.C Pri. Sch.",0,"No","Oui","8.78725","-11.91163",false,false,"IM2","India Mark II","School","HDW","Hand Dug Well","Grade C","No","BO4550","Seasonality =No, Village =Mapaki II, Section =Mapaki","#water_tech, #status_id, #notes"]
["Bombali","Paki Masabong","Mapaki","Mapaki II",900,8,"Parki Masabong-Sec. School",9,"Yes","Oui","8.786333","-11.9119",false,false,"PB2","PB Mark II","School","HDW","Hand Dug Well","Grade C","No","BO4551","Seasonality =Yes, Village =Mapaki II, Section =Mapaki","#water_tech, #status_id, #notes"]
["Bombali","Paki Masabong","Mapaki","Mapaki III",null,3,"At the Mosque",0,"No","Oui","8.788383","-11.90845",true,false,"IM2","India Mark II","Community","HDW","Hand Dug Well","Grade C","No","BO1106","Seasonality =No, Village =Mapaki III, Section =Mapaki","#water_tech, #status_id, #notes"]
["Bombali","Paki Masabong","Mapaki","Masayma",190,1,"Close to the Mosque",4,"Yes","Oui","8.77775","-11.90423",false,false,"IM2","India Mark II","Community","HDW","Hand Dug Well","Grade A","Yes","BO1103",{"$f":"_xlfn.CONCAT(\"Seasonality =\",I1410,\", \",\"Village =\", D1410,\", \",\"Section =\", C1410)","v":"Seasonality =Yes, Village =Masayma, Section =Mapaki"},"#water_tech, #status_id, #notes"]
["Bombali","Paki Masabong","Mapaki","Maso",280,1,"At the road to Mapaki",0,{"$f":"IF(H1411>0,\"Yes\",\"No\")","v":"No"},"Oui","8.808783","-11.89851",false,false,"Kardia","Kardia","Community","HDW","Hand Dug Well","Grade A",{"$f":"IF(OR(T1411=\"Grade A\",T1411=\"Grade B\"),\"Yes\",\"No\")","v":"Yes"},"BO1111","Seasonality =No, Village =Maso, Section =Mapaki","#water_tech, #status_id, #notes"]
["Bombali","Paki Masabong","Mapaki","Maso",280,2,"R.C Pri. Sch.",0,"No","Oui","8.80743","-11.90193",false,false,"IM2","India Mark II","School","HDW","Hand Dug Well","Grade A","Yes","BO1112","Seasonality =No, Village =Maso, Section =Mapaki","#water_tech, #status_id, #notes"]
["Bombali","Paki Masabong","Mapaki","Rosint",180,1,"Close to the Mosque",0,"No","Oui","8.762533","-11.91261",false,false,"PB2","PB Mark II","Community","HDW","Hand Dug Well","Grade A","Yes","BO1101","Seasonality =No, Village =Rosint, Section =Mapaki","#water_tech, #status_id, #notes"]
["Bombali","Paki Masabong","Mapaki","Rosint",180,2,"Close to Mosque",8,"Yes","Non","8.76252","-11.91268",true,false,"IM2","India Mark II","Community","HDW","Hand Dug Well","Grade B","Yes","BO2739","Seasonality =Yes, Village =Rosint, Section =Mapaki","#water_tech, #status_id, #notes"]
["Bombali","Paki Masabong","Mapaki","Royeama",129,1,"The Road to Makambray",0,"No","Oui","8.823016","-11.91621",false,false,"IM2","India Mark II","Community","HDW","Hand Dug Well","Grade A","Yes","BO1113","Seasonality =No, Village =Royeama, Section =Mapaki","#water_tech, #status_id, #notes"]
["Bombali","Paki Masabong","Masabong Pil","Makanie",520,1,"Entrance of the village",6,"Yes","Oui","8.692016","-12.02468",false,false,"IM2","India Mark II","Community","HDW","Hand Dug Well","Grade D","No","BO4552","Seasonality =Yes, Village =Makanie, Section =Masabong Pil","#water_tech, #status_id, #notes"]
["Bombali","Paki Masabong","Masabong Pil","Makanie",520,2,"Benevolent  Pri. Sch.",4,"Yes","Oui","8.693516","-12.02503",false,false,"IM2","India Mark II","School","HDW","Hand Dug Well","Grade B","Yes","BO1125","Seasonality =Yes, Village =Makanie, Section =Masabong Pil","#water_tech, #status_id, #notes"]
["Bombali","Paki Masabong","Masabong Pil","Makanie",520,3,"Close to the Mosque",6,"Yes","Oui","8.690516","-12.02586",true,false,"Just pedestal - incomplete","Just pedestal - incomplete","Community","HDW","Hand Dug Well","Grade C","No","BO1124","Seasonality =Yes, Village =Makanie, Section =Masabong Pil","#water_tech, #status_id, #notes"]
["Bombali","Paki Masabong","Masabong Pil","Makanie",520,4,"Close to the Dry Floor",6,"Yes","Oui","8.690816","-12.0258",false,false,"Just pedestal - incomplete","Just pedestal - incomplete","Community","HDW","Hand Dug Well","Grade E","No","BO4553","Seasonality =Yes, Village =Makanie, Section =Masabong Pil","#water_tech, #status_id, #notes"]
["Bombali","Paki Masabong","Masabong Pil","Makankoi",800,1,"Dry floor",null,"No","Non","8.70485","-12.06054",true,false,"Kardia","Kardia","Community","HDW","Hand Dug Well","Grade D","No","BO1126","Seasonality =No, Village =Makankoi, Section =Masabong Pil","#water_tech, #status_id, #notes"]
["Bombali","Paki Masabong","Masabong Pil","Makankoi",800,1,"Child in Need Pri. School",0,"No","Non","8.70318","-12.05798",false,false,"IM2","India Mark II","School","HDW","Hand Dug Well","Grade A","Yes","BO4715","Seasonality =No, Village =Makankoi, Section =Masabong Pil","#water_tech, #status_id, #notes"]
["Bombali","Paki Masabong","Masabong Pil","Makeni Lol",1300,1,"Hospital",4,"Yes","Non","8.740083","-11.99722",false,false,"IM2","India Mark II","Health Facility","HDW","Hand Dug Well","Grade C","No","BO1414","Seasonality =Yes, Village =Makeni Lol, Section =Masabong Pil","#water_tech, #status_id, #notes"]
["Bombali","Paki Masabong","Masabong Pil","Makeni Lol",1300,2,"Community Store",null,"No","Non","8.73974","-11.99889",true,false,"Just pedestal - incomplete","Just pedestal - incomplete","Community","HDW","Hand Dug Well","Grade D","No","BO1415","Seasonality =No, Village =Makeni Lol, Section =Masabong Pil","#water_tech, #status_id, #notes"]
["Bombali","Paki Masabong","Masabong Pil","Makeni Lol",1300,3,"War Child Centre",null,"No","Non","8.73975","-11.99804",true,false,"IM2","India Mark II","Community","HDW","Hand Dug Well","Grade C","No","BO1416","Seasonality =No, Village =Makeni Lol, Section =Masabong Pil","#water_tech, #status_id, #notes"]
["Bombali","Paki Masabong","Masabong Pil","Makeni Lol",1300,4,"S.L.M.B Sec. Sch.",null,"No","Non","8.73948","-11.99817",true,false,"IM2","India Mark II","School","HDW","Hand Dug Well","Grade B","Yes","BO1418","Seasonality =No, Village =Makeni Lol, Section =Masabong Pil","#water_tech, #status_id, #notes"]
["Bombali","Paki Masabong","Masabong Pil","Makeni Lol",1300,5,"B.D.E.C Pri. Sch.",null,"No","Non","8.73916","-11.99898",true,false,"PB2","PB Mark II","School","HDW","Hand Dug Well","Grade A","Yes","BO1417","Seasonality =No, Village =Makeni Lol, Section =Masabong Pil","#water_tech, #status_id, #notes"]
["Bombali","Paki Masabong","Masabong Pil","Makintha",54,1,"End of the village",0,"No","Oui","8.693433","-12.04325",true,false,"Just pedestal - incomplete","Just pedestal - incomplete","Community","HDW","Hand Dug Well","Grade E","No","BO4554","Seasonality =No, Village =Makintha, Section =Masabong Pil","#water_tech, #status_id, #notes"]
["Bombali","Paki Masabong","Masabong Pil","Masabong",750,1,"Opposite the Dry Floor",0,"No","Oui","8.700783","-12.00281",false,false,"Kardia","Kardia","Community","HDW","Hand Dug Well","Grade C","No","BO1129","Seasonality =No, Village =Masabong, Section =Masabong Pil","#water_tech, #status_id, #notes"]
["Bombali","Paki Masabong","Masabong Pil","Masabong",750,2,"Close to the Mosque",4,"Yes","Oui","8.700916","-12.00193",false,false,"PB2","PB Mark II","Community","HDW","Hand Dug Well","Grade A","Yes","BO1130","Seasonality =Yes, Village =Masabong, Section =Masabong Pil","#water_tech, #status_id, #notes"]
["Bombali","Paki Masabong","Masabong Pil","Masabong",750,3,"At the CHP",0,"No","Oui","8.699683","-12.00208",false,true,"IM2","India Mark II plus solar pump","Health Facility","BH","Borehole","Grade B","Yes","BO1127","Seasonality =No, Village =Masabong, Section =Masabong Pil","#water_tech, #status_id, #notes"]
["Bombali","Paki Masabong","Masabong Pil","Masabong",750,4,"BDEC  Pri. Sch.",4,"Yes","Non","8.6991","-12.0028",false,false,"PB2","PB Mark II","School","HDW","Hand Dug Well","Grade B","Yes","BO2073","Seasonality =Yes, Village =Masabong, Section =Masabong Pil","#water_tech, #status_id, #notes"]
["Bombali","Paki Masabong","Masabong Pil","Mayendeh Kopi 1",120,1,"Close to the Mosque",0,"No","Oui","8.7093","-12.01535",false,false,"PB2","PB Mark II","Community","HDW","Hand Dug Well","Grade A","Yes","BO1122","Seasonality =No, Village =Mayendeh Kopi 1, Section =Masabong Pil","#water_tech, #status_id, #notes"]
["Bombali","Paki Masabong","Masabong Pil","Mayendeh Thuma 2",180,1,"centre of the village",0,"No","Oui","8.7173","-12.02751",false,false,"IM2","India Mark II","Community","HDW","Hand Dug Well","Grade B","Yes","BO1123","Seasonality =No, Village =Mayendeh Thuma 2, Section =Masabong Pil","#water_tech, #status_id, #notes"]
["Bombali","Paki Masabong","Masabong Thoron","Mabai Thoron",220,1,"End of the village",4,"Yes","Non","8.73621","-11.97801",false,false,"IM2","India Mark II","Community","HDW","Hand Dug Well","Grade A","Yes","BO1424","Seasonality =Yes, Village =Mabai Thoron, Section =Masabong Thoron","#water_tech, #status_id, #notes"]
["Bombali","Paki Masabong","Masabong Thoron","Mabai Thoron",220,4,"Close to the Street",2,"Yes","Non","8.73309","-11.98418",false,false,"IM2","India Mark II","Community","HDW","Hand Dug Well","Grade B","Yes","BO4716","Seasonality =Yes, Village =Mabai Thoron, Section =Masabong Thoron","#water_tech, #status_id, #notes"]
["Bombali","Paki Masabong","Masabong Thoron","Maforay Poto",70,1,"Centre of the village",2,"Yes","Non","8.75513","-11.99077",false,false,"Kardia","Kardia","Community","HDW","Hand Dug Well","Grade B","Yes","BO1116","Seasonality =Yes, Village =Maforay Poto, Section =Masabong Thoron","#water_tech, #status_id, #notes"]
["Bombali","Paki Masabong","Masabong Thoron","Maforay Poto",70,2,"End of the town",0,"No","Non","8.75530","-11.99071",false,false,"IM2","India Mark II","Community","HDW","Hand Dug Well","Grade B","Yes","BO4717","Seasonality =No, Village =Maforay Poto, Section =Masabong Thoron","#water_tech, #status_id, #notes"]
["Bombali","Paki Masabong","Masabong Thoron","Makuna",250,1,"Maforay Rd - Mosque",7,"Yes","Non","8.74872","-11.98533",false,false,"IM2","India Mark II","Community","HDW","Hand Dug Well","Grade A","Yes","BO1117","Seasonality =Yes, Village =Makuna, Section =Masabong Thoron","#water_tech, #status_id, #notes"]
["Bombali","Paki Masabong","Masabong Thoron","Makuna",250,2,"M.C.A Pri. School",4,"Yes","Non","8.74907","-11.98399",false,false,"IM2","India Mark II","School","HDW","Hand Dug Well","Grade A","Yes","BO1118","Seasonality =Yes, Village =Makuna, Section =Masabong Thoron","#water_tech, #status_id, #notes"]
["Bombali","Paki Masabong","Masabong Thoron","Masabong Thoron",280,1,"Road to Masabong",null,"No","Non","8.71207","-11.98792",true,false,"Kardia","Kardia","Community","HDW","Hand Dug Well","Grade E","No","BO1128","Seasonality =No, Village =Masabong Thoron, Section =Masabong Thoron","#water_tech, #status_id, #notes"]
["Bombali","Paki Masabong","Masabong Thoron","Masabong Thoron",280,1,"Close to the Dry Floor",0,"No","Oui","8.718383","-11.97426",false,false,"Kardia","Kardia","Community","HDW","Hand Dug Well","Grade A","Yes","BO4562","Seasonality =No, Village =Masabong Thoron, Section =Masabong Thoron","#water_tech, #status_id, #notes"]
["Bombali","Paki Masabong","Masabong Thoron","Masabong Thoron",280,1,"Entrance of the village",4,"Yes","Non","8.73414","-11.98466",false,false,"PB2","PB Mark II","Community","HDW","Hand Dug Well","Grade A","Yes","BO1119","Seasonality =Yes, Village =Masabong Thoron, Section =Masabong Thoron","#water_tech, #status_id, #notes"]
["Bombali","Paki Masabong","Masabong Thoron","Masabong Thoron",280,2,"Pri. Sch.",4,"Yes","Non","8.73384","-11.98432",false,false,"IM2","India Mark II","Community","HDW","Hand Dug Well","Grade A","Yes","BO1120","Seasonality =Yes, Village =Masabong Thoron, Section =Masabong Thoron","#water_tech, #status_id, #notes"]
["Bombali","Paki Masabong","Masabong Thoron","Masabong Thoron",280,2,"At the Mosque",5,"Yes","Oui","8.718783","-11.97361",false,true,"IM2","India Mark II plus solar pump","Community","HDW","Hand Dug Well","Grade C","No","BO4563","Seasonality =Yes, Village =Masabong Thoron, Section =Masabong Thoron","#water_tech, #status_id, #notes"]
["Bombali","Paki Masabong","Masabong Thoron","Masabong Thoron",280,3,"Close to the Dry Floor",0,"No","Non","8.73341","-11.98503",false,false,"IM2","India Mark II","School","HDW","Hand Dug Well","Grade A","Yes","BO1121","Seasonality =No, Village =Masabong Thoron, Section =Masabong Thoron","#water_tech, #status_id, #notes"]
["Bombali","Paki Masabong","Masabong Thoron","Masabong Thoron",280,3,"Entrance of the village",4,"Yes","Oui","8.719","-11.97353",false,false,"Kardia","Kardia","Community","HDW","Hand Dug Well","Grade A","Yes","BO4564","Seasonality =Yes, Village =Masabong Thoron, Section =Masabong Thoron","#water_tech, #status_id, #notes"]
["Bombali","Paki Masabong","Masabong Thoron","Masabong Thoron",280,4,"School Compound",2,"Yes","Oui","8.720583","-11.97261",false,false,"IM2","India Mark II","School","HDW","Hand Dug Well","Grade B","Yes","BO4565","Seasonality =Yes, Village =Masabong Thoron, Section =Masabong Thoron","#water_tech, #status_id, #notes"]
["Bombali","Paki Masabong","Mayagba","Mabando",385,1,"Close to the Store",5,"Yes","Oui","8.767083","-11.93986",true,false,"IM2","India Mark II","Community","HDW","Hand Dug Well","Grade D","No","BO1076","Seasonality =Yes, Village =Mabando, Section =Mayagba","#water_tech, #status_id, #notes"]
["Bombali","Paki Masabong","Mayagba","Mabando",385,2,"On the road to Makapr",4,"Yes","Non","8.767233","-11.93968",true,false,"Just pedestal - incomplete","Just pedestal - incomplete","Community","HDW","Hand Dug Well","Grade E","No","BO1077","Seasonality =Yes, Village =Mabando, Section =Mayagba","#water_tech, #status_id, #notes"]
["Bombali","Paki Masabong","Mayagba","Mabando",385,3,"On the road to Makali",4,"Yes","Non","8.767166","-11.93963",false,false,"Just pedestal - incomplete","Just pedestal - incomplete","Community","HDW","Hand Dug Well","Grade D","No","BO4567","Seasonality =Yes, Village =Mabando, Section =Mayagba","#water_tech, #status_id, #notes"]
["Bombali","Paki Masabong","Mayagba","Mafondae",80,1,"Entrance of the village",0,"No","Oui","8.774833","-11.98553",false,false,"Kardia","Kardia","Community","HDW","Hand Dug Well","Grade A","Yes","BO2735","Seasonality =No, Village =Mafondae, Section =Mayagba","#water_tech, #status_id, #notes"]
["Bombali","Paki Masabong","Mayagba","Makapri",250,1,"At Mobono Road",0,"No","Oui","8.772616","-11.94518",false,false,"Kardia","Kardia","Community","HDW","Hand Dug Well","Grade C","No","BO1095","Seasonality =No, Village =Makapri, Section =Mayagba","#water_tech, #status_id, #notes"]
["Bombali","Paki Masabong","Mayagba","Makoloh",235,1,"Community  Pri. Sch.",0,"No","Oui","8.7578","-11.96136",false,false,"Afridev","Afridev","School","BH","Borehole","Grade B","Yes","BO4568","Seasonality =No, Village =Makoloh, Section =Mayagba","#water_tech, #status_id, #notes"]
["Bombali","Paki Masabong","Mayagba","Makoloh",235,2,"Entrance of the village",3,"Yes","Oui","8.75855","-11.95561",false,false,"IM2","India Mark II","Community","HDW","Hand Dug Well","Grade B","Yes","BO1079","Seasonality =Yes, Village =Makoloh, Section =Mayagba","#water_tech, #status_id, #notes"]
["Bombali","Paki Masabong","Mayagba","Makoloh",235,3,"close to the dry floor",2,"Yes","Oui","8.75895","-11.95541",false,false,"IM2","India Mark II","Community","HDW","Hand Dug Well","Grade B","Yes","BO1080","Seasonality =Yes, Village =Makoloh, Section =Mayagba","#water_tech, #status_id, #notes"]
["Bombali","Paki Masabong","Mayagba","Makoloh",235,4,"At the CHP",5,"Yes","Oui","8.759833","-11.95573",false,false,"IM2","India Mark II","Health Facility","HDW","Hand Dug Well","Grade B","Yes","BO1081","Seasonality =Yes, Village =Makoloh, Section =Mayagba","#water_tech, #status_id, #notes"]
["Bombali","Paki Masabong","Mayagba","Makonkobo",60,1,"End of the village",0,"No","Oui","8.7637","-11.95603",false,false,"Kardia","Kardia","Community","HDW","Hand Dug Well","Grade A","Yes","BO1078","Seasonality =No, Village =Makonkobo, Section =Mayagba","#water_tech, #status_id, #notes"]
["Bombali","Paki Masabong","Mayagba","Mayagba",1150,1,"Close to the Dry Floor",0,"No","Oui","8.757516","-11.96653",false,false,"Kardia","Kardia","Community","HDW","Hand Dug Well","Grade A","Yes","BO1092","Seasonality =No, Village =Mayagba, Section =Mayagba","#water_tech, #status_id, #notes"]
["Bombali","Paki Masabong","Mayagba","Mayagba",1150,2,"Kakoloh Road",0,"No","Oui","8.755966","-11.96793",false,false,"IM2","India Mark II","Community","HDW","Hand Dug Well","Grade B","Yes","BO1093","Seasonality =No, Village =Mayagba, Section =Mayagba","#water_tech, #status_id, #notes"]
["Bombali","Paki Masabong","Mayagba","Mayagba",1150,3,"Opposite Comm. Store",0,"No","Oui","8.755683","-11.96941",false,false,"IM2","India Mark II","Community","BH","Borehole","Grade A","Yes","BO1094","Seasonality =No, Village =Mayagba, Section =Mayagba","#water_tech, #status_id, #notes"]
["Bombali","Paki Masabong","Mayagba","Mayagba",1150,4,"At the School Field",0,"No","Oui","8.754866","-11.96895",false,false,"IM2","India Mark II","Community","HDW","Hand Dug Well","Grade A","Yes","BO1091","Seasonality =No, Village =Mayagba, Section =Mayagba","#water_tech, #status_id, #notes"]
["Bombali","Paki Masabong","Mayagba","Mayagba",1150,5,"Early Childhood Dev. Nursery sch.",4,"Yes","Oui","8.7546","-11.968",false,false,"PB2","PB Mark II","School","HDW","Hand Dug Well","Grade C","No","BO1413","Seasonality =Yes, Village =Mayagba, Section =Mayagba","#water_tech, #status_id, #notes"]
["Bombali","Paki Masabong","Mayagba","Mayagba",1150,6,"Chester Health Memorial sec.sch",4,"Yes","Oui","8.75475","-11.96736",false,false,"PB2","PB Mark II","School","HDW","Hand Dug Well","Grade C","No","BO1090","Seasonality =Yes, Village =Mayagba, Section =Mayagba","#water_tech, #status_id, #notes"]
["Bombali","Paki Masabong","Mayagba","Mayagba",1150,7,"Magburaka Highway",2,"Yes","Oui","8.753866","-11.96831",false,false,"IM2","India Mark II","Community","HDW","Hand Dug Well","Grade B","Yes","BO4569","Seasonality =Yes, Village =Mayagba, Section =Mayagba","#water_tech, #status_id, #notes"]
["Bombali","Paki Masabong","Mayagba","Mayagba",1150,8,"Free Gospel Church",0,"No","Oui","8.754716","-11.96981",false,false,"IM2","India Mark II","Community","HDW","Hand Dug Well","Grade B","Yes","BO4570","Seasonality =No, Village =Mayagba, Section =Mayagba","#water_tech, #status_id, #notes"]
["Bombali","Paki Masabong","Mayagba","Mayagba",1150,9,"At the Garri Factory",2,"Yes","Non","8.757766","-11.97278",true,false,"Just pedestal - incomplete","Just pedestal - incomplete","Private","HDW","Hand Dug Well","Grade C","No","BO4571","Seasonality =Yes, Village =Mayagba, Section =Mayagba","#water_tech, #status_id, #notes"]
["Bombali","Paki Masabong","Mayagba","Mayagba",1150,10,"At the Sec. Sch",0,"No","Non","8.75478","-11.96755",false,false,"IM2","India Mark II","School","HDW","Hand Dug Well","Grade A","Yes","BO4718","Seasonality =No, Village =Mayagba, Section =Mayagba","#water_tech, #status_id, #notes"]
["Bombali","Paki Masabong","Mayagba","Rogbasia",null,1,"On the highway to madina",0,"No","Oui","8.766466","-11.98295",false,false,"IM2","India Mark II","Community","HDW","Hand Dug Well","Grade A","Yes","BO4572","Seasonality =No, Village =Rogbasia, Section =Mayagba","#water_tech, #status_id, #notes"]
["Bombali","Paki Masabong","Mayawlaw","Mabla",360,1,"At maranatha church",5,"Yes","Oui","8.730933","-11.95026",false,false,"IM2","India Mark II","Community","HDW","Hand Dug Well","Grade B","Yes","BO4573","Seasonality =Yes, Village =Mabla, Section =Mayawlaw","#water_tech, #status_id, #notes"]
["Bombali","Paki Masabong","Mayawlaw","Makump Merica",587,1,"At the mosque",4,"Yes","Oui","8.793466","-11.95641",false,false,"IM2","India Mark II","Community","HDW","Hand Dug Well","Grade A","Yes","BO1422","Seasonality =Yes, Village =Makump Merica, Section =Mayawlaw","#water_tech, #status_id, #notes"]
["Bombali","Paki Masabong","Mayawlaw","Makump Merica",587,2,"At road to Gbaray",4,"Yes","Oui","8.727033","-11.95681",false,false,"IM2","India Mark II","Community","HDW","Hand Dug Well","Grade A","Yes","BO1421","Seasonality =Yes, Village =Makump Merica, Section =Mayawlaw","#water_tech, #status_id, #notes"]
["Bombali","Paki Masabong","Mayawlaw","Makump Merica",587,3,"MPM  Pri. Sch.",1,"Yes","Oui","8.728716","-11.95931",false,false,"IM2","India Mark II","School","HDW","Hand Dug Well","Grade C","No","BO1420","Seasonality =Yes, Village =Makump Merica, Section =Mayawlaw","#water_tech, #status_id, #notes"]
["Bombali","Paki Masabong","Mayawlaw","Masiybana Road",190,1,"close to the dry floor",4,"Yes","Oui","8.748466","-11.94095",false,false,"IM2","India Mark II","Community","HDW","Hand Dug Well","Grade B","Yes","BO1084","Seasonality =Yes, Village =Masiybana Road, Section =Mayawlaw","#water_tech, #status_id, #notes"]
["Bombali","Paki Masabong","Mayawlaw","Mayawlaw",1250,1,"SLMWBO  Pri. Sch.",4,"Yes","Oui","8.738883","-11.94993",false,false,"IM2","India Mark II","School","HDW","Hand Dug Well","Grade B","Yes","BO1423",{"$f":"_xlfn.CONCAT(\"Seasonality =\",I1474,\", \",\"Village =\", D1474,\", \",\"Section =\", C1474)","v":"Seasonality =Yes, Village =Mayawlaw, Section =Mayawlaw"},"#water_tech, #status_id, #notes"]
["Bombali","Paki Masabong","Mayawlaw","Mayawlaw",1250,3,"At Mr. Benjamin House",4,{"$f":"IF(H1475>0,\"Yes\",\"No\")","v":"Yes"},"Oui","8.73215","-11.94866",true,false,"IM2","India Mark II","Community","HDW","Hand Dug Well","Grade C",{"$f":"IF(OR(T1475=\"Grade A\",T1475=\"Grade B\"),\"Yes\",\"No\")","v":"No"},"BO2801","Seasonality =Yes, Village =Mayawlaw, Section =Mayawlaw","#water_tech, #status_id, #notes"]
["Bombali","Paki Masabong","Mayawlaw","Mayawlaw 1",null,1,"The Road to Masibana",null,"No","Non",null,null,false,false,"Inkar","Inkar","Community","HDW","Hand Dug Well","Grade A","Yes","BO1082","Seasonality =No, Village =Mayawlaw 1, Section =Mayawlaw","#water_tech, #status_id, #notes"]
["Bombali","Paki Masabong","Mayawlaw","Mayawlaw 1",null,1,"Primary Sch.-Down the Hill",0,"No","Non","8.73890","-11.94996",false,false,"Kardia","Kardia","School","HDW","Hand Dug Well","Grade B","Yes","BO1083","Seasonality =No, Village =Mayawlaw 1, Section =Mayawlaw","#water_tech, #status_id, #notes"]
["Bombali","Paki Masabong","Mayawlaw","Mayawlaw 1",null,3,"Centre of the village",0,"No","Non","8.73950","-11.94916",false,false,"IM2","India Mark II","Community","HDW","Hand Dug Well","Grade A","Yes","BO2800","Seasonality =No, Village =Mayawlaw 1, Section =Mayawlaw","#water_tech, #status_id, #notes"]
["Bombali","Paki Masabong","Mayawlaw","Mayawlaw 2",800,2,"Market",0,"No","Non","8.73688","-11.94975",false,false,"IM2","India Mark II","Community","HDW","Hand Dug Well","Grade A","Yes","BO1096","Seasonality =No, Village =Mayawlaw 2, Section =Mayawlaw","#water_tech, #status_id, #notes"]
["Bombali","Paki Masabong","Mayawlaw","Mayawlaw Village",110,1,"Close to free gospel",4,"Yes","Oui","8.739533","-11.94915",false,true,"IM2","India Mark II plus solar pump","Community","HDW","Hand Dug Well","Grade A","Yes","BO4574","Seasonality =Yes, Village =Mayawlaw Village, Section =Mayawlaw","#water_tech, #status_id, #notes"]
["Bombali","Paki Masabong","Mayawlaw","Moria",250,1,"At the Dry Floor",0,"No","Non","8.75827","-11.93386",true,false,"IM2","India Mark II","Community","HDW","Hand Dug Well","Grade B","Yes","BO1086","Seasonality =No, Village =Moria, Section =Mayawlaw","#water_tech, #status_id, #notes"]
["Bombali","Paki Masabong","Mayawlaw","Moria",250,1,"End - Manonko Rd",null,"No","Non",null,null,false,false,"IM2","India Mark II","Community","HDW","Hand Dug Well","Grade A","Yes","BO1085","Seasonality =No, Village =Moria, Section =Mayawlaw","#water_tech, #status_id, #notes"]
["Bombali","Paki Masabong","Mayawlaw","Moria",250,2,"RC Pri. School",null,"No","Non","8.75688","-11.93493",true,false,"Kardia","Kardia","School","HDW","Hand Dug Well","Grade E","No","BO1087","Seasonality =No, Village =Moria, Section =Mayawlaw","#water_tech, #status_id, #notes"]
["Bombali","Paki Masabong","Mayawlaw","Moria",250,3,"RC Pri. School",3,"Yes","Oui","8.757366","-11.93455",false,false,"IM2","India Mark II","School","HDW","Hand Dug Well","Grade A","Yes","BO2763","Seasonality =Yes, Village =Moria, Section =Mayawlaw","#water_tech, #status_id, #notes"]
["Bombali","Paki Masabong","Mayawlaw","Rogbaray",120,1,"Entrance of the village",0,"No","Oui","8.725433","-11.95946",false,false,"IM2","India Mark II","Community","BH","Borehole","Grade A","Yes","BO1089","Seasonality =No, Village =Rogbaray, Section =Mayawlaw","#water_tech, #status_id, #notes"]
["Bombali","Paki Masabong","Mayawlaw","Rogbaray",120,2,"End of the village",5,"Yes","Oui","8.724916","-11.96035",false,false,"Just pedestal - incomplete","Just pedestal - incomplete","Community","HDW","Hand Dug Well","Grade B","Yes","BO4579","Seasonality =Yes, Village =Rogbaray, Section =Mayawlaw","#water_tech, #status_id, #notes"]
["Bombali","Paki Masabong","Mayawlaw","Rogbassiah",null,1,"Entrance",null,"No","Non",null,null,false,false,"IM2","India Mark II","Community","HDW","Hand Dug Well","Grade X","No","BO1088","Seasonality =No, Village =Rogbassiah, Section =Mayawlaw","#water_tech, #status_id, #notes"]
["Bombali","Paki Masabong","Mayawlaw","Rogbeneh",null,1,"Village Centre",null,"No","Non",null,null,false,false,"IM2","India Mark II","Community","HDW","Hand Dug Well","Grade X","No","BO2793","Seasonality =No, Village =Rogbeneh, Section =Mayawlaw","#water_tech, #status_id, #notes"]
["Bombali","Paki Masabong","Rosanda","Gbom serry",80,1,"Entrance of the village",0,"No","Oui","8.791816","-11.99838",true,false,"Just pedestal - incomplete","Just pedestal - incomplete","Community","HDW","Hand Dug Well","Grade C","No","BO4581","Seasonality =No, Village =Gbom serry, Section =Rosanda","#water_tech, #status_id, #notes"]
["Bombali","Paki Masabong","Rosanda","Mabrick",170,1,"close to the mosque",4,"Yes","Non","8.79658","-11.99586",false,false,"IM2","India Mark II","Community","HDW","Hand Dug Well","Grade A","Yes","BO2102","Seasonality =Yes, Village =Mabrick, Section =Rosanda","#water_tech, #status_id, #notes"]
["Bombali","Paki Masabong","Rosanda","Makontho",150,1,"Extreme Corner of the village",0,"No","Oui","8.784266","-11.96611",false,false,"Kardia","Kardia","Community","HDW","Hand Dug Well","Grade A","Yes","BO4583","Seasonality =No, Village =Makontho, Section =Rosanda","#water_tech, #status_id, #notes"]
["Bombali","Paki Masabong","Rosanda","Masingbi Lol",420,1,"Close to the Mosque",4,"Yes","Oui","8.782266","-11.95138",true,false,"Just pedestal - incomplete","Just pedestal - incomplete","Community","HDW","Hand Dug Well","Grade C","No","BO1137","Seasonality =Yes, Village =Masingbi Lol, Section =Rosanda","#water_tech, #status_id, #notes"]
["Bombali","Paki Masabong","Rosanda","Masingbi Lol",420,2,"community primary school",3,"Yes","Oui","8.780366","-11.95416",false,false,"IM2","India Mark II","School","HDW","Hand Dug Well","Grade A","Yes","BO1138","Seasonality =Yes, Village =Masingbi Lol, Section =Rosanda","#water_tech, #status_id, #notes"]
["Bombali","Paki Masabong","Rosanda","Masingbi Lol",420,3,"At the CHP",2,"Yes","Oui","8.77985","-11.95268",false,false,"PB2","PB Mark II","Health Facility","HDW","Hand Dug Well","Grade A","Yes","BO1136","Seasonality =Yes, Village =Masingbi Lol, Section =Rosanda","#water_tech, #status_id, #notes"]
["Bombali","Paki Masabong","Rosanda","Rosanda",895,1,"close to the old mosque",0,"No","Oui","8.805616","-11.96575",false,false,"Rope","Rope","Community","HDW","Hand Dug Well","Grade A","Yes","BO1135","Seasonality =No, Village =Rosanda, Section =Rosanda","#water_tech, #status_id, #notes"]
["Bombali","Paki Masabong","Rosanda","Rosanda",895,2,"Benevolent primary school",0,"No","Oui","8.800533","-11.965",false,false,"IM2","India Mark II","School","HDW","Hand Dug Well","Grade A","Yes","BO1405","Seasonality =No, Village =Rosanda, Section =Rosanda","#water_tech, #status_id, #notes"]
["Bombali","Paki Masabong","Rosanda","Rosanda",895,3,"opposite the church",0,"No","Oui","8.806116","-11.96528",false,false,"IM2","India Mark II","Community","BH","Borehole","Grade A","Yes","BO1456","Seasonality =No, Village =Rosanda, Section =Rosanda","#water_tech, #status_id, #notes"]
["Bombali","Paki Masabong","Rosanda","Rosanda",895,4,"Close to the Store",3,"Yes","Oui","8.805733","-11.96621",false,false,"IM2","India Mark II","Community","HDW","Hand Dug Well","Grade A","Yes","BO4584","Seasonality =Yes, Village =Rosanda, Section =Rosanda","#water_tech, #status_id, #notes"]
["Bombali","Paki Masabong","Rosanda","Rosanda",895,5,"Close to the Community centre",4,"Yes","Oui","8.804916","-11.96586",false,false,"IM2","India Mark II","Community","HDW","Hand Dug Well","Grade A","Yes","BO4585","Seasonality =Yes, Village =Rosanda, Section =Rosanda","#water_tech, #status_id, #notes"]
["Bombali","Paki Masabong","Rosanda","Royeben",530,1,"Close to the Mosque",3,"Yes","Oui","8.778216","-11.99381",false,false,"IM2","India Mark II","Community","HDW","Hand Dug Well","Grade B","Yes","BO2789","Seasonality =Yes, Village =Royeben, Section =Rosanda","#water_tech, #status_id, #notes"]
["Bombali","Safroko Limba","Binkolo","Binkolo",2510,1,"At the Comm. Health centre",0,"No","Oui","8.950416","-11.98183",false,true,"Kardia","Kardia plus solar pump","Health Facility","BH","Borehole","Grade C","No","BO879","Seasonality =No, Village =Binkolo, Section =Binkolo","#water_tech, #status_id, #notes"]
["Bombali","Safroko Limba","Binkolo","Binkolo",2510,2,"Close to Kabala Highway",4,"Yes","Oui","8.9515","-11.9811",false,false,"IM2","India Mark II","Community","HDW","Hand Dug Well","Grade C","No","BO880","Seasonality =Yes, Village =Binkolo, Section =Binkolo","#water_tech, #status_id, #notes"]
["Bombali","Safroko Limba","Binkolo","Binkolo",2510,3,"Opposite Paramount chief house",0,"No","Oui","8.952166","-11.98065",false,false,"IM2","India Mark II","Community","BH","Borehole","Grade A","Yes","BO881","Seasonality =No, Village =Binkolo, Section =Binkolo","#water_tech, #status_id, #notes"]
["Bombali","Safroko Limba","Binkolo","Binkolo",2510,4,"Close to Wesleyan Church",4,"Yes","Oui","8.952483","-11.98033",true,false,"IM2","India Mark II","Community","HDW","Hand Dug Well","Grade C","No","BO882","Seasonality =Yes, Village =Binkolo, Section =Binkolo","#water_tech, #status_id, #notes"]
["Bombali","Safroko Limba","Binkolo","Binkolo",2510,5,"Wesleyan School",0,"No","Oui","8.952583","-11.98025",false,true,"IM2","India Mark II plus solar pump","Community","BH","Borehole","Grade A","Yes","BO883","Seasonality =No, Village =Binkolo, Section =Binkolo","#water_tech, #status_id, #notes"]
["Bombali","Safroko Limba","Binkolo","Binkolo",2510,6,"Mangoreh Highway",0,"No","Oui","8.9518","-11.9788",false,false,"Just pedestal - incomplete","Just pedestal - incomplete","Community","BH","Borehole","Grade A","Yes","BO884","Seasonality =No, Village =Binkolo, Section =Binkolo","#water_tech, #status_id, #notes"]
["Bombali","Safroko Limba","Binkolo","Binkolo",2510,7,"R.C Pri. Sch. Compound",4,"Yes","Oui","8.950016","-11.97923",false,false,"IM2","India Mark II","School","HDW","Hand Dug Well","Grade A","Yes","BO885","Seasonality =Yes, Village =Binkolo, Section =Binkolo","#water_tech, #status_id, #notes"]
["Bombali","Safroko Limba","Binkolo","Binkolo",2510,8,"Opposite town chief house",0,"No","Oui","8.9535","-11.97978",false,false,"IM2","India Mark II","Community","BH","Borehole","Grade A","Yes","BO886","Seasonality =No, Village =Binkolo, Section =Binkolo","#water_tech, #status_id, #notes"]
["Bombali","Safroko Limba","Binkolo","Binkolo",2510,9,"Close to Mummy Pharmacy-Junction",4,"Yes","Oui","8.95315","-11.97925",false,false,"IM2","India Mark II","Community","HDW","Hand Dug Well","Grade B","Yes","BO887","Seasonality =Yes, Village =Binkolo, Section =Binkolo","#water_tech, #status_id, #notes"]
["Bombali","Safroko Limba","Binkolo","Binkolo",2510,10,"Opposite section chief house",4,"Yes","Oui","8.953683","-11.97946",false,false,"Just pedestal - incomplete","Just pedestal - incomplete","Community","HDW","Hand Dug Well","Grade A","Yes","BO888","Seasonality =Yes, Village =Binkolo, Section =Binkolo","#water_tech, #status_id, #notes"]
["Bombali","Safroko Limba","Binkolo","Binkolo",2510,11,"Close to Community Market",6,"Yes","Oui","8.954166","-11.97893",true,false,"PB2","PB Mark II","Community","HDW","Hand Dug Well","Grade E","No","BO889","Seasonality =Yes, Village =Binkolo, Section =Binkolo","#water_tech, #status_id, #notes"]
["Bombali","Safroko Limba","Binkolo","Binkolo",2510,12,"At the Section Chief house",5,"Yes","Non","8.953183","-11.9791",true,false,"PB2","PB Mark II","Private","HDW","Hand Dug Well","Grade D","No","BO890","Seasonality =Yes, Village =Binkolo, Section =Binkolo","#water_tech, #status_id, #notes"]
["Bombali","Safroko Limba","Binkolo","Binkolo",2510,13,"Close to the Mosque",0,"No","Oui","8.9543","-11.9776",false,false,"IM2","India Mark II","Community","BH","Borehole","Grade A","Yes","BO891","Seasonality =No, Village =Binkolo, Section =Binkolo","#water_tech, #status_id, #notes"]
["Bombali","Safroko Limba","Binkolo","Binkolo",2510,14,"At the Power Station-Police Station",5,"Yes","Oui","8.955416","-11.97755",false,false,"PB3","PB Mark III","Community","HDW","Hand Dug Well","Grade A","Yes","BO892","Seasonality =Yes, Village =Binkolo, Section =Binkolo","#water_tech, #status_id, #notes"]
["Bombali","Safroko Limba","Binkolo","Binkolo",2510,15,"W.C.S.L Pri. Sch.",0,"No","Oui","8.957733","-11.97598",false,false,"Just pedestal - incomplete","Just pedestal - incomplete","School","HDW","Hand Dug Well","Grade C","No","BO893","Seasonality =No, Village =Binkolo, Section =Binkolo","#water_tech, #status_id, #notes"]
["Bombali","Safroko Limba","Binkolo","Binkolo",2510,16,"W.C.S.L Pri. Sch.",0,"No","Oui","8.957933","-11.9761",false,false,"IM2","India Mark II","School","BH","Borehole","Grade A","Yes","BO1310","Seasonality =No, Village =Binkolo, Section =Binkolo","#water_tech, #status_id, #notes"]
["Bombali","Safroko Limba","Binkolo","Binkolo",2510,17,"Side of the town",5,"Yes","Oui","8.95775","-11.97523",true,false,"IM2","India Mark II","Community","HDW","Hand Dug Well","Grade E","No","BO1311","Seasonality =Yes, Village =Binkolo, Section =Binkolo","#water_tech, #status_id, #notes"]
["Bombali","Safroko Limba","Binkolo","Binkolo",2510,18,"Opposite W.C.S.L Pri. Sch.",4,"Yes","Oui","8.955783","-11.97505",false,false,"IM2","India Mark II","School","HDW","Hand Dug Well","Grade A","Yes","BO1312","Seasonality =Yes, Village =Binkolo, Section =Binkolo","#water_tech, #status_id, #notes"]
["Bombali","Safroko Limba","Binkolo","Binkolo",2510,19,"Opposite W.C.S.L Pri. Sch.",5,"Yes","Oui","8.95855","-11.9762",true,false,"IM2","India Mark II","Community","HDW","Hand Dug Well","Grade A","Yes","BO1313","Seasonality =Yes, Village =Binkolo, Section =Binkolo","#water_tech, #status_id, #notes"]
["Bombali","Safroko Limba","Binkolo","Binkolo",2510,20,"Catholic Junior Sec. Sch.",4,"Yes","Oui","8.963483","-11.97753",false,false,"IM2","India Mark II","School","BH","Borehole","Grade A","Yes","BO1434","Seasonality =Yes, Village =Binkolo, Section =Binkolo","#water_tech, #status_id, #notes"]
["Bombali","Safroko Limba","Binkolo","Binkolo",2510,21,"Grace glory ECD centre pri.school",3,"Yes","Oui","8.96105","-11.97575",false,false,"IM2","India Mark II","School","HDW","Hand Dug Well","Grade A","Yes","BO2201","Seasonality =Yes, Village =Binkolo, Section =Binkolo","#water_tech, #status_id, #notes"]
["Bombali","Safroko Limba","Binkolo","Binkolo",2510,22,"Catholic Senior Sec. Sch.",0,"No","Oui","8.963316","-11.97461",false,false,"Kardia","Kardia","School","BH","Borehole","Grade A","Yes","BO1466","Seasonality =No, Village =Binkolo, Section =Binkolo","#water_tech, #status_id, #notes"]
["Bombali","Safroko Limba","Binkolo","Binkolo",2510,23,"Close to Munafa m.patie office",4,"Yes","Oui","8.961883","-11.9729",false,false,"Solar Tap System","Solar Tap System","Community","HDW","Hand Dug Well","Grade C","No","BO4586","Seasonality =Yes, Village =Binkolo, Section =Binkolo","#water_tech, #status_id, #notes"]
["Bombali","Safroko Limba","Binkolo","Binkolo",2510,24,"Munafa M. Patie Office",0,"No","Oui","8.9622","-11.9737",false,false,"Submersive","Submersive","Private","HDW","Hand Dug Well","Grade A","Yes","BO4587","Seasonality =No, Village =Binkolo, Section =Binkolo","#water_tech, #status_id, #notes"]
["Bombali","Safroko Limba","Binkolo","Kamanka",312,1,"At the Swamp",2,"Yes","Oui","8.966883","-11.94516",false,false,"Just pedestal - incomplete","Just pedestal - incomplete","Community","HDW","Hand Dug Well","Grade D","No","BO4588","Seasonality =Yes, Village =Kamanka, Section =Binkolo","#water_tech, #status_id, #notes"]
["Bombali","Safroko Limba","Binkolo","Kamanka",312,2,"On the highway to Bunbuna",4,"Yes","Oui","8.968166","-11.94491",false,false,"IM2","India Mark II","Community","HDW","Hand Dug Well","Grade A","Yes","BO1008","Seasonality =Yes, Village =Kamanka, Section =Binkolo","#water_tech, #status_id, #notes"]
["Bombali","Safroko Limba","Binkolo","Kamanka",312,3,"Kamanka community pri.school",0,"No","Oui","8.968166","-11.94616",false,false,"IM2","India Mark II","School","HDW","Hand Dug Well","Grade A","Yes","BO4589","Seasonality =No, Village =Kamanka, Section =Binkolo","#water_tech, #status_id, #notes"]
["Bombali","Safroko Limba","Binkolo","Kamenday",227,1,"On the road to Kabakeh-In the Town",3,"Yes","Oui","8.92265","-11.94443",false,false,"IM2","India Mark II","Community","HDW","Hand Dug Well","Grade A","Yes","BO1011","Seasonality =Yes, Village =Kamenday, Section =Binkolo","#water_tech, #status_id, #notes"]
["Bombali","Safroko Limba","Binkolo","Kamenday",227,2,"R.C Pri. Sch. Compound",2,"Yes","Non","8.9221","-11.94703",false,false,"Just pedestal - incomplete","Just pedestal - incomplete","School","HDW","Hand Dug Well","Grade E","No","BO4590","Seasonality =Yes, Village =Kamenday, Section =Binkolo","#water_tech, #status_id, #notes"]
["Bombali","Safroko Limba","Binkolo","Kamenday",227,3,"R.C primary school compound",0,"No","Non","8.9221","-11.94703",false,false,"Just pedestal - incomplete","Just pedestal - incomplete","School","HDW","Hand Dug Well","Grade D","No","BO4591","Seasonality =No, Village =Kamenday, Section =Binkolo","#water_tech, #status_id, #notes"]
["Bombali","Safroko Limba","Binkolo","Kapethe",500,1,"Behind Community Store",0,"No","Oui","8.987333","-11.98275",false,false,"IM2","India Mark II","Community","HDW","Hand Dug Well","Grade A","Yes","BO4592","Seasonality =No, Village =Kapethe, Section =Binkolo","#water_tech, #status_id, #notes"]
["Bombali","Safroko Limba","Binkolo","Kapethe",500,2,"Close to the Mosque-Chief",5,"Yes","Oui","8.98765","-11.98346",false,false,"Pully","Pully","Community","Pulley","Pulley","Grade D","No","BO1307","Seasonality =Yes, Village =Kapethe, Section =Binkolo","#water_tech, #status_id, #notes"]
["Bombali","Safroko Limba","Binkolo","Kapethe",500,3,"On the road to Kateneh-Chief House",4,"Yes","Oui","8.98615","-11.93305",true,false,"PB2","PB Mark II","Community","HDW","Hand Dug Well","Grade E","No","BO1004","Seasonality =Yes, Village =Kapethe, Section =Binkolo","#water_tech, #status_id, #notes"]
["Bombali","Safroko Limba","Binkolo","Kapethe",500,4,"At the CHP",4,"Yes","Oui","8.985283","-11.98345",false,false,"IM2","India Mark II","Health Facility","HDW","Hand Dug Well","Grade A","Yes","BO1005","Seasonality =Yes, Village =Kapethe, Section =Binkolo","#water_tech, #status_id, #notes"]
["Bombali","Safroko Limba","Binkolo","Kapethe",500,5,"centre of the village",5,"Yes","Oui","8.986783","-11.98248",false,false,"IM2","India Mark II","Community","HDW","Hand Dug Well","Grade B","Yes","BO1006","Seasonality =Yes, Village =Kapethe, Section =Binkolo","#water_tech, #status_id, #notes"]
["Bombali","Safroko Limba","Binkolo","Kapethe",500,6,"Close to the Swamp",0,"No","Oui","8.9876","-11.98045",false,false,"IM2","India Mark II","Community","HDW","Hand Dug Well","Grade A","Yes","BO1007","Seasonality =No, Village =Kapethe, Section =Binkolo","#water_tech, #status_id, #notes"]
["Bombali","Safroko Limba","Binkolo","Kapethe",500,7,"W.C.S.L Pri. Sch. Compound",5,"Yes","Oui","8.986066","-11.97965",false,false,"IM2","India Mark II","School","HDW","Hand Dug Well","Grade A","Yes","BO4593","Seasonality =Yes, Village =Kapethe, Section =Binkolo","#water_tech, #status_id, #notes"]
["Bombali","Safroko Limba","Binkolo","Kapethe",500,8,"W.C.S.L Pri. Sch. Compound",5,"Yes","Oui","8.985616","-11.97973",false,false,"IM2","India Mark II","School","HDW","Hand Dug Well","Grade A","Yes","BO4594",{"$f":"_xlfn.CONCAT(\"Seasonality =\",I1538,\", \",\"Village =\", D1538,\", \",\"Section =\", C1538)","v":"Seasonality =Yes, Village =Kapethe, Section =Binkolo"},"#water_tech, #status_id, #notes"]
["Bombali","Safroko Limba","Binkolo","Kapethe",500,9,"At Madam Jane D.M Sesay",0,{"$f":"IF(H1539>0,\"Yes\",\"No\")","v":"No"},"Non","8.985883","-11.9793",false,false,"Pully","Pully","Private","HDW","Hand Dug Well","Grade D",{"$f":"IF(OR(T1539=\"Grade A\",T1539=\"Grade B\"),\"Yes\",\"No\")","v":"No"},"BO4595","Seasonality =No, Village =Kapethe, Section =Binkolo","#water_tech, #status_id, #notes"]
["Bombali","Safroko Limba","Binkolo","Kathala",750,1,"Centre of the Village",2,"Yes","Non","8.96753","-11.99938",false,false,"Kardia","Kardia","Community","HDW","Hand Dug Well","Grade A","Yes","BO1015","Seasonality =Yes, Village =Kathala, Section =Binkolo","#water_tech, #status_id, #notes"]
["Bombali","Safroko Limba","Binkolo","Kathala",750,2,"BDEC Pri. Sch.",3,"Yes","Oui","8.9655","-11.99953",false,false,"PB2","PB Mark II","School","HDW","Hand Dug Well","Grade A","Yes","BO1017","Seasonality =Yes, Village =Kathala, Section =Binkolo","#water_tech, #status_id, #notes"]
["Bombali","Safroko Limba","Binkolo","Mabonkani",850,1,"Community Junior Sec.sch",4,"Yes","Oui","8.996116","-11.9544",false,false,"IM2","India Mark II","School","HDW","Hand Dug Well","Grade A","Yes","BO999","Seasonality =Yes, Village =Mabonkani, Section =Binkolo","#water_tech, #status_id, #notes"]
["Bombali","Safroko Limba","Binkolo","Mabonkani",850,2,"At the MCHP Centre",3,"Yes","Oui","8.997216","-11.95285",true,false,"Just pedestal - incomplete","Just pedestal - incomplete","Health Facility","HDW","Hand Dug Well","Grade E","No","BO1000","Seasonality =Yes, Village =Mabonkani, Section =Binkolo","#water_tech, #status_id, #notes"]
["Bombali","Safroko Limba","Binkolo","Mabonkani",850,3,"Pri. Sch. Compound",3,"Yes","Oui","8.9978","-11.95256",false,false,"Just pedestal - incomplete","Just pedestal - incomplete","School","HDW","Hand Dug Well","Grade C","No","BO1001","Seasonality =Yes, Village =Mabonkani, Section =Binkolo","#water_tech, #status_id, #notes"]
["Bombali","Safroko Limba","Binkolo","Mabonkani",850,4,"Close to Wesleyan Church",4,"Yes","Oui","8.998283","-11.95436",false,false,"PB2","PB Mark II","Community","HDW","Hand Dug Well","Grade A","Yes","BO1002","Seasonality =Yes, Village =Mabonkani, Section =Binkolo","#water_tech, #status_id, #notes"]
["Bombali","Safroko Limba","Binkolo","Mabonkani",850,5,"Opposite Wesleyan church",4,"Yes","Oui","8.998566","-11.9544",false,false,"PB2","PB Mark II","Community","HDW","Hand Dug Well","Grade A","Yes","BO1003","Seasonality =Yes, Village =Mabonkani, Section =Binkolo","#water_tech, #status_id, #notes"]
["Bombali","Safroko Limba","Binkolo","Mabonkani",850,6,"Kabonka Highway-Chief House",4,"Yes","Oui","8.999766","-11.95433",false,false,"PB2","PB Mark II","Community","HDW","Hand Dug Well","Grade A","Yes","BO1425","Seasonality =Yes, Village =Mabonkani, Section =Binkolo","#water_tech, #status_id, #notes"]
["Bombali","Safroko Limba","Binkolo","Mabonkani",850,7,"Brima Archa Kamara cpd",0,"No","Non","8.996066","-11.95358",false,true,"IM2","India Mark II plus solar pump","Private","HDW","Hand Dug Well","Grade A","Yes","BO4596","Seasonality =No, Village =Mabonkani, Section =Binkolo","#water_tech, #status_id, #notes"]
["Bombali","Safroko Limba","Binkolo","Mabonkani",850,8,"Community Jun. Sec.sch",0,"No","Oui","8.9964","-11.9542",false,false,"IM2","India Mark II","School","BH","Borehole","Grade A","Yes","BO4597","Seasonality =No, Village =Mabonkani, Section =Binkolo","#water_tech, #status_id, #notes"]
["Bombali","Safroko Limba","Binkolo","Mabonkani",850,9,"At the MCHP Centre",5,"Yes","Oui","8.99725","-11.953",false,true,"Just pedestal - incomplete","Just pedestal - incomplete plus solar pump","Health Facility","HDW","Hand Dug Well","Grade C","No","BO4598","Seasonality =Yes, Village =Mabonkani, Section =Binkolo","#water_tech, #status_id, #notes"]
["Bombali","Safroko Limba","Binkolo","Mabonkani",850,10,"Wesleyan Pri. Sch.",0,"No","Oui","8.997733","-11.95243",false,false,"IM2","India Mark II","School","BH","Borehole","Grade A","Yes","BO4599","Seasonality =No, Village =Mabonkani, Section =Binkolo","#water_tech, #status_id, #notes"]
["Bombali","Safroko Limba","Binkolo","Mabonkani",850,11,"David's Sesay Compound",0,"No","Non","8.9644","-11.95588",false,false,"IM2","India Mark II","Private","HDW","Hand Dug Well","Grade A","Yes","BO4600","Seasonality =No, Village =Mabonkani, Section =Binkolo","#water_tech, #status_id, #notes"]
["Bombali","Safroko Limba","Binkolo","Mabonkani",850,12,"Close to the Community Hall",null,"No","Non",null,null,false,false,"IM2","India Mark II","Community","HDW","Hand Dug Well","Grade X","No","BO4762","Seasonality =No, Village =Mabonkani, Section =Binkolo","#water_tech, #status_id, #notes"]
["Bombali","Safroko Limba","Binkolo","Mafaray",815,1,"Bumbuna Rd",2,"Yes","Non","8.95562","-11.96598",false,false,"PB2","PB Mark II","Community","HDW","Hand Dug Well","Grade A","Yes","BO1314","Seasonality =Yes, Village =Mafaray, Section =Binkolo","#water_tech, #status_id, #notes"]
["Bombali","Safroko Limba","Binkolo","Mafaray",815,2,"Close to the Chief House",0,"No","Oui","8.955","-11.96465",false,false,"IM2","India Mark II","Community","BH","Borehole","Grade A","Yes","BO4602","Seasonality =No, Village =Mafaray, Section =Binkolo","#water_tech, #status_id, #notes"]
["Bombali","Safroko Limba","Binkolo","Mafaray",815,3,"At the School",3,"Yes","Oui","8.95924","-11.96090",false,false,"IM2","India Mark II","School","HDW","Hand Dug Well","Grade A","Yes","BO2677","Seasonality =Yes, Village =Mafaray, Section =Binkolo","#water_tech, #status_id, #notes"]
["Bombali","Safroko Limba","Binkolo","Mafaray",815,4,"Center of the Village",3,"Yes","Non","8.95669","-11.96450",false,false,"IM2","India Mark II","Community","HDW","Hand Dug Well","Grade C","No","BO2079","Seasonality =Yes, Village =Mafaray, Section =Binkolo","#water_tech, #status_id, #notes"]
["Bombali","Safroko Limba","Binkolo","Mankoreh",600,1,"R.C Pri. Sch. Compound",3,"Yes","Oui","8.918033","-11.97086",false,false,"Just pedestal - incomplete","Just pedestal - incomplete","School","HDW","Hand Dug Well","Grade C","No","BO4604","Seasonality =Yes, Village =Mankoreh, Section =Binkolo","#water_tech, #status_id, #notes"]
["Bombali","Safroko Limba","Binkolo","Mankoreh",600,2,"Close to the Community Store",4,"Yes","Oui","8.920066","-11.97031",false,false,"Kardia","Kardia","Community","HDW","Hand Dug Well","Grade A","Yes","BO4605","Seasonality =Yes, Village =Mankoreh, Section =Binkolo","#water_tech, #status_id, #notes"]
["Bombali","Safroko Limba","Binkolo","Mankoreh",600,3,"Close to the Barry",0,"No","Oui","8.9205","-11.96993",false,false,"Just pedestal - incomplete","Just pedestal - incomplete","Community","HDW","Hand Dug Well","Grade D","No","BO4606","Seasonality =No, Village =Mankoreh, Section =Binkolo","#water_tech, #status_id, #notes"]
["Bombali","Safroko Limba","Binkolo","Mankoreh",600,4,"Opposite to Mapaki Road",5,"Yes","Oui","8.921083","-11.97001",false,false,"Afridev","Afridev","Community","HDW","Hand Dug Well","Grade B","Yes","BO1012","Seasonality =Yes, Village =Mankoreh, Section =Binkolo","#water_tech, #status_id, #notes"]
["Bombali","Safroko Limba","Binkolo","Mankoreh",600,5,"Entrance of the village",5,"Yes","Oui","8.923","-11.97041",false,false,"Afridev","Afridev","Community","BH","Borehole","Grade C","No","BO1013","Seasonality =Yes, Village =Mankoreh, Section =Binkolo","#water_tech, #status_id, #notes"]
["Bombali","Safroko Limba","Binkolo","Marampa",250,1,"Opposite the church",0,"No","Oui","8.987883","-11.96746",false,false,"PB2","PB Mark II","Community","BH","Borehole","Grade A","Yes","BO998","Seasonality =No, Village =Marampa, Section =Binkolo","#water_tech, #status_id, #notes"]
["Bombali","Safroko Limba","Binkolo","Marampa",250,2,"Kabala Highway",5,"Yes","Oui","8.987983","-11.96746",true,false,"IM2","India Mark II","Community","HDW","Hand Dug Well","Grade E","No","BO1412","Seasonality =Yes, Village =Marampa, Section =Binkolo","#water_tech, #status_id, #notes"]
["Bombali","Safroko Limba","Binkolo","Marampa",250,3,"At the Comm. Pri. Sch",5,"Yes","Oui","8.98575","-11.96781",false,false,"PB2","PB Mark II","School","HDW","Hand Dug Well","Grade A","Yes","BO4607","Seasonality =Yes, Village =Marampa, Section =Binkolo","#water_tech, #status_id, #notes"]
["Bombali","Safroko Limba","Binkolo","Mathadi",541,1,"Side of the village",4,"Yes","Oui","8.9465","-11.94948",false,false,"PB3","PB Mark III","Community","HDW","Hand Dug Well","Grade A","Yes","BO1009","Seasonality =Yes, Village =Mathadi, Section =Binkolo","#water_tech, #status_id, #notes"]
["Bombali","Safroko Limba","Binkolo","Mathadi",541,2,"Mathadi Community Sch.",2,"Yes","Oui","8.9489","-11.94885",true,false,"Just pedestal - incomplete","Just pedestal - incomplete","School","HDW","Hand Dug Well","Grade E","No","BO1010","Seasonality =Yes, Village =Mathadi, Section =Binkolo","#water_tech, #status_id, #notes"]
["Bombali","Safroko Limba","Binkolo","Thakoblo",30,1,"Close to the Swamp",0,"No","Non","8.978566","-11.9507",false,false,"Just pedestal - incomplete","Just pedestal - incomplete","Community","HDW","Hand Dug Well","Grade D","No","BO4608","Seasonality =No, Village =Thakoblo, Section =Binkolo","#water_tech, #status_id, #notes"]
["Bombali","Safroko Limba","Kathekor","Kabombeh",1000,1,"At the Community Health Post",3,"Yes","Non","8.87560","-11.99552",false,false,"IM2","India Mark II","Health Facility","HDW","Hand Dug Well","Grade B","Yes","BO4610","Seasonality =Yes, Village =Kabombeh, Section =Kathekor","#water_tech, #status_id, #notes"]
["Bombali","Safroko Limba","Kathekor","Kabombeh",1000,2,"Close to the Swamp",3,"Yes","Non","8.87535","-11.99288",false,false,"IM2","India Mark II","Community","HDW","Hand Dug Well","Grade B","Yes","BO4612","Seasonality =Yes, Village =Kabombeh, Section =Kathekor","#water_tech, #status_id, #notes"]
["Bombali","Safroko Limba","Kathekor","Kabombeh",1000,3,"Back of the Pri. Sch.",12,"Yes","Non","8.87506","-11.99306",false,false,"IM2","India Mark II","School","HDW","Hand Dug Well","Grade A","Yes","BO1298","Seasonality =Yes, Village =Kabombeh, Section =Kathekor","#water_tech, #status_id, #notes"]
["Bombali","Safroko Limba","Kathekor","Kamorian",450,1,"Close to St. Thomas church",0,"No","Oui","8.88009","-11.95184",false,false,"IM2","India Mark II","Community","BH","Borehole","Grade A","Yes","BO4614","Seasonality =No, Village =Kamorian, Section =Kathekor","#water_tech, #status_id, #notes"]
["Bombali","Safroko Limba","Kathekor","Kamorian",450,2,"R.C Pri. Sch. Compound",4,"Yes","Non","8.88047","-11.95078",false,false,"PB2","PB Mark II","School","HDW","Hand Dug Well","Grade A","Yes","BO4615","Seasonality =Yes, Village =Kamorian, Section =Kathekor","#water_tech, #status_id, #notes"]
["Bombali","Safroko Limba","Kathekor","Kamorian",450,3,"R.C Pri. Sch. Compound",6,"Yes","Non","8.88055","-11.95080",false,false,"IM2","India Mark II","School","HDW","Hand Dug Well","Grade B","Yes","BO4616","Seasonality =Yes, Village =Kamorian, Section =Kathekor","#water_tech, #status_id, #notes"]
["Bombali","Safroko Limba","Kathekor","Kasimbirian",180,1,"Entrance of the Village",3,"Yes","Non","8.91044","-11.96841",false,false,"PB2","PB Mark II","Community","BH","Borehole","Grade A","Yes","BO1306","Seasonality =Yes, Village =Kasimbirian, Section =Kathekor","#water_tech, #status_id, #notes"]
["Bombali","Safroko Limba","Kathekor","Kathirie",582,1,"Back of the Nursery School",0,"No","Non","8.902083","-11.98716",false,false,"IM2","India Mark II","School","HDW","Hand Dug Well","Grade A","Yes","BO4618","Seasonality =No, Village =Kathirie, Section =Kathekor","#water_tech, #status_id, #notes"]
["Bombali","Safroko Limba","Kathekor","Kathirie",582,2,"MOF Pri. Sch.",12,"Yes","Non","8.902016","-11.98778",false,false,"IM2","India Mark II","School","HDW","Hand Dug Well","Grade B","Yes","BO4619","Seasonality =Yes, Village =Kathirie, Section =Kathekor","#water_tech, #status_id, #notes"]
["Bombali","Safroko Limba","Kathekor","Kathirie",582,3,"Centre of the village",0,"No","Non","8.901566","-11.98975",false,false,"IM2","India Mark II","Community","BH","Borehole","Grade A","Yes","BO4620","Seasonality =No, Village =Kathirie, Section =Kathekor","#water_tech, #status_id, #notes"]
["Bombali","Safroko Limba","Kathekor","Kathirie",582,4,"Close to the Dry Flour",null,"No","Non",null,null,false,false,"IM2","India Mark II","Community","HDW","Hand Dug Well","Grade X","No","BO4763","Seasonality =No, Village =Kathirie, Section =Kathekor","#water_tech, #status_id, #notes"]
["Bombali","Safroko Limba","Kathekor","Mabanta",200,1,"End of the village",3,"Yes","Non","8.9078","-11.95953",false,false,"IM2","India Mark II","Community","HDW","Hand Dug Well","Grade A","Yes","BO1274","Seasonality =Yes, Village =Mabanta, Section =Kathekor","#water_tech, #status_id, #notes"]
["Bombali","Safroko Limba","Kathekor","Makorombo",250,1,"W.C.S.L Makorombo",2,"Yes","Non","8.88910","-11.97827",false,false,"IM2","India Mark II","School","HDW","Hand Dug Well","Grade C","No","BO1305","Seasonality =Yes, Village =Makorombo, Section =Kathekor","#water_tech, #status_id, #notes"]
["Bombali","Safroko Limba","Kathekor","Makorombo",250,2,"Close to the Field",3,"Yes","Non","8.88949","-11.97874",false,false,"IM2","India Mark II","Community","HDW","Hand Dug Well","Grade B","Yes","BO4623","Seasonality =Yes, Village =Makorombo, Section =Kathekor","#water_tech, #status_id, #notes"]
["Bombali","Safroko Limba","Kathekor","Makorombo",250,3,"At the Chief House",0,"No","Non","8.889964","-11.97736",true,false,"IM2","India Mark II","Community","BH","Borehole","Grade A","Yes","BO4624","Seasonality =No, Village =Makorombo, Section =Kathekor","#water_tech, #status_id, #notes"]
["Bombali","Safroko Limba","Maborleh","Bantamu",350,1,"End of the village",0,"No","Non","8.97712","-12.05193",false,false,"IM2","India Mark II","Community","HDW","Hand Dug Well","Grade A","Yes","BO4625","Seasonality =No, Village =Bantamu, Section =Maborleh","#water_tech, #status_id, #notes"]
["Bombali","Safroko Limba","Maborleh","Bombali Bana",500,1,"W.C.S.L School Quarter",2,"Yes","Non","8.96239","-12.03189",false,false,"IM2","India Mark II","School","HDW","Hand Dug Well","Grade B","Yes","BO2729","Seasonality =Yes, Village =Bombali Bana, Section =Maborleh","#water_tech, #status_id, #notes"]
["Bombali","Safroko Limba","Maborleh","Bombali Bana",500,2,"W.C.S.L School Compound",3,"Yes","Non","8.96257","-12.03187",false,false,"IM2","India Mark II","School","HDW","Hand Dug Well","Grade B","Yes","BO2732","Seasonality =Yes, Village =Bombali Bana, Section =Maborleh","#water_tech, #status_id, #notes"]
["Bombali","Safroko Limba","Maborleh","Bombali Bana",500,3,"W.C.S.L School",0,"No","Non","8.96267","-12.03190",false,false,"IM2","India Mark II","School","BH","Borehole","Grade A","Yes","BO4626","Seasonality =No, Village =Bombali Bana, Section =Maborleh","#water_tech, #status_id, #notes"]
["Bombali","Safroko Limba","Maborleh","Bombali Bana",500,4,"W.C.S.L Compound",2,"Yes","Non","8.96301","-12.03190",false,false,"IM2","India Mark II","School","HDW","Hand Dug Well","Grade C","No","BO1030","Seasonality =Yes, Village =Bombali Bana, Section =Maborleh","#water_tech, #status_id, #notes"]
["Bombali","Safroko Limba","Maborleh","Bombali Bana",500,5,"WCSL Church",0,"No","Non","8.964966","-12.03198",false,false,"IM2","India Mark II","School","HDW","Hand Dug Well","Grade B","Yes","BO4628","Seasonality =No, Village =Bombali Bana, Section =Maborleh","#water_tech, #status_id, #notes"]
["Bombali","Safroko Limba","Maborleh","Bombali Bana",500,6,"Centre of the village",3,"Yes","Non","8.965116","-12.03285",false,false,"IM2","India Mark II","Community","HDW","Hand Dug Well","Grade C","No","BO4629","Seasonality =Yes, Village =Bombali Bana, Section =Maborleh","#water_tech, #status_id, #notes"]
["Bombali","Safroko Limba","Maborleh","Bombali Bana",500,7,"Back of catholic church",0,"No","Non","8.965866","-12.03431",false,true,"IM2","India Mark II plus solar pump","Community","BH","Borehole","Grade B","Yes","BO4630","Seasonality =No, Village =Bombali Bana, Section =Maborleh","#water_tech, #status_id, #notes"]
["Bombali","Safroko Limba","Maborleh","Kamoi",150,1,"In the Town",1,"Yes","Non","9.0343","-12.04708",false,false,"IM2","India Mark II","Community","HDW","Hand Dug Well","Grade A","Yes","BO4675","Seasonality =Yes, Village =Kamoi, Section =Maborleh","#water_tech, #status_id, #notes"]
["Bombali","Safroko Limba","Maborleh","Mafombali",140,1,"centre of the village",0,"No","Non","9.00043","-12.02414",false,false,"IM2","India Mark II","Community","BH","Borehole","Grade A","Yes","BO2846","Seasonality =No, Village =Mafombali, Section =Maborleh","#water_tech, #status_id, #notes"]
["Bombali","Safroko Limba","Maborleh","Makenkita",450,1,"Right of the village",0,"No","Oui","8.967833","-12.01736",false,false,"IM2","India Mark II","Community","HDW","Hand Dug Well","Grade B","Yes","BO1031","Seasonality =No, Village =Makenkita, Section =Maborleh","#water_tech, #status_id, #notes"]
["Bombali","Safroko Limba","Maborleh","Makenkita",450,2,"Left side of the village",2,"Yes","Non","8.967516","-12.01736",false,false,"IM2","India Mark II","Community","HDW","Hand Dug Well","Grade A","Yes","BO1032","Seasonality =Yes, Village =Makenkita, Section =Maborleh","#water_tech, #status_id, #notes"]
["Bombali","Safroko Limba","Makanta","Kabaray",210,1,"Kabaray community school",4,"Yes","Oui","9.00243","-11.86213",false,false,"IM2","India Mark II","School","HDW","Hand Dug Well","Grade A","Yes","BO4635","Seasonality =Yes, Village =Kabaray, Section =Makanta","#water_tech, #status_id, #notes"]
["Bombali","Safroko Limba","Makanta","Kabaray",210,2,"On the highway to kamonkoh",3,"Yes","Oui","8.99954","-11.86613",false,true,"IM2","India Mark II plus solar pump","Community","HDW","Hand Dug Well","Grade A","Yes","BO4636","Seasonality =Yes, Village =Kabaray, Section =Makanta","#water_tech, #status_id, #notes"]
["Bombali","Safroko Limba","Makanta","Kadala",230,1,"Community Primary School",6,"Yes","Oui","9.039783","-11.81676",false,false,"IM2","India Mark II","School","HDW","Hand Dug Well","Grade B","Yes","BO4637","Seasonality =Yes, Village =Kadala, Section =Makanta","#water_tech, #status_id, #notes"]
["Bombali","Safroko Limba","Makanta","Kadala",230,2,"At the House of the Town chief",1,"Yes","Non","9.038216","-11.8174",false,false,"Just pedestal - incomplete","Just pedestal - incomplete","Private","HDW","Hand Dug Well","Grade C","No","BO4638","Seasonality =Yes, Village =Kadala, Section =Makanta","#water_tech, #status_id, #notes"]
["Bombali","Safroko Limba","Makanta","Kamonkoh",230,1,"Entrance of the village",4,"Yes","Oui","9.007083","-11.85665",false,false,"IM2","India Mark II","Community","HDW","Hand Dug Well","Grade A","Yes","BO4639","Seasonality =Yes, Village =Kamonkoh, Section =Makanta","#water_tech, #status_id, #notes"]
["Bombali","Safroko Limba","Makanta","Kayasie",250,1,"At the community health post",4,"Yes","Oui","9.031283","-11.84535",false,true,"PB3","PB Mark III plus solar pump","Health Facility","HDW","Hand Dug Well","Grade A","Yes","BO1022","Seasonality =Yes, Village =Kayasie, Section =Makanta","#water_tech, #status_id, #notes"]
["Bombali","Safroko Limba","Makanta","Kayasie",250,2,"On the highway to kadala",4,"Yes","Oui","9.033","-11.84485",true,false,"PB3","PB Mark III","Community","HDW","Hand Dug Well","Grade A","Yes","BO1323","Seasonality =Yes, Village =Kayasie, Section =Makanta","#water_tech, #status_id, #notes"]
["Bombali","Safroko Limba","Makathen","Massap",180,1,"opposite the CHP",2,{"$f":"IF(H1603>0,\"Yes\",\"No\")","v":"Yes"},"Oui","9.0693","-11.78971",false,false,"IM2","India Mark II","Community","BH","Borehole","Grade A",{"$f":"IF(OR(T1603=\"Grade A\",T1603=\"Grade B\"),\"Yes\",\"No\")","v":"Yes"},"BO1021",{"$f":"_xlfn.CONCAT(\"Seasonality =\",I1603,\", \",\"Village =\", D1603,\", \",\"Section =\", C1603)","v":"Seasonality =Yes, Village =Massap, Section =Makathen"},"#water_tech, #status_id, #notes"]
["Bombali","Safroko Limba","Makathen","Massap",180,2,"At the community health post",0,"No","Oui","9.0693","-11.78971",false,false,"Just pedestal - incomplete","Just pedestal - incomplete","Health Facility","HDW","Hand Dug Well","Grade D","No","BO4640","Seasonality =No, Village =Massap, Section =Makathen","#water_tech, #status_id, #notes"]
["Bombali","Safroko Limba","Makathen","Massap",180,3,"centre of the village",4,"Yes","Non","9.070083","-11.78923",false,false,"Just pedestal - incomplete","Just pedestal - incomplete","Community","HDW","Hand Dug Well","Grade E","No","BO4641","Seasonality =Yes, Village =Massap, Section =Makathen","#water_tech, #status_id, #notes"]
["Bombali","Safroko Limba","Malimbon","Kabun",190,1,"At the entrance of the village",3,"Yes","Non","8.977233","-11.9952",false,false,"IM2","India Mark II","Community","HDW","Hand Dug Well","Grade A","Yes","BO1318","Seasonality =Yes, Village =Kabun, Section =Malimbon","#water_tech, #status_id, #notes"]
["Bombali","Safroko Limba","Malimbon","Kagbo",550,1,"W.C.S.L Pri. Sch.",0,"No","Non","9.025266","-11.98995",false,false,"IM2","India Mark II","School","BH","Borehole","Grade C","No","BO1037","Seasonality =No, Village =Kagbo, Section =Malimbon","#water_tech, #status_id, #notes"]
["Bombali","Safroko Limba","Malimbon","Kagbo",550,2,"At the Town Head Compound",0,"No","Oui","9.024883","-11.99195",false,false,"IM2","India Mark II","Community","HDW","Hand Dug Well","Grade C","No","BO1038","Seasonality =No, Village =Kagbo, Section =Malimbon","#water_tech, #status_id, #notes"]
["Bombali","Safroko Limba","Malimbon","Kagbo",550,3,"Small Binkolo Compound",1,"Yes","Oui","9.025483","-11.99268",false,false,"IM2","India Mark II","Community","HDW","Hand Dug Well","Grade C","No","BO1039","Seasonality =Yes, Village =Kagbo, Section =Malimbon","#water_tech, #status_id, #notes"]
["Bombali","Safroko Limba","Malimbon","Kagbo",550,4,"At the health centre",0,"No","Non","9.026216","-11.988",true,false,"IM2","India Mark II","Health Facility","HDW","Hand Dug Well","Grade A","Yes","BO1316","Seasonality =No, Village =Kagbo, Section =Malimbon","#water_tech, #status_id, #notes"]
["Bombali","Safroko Limba","Malimbon","Kamathor",500,1,"opposite the store",0,"No","Oui","9.046916","-11.981",false,false,"IM2","India Mark II","Community","BH","Borehole","Grade A","Yes","BO1317","Seasonality =No, Village =Kamathor, Section =Malimbon","#water_tech, #status_id, #notes"]
["Bombali","Safroko Limba","Malimbon","Kamathor",500,2,"Entrance of the village",0,"No","Oui","9.044666","-11.97871",false,false,"IM2","India Mark II","Community","HDW","Hand Dug Well","Grade B","Yes","BO4642","Seasonality =No, Village =Kamathor, Section =Malimbon","#water_tech, #status_id, #notes"]
["Bombali","Safroko Limba","Malimbon","Kateneh",280,1,"opposite dry floor",0,"No","Oui","8.987016","-11.99695",true,false,"IM2","India Mark II","Community","BH","Borehole","Grade B","Yes","BO1320","Seasonality =No, Village =Kateneh, Section =Malimbon","#water_tech, #status_id, #notes"]
["Bombali","Safroko Limba","Malimbon","Kateneh",280,2,"R.C Pri. Sch.",0,"No","Oui","8.989283","-11.9974",true,false,"IM2","India Mark II","School","HDW","Hand Dug Well","Grade C","No","BO1321","Seasonality =No, Village =Kateneh, Section =Malimbon","#water_tech, #status_id, #notes"]
["Bombali","Safroko Limba","Malimbon","Kateneh",280,3,"Islamic Academy kateneh",0,"No","Oui","8.989133","-11.99843",false,false,"IM2","India Mark II","School","HDW","Hand Dug Well","Grade B","Yes","BO1322","Seasonality =No, Village =Kateneh, Section =Malimbon","#water_tech, #status_id, #notes"]
["Bombali","Safroko Limba","Malimbon","Kateneh",280,4,"At the Health Centre",0,"No","Oui","8.989366","-11.99838",false,false,"IM2","India Mark II","Health Facility","HDW","Hand Dug Well","Grade B","Yes","BO4643","Seasonality =No, Village =Kateneh, Section =Malimbon","#water_tech, #status_id, #notes"]
["Bombali","Safroko Limba","Malimbon","Kathankina",400,1,"Opposite the Junction",0,"No","Oui","9.030833","-11.96948",false,false,"IM2","India Mark II","Community","BH","Borehole","Grade A","Yes","BO1040","Seasonality =No, Village =Kathankina, Section =Malimbon","#water_tech, #status_id, #notes"]
["Bombali","Safroko Limba","Malimbon","Kathankina",400,2,"Close to the dry floor",5,"Yes","Oui","9.0308","-11.97016",false,false,"IM2","India Mark II","Community","HDW","Hand Dug Well","Grade B","Yes","BO1041","Seasonality =Yes, Village =Kathankina, Section =Malimbon","#water_tech, #status_id, #notes"]
["Bombali","Safroko Limba","Malimbon","Kathankina",400,3,"Back of the School",0,"No","Oui","9.030633","-11.97138",false,false,"IM2","India Mark II","School","HDW","Hand Dug Well","Grade A","Yes","BO4644","Seasonality =No, Village =Kathankina, Section =Malimbon","#water_tech, #status_id, #notes"]
["Bombali","Safroko Limba","Malimbon","Mabai",55,1,"Bush part to Masongbo 2",6,"Yes","Oui","8.999916","-12.00205",false,false,"IM2","India Mark II","Community","HDW","Hand Dug Well","Grade C","No","BO4645","Seasonality =Yes, Village =Mabai, Section =Malimbon","#water_tech, #status_id, #notes"]
["Bombali","Safroko Limba","Malimbon","Mafoita",200,1,"Close to the dry floor",12,"Yes","Oui","9.00060","-12.00484",false,false,"IM2","India Mark II","Community","HDW","Hand Dug Well","Grade B","Yes","BO1308","Seasonality =Yes, Village =Mafoita, Section =Malimbon","#water_tech, #status_id, #notes"]
["Bombali","Safroko Limba","Malimbon","Mafoita",200,2,"Opposite the Church",0,"No","Oui","9.00555","-12.01078",false,false,"IM2","India Mark II","Community","HDW","Hand Dug Well","Grade A","Yes","BO1309","Seasonality =No, Village =Mafoita, Section =Malimbon","#water_tech, #status_id, #notes"]
["Bombali","Safroko Limba","Malimbon","Mafoita",200,3,"Close to the Dry Floor",3,"Yes","Oui","9.00548","-12.01019",false,false,"IM2","India Mark II","Community","HDW","Hand Dug Well","Grade A","Yes","BO4646","Seasonality =Yes, Village =Mafoita, Section =Malimbon","#water_tech, #status_id, #notes"]
["Bombali","Safroko Limba","Malimbon","Makaray",570,1,"Centre of the village",0,"No","Oui","8.99875","-12.00453",false,false,"IM2","India Mark II","Community","HDW","Hand Dug Well","Grade B","Yes","BO1035","Seasonality =No, Village =Makaray, Section =Malimbon","#water_tech, #status_id, #notes"]
["Bombali","Safroko Limba","Malimbon","Makaray",570,2,"CPS Makaray",0,"No","Non","9.00060","-12.00484",true,false,"IM2","India Mark II","School","BH","Borehole","Grade A","Yes","BO1036","Seasonality =No, Village =Makaray, Section =Malimbon","#water_tech, #status_id, #notes"]
["Bombali","Safroko Limba","Malimbon","Makaray",570,3,"Up town",3,"Yes","Non","8.99989","-12.00204",false,false,"IM2","India Mark II","Community","HDW","Hand Dug Well","Grade C","No","BO1275","Seasonality =Yes, Village =Makaray, Section =Malimbon","#water_tech, #status_id, #notes"]
["Bombali","Safroko Limba","Malimbon","Masongbo II",220,1,"MCPS Campus",0,"No","Non","9.011233","-11.98428",false,false,"IM2","India Mark II","School","BH","Borehole","Grade A","Yes","BO4647","Seasonality =No, Village =Masongbo II, Section =Malimbon","#water_tech, #status_id, #notes"]
["Bombali","Safroko Limba","Malimbon","Masongbo II",220,2,"Just after the Church",0,"No","Non","9.011183","-11.98585",false,false,"IM2","India Mark II","Community","BH","Borehole","Grade A","Yes","BO4648","Seasonality =No, Village =Masongbo II, Section =Malimbon","#water_tech, #status_id, #notes"]
["Bombali","Safroko Limba","Malimbon","Masongbo II",220,3,"End of the village",4,"Yes","Non","9.01155","-11.98638",true,false,"Just pedestal - incomplete","Just pedestal - incomplete","Community","HDW","Hand Dug Well","Grade C","No","BO1315","Seasonality =Yes, Village =Masongbo II, Section =Malimbon","#water_tech, #status_id, #notes"]
["Bombali","Safroko Limba","Malimbon","Masseleh",350,1,"Health Centre",3,"Yes","Non","9.01445","-12.04152",false,false,"IM2","India Mark II","Health Facility","HDW","Hand Dug Well","Grade A","Yes","BO1345","Seasonality =Yes, Village =Masseleh, Section =Malimbon","#water_tech, #status_id, #notes"]
["Bombali","Safroko Limba","Malimbon","Masseleh",350,2,"Close to the Dry Foor/Community Store",3,"Yes","Non","9.01631","-12.04335",false,false,"IM2","India Mark II","Community","HDW","Hand Dug Well","Grade C","No","BO1344","Seasonality =Yes, Village =Masseleh, Section =Malimbon","#water_tech, #status_id, #notes"]
["Bombali","Safroko Limba","Malimbon","Masseleh",350,3,"W.C.S.L Maselleh",0,"No","Non","9.017839","-12.044495",false,false,"IM2","India Mark II","School","BH","Borehole","Grade B","Yes","BO4634","Seasonality =No, Village =Masseleh, Section =Malimbon","#water_tech, #status_id, #notes"]
["Bombali","Safroko Limba","Mapan","Kasengbeh",800,1,"Foundation primary school",3,"Yes","Non","9.068916","-11.87758",false,false,"IM2","India Mark II","School","HDW","Hand Dug Well","Grade A","Yes","BO2202","Seasonality =Yes, Village =Kasengbeh, Section =Mapan","#water_tech, #status_id, #notes"]
["Bombali","Safroko Limba","Masulukuin","Bunban",250,1,"End of the Village",0,"No","Non","8.98381","-11.93972",false,false,"Kardia","Kardia","Community","HDW","Hand Dug Well","Grade A","Yes","BO2082","Seasonality =No, Village =Bunban, Section =Masulukuin","#water_tech, #status_id, #notes"]
["Bombali","Safroko Limba","Masulukuin","Kabonka",470,1,"At the Community Health post",0,"No","Non","9.00006","-11.91193",false,true,"Solar Tap System","Solar Tap System ","Health Facility","HDW","Hand Dug Well","Grade A","Yes","BO1018","Seasonality =No, Village =Kabonka, Section =Masulukuin","#water_tech, #status_id, #notes"]
["Bombali","Safroko Limba","Masulukuin","Kabonka",470,2,"Close to the Dry Floor",1,"Yes","Non","8.97795","-12.052",false,false,"Kardia","Kardia","Community","HDW","Hand Dug Well","Grade A","Yes","BO1319","Seasonality =Yes, Village =Kabonka, Section =Masulukuin","#water_tech, #status_id, #notes"]
["Bombali","Safroko Limba","Masulukuin","Kabonka",470,3,"R.C Primary School",0,"No","Non","8.99829","-11.91282",false,false,"Just pedestal - incomplete","Just pedestal - incomplete","School","HDW","Hand Dug Well","Grade C","No","BO4700","Seasonality =No, Village =Kabonka, Section =Masulukuin","#water_tech, #status_id, #notes"]
["Bombali","Safroko Limba","Masulukuin","Kabunban",200,1,"Side of the village",3,"Yes","Non","8.983783","-11.93975",false,false,"IM2","India Mark II","Community","HDW","Hand Dug Well","Grade A","Yes","BO1020","Seasonality =Yes, Village =Kabunban, Section =Masulukuin","#water_tech, #status_id, #notes"]
["Bombali","Safroko Limba","Mathanthen","Mabamba",320,1,"At the Roman catholic church",0,"No","Oui","8.944316","-11.89771",false,false,"IM2","India Mark II","Community","HDW","Hand Dug Well","Grade A","Yes","BO1023","Seasonality =No, Village =Mabamba, Section =Mathanthen","#water_tech, #status_id, #notes"]
["Bombali","Safroko Limba","Mathanthen","Mabamba",320,2,"R.C Pri. Sch. Compound",4,"Yes","Oui","8.946816","-11.8984",false,false,"IM2","India Mark II","School","HDW","Hand Dug Well","Grade B","Yes","BO4649","Seasonality =Yes, Village =Mabamba, Section =Mathanthen","#water_tech, #status_id, #notes"]
["Bombali","Safroko Limba","Mathanthen","Madiff",872,1,"Madiff Community School",3,"Yes","Oui","8.967983","-11.91056",false,false,"IM2","India Mark II","School","HDW","Hand Dug Well","Grade A","Yes","BO1025","Seasonality =Yes, Village =Madiff, Section =Mathanthen","#water_tech, #status_id, #notes"]
["Bombali","Safroko Limba","Mathanthen","Madiff",872,2,"Opposite Chief House",4,"Yes","Oui","8.9661","-11.9141",false,false,"IM2","India Mark II","Community","HDW","Hand Dug Well","Grade A","Yes","BO4650","Seasonality =Yes, Village =Madiff, Section =Mathanthen","#water_tech, #status_id, #notes"]
["Bombali","Safroko Limba","Mathanthen","Maparay",213,1,"Close to the field",0,"No","Oui","8.992866","-11.88178",false,false,"IM2","India Mark II","Community","HDW","Hand Dug Well","Grade A","Yes","BO1024","Seasonality =No, Village =Maparay, Section =Mathanthen","#water_tech, #status_id, #notes"]
["Bombali","Safroko Limba","Mathanthen","Maparay",213,2,"Side of the village",6,"Yes","Oui","8.992933","-11.88168",true,false,"IM2","India Mark II","Community","HDW","Hand Dug Well","Grade C","No","BO1324","Seasonality =Yes, Village =Maparay, Section =Mathanthen","#water_tech, #status_id, #notes"]
["Bombali","Safroko Limba","Mathanthen","Masama",750,1,"Side of the village",5,"Yes","Oui","8.967","-11.9243",false,false,"PB3","PB Mark III","Community","HDW","Hand Dug Well","Grade A","Yes","BO1026","Seasonality =Yes, Village =Masama, Section =Mathanthen","#water_tech, #status_id, #notes"]
["Bombali","Safroko Limba","Mathanthen","Masongbo Limba",1250,1,"Close to Bumbuna Road",0,"No","Oui","8.97845","-11.88796",false,false,"Just pedestal - incomplete","Just pedestal - incomplete","Community","HDW","Hand Dug Well","Grade A","Yes","BO2720","Seasonality =No, Village =Masongbo Limba, Section =Mathanthen","#water_tech, #status_id, #notes"]
["Bombali","Safroko Limba","Mathanthen","Masongbo Limba",1250,2,"Side of the village",0,"No","Oui","8.980883","-11.88808",false,false,"IM2","India Mark II","Community","HDW","Hand Dug Well","Grade A","Yes","BO1411","Seasonality =No, Village =Masongbo Limba, Section =Mathanthen","#water_tech, #status_id, #notes"]
["Bombali","Safroko Limba","Mathanthen","Masongbo Limba",1250,3,"At the Community Health Post",6,"Yes","Oui","8.97971","-11.88778",false,false,"PB3","PB Mark III","Health Facility","HDW","Hand Dug Well","Grade C","No","BO4651","Seasonality =Yes, Village =Masongbo Limba, Section =Mathanthen","#water_tech, #status_id, #notes"]
["Bombali","Safroko Limba","Mathanthen","Masongbo Limba",1250,4,"At the Community health Post",0,"No","Oui","8.97992","-11.88772",false,true,"IM2","India Mark II plus solar pump","Health Facility","HDW","Hand Dug Well","Grade A","Yes","BO4652","Seasonality =No, Village =Masongbo Limba, Section =Mathanthen","#water_tech, #status_id, #notes"]
["Bombali","Safroko Limba","Mathanthen","Masongbo Limba",1250,5,"RC Primary School Compound",3,"Yes","Oui","8.97775","-11.88837",false,false,"Just pedestal - incomplete","Just pedestal - incomplete","School","HDW","Hand Dug Well","Grade C","No","BO4653","Seasonality =Yes, Village =Masongbo Limba, Section =Mathanthen","#water_tech, #status_id, #notes"]
["Bombali","Safroko Limba","Mathanthen","Masongbo Limba",1250,6,"Mick&collettefoleyjun.sec.sch",0,"No","Oui","8.972933","-11.88925",false,false,"IM2","India Mark II","School","HDW","Hand Dug Well","Grade A","Yes","BO4654","Seasonality =No, Village =Masongbo Limba, Section =Mathanthen","#water_tech, #status_id, #notes"]
["Bombali","Safroko Limba","Mathanthen","Masongbo Limba",1250,7,"Mick&ColletteFoley Jun.sec.sch",0,"No","Oui","8.97248","-11.88898",false,false,"IM2","India Mark II","School","BH","Borehole","Grade A","Yes","BO4655","Seasonality =No, Village =Masongbo Limba, Section =Mathanthen","#water_tech, #status_id, #notes"]